Workbook

Sheet UITLEG
F3: VERLOFPLANNER 2024
C7: Voor het correct laten werken van de verlofplanner:
C8: => Schakel de Macro's in door te klikken op 'Inhoud inschakelen' (Enable this content)
C9: => Sla de verlofplanner alleen op als een Excel Macro - Enabled Workbook (.xlsm) versie
C11: Tabblad Dienstverbandgegevens
C12: ● Vul bij (A) de gegevens conform arbeidsbeidsovereenkomst en/of addendum
C13: ● Kies bij (B) uit een 36, 38 of 40 urige standaard werkweek
C14: ● Vul bij (E) het werkrooster in (moet gelijk zijn aan (D))
C16: (C) en (D) worden automatisch berekend.
C17: Gebruik alleen bij wijziging van (A), (B) en/of (E) een nieuwe periode.
C18: Meer dan 5 periodes? Gebruik dan een tweede verlofplanner en tel de verlofsaldo's bij elkaar op.
C20: Tabblad Verlofkalender
C21: Indien van toepassing:
C22: ● Vul in Meegenomen uren restant verlof
C23: ● Vul in Totaal aantal verlofuren te verminderen in 2024, ivm langdurig verzuim/ziekte
C24: (zie tabblad '(On)betaald Verlof' voor uitleg)
C25: ● Wijzig het aantal uur bij Dagdelen (staat standaard op 8 uur)
C27: De overige velden worden automatisch berekend / ingevuld op basis van invoer opname verlofuren en
C28: invoer van overwerkuren (zoals bedoeld in CAO artikel H-7 alinea 4a).
C30: Toelichting
C31: De verlofplanner maakt gebruik van de berekening van het opgebouwde verlofsaldo conform cao.
C32: Valt een nationale feestdag of een door het CvB vastgestelde verplichte vrije dag samen met
C33: een werkdag, dan is deze reeds van het verlofsaldo afgetrokken. De verlofkalender berekent
C34: het restant aan verlof (netto verlof).
C36: (On)betaald Ouderschapsverlof, Werktijdvermindering Senioren (WS)/SOP, Langdurig Ziek
C37: Zie tabblad (On)betaald Verlof
C39: Meer Informatie
C40: Zie tabblad 'Veel gestelde vragen', mijnhva.nl of neem contact op met de HR-adviseur van de eigen eenheid.
C42: Technische problemen kunnen doorgegeven worden aan de PSA (servicedesk-ac@hva.nl)

Sheet DIENSTVERBANDGEGEVENS
B2: DIENSTVERBANDGEGEVENS | G2: Naam werknemer: | L2: Bij betaald ouderschapsverlof zullen vanaf 2024 verplichte vrije dagen in SAP anders worden berekend dan in de verlofplanner.
G4: Personeelsnr: | L4: In de verlofplanner worden deze uren namelijk niet gecompenseerd.
D6: =DV!D2 ->  | F6: =DV!F2 ->  | L6: Neem contact op met de personeelsadministratie HvA voor meer informatie.
B7: PERIODE 1 IN 2024 | C7: van | D7: 2024-01-01 | E7: t/m | F7: 2024-12-31 | G7: =DV!G3 ->  | H7: aantal dagen | I7: =SUM(F7-D7+1) -> 366
B9: (A) Omvang aanstelling in fulltime equivalenten (fte's) | J9: 1
B11: (B) Standaard werkweek bij volledige aanstelling, kies 36, 38 of 40
B13: (C) Totaal aantal netto werkbare uren in periode 1 | J13: =DV!K51 -> 1659
B15: (D) Bruto aantal werkbare uren bij aanstellingsomvang | J15: =DV!K53 -> 40
B17: (E) Keuze tijdsbesteding | D17: maandag | E17: dinsdag | F17: woensdag | G17: donderdag | H17: vrijdag | I17: zaterdag | J17: gemiddeld
C18: even week | D18: 8 | E18: 8 | F18: 8 | G18: 8 | H18: 8 | J18: totaal
C20: oneven week | D20: 8 | E20: 8 | F20: 8 | G20: 8 | H20: 8 | J20: =DV!K58 -> 40
D25: =DV!D72 ->  | F25: =DV!F72 -> 
B26: PERIODE 2 IN 2024 | C26: van | E26: t/m | G26: =DV!G73 ->  | H26: aantal dagen | I26: =SUM(F26-D26+1) -> 1
B28: (A) Omvang aanstelling in fulltime equivalenten (fte's) | J28: 1
B30: (B) Standaard werkweek bij volledige aanstelling, kies 36, 38 of 40
B32: (C) Totaal aantal netto werkbare uren in periode 2 | J32: =DV!K121 -> 0
B34: (D) Bruto aantal werkbare uren bij aanstellingsomvang | J34: =DV!K123 -> 40
B36: (E) Keuze tijdsbesteding | D36: maandag | E36: dinsdag | F36: woensdag | G36: donderdag | H36: vrijdag | I36: zaterdag | J36: gemiddeld
C37: even week | J37: totaal
C39: oneven week | J39: =DV!K128 -> 0
D44: =DV!D142 ->  | F44: =DV!F142 -> 
B45: PERIODE 3 IN 2024 | C45: van | E45: t/m | G45: =DV!G143 ->  | H45: aantal dagen | I45: =SUM(F45-D45+1) -> 1
B47: (A) Omvang aanstelling in fulltime equivalenten (fte's)
B49: (B) Standaard werkweek bij volledige aanstelling, kies 36, 38 of 40
B51: (C) Totaal aantal netto werkbare uren in periode 3 | J51: =DV!K191 -> 0
B53: (D) Bruto aantal werkbare uren bij aanstellingsomvang | J53: =DV!K193 -> 0
B55: (E) Keuze tijdsbesteding | D55: maandag | E55: dinsdag | F55: woensdag | G55: donderdag | H55: vrijdag | I55: zaterdag | J55: gemiddeld
C56: even week | J56: totaal
C58: oneven week | J58: =DV!K198 -> 0
D63: =DV!D212 ->  | F63: =DV!F212 -> 
B64: PERIODE 4 IN 2024 | C64: van | E64: t/m | G64: =DV!G213 ->  | H64: aantal dagen | I64: =SUM(F64-D64+1) -> 1
B66: (A) Omvang aanstelling in fulltime equivalenten (fte's)
B68: (B) Standaard werkweek bij volledige aanstelling, kies 36, 38 of 40
B70: (C) Totaal aantal netto werkbare uren in periode 4 | J70: =DV!K261 -> 0
B72: (D) Bruto aantal werkbare uren bij aanstellingsomvang | J72: =DV!K263 -> 0
B74: (E) Keuze tijdsbesteding | D74: maandag | E74: dinsdag | F74: woensdag | G74: donderdag | H74: vrijdag | I74: zaterdag | J74: gemiddeld
C75: even week | J75: totaal
C77: oneven week | J77: =DV!K268 -> 0
D82: =DV!D282 ->  | F82: =DV!F282 -> 
B83: PERIODE 5 IN 2024 | C83: van | E83: t/m | G83: =DV!G283 ->  | H83: aantal dagen | I83: =SUM(F83-D83+1) -> 1
B85: (A) Omvang aanstelling in fulltime equivalenten (fte's)
B87: (B) Standaard werkweek bij volledige aanstelling, kies 36, 38 of 40
B89: (C) Totaal aantal netto werkbare uren in periode 5 | J89: =DV!K331 -> 0
B91: (D) Bruto aantal werkbare uren bij aanstellingsomvang | J91: =DV!K333 -> 0
B93: (E) Keuze tijdsbesteding | D93: maandag | E93: dinsdag | F93: woensdag | G93: donderdag | H93: vrijdag | I93: zaterdag | J93: gemiddeld
C94: even week | J94: totaal
C96: oneven week | J96: =DV!K338 -> 0

Sheet VERLOFKALENDER
B2: VERLOFKALENDER 2024 | Z2: =IF(ISBLANK(DIENSTVERBANDGEGEVENS!H2),"",DIENSTVERBANDGEGEVENS!H2) -> 
H3: =IF(OR(ISERROR(K5),NOT(DV!$N$4)),"Dienstverband op vorige blad nakijken a.u.b.",IF(K5=0,"Dienstverbandgegevens invullen a.u.b. (zie vorige blad)","")) ->  | Z3: =IF(ISBLANK(DIENSTVERBANDGEGEVENS!H4),"","persnr : "& DIENSTVERBANDGEGEVENS!H4) -> 
A5: p1 | B5: Totaal verlofsaldo in uren | K5: =(DV!K53*4*DIENSTVERBANDGEGEVENS!I7/365) -> 160.4383562 | M5: =(DV!$K$62) -> 428 | O5: wordt automatisch berekend o.b.v. dienstverbandgegevens | Z5: Di uren periode 1 | AA5: =SUM('DI uren'!B18*DIENSTVERBANDGEGEVENS!I7/365) -> 45.12328767
A6: p2 | B6: Totaal verlofsaldo in uren | K6: =(DV!K123*4*DIENSTVERBANDGEGEVENS!I26/365) -> 0.4383561644 | M6: =(DV!$K$132) -> 0 | Z6: Di uren periode 2 | AA6: =SUM('DI uren'!B37*DIENSTVERBANDGEGEVENS!I26/365) -> 0.1232876712
A7: p3 | B7: Totaal verlofsaldo in uren | K7: =(DV!K193*4*DIENSTVERBANDGEGEVENS!I45/365) -> 0 | M7: =(DV!$K$202) -> 0 | Z7: Di uren periode 3 | AA7: =SUM('DI uren'!B56*DIENSTVERBANDGEGEVENS!I45/365) -> 0
A8: p4 | B8: Totaal verlofsaldo in uren | K8: =(DV!K263*4*DIENSTVERBANDGEGEVENS!I64/365) -> 0 | M8: =(DV!$K$272) -> 0 | Z8: Di uren periode 4 | AA8: =SUM('DI uren'!B75*DIENSTVERBANDGEGEVENS!I64/365) -> 0
A9: p5 | B9: Totaal verlofsaldo in uren | M9: =(DV!$K$342) -> 0 | Z9: Di uren periode 5 | AA9: =SUM('DI uren'!B94*DIENSTVERBANDGEGEVENS!I64/365) -> 0
B10: totaal over gehele periode | J10: =CEILING(SUM(K5:K8),0.5) -> 161 | M10: =CEILING(SUM(M5:N9),0.5) -> 428 | Z10: Di uren totaal | AA10: =CEILING(SUM(AA5:AA8),0.5) -> 45.5
B12: Totaal netto verlofsaldo in uren | M12: =DV!$K$68+DV!$K$138+DV!$K$208+DV!$K$278+DV!$K$348 -> 349 | O12: wordt automatisch berekend o.b.v. dienstverbandgegevens
B14: Meegenomen uren restant verlof | O14: invullen indien van toepassing
B16: Totaal overwerk-/compensatieuren in 2024 | K16: + | M16: =Y93 -> 0 | O16: overwerk: volgens cao art. H-7 alinea 4a
B18: Totaal aantal verlofuren te verminderen in 2024 | L18: - | O18: in verband met langdurig verzuim
B20: Totaal te besteden verlofuren in 2024 | M20: =M12+M14+M16-M18 -> 349
B22: Opgenomen en geplande verlofuren in 2024 | K22: - | M22: =X93 -> 0 | O22: totaal van de in de onderstaande tabel ingevulde vakantieuren
B24: Restant verlofsaldo in uren | M24: =M20-M22 -> 349 | O24: =IF($S$24>=1,$M$24/$S$24,"..") -> .. | P24: dagdelen van | T24: uur
E29: maandag | H29: dinsdag | K29: woensdag | N29: donderdag | Q29: vrijdag | T29: zaterdag | V29: zondag | Y29: over- | Z29: opmerkingen
C30: wknr | D30: dd. | E30: wrk | F30: vrij | G30: dd. | H30: wrk | I30: vrij | J30: dd. | K30: wrk | L30: vrij | M30: dd. | N30: wrk | O30: vrij | P30: dd. | Q30: wrk | R30: vrij | S30: dd. | T30: wrk | U30: vrij | V30: dd. | X30: subtot | Y30: werk
B31: januari | C31: 0 | D31: 1 | G31: 2 | H31: 8 | J31: 3 | K31: 8 | M31: 4 | N31: 8 | P31: 5 | Q31: 8 | S31: 6 | V31: 7 | X31: =SUM(F31,I31,L31,O31,R31,U31) -> 0 | Z31: Nieuwjaarsdag
C32: 1 | D32: 8 | E32: 8 | G32: 9 | H32: 8 | J32: 10 | K32: 8 | M32: 11 | N32: 8 | P32: 12 | Q32: 8 | S32: 13 | V32: 14 | X32: =SUM(F32,I32,L32,O32,R32,U32) -> 0
C33: 2 | D33: 15 | E33: 8 | G33: 16 | H33: 8 | J33: 17 | K33: 8 | M33: 18 | N33: 8 | P33: 19 | Q33: 8 | S33: 20 | V33: 21 | X33: =SUM(F33,I33,L33,O33,R33,U33) -> 0
C34: 3 | D34: 22 | E34: 8 | G34: 23 | H34: 8 | J34: 24 | K34: 8 | M34: 25 | N34: 8 | P34: 26 | Q34: 8 | S34: 27 | V34: 28 | X34: 0
C35: 4 | D35: 29 | E35: 8 | G35: 30 | H35: 8 | J35: 31 | K35: 8 | X35: =SUM(F35,I35,L35,O35,R35,U35) -> 0
B36: februari | C36: 5 | M36: 1 | N36: 8 | P36: 2 | Q36: 8 | S36: 3 | V36: 4 | X36: 0
C37: 6 | D37: 5 | E37: 8 | G37: 6 | H37: 8 | J37: 7 | K37: 8 | M37: 8 | N37: 8 | P37: 9 | Q37: 8 | S37: 10 | V37: 11 | X37: 0
C38: 7 | D38: 12 | E38: 8 | G38: 13 | H38: 8 | J38: 14 | K38: 8 | M38: 15 | N38: 8 | P38: 16 | Q38: 8 | S38: 17 | V38: 18 | X38: 0
C39: 8 | D39: 19 | E39: 8 | G39: 20 | H39: 8 | J39: 21 | K39: 8 | M39: 22 | N39: 8 | P39: 23 | Q39: 8 | S39: 24 | V39: 25 | X39: 0
C40: 9 | D40: 26 | E40: 8 | G40: 27 | H40: 8 | J40: 28 | K40: 8 | M40: 29 | N40: 8 | X40: 0
B41: maart | C41: 9 | P41: 1 | Q41: 8 | S41: 2 | V41: 3 | X41: 0
C42: 10 | D42: 4 | E42: 8 | G42: 5 | H42: 8 | J42: 6 | K42: 8 | M42: 7 | N42: 8 | P42: 8 | Q42: 8 | S42: 9 | V42: 10 | X42: 0
C43: 11 | D43: 11 | E43: 8 | G43: 12 | H43: 8 | J43: 13 | K43: 8 | M43: 14 | N43: 8 | P43: 15 | Q43: 8 | S43: 16 | V43: 17 | X43: 0
C44: 12 | D44: 18 | E44: 8 | G44: 19 | H44: 8 | J44: 20 | K44: 8 | M44: 21 | N44: 8 | P44: 22 | Q44: 8 | S44: 23 | V44: 24 | X44: 0
C45: 13 | D45: 25 | E45: 8 | G45: 26 | H45: 8 | J45: 27 | K45: 8 | M45: 28 | N45: 8 | P45: 29 | S45: 30 | V45: 31 | X45: 0 | Z45: Goede Vrijdag, 1e Paasdag
B46: april | C46: 14 | D46: 1 | G46: 2 | H46: 8 | J46: 3 | K46: 8 | M46: 4 | N46: 8 | P46: 5 | Q46: 8 | S46: 6 | V46: 3 | X46: 0 | Z46: 2e Paasdag
C47: 15 | D47: 8 | E47: 8 | G47: 9 | H47: 8 | J47: 10 | K47: 8 | M47: 11 | N47: 8 | P47: 12 | Q47: 8 | S47: 13 | V47: 14 | X47: 0
C48: 16 | D48: 15 | E48: 8 | G48: 16 | H48: 8 | J48: 17 | K48: 8 | M48: 18 | N48: 8 | P48: 19 | Q48: 8 | S48: 20 | V48: 21 | X48: 0
C49: 17 | D49: 22 | E49: 8 | G49: 23 | H49: 8 | J49: 24 | K49: 8 | M49: 25 | N49: 8 | P49: 26 | Q49: 8 | S49: 27 | V49: 28 | X49: =SUM(F49,I49,L49,O49,R49,U49) -> 0 | Z49: Koningsdag
C50: 18 | D50: 29 | E50: 8 | G50: 30 | H50: 8 | X50: 0
B51: mei | C51: 18 | J51: 1 | K51: 8 | M51: 2 | N51: 8 | P51: 3 | Q51: 8 | S51: 4 | V51: 5 | X51: 0 | Z51: Bevrijdingsdag
C52: 19 | D52: 6 | E52: 8 | G52: 7 | H52: 8 | J52: 8 | K52: 8 | M52: 9 | P52: 10 | S52: 11 | V52: 12 | X52: 0 | Z52: Hemelvaartsdag, verplicht*
C53: 20 | D53: 13 | E53: 8 | G53: 14 | H53: 8 | J53: 15 | K53: 8 | M53: 16 | N53: 8 | P53: 17 | Q53: 8 | S53: 18 | V53: 19 | X53: 0 | Z53: 1e Pinksterdag
C54: 21 | D54: 20 | G54: 21 | H54: 8 | J54: 22 | K54: 8 | M54: 23 | N54: 8 | P54: 24 | Q54: 8 | S54: 25 | V54: 26 | X54: 0 | Z54: 2e Pinksterdag
C55: 22 | D55: 27 | E55: 8 | G55: 28 | H55: 8 | J55: 29 | K55: 8 | M55: 30 | N55: 8 | P55: 31 | Q55: 8 | X55: 0
B56: juni | C56: 22 | S56: 1 | V56: 2 | X56: 0
C57: 23 | D57: 3 | E57: 8 | G57: 4 | H57: 8 | J57: 5 | K57: 8 | M57: 6 | N57: 8 | P57: 7 | Q57: 8 | S57: 8 | V57: 9 | X57: 0
C58: 24 | D58: 10 | E58: 8 | G58: 11 | H58: 8 | J58: 12 | K58: 8 | M58: 13 | N58: 8 | P58: 14 | Q58: 8 | S58: 15 | V58: 16 | X58: 0
C59: 25 | D59: 17 | E59: 8 | G59: 18 | H59: 8 | J59: 19 | K59: 8 | M59: 20 | N59: 8 | P59: 21 | Q59: 8 | S59: 22 | V59: 23 | X59: 0
C60: 26 | D60: 24 | E60: 8 | G60: 25 | H60: 8 | J60: 26 | K60: 8 | M60: 27 | N60: 8 | P60: 28 | Q60: 8 | S60: 29 | V60: 30 | X60: 0
B61: juli | C61: 26 | D61: 1 | E61: 8 | G61: 2 | H61: 8 | J61: 3 | K61: 8 | M61: 4 | N61: 8 | P61: 5 | Q61: 8 | S61: 6 | V61: 7 | X61: 0
C62: 27 | D62: 8 | E62: 8 | G62: 9 | H62: 8 | J62: 10 | K62: 8 | M62: 11 | N62: 8 | P62: 12 | Q62: 8 | S62: 13 | V62: 14 | X62: 0
C63: 28 | D63: 15 | E63: 8 | G63: 16 | H63: 8 | J63: 17 | K63: 8 | M63: 18 | N63: 8 | P63: 19 | Q63: 8 | S63: 20 | V63: 21 | X63: 0
C64: 29 | D64: 22 | E64: 8 | G64: 23 | H64: 8 | J64: 24 | K64: 8 | M64: 25 | N64: 8 | P64: 26 | Q64: 8 | S64: 27 | V64: 28 | X64: 0
C65: 30 | D65: 29 | E65: 8 | G65: 30 | H65: 8 | J65: 31 | K65: 8 | X65: 0
B66: augustus | C66: 31 | M66: 1 | N66: 8 | P66: 2 | Q66: 8 | S66: 3 | V66: 4 | X66: 0
C67: 32 | D67: 5 | E67: 8 | G67: 6 | H67: 8 | J67: 7 | K67: 8 | M67: 8 | N67: 8 | P67: 9 | Q67: 8 | S67: 10 | V67: 11 | X67: 0
C68: 33 | D68: 12 | E68: 8 | G68: 13 | H68: 8 | J68: 14 | K68: 8 | M68: 15 | N68: 8 | P68: 16 | Q68: 8 | S68: 17 | V68: 18 | X68: 0
C69: 34 | D69: 19 | E69: 8 | G69: 20 | H69: 8 | J69: 21 | K69: 8 | M69: 22 | N69: 8 | P69: 23 | Q69: 8 | S69: 24 | V69: 25 | X69: 0
C70: 35 | D70: 26 | E70: 8 | G70: 27 | H70: 8 | J70: 28 | K70: 8 | M70: 29 | N70: 8 | P70: 30 | Q70: 8 | S70: 31 | X70: 0
B71: september | C71: 35 | V71: 1 | X71: 0
C72: 36 | D72: 2 | E72: 8 | G72: 3 | H72: 8 | J72: 4 | K72: 8 | M72: 5 | N72: 8 | P72: 6 | Q72: 8 | S72: 7 | V72: 8 | X72: 0
C73: 37 | D73: 9 | E73: 8 | G73: 10 | H73: 8 | J73: 11 | K73: 8 | M73: 12 | N73: 8 | P73: 13 | Q73: 8 | S73: 14 | V73: 15 | X73: 0
C74: 38 | D74: 16 | E74: 8 | G74: 17 | H74: 8 | J74: 18 | K74: 8 | M74: 19 | N74: 8 | P74: 20 | Q74: 8 | S74: 21 | V74: 22 | X74: 0
C75: 39 | D75: 23 | E75: 8 | G75: 24 | H75: 8 | J75: 25 | K75: 8 | M75: 26 | N75: 8 | P75: 27 | Q75: 8 | S75: 28 | V75: 29 | X75: 0
C76: 40 | D76: 30 | E76: 8 | V76: 1 | X76: 0
B77: oktober | C77: 39 | G77: 1 | H77: 8 | J77: 2 | K77: 8 | M77: 3 | N77: 8 | P77: 4 | Q77: 8 | S77: 5 | V77: 6 | X77: 0
C78: 40 | D78: 7 | E78: 8 | G78: 8 | H78: 8 | J78: 9 | K78: 8 | M78: 10 | N78: 8 | P78: 11 | Q78: 8 | S78: 12 | V78: 13 | X78: 0
C79: 41 | D79: 14 | E79: 8 | G79: 15 | H79: 8 | J79: 16 | K79: 8 | M79: 17 | N79: 8 | P79: 18 | Q79: 8 | S79: 19 | V79: 20 | X79: 0
C80: 42 | D80: 21 | E80: 8 | G80: 22 | H80: 8 | J80: 23 | K80: 8 | M80: 24 | N80: 8 | P80: 25 | Q80: 8 | S80: 26 | V80: 27 | X80: 0
C81: 43 | D81: 28 | E81: 8 | G81: 29 | H81: 8 | J81: 30 | K81: 8 | M81: 31 | N81: 8 | X81: 0
B82: november | C82: 44 | P82: 1 | Q82: 8 | S82: 2 | V82: 3 | X82: 0
C83: 45 | D83: 4 | E83: 8 | G83: 5 | H83: 8 | J83: 6 | K83: 8 | M83: 7 | N83: 8 | P83: 8 | Q83: 8 | S83: 9 | V83: 10 | X83: 0
C84: 46 | D84: 11 | E84: 8 | G84: 12 | H84: 8 | J84: 13 | K84: 8 | M84: 14 | N84: 8 | P84: 15 | Q84: 8 | S84: 16 | V84: 17 | X84: 0
C85: 47 | D85: 18 | E85: 8 | G85: 19 | H85: 8 | J85: 20 | K85: 8 | M85: 21 | N85: 8 | P85: 22 | Q85: 8 | S85: 23 | V85: 24 | X85: 0
C86: 48 | D86: 25 | E86: 8 | G86: 26 | H86: 8 | J86: 27 | K86: 8 | M86: 28 | N86: 8 | P86: 29 | Q86: 8 | S86: 30 | X86: 0
B87: december | C87: 48 | V87: 1 | X87: 0
C88: 49 | D88: 2 | E88: 8 | G88: 3 | H88: 8 | J88: 4 | K88: 8 | M88: 5 | N88: 8 | P88: 6 | Q88: 8 | S88: 7 | V88: 8 | X88: 0
C89: 50 | D89: 9 | E89: 8 | G89: 10 | H89: 8 | J89: 11 | K89: 8 | M89: 12 | N89: 8 | P89: 13 | Q89: 8 | S89: 14 | V89: 15 | X89: 0
C90: 51 | D90: 16 | E90: 8 | G90: 17 | H90: 8 | J90: 18 | K90: 8 | M90: 19 | N90: 8 | P90: 20 | Q90: 8 | S90: 21 | V90: 22 | X90: 0
C91: 52 | D91: 23 | E91: 8 | G91: 24 | H91: 8 | J91: 25 | M91: 26 | P91: 27 | S91: 28 | V91: 29 | X91: 0 | Z91: 1e en 2e Kerstdag, Verplicht (2 ovb)*
C92: 1 | D92: 30 | G92: 31 | Z92: Verplicht (2x ovb)
B93: * Conform notitie Feestdagen en verplichte verlofdagen 2022-2023. Geblokkeerde zaterdagen: zie laatste alinea van de inleiding. | U93: Totaal | X93: =SUM(X31:X92) -> 0 | Y93: =SUM(Y31:Y92) -> 0

Sheet DV (hidden)
D2: =IF(D4,"datum !",IF(OR(D3=0,YEAR(D3)=$N$3),"","datum !")) ->  | F2: =IF(AND(D3>0,F3>0,F3<D3),"datum !",IF( OR(F4, AND(F3>0,YEAR(F3)<>$N$3)),"datum !","")) ->  | H2: p2 | I2: p3 | J2: p4 | K2: p5
B3: PERIODE 1 | C3: van | D3: =IF(ISNUMBER(DIENSTVERBANDGEGEVENS!D7),DIENSTVERBANDGEGEVENS!D7,0) -> 2024-01-01 | E3: t/m | F3: =IF(ISNUMBER(DIENSTVERBANDGEGEVENS!F7),DIENSTVERBANDGEGEVENS!F7,0) -> 2024-12-31 | G3: =IF(AND(H3:K3),""," periode-overlapping") ->  | H3: =OR( $D$3=0,$F$3=0,D73=0,F73=0, AND($D$3>D73,$D$3>F73),AND($D$3<D73,$F$3<D73)) -> TRUE | I3: =OR( D3=0,F3=0,D143=0,F143=0, AND($D$3>D143,$D$3>F143),AND($D$3<D143,$F$3<D143)) -> TRUE | J3: =OR( D3=0,F3=0,D213=0,F213=0, AND($D$3>D213,$D$3>F213),AND($D$3<D213,$F$3<D213)) -> TRUE | K3: =OR( D3=0,F3=0,D283=0,F283=0, AND($D$3>D283,$D$3>F283),AND($D$3<D283,$F$3<D283)) -> TRUE | M3: kalenderjaar | N3: 2024
C4: tekst in datumcel | D4: =TYPE(DIENSTVERBANDGEGEVENS!D7)=2 -> FALSE | F4: =TYPE(DIENSTVERBANDGEGEVENS!F7)=2 -> FALSE | M4: geen overlap | N4: =AND(H3:K3,H73:K73,H143:K143,H213:K213,H283:K283) -> TRUE
D6: ma even | E6: ma oneven | F6: di even | G6: di oneven | H6: wo even | I6: wo oneven | J6: do even | K6: do oneven | L6: vr even | M6: vr oneven | N6: za even | O6: za oneven | P6: zo even | Q6: zo oneven
C7: =D3 -> 2024-01-01 | D7: =IF( AND( WEEKDAY($C7,2)=1,YEAR($C7)=$N$3, evenWeek($C7), $C7<=$F$3), (($F$3 + 1) - $C7 ) / 14, 0) -> 0 | E7: =IF( AND( WEEKDAY($C7,2)=1,YEAR($C7)=$N$3, NOT(evenWeek($C7)), $C7<= $F$3), (($F$3 + 1) - $C7 ) /14, 0) -> 26.14285714 | F7: =IF( AND( WEEKDAY($C7,2)=2,YEAR($C7)=$N$3, evenWeek($C7), $C7<=$F$3), (($F$3 + 1) - $C7 ) / 14, 0) -> 0 | G7: =IF( AND( WEEKDAY($C7,2)=2,YEAR($C7)=$N$3, NOT(evenWeek($C7)), $C7<= $F$3), (($F$3 + 1) - $C7 ) /14, 0) -> 0 | H7: =IF( AND( WEEKDAY($C7,2)=3,YEAR($C7)=$N$3, evenWeek($C7), $C7<=$F$3), (($F$3 + 1) - $C7 ) / 14, 0) -> 0 | I7: =IF( AND( WEEKDAY($C7,2)=3,YEAR($C7)=$N$3, NOT(evenWeek($C7)), $C7<= $F$3), (($F$3 + 1) - $C7 ) /14, 0) -> 0 | J7: =IF( AND( WEEKDAY($C7,2)=4,YEAR($C7)=$N$3, evenWeek($C7), $C7<=$F$3), (($F$3 + 1) - $C7 ) / 14, 0) -> 0 | K7: =IF( AND( WEEKDAY($C7,2)=4,YEAR($C7)=$N$3, NOT(evenWeek($C7)), $C7<= $F$3), (($F$3 + 1) - $C7 ) /14, 0) -> 0 | L7: =IF( AND( WEEKDAY($C7,2)=5,YEAR($C7)=$N$3, evenWeek($C7), $C7<=$F$3), (($F$3 + 1) - $C7 ) / 14, 0) -> 0 | M7: =IF( AND( WEEKDAY($C7,2)=5,YEAR($C7)=$N$3, NOT(evenWeek($C7)), $C7<= $F$3), (($F$3 + 1) - $C7 ) /14, 0) -> 0 | N7: =IF( AND( WEEKDAY($C7,2)=6,YEAR($C7)=$N$3, evenWeek($C7), $C7<=$F$3), (($F$3 + 1) - $C7 ) / 14, 0) -> 0 | O7: =IF( AND( WEEKDAY($C7,2)=6,YEAR($C7)=$N$3, NOT(evenWeek($C7)), $C7<= $F$3), (($F$3 + 1) - $C7 ) /14, 0) -> 0 | P7: =IF( AND( WEEKDAY($C7,2)=7,YEAR($C7)=$N$3, evenWeek($C7), $C7<=$F$3), (($F$3 + 1) - $C7 ) / 14, 0) -> 0 | Q7: =IF( AND( WEEKDAY($C7,2)=7,YEAR($C7)=$N$3, NOT(evenWeek($C7)), $C7<= $F$3), (($F$3 + 1) - $C7 ) /14, 0) -> 0
C8: =C7+1 -> 2024-01-02 | D8: 0 | E8: =IF( AND( WEEKDAY($C8,2)=1,YEAR($C8)=$N$3, NOT(evenWeek($C8)), $C8<= $F$3), (($F$3 + 1) - $C8 ) /14, 0) -> 0 | F8: =IF( AND( WEEKDAY($C8,2)=2,YEAR($C8)=$N$3, evenWeek($C8), $C8<=$F$3), (($F$3 + 1) - $C8 ) / 14, 0) -> 0 | G8: =IF( AND( WEEKDAY($C8,2)=2,YEAR($C8)=$N$3, NOT(evenWeek($C8)), $C8<= $F$3), (($F$3 + 1) - $C8 ) /14, 0) -> 26.07142857 | H8: =IF( AND( WEEKDAY($C8,2)=3,YEAR($C8)=$N$3, evenWeek($C8), $C8<=$F$3), (($F$3 + 1) - $C8 ) / 14, 0) -> 0 | I8: =IF( AND( WEEKDAY($C8,2)=3,YEAR($C8)=$N$3, NOT(evenWeek($C8)), $C8<= $F$3), (($F$3 + 1) - $C8 ) /14, 0) -> 0 | J8: =IF( AND( WEEKDAY($C8,2)=4,YEAR($C8)=$N$3, evenWeek($C8), $C8<=$F$3), (($F$3 + 1) - $C8 ) / 14, 0) -> 0 | K8: =IF( AND( WEEKDAY($C8,2)=4,YEAR($C8)=$N$3, NOT(evenWeek($C8)), $C8<= $F$3), (($F$3 + 1) - $C8 ) /14, 0) -> 0 | L8: =IF( AND( WEEKDAY($C8,2)=5,YEAR($C8)=$N$3, evenWeek($C8), $C8<=$F$3), (($F$3 + 1) - $C8 ) / 14, 0) -> 0 | M8: =IF( AND( WEEKDAY($C8,2)=5,YEAR($C8)=$N$3, NOT(evenWeek($C8)), $C8<= $F$3), (($F$3 + 1) - $C8 ) /14, 0) -> 0 | N8: =IF( AND( WEEKDAY($C8,2)=6,YEAR($C8)=$N$3, evenWeek($C8), $C8<=$F$3), (($F$3 + 1) - $C8 ) / 14, 0) -> 0 | O8: =IF( AND( WEEKDAY($C8,2)=6,YEAR($C8)=$N$3, NOT(evenWeek($C8)), $C8<= $F$3), (($F$3 + 1) - $C8 ) /14, 0) -> 0 | P8: =IF( AND( WEEKDAY($C8,2)=7,YEAR($C8)=$N$3, evenWeek($C8), $C8<=$F$3), (($F$3 + 1) - $C8 ) / 14, 0) -> 0 | Q8: =IF( AND( WEEKDAY($C8,2)=7,YEAR($C8)=$N$3, NOT(evenWeek($C8)), $C8<= $F$3), (($F$3 + 1) - $C8 ) /14, 0) -> 0
C9: =C8+1 -> 2024-01-03 | D9: 0 | E9: 0 | F9: 0 | G9: 0 | H9: 0 | I9: 26 | J9: 0 | K9: 0 | L9: 0 | M9: 0 | N9: 0 | O9: 0 | P9: 0 | Q9: 0
C10: 2024-01-04 | D10: 0 | E10: 0 | F10: 0 | G10: 0 | H10: 0 | I10: 0 | J10: 0 | K10: 25.92857143 | L10: 0 | M10: 0 | N10: 0 | O10: 0 | P10: 0 | Q10: 0
C11: 2024-01-05 | D11: 0 | E11: 0 | F11: 0 | G11: 0 | H11: 0 | I11: 0 | J11: 0 | K11: 0 | L11: 0 | M11: 25.85714286 | N11: 0 | O11: 0 | P11: 0 | Q11: 0
C12: 2024-01-06 | D12: 0 | E12: 0 | F12: 0 | G12: 0 | H12: 0 | I12: 0 | J12: 0 | K12: 0 | L12: 0 | M12: 0 | N12: 0 | O12: 25.78571429 | P12: 0 | Q12: 0
C13: 2024-01-07 | D13: 0 | E13: 0 | F13: 0 | G13: 0 | H13: 0 | I13: 0 | J13: 0 | K13: 0 | L13: 0 | M13: 0 | N13: 0 | O13: 0 | P13: 0 | Q13: 25.71428571
C14: 2024-01-08 | D14: 25.64285714 | E14: 0 | F14: 0 | G14: 0 | H14: 0 | I14: 0 | J14: 0 | K14: 0 | L14: 0 | M14: 0 | N14: 0 | O14: 0 | P14: 0 | Q14: 0
C15: 2024-01-09 | D15: 0 | E15: 0 | F15: 25.57142857 | G15: 0 | H15: 0 | I15: 0 | J15: 0 | K15: 0 | L15: 0 | M15: 0 | N15: 0 | O15: 0 | P15: 0 | Q15: 0
C16: 2024-01-10 | D16: 0 | E16: 0 | F16: 0 | G16: 0 | H16: 25.5 | I16: 0 | J16: 0 | K16: 0 | L16: 0 | M16: 0 | N16: 0 | O16: 0 | P16: 0 | Q16: 0
C17: 2024-01-11 | D17: 0 | E17: 0 | F17: 0 | G17: 0 | H17: 0 | I17: 0 | J17: 25.42857143 | K17: 0 | L17: 0 | M17: 0 | N17: 0 | O17: 0 | P17: 0 | Q17: 0
C18: 2024-01-12 | D18: 0 | E18: 0 | F18: 0 | G18: 0 | H18: 0 | I18: 0 | J18: 0 | K18: 0 | L18: 25.35714286 | M18: 0 | N18: 0 | O18: 0 | P18: 0 | Q18: 0
C19: 2024-01-13 | D19: 0 | E19: 0 | F19: 0 | G19: 0 | H19: 0 | I19: 0 | J19: 0 | K19: 0 | L19: 0 | M19: 0 | N19: 25.28571429 | O19: 0 | P19: 0 | Q19: 0
C20: 2024-01-14 | D20: 0 | E20: 0 | F20: 0 | G20: 0 | H20: 0 | I20: 0 | J20: 0 | K20: 0 | L20: 0 | M20: 0 | N20: 0 | O20: 0 | P20: 25.21428571 | Q20: 0
C21: # dagen: | D21: =ROUNDUP(SUM(D7:D20),0) -> 26 | E21: =ROUNDUP(SUM(E7:E20),0) -> 27 | F21: =ROUNDUP(SUM(F7:F20),0) -> 26 | G21: 27 | H21: 26 | I21: 26 | J21: 26 | K21: 26 | L21: 26 | M21: 26 | N21: =ROUNDUP(SUM(N7:N20),0) -> 26 | O21: =ROUNDUP(SUM(O7:O20),0) -> 26 | P21: =ROUNDUP(SUM(P7:P20),0) -> 26 | Q21: =ROUNDUP(SUM(Q7:Q20),0) -> 26
S23: controle
C24: NCF dagen | D24: ma even | E24: ma oneven | F24: di even | G24: di oneven | H24: wo even | I24: wo oneven | J24: do even | K24: do oneven | L24: vr even | M24: vr oneven | N24: za even | O24: za oneven | P24: zo even | Q24: zo oneven | R24: totaal | S24: wknr
B25: Nieuwjaarsdag | C25: 2024-01-01 | D25: =IF( AND($C25>($D$3-1),$C25<($F$3+1),WEEKDAY($C25,2)=1, evenWeek($C25) ),-1,"") ->  | E25: =IF( AND($C25>($D$3-1),$C25<($F$3+1),WEEKDAY($C25,2)=1, NOT(evenWeek($C25)) ),-1,"") -> -1 | F25: =IF( AND($C25>($D$3-1),$C25<($F$3+1),WEEKDAY($C25,2)=2, evenWeek($C25) ),-1,"") ->  | G25: =IF( AND($C25>($D$3-1),$C25<($F$3+1),WEEKDAY($C25,2)=2, NOT(evenWeek($C25)) ),-1,"") ->  | H25: =IF( AND($C25>($D$3-1),$C25<($F$3+1),WEEKDAY($C25,2)=3, evenWeek($C25) ),-1,"") ->  | I25: =IF( AND($C25>($D$3-1),$C25<($F$3+1),WEEKDAY($C25,2)=3, NOT(evenWeek($C25)) ),-1,"") ->  | J25: =IF( AND($C25>($D$3-1),$C25<($F$3+1),WEEKDAY($C25,2)=4, evenWeek($C25) ),-1,"") ->  | K25: =IF( AND($C25>($D$3-1),$C25<($F$3+1),WEEKDAY($C25,2)=4, NOT(evenWeek($C25)) ),-1,"") ->  | M25: =IF( AND($C25>($D$3-1),$C25<($F$3+1),WEEKDAY($C25,2)=5, NOT(evenWeek($C25)) ),-1,"") ->  | N25: =IF( AND($C25>($D$3-1),$C25<($F$3+1),WEEKDAY($C25,2)=6, evenWeek($C25) ),-1,"") ->  | O25: =IF( AND($C25>($D$3-1),$C25<($F$3+1),WEEKDAY($C25,2)=6, NOT(evenWeek($C25)) ),-1,"") ->  | P25: =IF( AND($C25>($D$3-1),$C25<($F$3+1),WEEKDAY($C25,2)=7, evenWeek($C25) ),-1,"") ->  | Q25: =IF( AND($C25>($D$3-1),$C25<($F$3+1),WEEKDAY($C25,2)=7, NOT(evenWeek($C25)) ),-1,"") ->  | S25: =isoweeknr(C25) -> 1
B26: Goede vrijdag | C26: 2024-03-29 | L26: =IF( AND($C26>($D$3-1),$C26<($F$3+1), evenWeek($C26) ),-1,"") ->  | M26: =IF( AND($C26>($D$3-1),$C26<($F$3+1), NOT(evenWeek($C26)) ),-1,"") -> -1 | S26: 13
B27: 2e paasdag | C27: 2024-04-01 | D27: =IF( AND($C27>($D$3-1),$C27<($F$3+1), evenWeek($C27) ),-1,"") -> -1 | E27: =IF( AND($C27>($D$3-1),$C27<($F$3+1), NOT(evenWeek($C27)) ),-1,"") ->  | S27: 14
B28: Koningsdag | C28: 2024-04-27 | D28: =IF( AND($C28>($D$3-1),$C28<($F$3+1),WEEKDAY($C28,2)=1, evenWeek($C28) ),-1,"") ->  | E28: =IF( AND($C28>($D$3-1),$C28<($F$3+1),WEEKDAY($C28,2)=1, NOT(evenWeek($C28)) ),-1,"") ->  | F28: =IF( AND($C28>($D$3-1),$C28<($F$3+1),WEEKDAY($C28,2)=2, evenWeek($C28) ),-1,"") ->  | G28: =IF( AND($C28>($D$3-1),$C28<($F$3+1),WEEKDAY($C28,2)=2, NOT(evenWeek($C28)) ),-1,"") ->  | H28: =IF( AND($C28>($D$3-1),$C28<($F$3+1),WEEKDAY($C28,2)=3, evenWeek($C28) ),-1,"") ->  | I28: =IF( AND($C28>($D$3-1),$C28<($F$3+1),WEEKDAY($C28,2)=3, NOT(evenWeek($C28)) ),-1,"") ->  | J28: =IF( AND($C28>($D$3-1),$C28<($F$3+1),WEEKDAY($C28,2)=4, evenWeek($C28) ),-1,"") ->  | K28: =IF( AND($C28>($D$3-1),$C28<($F$3+1),WEEKDAY($C28,2)=4, NOT(evenWeek($C28)) ),-1,"") ->  | L28: =IF( AND($C28>($D$3-1),$C28<($F$3+1),WEEKDAY($C28,2)=5, evenWeek($C28) ),-1,"") ->  | M28: =IF( AND($C28>($D$3-1),$C28<($F$3+1),WEEKDAY($C28,2)=5, NOT(evenWeek($C28)) ),-1,"") ->  | N28: =IF( AND($C28>($D$3-1),$C28<($F$3+1),WEEKDAY($C28,2)=6, evenWeek($C28) ),-1,"") ->  | O28: =IF( AND($C28>($D$3-1),$C28<($F$3+1),WEEKDAY($C28,2)=6, NOT(evenWeek($C28)) ),-1,"") -> -1 | P28: =IF( AND($C28>($D$3-1),$C28<($F$3+1),WEEKDAY($C28,2)=7, evenWeek($C28) ),-1,"") ->  | Q28: =IF( AND($C28>($D$3-1),$C28<($F$3+1),WEEKDAY($C28,2)=7, NOT(evenWeek($C28)) ),-1,"") ->  | S28: 17
B29: Bevrijdingsdag | C29: 2024-05-05 | D29: =IF( AND($C29>($D$3-1),$C29<($F$3+1),WEEKDAY($C29,2)=1, evenWeek($C29) ),-1,"") ->  | E29: =IF( AND($C29>($D$3-1),$C29<($F$3+1),WEEKDAY($C29,2)=1, NOT(evenWeek($C29)) ),-1,"") ->  | F29: =IF( AND($C29>($D$3-1),$C29<($F$3+1),WEEKDAY($C29,2)=2, evenWeek($C29) ),-1,"") ->  | G29: =IF( AND($C29>($D$3-1),$C29<($F$3+1),WEEKDAY($C29,2)=2, NOT(evenWeek($C29)) ),-1,"") ->  | H29: =IF( AND($C29>($D$3-1),$C29<($F$3+1),WEEKDAY($C29,2)=3, evenWeek($C29) ),-1,"") ->  | I29: =IF( AND($C29>($D$3-1),$C29<($F$3+1),WEEKDAY($C29,2)=3, NOT(evenWeek($C29)) ),-1,"") ->  | J29: =IF( AND($C29>($D$3-1),$C29<($F$3+1),WEEKDAY($C29,2)=4, evenWeek($C29) ),-1,"") ->  | K29: =IF( AND($C29>($D$3-1),$C29<($F$3+1),WEEKDAY($C29,2)=4, NOT(evenWeek($C29)) ),-1,"") ->  | L29: =IF( AND($C29>($D$3-1),$C29<($F$3+1),WEEKDAY($C29,2)=5, evenWeek($C29) ),-1,"") ->  | M29: =IF( AND($C29>($D$3-1),$C29<($F$3+1),WEEKDAY($C29,2)=5, NOT(evenWeek($C29)) ),-1,"") ->  | N29: =IF( AND($C29>($D$3-1),$C29<($F$3+1),WEEKDAY($C29,2)=6, evenWeek($C29) ),-1,"") ->  | O29: =IF( AND($C29>($D$3-1),$C29<($F$3+1),WEEKDAY($C29,2)=6, NOT(evenWeek($C29)) ),-1,"") ->  | P29: =IF( AND($C29>($D$3-1),$C29<($F$3+1),WEEKDAY($C29,2)=7, evenWeek($C29) ),-1,"") -> -1 | Q29: =IF( AND($C29>($D$3-1),$C29<($F$3+1),WEEKDAY($C29,2)=7, NOT(evenWeek($C29)) ),-1,"") ->  | S29: 18
B30: Hemelvaart | C30: 2024-05-09 | J30: =IF( AND($C30>($D$3-1),$C30<($F$3+1),WEEKDAY($C30,2)=4, evenWeek($C30) ),-1,"") ->  | K30: =IF( AND($C30>($D$3-1),$C30<($F$3+1), NOT(evenWeek($C30)) ),-1,"") -> -1 | S30: 19
B31: 2e Pinksterdag | C31: 2024-05-20 | D31: =IF( AND($C31>($D$3-1),$C31<($F$3+1), evenWeek($C31) ),-1,"") ->  | E31: =IF( AND($C31>($D$3-1),$C31<($F$3+1), NOT(evenWeek($C31)) ),-1,"") -> -1 | S31: 21
B32: 1e Kerstdag | C32: 2024-12-25 | D32: =IF( AND($C32>($D$3-1),$C32<($F$3+1),WEEKDAY($C32,2)=1, evenWeek($C32) ),-1,"") ->  | E32: =IF( AND($C32>($D$3-1),$C32<($F$3+1),WEEKDAY($C32,2)=1, NOT(evenWeek($C32)) ),-1,"") ->  | F32: =IF( AND($C32>($D$3-1),$C32<($F$3+1),WEEKDAY($C32,2)=2, evenWeek($C32) ),-1,"") ->  | G32: =IF( AND($C32>($D$3-1),$C32<($F$3+1),WEEKDAY($C32,2)=2, NOT(evenWeek($C32)) ),-1,"") ->  | H32: =IF( AND($C32>($D$3-1),$C32<($F$3+1),WEEKDAY($C32,2)=3, evenWeek($C32) ),-1,"") -> -1 | I32: =IF( AND($C32>($D$3-1),$C32<($F$3+1),WEEKDAY($C32,2)=3, NOT(evenWeek($C32)) ),-1,"") ->  | J32: =IF( AND($C32>($D$3-1),$C32<($F$3+1),WEEKDAY($C32,2)=4, evenWeek($C32) ),-1,"") ->  | K32: =IF( AND($C32>($D$3-1),$C32<($F$3+1),WEEKDAY($C32,2)=4, NOT(evenWeek($C32)) ),-1,"") ->  | L32: =IF( AND($C32>($D$3-1),$C32<($F$3+1),WEEKDAY($C32,2)=5, evenWeek($C32) ),-1,"") ->  | M32: =IF( AND($C32>($D$3-1),$C32<($F$3+1),WEEKDAY($C32,2)=5, NOT(evenWeek($C32)) ),-1,"") ->  | N32: =IF( AND($C32>($D$3-1),$C32<($F$3+1),WEEKDAY($C32,2)=6, evenWeek($C32) ),-1,"") ->  | O32: =IF( AND($C32>($D$3-1),$C32<($F$3+1),WEEKDAY($C32,2)=6, NOT(evenWeek($C32)) ),-1,"") ->  | P32: =IF( AND($C32>($D$3-1),$C32<($F$3+1),WEEKDAY($C32,2)=7, evenWeek($C32) ),-1,"") ->  | Q32: =IF( AND($C32>($D$3-1),$C32<($F$3+1),WEEKDAY($C32,2)=7, NOT(evenWeek($C32)) ),-1,"") ->  | S32: 52
B33: 2e Kerstdag | C33: 2024-12-26 | D33: =IF( AND($C33>($D$3-1),$C33<($F$3+1),WEEKDAY($C33,2)=1, evenWeek($C33) ),-1,"") ->  | E33: =IF( AND($C33>($D$3-1),$C33<($F$3+1),WEEKDAY($C33,2)=1, NOT(evenWeek($C33)) ),-1,"") ->  | F33: =IF( AND($C33>($D$3-1),$C33<($F$3+1),WEEKDAY($C33,2)=2, evenWeek($C33) ),-1,"") ->  | G33: =IF( AND($C33>($D$3-1),$C33<($F$3+1),WEEKDAY($C33,2)=2, NOT(evenWeek($C33)) ),-1,"") ->  | H33: =IF( AND($C33>($D$3-1),$C33<($F$3+1),WEEKDAY($C33,2)=3, evenWeek($C33) ),-1,"") ->  | I33: =IF( AND($C33>($D$3-1),$C33<($F$3+1),WEEKDAY($C33,2)=3, NOT(evenWeek($C33)) ),-1,"") ->  | J33: =IF( AND($C33>($D$3-1),$C33<($F$3+1),WEEKDAY($C33,2)=4, evenWeek($C33) ),-1,"") -> -1 | K33: =IF( AND($C33>($D$3-1),$C33<($F$3+1),WEEKDAY($C33,2)=4, NOT(evenWeek($C33)) ),-1,"") ->  | L33: =IF( AND($C33>($D$3-1),$C33<($F$3+1),WEEKDAY($C33,2)=5, evenWeek($C33) ),-1,"") ->  | M33: =IF( AND($C33>($D$3-1),$C33<($F$3+1),WEEKDAY($C33,2)=5, NOT(evenWeek($C33)) ),-1,"") ->  | N33: =IF( AND($C33>($D$3-1),$C33<($F$3+1),WEEKDAY($C33,2)=6, evenWeek($C33) ),-1,"") ->  | O33: =IF( AND($C33>($D$3-1),$C33<($F$3+1),WEEKDAY($C33,2)=6, NOT(evenWeek($C33)) ),-1,"") ->  | P33: =IF( AND($C33>($D$3-1),$C33<($F$3+1),WEEKDAY($C33,2)=7, evenWeek($C33) ),-1,"") ->  | Q33: =IF( AND($C33>($D$3-1),$C33<($F$3+1),WEEKDAY($C33,2)=7, NOT(evenWeek($C33)) ),-1,"") ->  | S33: 52
B34: Verplicht1 | C34: 2024-05-10 | M34: -1 | S34: 19
B35: Verplicht2 | C35: 2024-12-27 | L35: -1 | S35: 52
B36: Verplicht3 | C36: 2024-12-30 | E36: -1 | S36: 53
B37: Verplicht4 | C37: 2024-12-31 | G37: -1 | S37: 53
B38: Verplicht5 | S38: 52
B39: werkbare dagen | D39: =IF(OR(YEAR($D$3)<>$N$3,YEAR($F$3)<>$N$3),0,SUM(D21,D25:D38)) -> 25 | E39: 24 | F39: 26 | G39: 26 | H39: 25 | I39: 26 | J39: 25 | K39: 25 | L39: 25 | M39: 24 | N39: 26 | O39: 25 | P39: 25 | Q39: 26 | R39: =SUM(D39:O39) -> 302
B41: standaard werkweek | D41: 40 | E41: 38 | F41: 36
B42: bijbehorend verlofsaldo cao | D42: 428 | E42: 323 | F42: 219 | J42: arbeidsuren op jaarbasis : | K42: 1659 | L42: vast in cao, gemiddelde
B43: # werkdagen in jaar | C43: 302 | D43: inclusief za | F43: is gelijk aan cel R41, met het hele jaar als periode 1
B45: (Z) Periodefactor werkbare dagen per volledig kalenderjaar | K45: =IF(AND(D3>0,F3>0),R39/C43,0) -> 1
B47: (A) Omvang aanstelling in fulltime equivalenten (fte's) | K47: =DIENSTVERBANDGEGEVENS!J9 -> 1
I48: keuzerondje
B49: (B) Standaard werkweek bij volledige aanstelling, vul in 36, 38 of 40 | I49: 3 | K49: =IF(I49=1,36,IF(I49=2,38,IF(I49=3,40,0))) -> 40
B51: (C) Totaal aantal netto werkbare uren in periode 1 ( A * 1659 * Z ) | K51: =IF($N$4,K47*$K$42*K45,0) -> 1659
B53: (D) Bruto aantal werkbare uren bij aanstellingsomvang ( A * B ) | K53: =K47*K49 -> 40
B55: (E) Keuze tijdsbesteding | D55: maandag | E55: dinsdag | F55: woensdag | G55: donderdag | H55: vrijdag | I55: zaterdag | K55: gemiddeld
C56: even week | D56: =DIENSTVERBANDGEGEVENS!D18 -> 8 | E56: =DIENSTVERBANDGEGEVENS!E18 -> 8 | F56: =DIENSTVERBANDGEGEVENS!F18 -> 8 | G56: =DIENSTVERBANDGEGEVENS!G18 -> 8 | H56: =DIENSTVERBANDGEGEVENS!H18 -> 8 | I56: =DIENSTVERBANDGEGEVENS!I18 -> 0 | K56: totaal
B57: totaal even | D57: =D56*D39 -> 200 | E57: =E56*F39 -> 208 | F57: =F56*H39 -> 200 | G57: =G56*J39 -> 200 | H57: =H56*L39 -> 200 | I57: =I56*N39 -> 0
C58: oneven week | D58: =DIENSTVERBANDGEGEVENS!D20 -> 8 | E58: =DIENSTVERBANDGEGEVENS!E20 -> 8 | F58: =DIENSTVERBANDGEGEVENS!F20 -> 8 | G58: =DIENSTVERBANDGEGEVENS!G20 -> 8 | H58: =DIENSTVERBANDGEGEVENS!H20 -> 8 | I58: =DIENSTVERBANDGEGEVENS!I20 -> 0 | K58: =SUM(D56:I56,D58:I58)/2 -> 40
B59: totaal oneven | D59: =D58*E39 -> 192 | E59: =E58*G39 -> 208 | F59: =F58*I39 -> 208 | G59: =G58*K39 -> 200 | H59: =H58*M39 -> 192 | I59: =I58*O39 -> 0
B60: (F) werkbare uren (gecorrigeerd voor feestdagen en overige niet-werkbare dagen) | K60: =IF(AND(D3>0,F3>0,$N$4),SUM(D57:I57,D59:I59),0) -> 2008
B62: (G) Bruto CAO verlofuren in periode 1 ( A * verlofsaldo * Z ) | K62: =(SUM(K47*IF(K49=0,0,IF(K49=D41,D42,IF(K49=E41,E42,IF(K49=F41,F42,"")))))*K45) -> 428
B64: (H) Werkbare uren gecorrigeerd voor bruto verlofuren ( F - G ) | K64: =IF(K53=0,0,K60-K62) -> 1580
B66: (I) teveel (+) / te weinig (-) gewerkte uren ( H - C ) | K66: =K64-K51 -> -79
B68: (J) Opgebouwde netto CAO verlofuren ( G + I ) | K68: =K62+K66 -> 349
D72: =IF(D74,"datum !",IF(OR(D73=0,YEAR(D73)=$N$3),"","datum !")) ->  | F72: =IF(AND(D73>0,F73>0,F73<D73),"datum !",IF(OR(F74, AND(F73>0,YEAR(F73)<>$N$3)),"datum !","")) ->  | H72: p1 | I72: p3 | J72: p4 | K72: p5 | Q72: PERIODE 2
B73: PERIODE 2 | C73: van | D73: =IF(ISNUMBER(DIENSTVERBANDGEGEVENS!D26),DIENSTVERBANDGEGEVENS!D26,0) -> 1904-01-01 | E73: t/m | F73: =IF(ISNUMBER(DIENSTVERBANDGEGEVENS!F26),DIENSTVERBANDGEGEVENS!F26,0) -> 1904-01-01 | G73: =IF(AND(H73:K73),""," periode-overlapping") ->  | H73: =OR( D73=0,F73=0,D3=0,F3=0, AND($D$73>D3,$D$73>F3),AND($D$73<D3,$F$73<D3)) -> TRUE | I73: =OR( D73=0,F73=0,D143=0,F143=0, AND($D$73>D143,$D$73>F143),AND($D$73<D143,$F$73<D143)) -> TRUE | J73: =OR( D73=0,F73=0,D213=0,F213=0, AND($D$73>D213,$D$73>F213),AND($D$73<D213,$F$73<D213)) -> TRUE | K73: =OR( D73=0,F73=0,D283=0,F283=0, AND($D$73>D283,$D$73>F283),AND($D$73<D283,$F$73<D283)) -> TRUE
C74: tekst in datumcel | D74: =TYPE(DIENSTVERBANDGEGEVENS!D26)=2 -> FALSE | F74: =TYPE(DIENSTVERBANDGEGEVENS!F26)=2 -> FALSE
D76: ma even | E76: ma oneven | F76: di even | G76: di oneven | H76: wo even | I76: wo oneven | J76: do even | K76: do oneven | L76: vr even | M76: vr oneven | N76: za even | O76: za oneven | P76: zo even | Q76: zo oneven
C77: =D73 -> 1904-01-01 | D77: =IF( AND( WEEKDAY($C77,2)=1,YEAR($C77)=$N$3, evenWeek($C77), $C77<=$F$73), (($F$73 + 1) - $C77 ) / 14, 0) -> 0 | E77: =IF( AND( WEEKDAY($C77,2)=1,YEAR($C77)=$N$3, NOT(evenWeek($C77)), $C77<= $F$73), (($F$73 + 1) - $C77 ) /14, 0) -> 0 | F77: =IF( AND( WEEKDAY($C77,2)=2,YEAR($C77)=$N$3, evenWeek($C77), $C77<=$F$73), (($F$73 + 1) - $C77 ) / 14, 0) -> 0 | G77: =IF( AND( WEEKDAY($C77,2)=2,YEAR($C77)=$N$3, NOT(evenWeek($C77)), $C77<= $F$73), (($F$73 + 1) - $C77 ) /14, 0) -> 0 | H77: =IF( AND( WEEKDAY($C77,2)=3,YEAR($C77)=$N$3, evenWeek($C77), $C77<=$F$73), (($F$73 + 1) - $C77 ) / 14, 0) -> 0 | I77: =IF( AND( WEEKDAY($C77,2)=3,YEAR($C77)=$N$3, NOT(evenWeek($C77)), $C77<= $F$73), (($F$73 + 1) - $C77 ) /14, 0) -> 0 | J77: =IF( AND( WEEKDAY($C77,2)=4,YEAR($C77)=$N$3, evenWeek($C77), $C77<=$F$73), (($F$73 + 1) - $C77 ) / 14, 0) -> 0 | K77: =IF( AND( WEEKDAY($C77,2)=4,YEAR($C77)=$N$3, NOT(evenWeek($C77)), $C77<= $F$73), (($F$73 + 1) - $C77 ) /14, 0) -> 0 | L77: =IF( AND( WEEKDAY($C77,2)=5,YEAR($C77)=$N$3, evenWeek($C77), $C77<=$F$73), (($F$73 + 1) - $C77 ) / 14, 0) -> 0 | M77: =IF( AND( WEEKDAY($C77,2)=5,YEAR($C77)=$N$3, NOT(evenWeek($C77)), $C77<= $F$73), (($F$73 + 1) - $C77 ) /14, 0) -> 0 | N77: =IF( AND( WEEKDAY($C77,2)=6,YEAR($C77)=$N$3, evenWeek($C77), $C77<=$F$73), (($F$73 + 1) - $C77 ) / 14, 0) -> 0 | O77: =IF( AND( WEEKDAY($C77,2)=6,YEAR($C77)=$N$3, NOT(evenWeek($C77)), $C77<= $F$73), (($F$73 + 1) - $C77 ) /14, 0) -> 0 | P77: =IF( AND( WEEKDAY($C77,2)=7,YEAR($C77)=$N$3, evenWeek($C77), $C77<=$F$73), (($F$73 + 1) - $C77 ) / 14, 0) -> 0 | Q77: =IF( AND( WEEKDAY($C77,2)=7,YEAR($C77)=$N$3, NOT(evenWeek($C77)), $C77<= $F$73), (($F$73 + 1) - $C77 ) /14, 0) -> 0
C78: =C77+1 -> 1904-01-02 | D78: =IF( AND( WEEKDAY($C78,2)=1,YEAR($C78)=$N$3, evenWeek($C78), $C78<=$F$73), (($F$73 + 1) - $C78 ) / 14, 0) -> 0 | E78: =IF( AND( WEEKDAY($C78,2)=1,YEAR($C78)=$N$3, NOT(evenWeek($C78)), $C78<= $F$73), (($F$73 + 1) - $C78 ) /14, 0) -> 0 | F78: =IF( AND( WEEKDAY($C78,2)=2,YEAR($C78)=$N$3, evenWeek($C78), $C78<=$F$73), (($F$73 + 1) - $C78 ) / 14, 0) -> 0 | G78: =IF( AND( WEEKDAY($C78,2)=2,YEAR($C78)=$N$3, NOT(evenWeek($C78)), $C78<= $F$73), (($F$73 + 1) - $C78 ) /14, 0) -> 0 | H78: =IF( AND( WEEKDAY($C78,2)=3,YEAR($C78)=$N$3, evenWeek($C78), $C78<=$F$73), (($F$73 + 1) - $C78 ) / 14, 0) -> 0 | I78: =IF( AND( WEEKDAY($C78,2)=3,YEAR($C78)=$N$3, NOT(evenWeek($C78)), $C78<= $F$73), (($F$73 + 1) - $C78 ) /14, 0) -> 0 | J78: =IF( AND( WEEKDAY($C78,2)=4,YEAR($C78)=$N$3, evenWeek($C78), $C78<=$F$73), (($F$73 + 1) - $C78 ) / 14, 0) -> 0 | K78: =IF( AND( WEEKDAY($C78,2)=4,YEAR($C78)=$N$3, NOT(evenWeek($C78)), $C78<= $F$73), (($F$73 + 1) - $C78 ) /14, 0) -> 0 | L78: =IF( AND( WEEKDAY($C78,2)=5,YEAR($C78)=$N$3, evenWeek($C78), $C78<=$F$73), (($F$73 + 1) - $C78 ) / 14, 0) -> 0 | M78: =IF( AND( WEEKDAY($C78,2)=5,YEAR($C78)=$N$3, NOT(evenWeek($C78)), $C78<= $F$73), (($F$73 + 1) - $C78 ) /14, 0) -> 0 | N78: =IF( AND( WEEKDAY($C78,2)=6,YEAR($C78)=$N$3, evenWeek($C78), $C78<=$F$73), (($F$73 + 1) - $C78 ) / 14, 0) -> 0 | O78: =IF( AND( WEEKDAY($C78,2)=6,YEAR($C78)=$N$3, NOT(evenWeek($C78)), $C78<= $F$73), (($F$73 + 1) - $C78 ) /14, 0) -> 0 | P78: =IF( AND( WEEKDAY($C78,2)=7,YEAR($C78)=$N$3, evenWeek($C78), $C78<=$F$73), (($F$73 + 1) - $C78 ) / 14, 0) -> 0 | Q78: =IF( AND( WEEKDAY($C78,2)=7,YEAR($C78)=$N$3, NOT(evenWeek($C78)), $C78<= $F$73), (($F$73 + 1) - $C78 ) /14, 0) -> 0
C79: =C78+1 -> 1904-01-03 | D79: =IF( AND( WEEKDAY($C79,2)=1,YEAR($C79)=$N$3, evenWeek($C79), $C79<=$F$73), (($F$73 + 1) - $C79 ) / 14, 0) -> 0 | E79: =IF( AND( WEEKDAY($C79,2)=1,YEAR($C79)=$N$3, NOT(evenWeek($C79)), $C79<= $F$73), (($F$73 + 1) - $C79 ) /14, 0) -> 0 | F79: =IF( AND( WEEKDAY($C79,2)=2,YEAR($C79)=$N$3, evenWeek($C79), $C79<=$F$73), (($F$73 + 1) - $C79 ) / 14, 0) -> 0 | G79: =IF( AND( WEEKDAY($C79,2)=2,YEAR($C79)=$N$3, NOT(evenWeek($C79)), $C79<= $F$73), (($F$73 + 1) - $C79 ) /14, 0) -> 0 | H79: =IF( AND( WEEKDAY($C79,2)=3,YEAR($C79)=$N$3, evenWeek($C79), $C79<=$F$73), (($F$73 + 1) - $C79 ) / 14, 0) -> 0 | I79: =IF( AND( WEEKDAY($C79,2)=3,YEAR($C79)=$N$3, NOT(evenWeek($C79)), $C79<= $F$73), (($F$73 + 1) - $C79 ) /14, 0) -> 0 | J79: =IF( AND( WEEKDAY($C79,2)=4,YEAR($C79)=$N$3, evenWeek($C79), $C79<=$F$73), (($F$73 + 1) - $C79 ) / 14, 0) -> 0 | K79: =IF( AND( WEEKDAY($C79,2)=4,YEAR($C79)=$N$3, NOT(evenWeek($C79)), $C79<= $F$73), (($F$73 + 1) - $C79 ) /14, 0) -> 0 | L79: =IF( AND( WEEKDAY($C79,2)=5,YEAR($C79)=$N$3, evenWeek($C79), $C79<=$F$73), (($F$73 + 1) - $C79 ) / 14, 0) -> 0 | M79: =IF( AND( WEEKDAY($C79,2)=5,YEAR($C79)=$N$3, NOT(evenWeek($C79)), $C79<= $F$73), (($F$73 + 1) - $C79 ) /14, 0) -> 0 | N79: =IF( AND( WEEKDAY($C79,2)=6,YEAR($C79)=$N$3, evenWeek($C79), $C79<=$F$73), (($F$73 + 1) - $C79 ) / 14, 0) -> 0 | O79: =IF( AND( WEEKDAY($C79,2)=6,YEAR($C79)=$N$3, NOT(evenWeek($C79)), $C79<= $F$73), (($F$73 + 1) - $C79 ) /14, 0) -> 0 | P79: =IF( AND( WEEKDAY($C79,2)=7,YEAR($C79)=$N$3, evenWeek($C79), $C79<=$F$73), (($F$73 + 1) - $C79 ) / 14, 0) -> 0 | Q79: =IF( AND( WEEKDAY($C79,2)=7,YEAR($C79)=$N$3, NOT(evenWeek($C79)), $C79<= $F$73), (($F$73 + 1) - $C79 ) /14, 0) -> 0
C80: 1904-01-04 | D80: =IF( AND( WEEKDAY($C80,2)=1,YEAR($C80)=$N$3, evenWeek($C80), $C80<=$F$73), (($F$73 + 1) - $C80 ) / 14, 0) -> 0 | E80: =IF( AND( WEEKDAY($C80,2)=1,YEAR($C80)=$N$3, NOT(evenWeek($C80)), $C80<= $F$73), (($F$73 + 1) - $C80 ) /14, 0) -> 0 | F80: =IF( AND( WEEKDAY($C80,2)=2,YEAR($C80)=$N$3, evenWeek($C80), $C80<=$F$73), (($F$73 + 1) - $C80 ) / 14, 0) -> 0 | G80: =IF( AND( WEEKDAY($C80,2)=2,YEAR($C80)=$N$3, NOT(evenWeek($C80)), $C80<= $F$73), (($F$73 + 1) - $C80 ) /14, 0) -> 0 | H80: =IF( AND( WEEKDAY($C80,2)=3,YEAR($C80)=$N$3, evenWeek($C80), $C80<=$F$73), (($F$73 + 1) - $C80 ) / 14, 0) -> 0 | I80: =IF( AND( WEEKDAY($C80,2)=3,YEAR($C80)=$N$3, NOT(evenWeek($C80)), $C80<= $F$73), (($F$73 + 1) - $C80 ) /14, 0) -> 0 | J80: =IF( AND( WEEKDAY($C80,2)=4,YEAR($C80)=$N$3, evenWeek($C80), $C80<=$F$73), (($F$73 + 1) - $C80 ) / 14, 0) -> 0 | K80: =IF( AND( WEEKDAY($C80,2)=4,YEAR($C80)=$N$3, NOT(evenWeek($C80)), $C80<= $F$73), (($F$73 + 1) - $C80 ) /14, 0) -> 0 | L80: =IF( AND( WEEKDAY($C80,2)=5,YEAR($C80)=$N$3, evenWeek($C80), $C80<=$F$73), (($F$73 + 1) - $C80 ) / 14, 0) -> 0 | M80: =IF( AND( WEEKDAY($C80,2)=5,YEAR($C80)=$N$3, NOT(evenWeek($C80)), $C80<= $F$73), (($F$73 + 1) - $C80 ) /14, 0) -> 0 | N80: =IF( AND( WEEKDAY($C80,2)=6,YEAR($C80)=$N$3, evenWeek($C80), $C80<=$F$73), (($F$73 + 1) - $C80 ) / 14, 0) -> 0 | O80: =IF( AND( WEEKDAY($C80,2)=6,YEAR($C80)=$N$3, NOT(evenWeek($C80)), $C80<= $F$73), (($F$73 + 1) - $C80 ) /14, 0) -> 0 | P80: =IF( AND( WEEKDAY($C80,2)=7,YEAR($C80)=$N$3, evenWeek($C80), $C80<=$F$73), (($F$73 + 1) - $C80 ) / 14, 0) -> 0 | Q80: =IF( AND( WEEKDAY($C80,2)=7,YEAR($C80)=$N$3, NOT(evenWeek($C80)), $C80<= $F$73), (($F$73 + 1) - $C80 ) /14, 0) -> 0
C81: 1904-01-05 | D81: =IF( AND( WEEKDAY($C81,2)=1,YEAR($C81)=$N$3, evenWeek($C81), $C81<=$F$73), (($F$73 + 1) - $C81 ) / 14, 0) -> 0 | E81: =IF( AND( WEEKDAY($C81,2)=1,YEAR($C81)=$N$3, NOT(evenWeek($C81)), $C81<= $F$73), (($F$73 + 1) - $C81 ) /14, 0) -> 0 | F81: =IF( AND( WEEKDAY($C81,2)=2,YEAR($C81)=$N$3, evenWeek($C81), $C81<=$F$73), (($F$73 + 1) - $C81 ) / 14, 0) -> 0 | G81: =IF( AND( WEEKDAY($C81,2)=2,YEAR($C81)=$N$3, NOT(evenWeek($C81)), $C81<= $F$73), (($F$73 + 1) - $C81 ) /14, 0) -> 0 | H81: =IF( AND( WEEKDAY($C81,2)=3,YEAR($C81)=$N$3, evenWeek($C81), $C81<=$F$73), (($F$73 + 1) - $C81 ) / 14, 0) -> 0 | I81: =IF( AND( WEEKDAY($C81,2)=3,YEAR($C81)=$N$3, NOT(evenWeek($C81)), $C81<= $F$73), (($F$73 + 1) - $C81 ) /14, 0) -> 0 | J81: =IF( AND( WEEKDAY($C81,2)=4,YEAR($C81)=$N$3, evenWeek($C81), $C81<=$F$73), (($F$73 + 1) - $C81 ) / 14, 0) -> 0 | K81: =IF( AND( WEEKDAY($C81,2)=4,YEAR($C81)=$N$3, NOT(evenWeek($C81)), $C81<= $F$73), (($F$73 + 1) - $C81 ) /14, 0) -> 0 | L81: =IF( AND( WEEKDAY($C81,2)=5,YEAR($C81)=$N$3, evenWeek($C81), $C81<=$F$73), (($F$73 + 1) - $C81 ) / 14, 0) -> 0 | M81: =IF( AND( WEEKDAY($C81,2)=5,YEAR($C81)=$N$3, NOT(evenWeek($C81)), $C81<= $F$73), (($F$73 + 1) - $C81 ) /14, 0) -> 0 | N81: =IF( AND( WEEKDAY($C81,2)=6,YEAR($C81)=$N$3, evenWeek($C81), $C81<=$F$73), (($F$73 + 1) - $C81 ) / 14, 0) -> 0 | O81: =IF( AND( WEEKDAY($C81,2)=6,YEAR($C81)=$N$3, NOT(evenWeek($C81)), $C81<= $F$73), (($F$73 + 1) - $C81 ) /14, 0) -> 0 | P81: =IF( AND( WEEKDAY($C81,2)=7,YEAR($C81)=$N$3, evenWeek($C81), $C81<=$F$73), (($F$73 + 1) - $C81 ) / 14, 0) -> 0 | Q81: =IF( AND( WEEKDAY($C81,2)=7,YEAR($C81)=$N$3, NOT(evenWeek($C81)), $C81<= $F$73), (($F$73 + 1) - $C81 ) /14, 0) -> 0
C82: 1904-01-06 | D82: =IF( AND( WEEKDAY($C82,2)=1,YEAR($C82)=$N$3, evenWeek($C82), $C82<=$F$73), (($F$73 + 1) - $C82 ) / 14, 0) -> 0 | E82: =IF( AND( WEEKDAY($C82,2)=1,YEAR($C82)=$N$3, NOT(evenWeek($C82)), $C82<= $F$73), (($F$73 + 1) - $C82 ) /14, 0) -> 0 | F82: =IF( AND( WEEKDAY($C82,2)=2,YEAR($C82)=$N$3, evenWeek($C82), $C82<=$F$73), (($F$73 + 1) - $C82 ) / 14, 0) -> 0 | G82: =IF( AND( WEEKDAY($C82,2)=2,YEAR($C82)=$N$3, NOT(evenWeek($C82)), $C82<= $F$73), (($F$73 + 1) - $C82 ) /14, 0) -> 0 | H82: =IF( AND( WEEKDAY($C82,2)=3,YEAR($C82)=$N$3, evenWeek($C82), $C82<=$F$73), (($F$73 + 1) - $C82 ) / 14, 0) -> 0 | I82: =IF( AND( WEEKDAY($C82,2)=3,YEAR($C82)=$N$3, NOT(evenWeek($C82)), $C82<= $F$73), (($F$73 + 1) - $C82 ) /14, 0) -> 0 | J82: =IF( AND( WEEKDAY($C82,2)=4,YEAR($C82)=$N$3, evenWeek($C82), $C82<=$F$73), (($F$73 + 1) - $C82 ) / 14, 0) -> 0 | K82: =IF( AND( WEEKDAY($C82,2)=4,YEAR($C82)=$N$3, NOT(evenWeek($C82)), $C82<= $F$73), (($F$73 + 1) - $C82 ) /14, 0) -> 0 | L82: =IF( AND( WEEKDAY($C82,2)=5,YEAR($C82)=$N$3, evenWeek($C82), $C82<=$F$73), (($F$73 + 1) - $C82 ) / 14, 0) -> 0 | M82: =IF( AND( WEEKDAY($C82,2)=5,YEAR($C82)=$N$3, NOT(evenWeek($C82)), $C82<= $F$73), (($F$73 + 1) - $C82 ) /14, 0) -> 0 | N82: =IF( AND( WEEKDAY($C82,2)=6,YEAR($C82)=$N$3, evenWeek($C82), $C82<=$F$73), (($F$73 + 1) - $C82 ) / 14, 0) -> 0 | O82: =IF( AND( WEEKDAY($C82,2)=6,YEAR($C82)=$N$3, NOT(evenWeek($C82)), $C82<= $F$73), (($F$73 + 1) - $C82 ) /14, 0) -> 0 | P82: =IF( AND( WEEKDAY($C82,2)=7,YEAR($C82)=$N$3, evenWeek($C82), $C82<=$F$73), (($F$73 + 1) - $C82 ) / 14, 0) -> 0 | Q82: =IF( AND( WEEKDAY($C82,2)=7,YEAR($C82)=$N$3, NOT(evenWeek($C82)), $C82<= $F$73), (($F$73 + 1) - $C82 ) /14, 0) -> 0
C83: 1904-01-07 | D83: =IF( AND( WEEKDAY($C83,2)=1,YEAR($C83)=$N$3, evenWeek($C83), $C83<=$F$73), (($F$73 + 1) - $C83 ) / 14, 0) -> 0 | E83: =IF( AND( WEEKDAY($C83,2)=1,YEAR($C83)=$N$3, NOT(evenWeek($C83)), $C83<= $F$73), (($F$73 + 1) - $C83 ) /14, 0) -> 0 | F83: =IF( AND( WEEKDAY($C83,2)=2,YEAR($C83)=$N$3, evenWeek($C83), $C83<=$F$73), (($F$73 + 1) - $C83 ) / 14, 0) -> 0 | G83: =IF( AND( WEEKDAY($C83,2)=2,YEAR($C83)=$N$3, NOT(evenWeek($C83)), $C83<= $F$73), (($F$73 + 1) - $C83 ) /14, 0) -> 0 | H83: =IF( AND( WEEKDAY($C83,2)=3,YEAR($C83)=$N$3, evenWeek($C83), $C83<=$F$73), (($F$73 + 1) - $C83 ) / 14, 0) -> 0 | I83: =IF( AND( WEEKDAY($C83,2)=3,YEAR($C83)=$N$3, NOT(evenWeek($C83)), $C83<= $F$73), (($F$73 + 1) - $C83 ) /14, 0) -> 0 | J83: =IF( AND( WEEKDAY($C83,2)=4,YEAR($C83)=$N$3, evenWeek($C83), $C83<=$F$73), (($F$73 + 1) - $C83 ) / 14, 0) -> 0 | K83: =IF( AND( WEEKDAY($C83,2)=4,YEAR($C83)=$N$3, NOT(evenWeek($C83)), $C83<= $F$73), (($F$73 + 1) - $C83 ) /14, 0) -> 0 | L83: =IF( AND( WEEKDAY($C83,2)=5,YEAR($C83)=$N$3, evenWeek($C83), $C83<=$F$73), (($F$73 + 1) - $C83 ) / 14, 0) -> 0 | M83: =IF( AND( WEEKDAY($C83,2)=5,YEAR($C83)=$N$3, NOT(evenWeek($C83)), $C83<= $F$73), (($F$73 + 1) - $C83 ) /14, 0) -> 0 | N83: =IF( AND( WEEKDAY($C83,2)=6,YEAR($C83)=$N$3, evenWeek($C83), $C83<=$F$73), (($F$73 + 1) - $C83 ) / 14, 0) -> 0 | O83: =IF( AND( WEEKDAY($C83,2)=6,YEAR($C83)=$N$3, NOT(evenWeek($C83)), $C83<= $F$73), (($F$73 + 1) - $C83 ) /14, 0) -> 0 | P83: =IF( AND( WEEKDAY($C83,2)=7,YEAR($C83)=$N$3, evenWeek($C83), $C83<=$F$73), (($F$73 + 1) - $C83 ) / 14, 0) -> 0 | Q83: =IF( AND( WEEKDAY($C83,2)=7,YEAR($C83)=$N$3, NOT(evenWeek($C83)), $C83<= $F$73), (($F$73 + 1) - $C83 ) /14, 0) -> 0
C84: 1904-01-08 | D84: =IF( AND( WEEKDAY($C84,2)=1,YEAR($C84)=$N$3, evenWeek($C84), $C84<=$F$73), (($F$73 + 1) - $C84 ) / 14, 0) -> 0 | E84: =IF( AND( WEEKDAY($C84,2)=1,YEAR($C84)=$N$3, NOT(evenWeek($C84)), $C84<= $F$73), (($F$73 + 1) - $C84 ) /14, 0) -> 0 | F84: =IF( AND( WEEKDAY($C84,2)=2,YEAR($C84)=$N$3, evenWeek($C84), $C84<=$F$73), (($F$73 + 1) - $C84 ) / 14, 0) -> 0 | G84: =IF( AND( WEEKDAY($C84,2)=2,YEAR($C84)=$N$3, NOT(evenWeek($C84)), $C84<= $F$73), (($F$73 + 1) - $C84 ) /14, 0) -> 0 | H84: =IF( AND( WEEKDAY($C84,2)=3,YEAR($C84)=$N$3, evenWeek($C84), $C84<=$F$73), (($F$73 + 1) - $C84 ) / 14, 0) -> 0 | I84: =IF( AND( WEEKDAY($C84,2)=3,YEAR($C84)=$N$3, NOT(evenWeek($C84)), $C84<= $F$73), (($F$73 + 1) - $C84 ) /14, 0) -> 0 | J84: =IF( AND( WEEKDAY($C84,2)=4,YEAR($C84)=$N$3, evenWeek($C84), $C84<=$F$73), (($F$73 + 1) - $C84 ) / 14, 0) -> 0 | K84: =IF( AND( WEEKDAY($C84,2)=4,YEAR($C84)=$N$3, NOT(evenWeek($C84)), $C84<= $F$73), (($F$73 + 1) - $C84 ) /14, 0) -> 0 | L84: =IF( AND( WEEKDAY($C84,2)=5,YEAR($C84)=$N$3, evenWeek($C84), $C84<=$F$73), (($F$73 + 1) - $C84 ) / 14, 0) -> 0 | M84: =IF( AND( WEEKDAY($C84,2)=5,YEAR($C84)=$N$3, NOT(evenWeek($C84)), $C84<= $F$73), (($F$73 + 1) - $C84 ) /14, 0) -> 0 | N84: =IF( AND( WEEKDAY($C84,2)=6,YEAR($C84)=$N$3, evenWeek($C84), $C84<=$F$73), (($F$73 + 1) - $C84 ) / 14, 0) -> 0 | O84: =IF( AND( WEEKDAY($C84,2)=6,YEAR($C84)=$N$3, NOT(evenWeek($C84)), $C84<= $F$73), (($F$73 + 1) - $C84 ) /14, 0) -> 0 | P84: =IF( AND( WEEKDAY($C84,2)=7,YEAR($C84)=$N$3, evenWeek($C84), $C84<=$F$73), (($F$73 + 1) - $C84 ) / 14, 0) -> 0 | Q84: =IF( AND( WEEKDAY($C84,2)=7,YEAR($C84)=$N$3, NOT(evenWeek($C84)), $C84<= $F$73), (($F$73 + 1) - $C84 ) /14, 0) -> 0
C85: 1904-01-09 | D85: =IF( AND( WEEKDAY($C85,2)=1,YEAR($C85)=$N$3, evenWeek($C85), $C85<=$F$73), (($F$73 + 1) - $C85 ) / 14, 0) -> 0 | E85: =IF( AND( WEEKDAY($C85,2)=1,YEAR($C85)=$N$3, NOT(evenWeek($C85)), $C85<= $F$73), (($F$73 + 1) - $C85 ) /14, 0) -> 0 | F85: =IF( AND( WEEKDAY($C85,2)=2,YEAR($C85)=$N$3, evenWeek($C85), $C85<=$F$73), (($F$73 + 1) - $C85 ) / 14, 0) -> 0 | G85: =IF( AND( WEEKDAY($C85,2)=2,YEAR($C85)=$N$3, NOT(evenWeek($C85)), $C85<= $F$73), (($F$73 + 1) - $C85 ) /14, 0) -> 0 | H85: =IF( AND( WEEKDAY($C85,2)=3,YEAR($C85)=$N$3, evenWeek($C85), $C85<=$F$73), (($F$73 + 1) - $C85 ) / 14, 0) -> 0 | I85: =IF( AND( WEEKDAY($C85,2)=3,YEAR($C85)=$N$3, NOT(evenWeek($C85)), $C85<= $F$73), (($F$73 + 1) - $C85 ) /14, 0) -> 0 | J85: =IF( AND( WEEKDAY($C85,2)=4,YEAR($C85)=$N$3, evenWeek($C85), $C85<=$F$73), (($F$73 + 1) - $C85 ) / 14, 0) -> 0 | K85: =IF( AND( WEEKDAY($C85,2)=4,YEAR($C85)=$N$3, NOT(evenWeek($C85)), $C85<= $F$73), (($F$73 + 1) - $C85 ) /14, 0) -> 0 | L85: =IF( AND( WEEKDAY($C85,2)=5,YEAR($C85)=$N$3, evenWeek($C85), $C85<=$F$73), (($F$73 + 1) - $C85 ) / 14, 0) -> 0 | M85: =IF( AND( WEEKDAY($C85,2)=5,YEAR($C85)=$N$3, NOT(evenWeek($C85)), $C85<= $F$73), (($F$73 + 1) - $C85 ) /14, 0) -> 0 | N85: =IF( AND( WEEKDAY($C85,2)=6,YEAR($C85)=$N$3, evenWeek($C85), $C85<=$F$73), (($F$73 + 1) - $C85 ) / 14, 0) -> 0 | O85: =IF( AND( WEEKDAY($C85,2)=6,YEAR($C85)=$N$3, NOT(evenWeek($C85)), $C85<= $F$73), (($F$73 + 1) - $C85 ) /14, 0) -> 0 | P85: =IF( AND( WEEKDAY($C85,2)=7,YEAR($C85)=$N$3, evenWeek($C85), $C85<=$F$73), (($F$73 + 1) - $C85 ) / 14, 0) -> 0 | Q85: =IF( AND( WEEKDAY($C85,2)=7,YEAR($C85)=$N$3, NOT(evenWeek($C85)), $C85<= $F$73), (($F$73 + 1) - $C85 ) /14, 0) -> 0
C86: 1904-01-10 | D86: =IF( AND( WEEKDAY($C86,2)=1,YEAR($C86)=$N$3, evenWeek($C86), $C86<=$F$73), (($F$73 + 1) - $C86 ) / 14, 0) -> 0 | E86: =IF( AND( WEEKDAY($C86,2)=1,YEAR($C86)=$N$3, NOT(evenWeek($C86)), $C86<= $F$73), (($F$73 + 1) - $C86 ) /14, 0) -> 0 | F86: =IF( AND( WEEKDAY($C86,2)=2,YEAR($C86)=$N$3, evenWeek($C86), $C86<=$F$73), (($F$73 + 1) - $C86 ) / 14, 0) -> 0 | G86: =IF( AND( WEEKDAY($C86,2)=2,YEAR($C86)=$N$3, NOT(evenWeek($C86)), $C86<= $F$73), (($F$73 + 1) - $C86 ) /14, 0) -> 0 | H86: =IF( AND( WEEKDAY($C86,2)=3,YEAR($C86)=$N$3, evenWeek($C86), $C86<=$F$73), (($F$73 + 1) - $C86 ) / 14, 0) -> 0 | I86: =IF( AND( WEEKDAY($C86,2)=3,YEAR($C86)=$N$3, NOT(evenWeek($C86)), $C86<= $F$73), (($F$73 + 1) - $C86 ) /14, 0) -> 0 | J86: =IF( AND( WEEKDAY($C86,2)=4,YEAR($C86)=$N$3, evenWeek($C86), $C86<=$F$73), (($F$73 + 1) - $C86 ) / 14, 0) -> 0 | K86: =IF( AND( WEEKDAY($C86,2)=4,YEAR($C86)=$N$3, NOT(evenWeek($C86)), $C86<= $F$73), (($F$73 + 1) - $C86 ) /14, 0) -> 0 | L86: =IF( AND( WEEKDAY($C86,2)=5,YEAR($C86)=$N$3, evenWeek($C86), $C86<=$F$73), (($F$73 + 1) - $C86 ) / 14, 0) -> 0 | M86: =IF( AND( WEEKDAY($C86,2)=5,YEAR($C86)=$N$3, NOT(evenWeek($C86)), $C86<= $F$73), (($F$73 + 1) - $C86 ) /14, 0) -> 0 | N86: =IF( AND( WEEKDAY($C86,2)=6,YEAR($C86)=$N$3, evenWeek($C86), $C86<=$F$73), (($F$73 + 1) - $C86 ) / 14, 0) -> 0 | O86: =IF( AND( WEEKDAY($C86,2)=6,YEAR($C86)=$N$3, NOT(evenWeek($C86)), $C86<= $F$73), (($F$73 + 1) - $C86 ) /14, 0) -> 0 | P86: =IF( AND( WEEKDAY($C86,2)=7,YEAR($C86)=$N$3, evenWeek($C86), $C86<=$F$73), (($F$73 + 1) - $C86 ) / 14, 0) -> 0 | Q86: =IF( AND( WEEKDAY($C86,2)=7,YEAR($C86)=$N$3, NOT(evenWeek($C86)), $C86<= $F$73), (($F$73 + 1) - $C86 ) /14, 0) -> 0
C87: =C86+1 -> 1904-01-11 | D87: =IF( AND( WEEKDAY($C87,2)=1,YEAR($C87)=$N$3, evenWeek($C87), $C87<=$F$73), (($F$73 + 1) - $C87 ) / 14, 0) -> 0 | E87: =IF( AND( WEEKDAY($C87,2)=1,YEAR($C87)=$N$3, NOT(evenWeek($C87)), $C87<= $F$73), (($F$73 + 1) - $C87 ) /14, 0) -> 0 | F87: =IF( AND( WEEKDAY($C87,2)=2,YEAR($C87)=$N$3, evenWeek($C87), $C87<=$F$73), (($F$73 + 1) - $C87 ) / 14, 0) -> 0 | G87: =IF( AND( WEEKDAY($C87,2)=2,YEAR($C87)=$N$3, NOT(evenWeek($C87)), $C87<= $F$73), (($F$73 + 1) - $C87 ) /14, 0) -> 0 | H87: =IF( AND( WEEKDAY($C87,2)=3,YEAR($C87)=$N$3, evenWeek($C87), $C87<=$F$73), (($F$73 + 1) - $C87 ) / 14, 0) -> 0 | I87: =IF( AND( WEEKDAY($C87,2)=3,YEAR($C87)=$N$3, NOT(evenWeek($C87)), $C87<= $F$73), (($F$73 + 1) - $C87 ) /14, 0) -> 0 | J87: =IF( AND( WEEKDAY($C87,2)=4,YEAR($C87)=$N$3, evenWeek($C87), $C87<=$F$73), (($F$73 + 1) - $C87 ) / 14, 0) -> 0 | K87: =IF( AND( WEEKDAY($C87,2)=4,YEAR($C87)=$N$3, NOT(evenWeek($C87)), $C87<= $F$73), (($F$73 + 1) - $C87 ) /14, 0) -> 0 | L87: =IF( AND( WEEKDAY($C87,2)=5,YEAR($C87)=$N$3, evenWeek($C87), $C87<=$F$73), (($F$73 + 1) - $C87 ) / 14, 0) -> 0 | M87: =IF( AND( WEEKDAY($C87,2)=5,YEAR($C87)=$N$3, NOT(evenWeek($C87)), $C87<= $F$73), (($F$73 + 1) - $C87 ) /14, 0) -> 0 | N87: =IF( AND( WEEKDAY($C87,2)=6,YEAR($C87)=$N$3, evenWeek($C87), $C87<=$F$73), (($F$73 + 1) - $C87 ) / 14, 0) -> 0 | O87: =IF( AND( WEEKDAY($C87,2)=6,YEAR($C87)=$N$3, NOT(evenWeek($C87)), $C87<= $F$73), (($F$73 + 1) - $C87 ) /14, 0) -> 0 | P87: =IF( AND( WEEKDAY($C87,2)=7,YEAR($C87)=$N$3, evenWeek($C87), $C87<=$F$73), (($F$73 + 1) - $C87 ) / 14, 0) -> 0 | Q87: =IF( AND( WEEKDAY($C87,2)=7,YEAR($C87)=$N$3, NOT(evenWeek($C87)), $C87<= $F$73), (($F$73 + 1) - $C87 ) /14, 0) -> 0
C88: 1904-01-12 | D88: =IF( AND( WEEKDAY($C88,2)=1,YEAR($C88)=$N$3, evenWeek($C88), $C88<=$F$73), (($F$73 + 1) - $C88 ) / 14, 0) -> 0 | E88: =IF( AND( WEEKDAY($C88,2)=1,YEAR($C88)=$N$3, NOT(evenWeek($C88)), $C88<= $F$73), (($F$73 + 1) - $C88 ) /14, 0) -> 0 | F88: =IF( AND( WEEKDAY($C88,2)=2,YEAR($C88)=$N$3, evenWeek($C88), $C88<=$F$73), (($F$73 + 1) - $C88 ) / 14, 0) -> 0 | G88: =IF( AND( WEEKDAY($C88,2)=2,YEAR($C88)=$N$3, NOT(evenWeek($C88)), $C88<= $F$73), (($F$73 + 1) - $C88 ) /14, 0) -> 0 | H88: =IF( AND( WEEKDAY($C88,2)=3,YEAR($C88)=$N$3, evenWeek($C88), $C88<=$F$73), (($F$73 + 1) - $C88 ) / 14, 0) -> 0 | I88: =IF( AND( WEEKDAY($C88,2)=3,YEAR($C88)=$N$3, NOT(evenWeek($C88)), $C88<= $F$73), (($F$73 + 1) - $C88 ) /14, 0) -> 0 | J88: =IF( AND( WEEKDAY($C88,2)=4,YEAR($C88)=$N$3, evenWeek($C88), $C88<=$F$73), (($F$73 + 1) - $C88 ) / 14, 0) -> 0 | K88: =IF( AND( WEEKDAY($C88,2)=4,YEAR($C88)=$N$3, NOT(evenWeek($C88)), $C88<= $F$73), (($F$73 + 1) - $C88 ) /14, 0) -> 0 | L88: =IF( AND( WEEKDAY($C88,2)=5,YEAR($C88)=$N$3, evenWeek($C88), $C88<=$F$73), (($F$73 + 1) - $C88 ) / 14, 0) -> 0 | M88: =IF( AND( WEEKDAY($C88,2)=5,YEAR($C88)=$N$3, NOT(evenWeek($C88)), $C88<= $F$73), (($F$73 + 1) - $C88 ) /14, 0) -> 0 | N88: =IF( AND( WEEKDAY($C88,2)=6,YEAR($C88)=$N$3, evenWeek($C88), $C88<=$F$73), (($F$73 + 1) - $C88 ) / 14, 0) -> 0 | O88: =IF( AND( WEEKDAY($C88,2)=6,YEAR($C88)=$N$3, NOT(evenWeek($C88)), $C88<= $F$73), (($F$73 + 1) - $C88 ) /14, 0) -> 0 | P88: =IF( AND( WEEKDAY($C88,2)=7,YEAR($C88)=$N$3, evenWeek($C88), $C88<=$F$73), (($F$73 + 1) - $C88 ) / 14, 0) -> 0 | Q88: =IF( AND( WEEKDAY($C88,2)=7,YEAR($C88)=$N$3, NOT(evenWeek($C88)), $C88<= $F$73), (($F$73 + 1) - $C88 ) /14, 0) -> 0
C89: =C88+1 -> 1904-01-13 | D89: =IF( AND( WEEKDAY($C89,2)=1,YEAR($C89)=$N$3, evenWeek($C89), $C89<=$F$73), (($F$73 + 1) - $C89 ) / 14, 0) -> 0 | E89: =IF( AND( WEEKDAY($C89,2)=1,YEAR($C89)=$N$3, NOT(evenWeek($C89)), $C89<= $F$73), (($F$73 + 1) - $C89 ) /14, 0) -> 0 | F89: =IF( AND( WEEKDAY($C89,2)=2,YEAR($C89)=$N$3, evenWeek($C89), $C89<=$F$73), (($F$73 + 1) - $C89 ) / 14, 0) -> 0 | G89: =IF( AND( WEEKDAY($C89,2)=2,YEAR($C89)=$N$3, NOT(evenWeek($C89)), $C89<= $F$73), (($F$73 + 1) - $C89 ) /14, 0) -> 0 | H89: =IF( AND( WEEKDAY($C89,2)=3,YEAR($C89)=$N$3, evenWeek($C89), $C89<=$F$73), (($F$73 + 1) - $C89 ) / 14, 0) -> 0 | I89: =IF( AND( WEEKDAY($C89,2)=3,YEAR($C89)=$N$3, NOT(evenWeek($C89)), $C89<= $F$73), (($F$73 + 1) - $C89 ) /14, 0) -> 0 | J89: =IF( AND( WEEKDAY($C89,2)=4,YEAR($C89)=$N$3, evenWeek($C89), $C89<=$F$73), (($F$73 + 1) - $C89 ) / 14, 0) -> 0 | K89: =IF( AND( WEEKDAY($C89,2)=4,YEAR($C89)=$N$3, NOT(evenWeek($C89)), $C89<= $F$73), (($F$73 + 1) - $C89 ) /14, 0) -> 0 | L89: =IF( AND( WEEKDAY($C89,2)=5,YEAR($C89)=$N$3, evenWeek($C89), $C89<=$F$73), (($F$73 + 1) - $C89 ) / 14, 0) -> 0 | M89: =IF( AND( WEEKDAY($C89,2)=5,YEAR($C89)=$N$3, NOT(evenWeek($C89)), $C89<= $F$73), (($F$73 + 1) - $C89 ) /14, 0) -> 0 | N89: =IF( AND( WEEKDAY($C89,2)=6,YEAR($C89)=$N$3, evenWeek($C89), $C89<=$F$73), (($F$73 + 1) - $C89 ) / 14, 0) -> 0 | O89: =IF( AND( WEEKDAY($C89,2)=6,YEAR($C89)=$N$3, NOT(evenWeek($C89)), $C89<= $F$73), (($F$73 + 1) - $C89 ) /14, 0) -> 0 | P89: =IF( AND( WEEKDAY($C89,2)=7,YEAR($C89)=$N$3, evenWeek($C89), $C89<=$F$73), (($F$73 + 1) - $C89 ) / 14, 0) -> 0 | Q89: =IF( AND( WEEKDAY($C89,2)=7,YEAR($C89)=$N$3, NOT(evenWeek($C89)), $C89<= $F$73), (($F$73 + 1) - $C89 ) /14, 0) -> 0
C90: 1904-01-14 | D90: =IF( AND( WEEKDAY($C90,2)=1,YEAR($C90)=$N$3, evenWeek($C90), $C90<=$F$73), (($F$73 + 1) - $C90 ) / 14, 0) -> 0 | E90: =IF( AND( WEEKDAY($C90,2)=1,YEAR($C90)=$N$3, NOT(evenWeek($C90)), $C90<= $F$73), (($F$73 + 1) - $C90 ) /14, 0) -> 0 | F90: =IF( AND( WEEKDAY($C90,2)=2,YEAR($C90)=$N$3, evenWeek($C90), $C90<=$F$73), (($F$73 + 1) - $C90 ) / 14, 0) -> 0 | G90: =IF( AND( WEEKDAY($C90,2)=2,YEAR($C90)=$N$3, NOT(evenWeek($C90)), $C90<= $F$73), (($F$73 + 1) - $C90 ) /14, 0) -> 0 | H90: =IF( AND( WEEKDAY($C90,2)=3,YEAR($C90)=$N$3, evenWeek($C90), $C90<=$F$73), (($F$73 + 1) - $C90 ) / 14, 0) -> 0 | I90: =IF( AND( WEEKDAY($C90,2)=3,YEAR($C90)=$N$3, NOT(evenWeek($C90)), $C90<= $F$73), (($F$73 + 1) - $C90 ) /14, 0) -> 0 | J90: =IF( AND( WEEKDAY($C90,2)=4,YEAR($C90)=$N$3, evenWeek($C90), $C90<=$F$73), (($F$73 + 1) - $C90 ) / 14, 0) -> 0 | K90: =IF( AND( WEEKDAY($C90,2)=4,YEAR($C90)=$N$3, NOT(evenWeek($C90)), $C90<= $F$73), (($F$73 + 1) - $C90 ) /14, 0) -> 0 | L90: =IF( AND( WEEKDAY($C90,2)=5,YEAR($C90)=$N$3, evenWeek($C90), $C90<=$F$73), (($F$73 + 1) - $C90 ) / 14, 0) -> 0 | M90: =IF( AND( WEEKDAY($C90,2)=5,YEAR($C90)=$N$3, NOT(evenWeek($C90)), $C90<= $F$73), (($F$73 + 1) - $C90 ) /14, 0) -> 0 | N90: =IF( AND( WEEKDAY($C90,2)=6,YEAR($C90)=$N$3, evenWeek($C90), $C90<=$F$73), (($F$73 + 1) - $C90 ) / 14, 0) -> 0 | O90: =IF( AND( WEEKDAY($C90,2)=6,YEAR($C90)=$N$3, NOT(evenWeek($C90)), $C90<= $F$73), (($F$73 + 1) - $C90 ) /14, 0) -> 0 | P90: =IF( AND( WEEKDAY($C90,2)=7,YEAR($C90)=$N$3, evenWeek($C90), $C90<=$F$73), (($F$73 + 1) - $C90 ) / 14, 0) -> 0 | Q90: =IF( AND( WEEKDAY($C90,2)=7,YEAR($C90)=$N$3, NOT(evenWeek($C90)), $C90<= $F$73), (($F$73 + 1) - $C90 ) /14, 0) -> 0
C91: # dagen: | D91: =ROUNDUP(SUM(D77:D90),0) -> 0 | E91: =ROUNDUP(SUM(E77:E90),0) -> 0 | F91: 0 | G91: 0 | H91: 0 | I91: 0 | J91: 0 | K91: 0 | L91: 0 | M91: 0 | N91: =ROUNDUP(SUM(N77:N90),0) -> 0 | O91: =ROUNDUP(SUM(O77:O90),0) -> 0 | P91: =ROUNDUP(SUM(P77:P90),0) -> 0 | Q91: =ROUNDUP(SUM(Q77:Q90),0) -> 0
C94: NCF dagen | D94: ma even | E94: ma oneven | F94: di even | G94: di oneven | H94: wo even | I94: wo oneven | J94: do even | K94: do oneven | L94: vr even | M94: vr oneven | N94: za even | O94: za oneven | P94: zo even | Q94: zo oneven | R94: totaal
B95: =B25 -> Nieuwjaarsdag | C95: 2024-01-01 | D95: =IF( AND($C95>($D$73-1),$C95<($F$73+1),WEEKDAY($C95,2)=1, evenWeek($C95) ),-1,"") ->  | E95: =IF( AND($C95>($D$73-1),$C95<($F$73+1),WEEKDAY($C95,2)=1, NOT(evenWeek($C95)) ),-1,"") ->  | F95: =IF( AND($C95>($D$73-1),$C95<($F$73+1),WEEKDAY($C95,2)=2, evenWeek($C95) ),-1,"") ->  | G95: =IF( AND($C95>($D$73-1),$C95<($F$73+1),WEEKDAY($C95,2)=2, NOT(evenWeek($C95)) ),-1,"") ->  | H95: =IF( AND($C95>($D$73-1),$C95<($F$73+1),WEEKDAY($C95,2)=3, evenWeek($C95) ),-1,"") ->  | I95: =IF( AND($C95>($D$73-1),$C95<($F$73+1),WEEKDAY($C95,2)=3, NOT(evenWeek($C95)) ),-1,"") ->  | J95: =IF( AND($C95>($D$73-1),$C95<($F$73+1),WEEKDAY($C95,2)=4, evenWeek($C95) ),-1,"") ->  | K95: =IF( AND($C95>($D$73-1),$C95<($F$73+1),WEEKDAY($C95,2)=4, NOT(evenWeek($C95)) ),-1,"") ->  | L95: =IF( AND($C95>($D$73-1),$C95<($F$73+1),WEEKDAY($C95,2)=5, evenWeek($C95) ),-1,"") ->  | M95: =IF( AND($C95>($D$73-1),$C95<($F$73+1),WEEKDAY($C95,2)=5, NOT(evenWeek($C95)) ),-1,"") ->  | N95: =IF( AND($C95>($D$73-1),$C95<($F$73+1),WEEKDAY($C95,2)=6, evenWeek($C95) ),-1,"") ->  | O95: =IF( AND($C95>($D$73-1),$C95<($F$73+1),WEEKDAY($C95,2)=6, NOT(evenWeek($C95)) ),-1,"") ->  | P95: =IF( AND($C95>($D$73-1),$C95<($F$73+1),WEEKDAY($C95,2)=7, evenWeek($C95) ),-1,"") ->  | Q95: =IF( AND($C95>($D$73-1),$C95<($F$73+1),WEEKDAY($C95,2)=7, NOT(evenWeek($C95)) ),-1,"") -> 
B96: Goede vrijdag | C96: 2024-03-29 | L96: =IF( AND($C96>($D$73-1),$C96<($F$73+1), evenWeek($C96) ),-1,"") ->  | M96: =IF( AND($C96>($D$73-1),$C96<($F$73+1), NOT(evenWeek($C96)) ),-1,"") -> 
B97: 2e paasdag | C97: 2024-04-01 | D97: =IF( AND($C97>($D$73-1),$C97<($F$73+1), evenWeek($C97) ),-1,"") ->  | E97: =IF( AND($C97>($D$73-1),$C97<($F$73+1), NOT(evenWeek($C97)) ),-1,"") -> 
B98: Koningsdag | C98: 2024-04-27 | D98: =IF( AND($C98>($D$73-1),$C98<($F$73+1),WEEKDAY($C98,2)=1, evenWeek($C98) ),-1,"") ->  | E98: =IF( AND($C98>($D$73-1),$C98<($F$73+1),WEEKDAY($C98,2)=1, NOT(evenWeek($C98)) ),-1,"") ->  | F98: =IF( AND($C98>($D$73-1),$C98<($F$73+1),WEEKDAY($C98,2)=2, evenWeek($C98) ),-1,"") ->  | G98: =IF( AND($C98>($D$73-1),$C98<($F$73+1),WEEKDAY($C98,2)=2, NOT(evenWeek($C98)) ),-1,"") ->  | H98: =IF( AND($C98>($D$73-1),$C98<($F$73+1),WEEKDAY($C98,2)=3, evenWeek($C98) ),-1,"") ->  | I98: =IF( AND($C98>($D$73-1),$C98<($F$73+1),WEEKDAY($C98,2)=3, NOT(evenWeek($C98)) ),-1,"") ->  | J98: =IF( AND($C98>($D$73-1),$C98<($F$73+1),WEEKDAY($C98,2)=4, evenWeek($C98) ),-1,"") ->  | K98: =IF( AND($C98>($D$73-1),$C98<($F$73+1),WEEKDAY($C98,2)=4, NOT(evenWeek($C98)) ),-1,"") ->  | L98: =IF( AND($C98>($D$73-1),$C98<($F$73+1),WEEKDAY($C98,2)=5, evenWeek($C98) ),-1,"") ->  | M98: =IF( AND($C98>($D$73-1),$C98<($F$73+1),WEEKDAY($C98,2)=5, NOT(evenWeek($C98)) ),-1,"") ->  | N98: =IF( AND($C98>($D$73-1),$C98<($F$73+1),WEEKDAY($C98,2)=6, evenWeek($C98) ),-1,"") ->  | O98: =IF( AND($C98>($D$73-1),$C98<($F$73+1),WEEKDAY($C98,2)=6, NOT(evenWeek($C98)) ),-1,"") ->  | P98: =IF( AND($C98>($D$73-1),$C98<($F$73+1),WEEKDAY($C98,2)=7, evenWeek($C98) ),-1,"") ->  | Q98: =IF( AND($C98>($D$73-1),$C98<($F$73+1),WEEKDAY($C98,2)=7, NOT(evenWeek($C98)) ),-1,"") -> 
B99: Bevrijdingsdag | C99: 2024-05-05 | D99: =IF( AND($C99>($D$73-1),$C99<($F$73+1),WEEKDAY($C99,2)=1, evenWeek($C99) ),-1,"") ->  | E99: =IF( AND($C99>($D$73-1),$C99<($F$73+1),WEEKDAY($C99,2)=1, NOT(evenWeek($C99)) ),-1,"") ->  | F99: =IF( AND($C99>($D$73-1),$C99<($F$73+1),WEEKDAY($C99,2)=2, evenWeek($C99) ),-1,"") ->  | G99: =IF( AND($C99>($D$73-1),$C99<($F$73+1),WEEKDAY($C99,2)=2, NOT(evenWeek($C99)) ),-1,"") ->  | H99: =IF( AND($C99>($D$73-1),$C99<($F$73+1),WEEKDAY($C99,2)=3, evenWeek($C99) ),-1,"") ->  | I99: =IF( AND($C99>($D$73-1),$C99<($F$73+1),WEEKDAY($C99,2)=3, NOT(evenWeek($C99)) ),-1,"") ->  | J99: =IF( AND($C99>($D$73-1),$C99<($F$73+1),WEEKDAY($C99,2)=4, evenWeek($C99) ),-1,"") ->  | K99: =IF( AND($C99>($D$73-1),$C99<($F$73+1),WEEKDAY($C99,2)=4, NOT(evenWeek($C99)) ),-1,"") ->  | L99: =IF( AND($C99>($D$73-1),$C99<($F$73+1),WEEKDAY($C99,2)=5, evenWeek($C99) ),-1,"") ->  | M99: =IF( AND($C99>($D$73-1),$C99<($F$73+1),WEEKDAY($C99,2)=5, NOT(evenWeek($C99)) ),-1,"") ->  | N99: =IF( AND($C99>($D$73-1),$C99<($F$73+1),WEEKDAY($C99,2)=6, evenWeek($C99) ),-1,"") ->  | O99: =IF( AND($C99>($D$73-1),$C99<($F$73+1),WEEKDAY($C99,2)=6, NOT(evenWeek($C99)) ),-1,"") ->  | P99: =IF( AND($C99>($D$73-1),$C99<($F$73+1),WEEKDAY($C99,2)=7, evenWeek($C99) ),-1,"") ->  | Q99: =IF( AND($C99>($D$73-1),$C99<($F$73+1),WEEKDAY($C99,2)=7, NOT(evenWeek($C99)) ),-1,"") -> 
B100: Hemelvaart | C100: 2024-05-09 | J100: =IF( AND($C100>($D$73-1),$C100<($F$73+1), evenWeek($C100) ),-1,"") ->  | K100: =IF( AND($C100>($D$73-1),$C100<($F$73+1), NOT(evenWeek($C100)) ),-1,"") -> 
B101: 2e Pinksterdag | C101: 2024-05-20 | D101: =IF( AND($C101>($D$73-1),$C101<($F$73+1), evenWeek($C101) ),-1,"") ->  | E101: =IF( AND($C101>($D$73-1),$C101<($F$73+1), NOT(evenWeek($C101)) ),-1,"") -> 
B102: 1e Kerstdag | C102: 2024-12-25 | D102: =IF( AND($C102>($D$73-1),$C102<($F$73+1),WEEKDAY($C102,2)=1, evenWeek($C102) ),-1,"") ->  | E102: =IF( AND($C102>($D$73-1),$C102<($F$73+1),WEEKDAY($C102,2)=1, NOT(evenWeek($C102)) ),-1,"") ->  | F102: =IF( AND($C102>($D$73-1),$C102<($F$73+1),WEEKDAY($C102,2)=2, evenWeek($C102) ),-1,"") ->  | G102: =IF( AND($C102>($D$73-1),$C102<($F$73+1),WEEKDAY($C102,2)=2, NOT(evenWeek($C102)) ),-1,"") ->  | H102: =IF( AND($C102>($D$73-1),$C102<($F$73+1),WEEKDAY($C102,2)=3, evenWeek($C102) ),-1,"") ->  | I102: =IF( AND($C102>($D$73-1),$C102<($F$73+1),WEEKDAY($C102,2)=3, NOT(evenWeek($C102)) ),-1,"") ->  | J102: =IF( AND($C102>($D$73-1),$C102<($F$73+1),WEEKDAY($C102,2)=4, evenWeek($C102) ),-1,"") ->  | K102: =IF( AND($C102>($D$73-1),$C102<($F$73+1),WEEKDAY($C102,2)=4, NOT(evenWeek($C102)) ),-1,"") ->  | L102: =IF( AND($C102>($D$73-1),$C102<($F$73+1),WEEKDAY($C102,2)=5, evenWeek($C102) ),-1,"") ->  | M102: =IF( AND($C102>($D$73-1),$C102<($F$73+1),WEEKDAY($C102,2)=5, NOT(evenWeek($C102)) ),-1,"") ->  | N102: =IF( AND($C102>($D$73-1),$C102<($F$73+1),WEEKDAY($C102,2)=6, evenWeek($C102) ),-1,"") ->  | O102: =IF( AND($C102>($D$73-1),$C102<($F$73+1),WEEKDAY($C102,2)=6, NOT(evenWeek($C102)) ),-1,"") ->  | P102: =IF( AND($C102>($D$73-1),$C102<($F$73+1),WEEKDAY($C102,2)=7, evenWeek($C102) ),-1,"") ->  | Q102: =IF( AND($C102>($D$73-1),$C102<($F$73+1),WEEKDAY($C102,2)=7, NOT(evenWeek($C102)) ),-1,"") -> 
B103: 2e Kerstdag | C103: 2024-12-26 | D103: =IF( AND($C103>($D$73-1),$C103<($F$73+1),WEEKDAY($C103,2)=1, evenWeek($C103) ),-1,"") ->  | E103: =IF( AND($C103>($D$73-1),$C103<($F$73+1),WEEKDAY($C103,2)=1, NOT(evenWeek($C103)) ),-1,"") ->  | F103: =IF( AND($C103>($D$73-1),$C103<($F$73+1),WEEKDAY($C103,2)=2, evenWeek($C103) ),-1,"") ->  | G103: =IF( AND($C103>($D$73-1),$C103<($F$73+1),WEEKDAY($C103,2)=2, NOT(evenWeek($C103)) ),-1,"") ->  | H103: =IF( AND($C103>($D$73-1),$C103<($F$73+1),WEEKDAY($C103,2)=3, evenWeek($C103) ),-1,"") ->  | I103: =IF( AND($C103>($D$73-1),$C103<($F$73+1),WEEKDAY($C103,2)=3, NOT(evenWeek($C103)) ),-1,"") ->  | J103: =IF( AND($C103>($D$73-1),$C103<($F$73+1),WEEKDAY($C103,2)=4, evenWeek($C103) ),-1,"") ->  | K103: =IF( AND($C103>($D$73-1),$C103<($F$73+1),WEEKDAY($C103,2)=4, NOT(evenWeek($C103)) ),-1,"") ->  | L103: =IF( AND($C103>($D$73-1),$C103<($F$73+1),WEEKDAY($C103,2)=5, evenWeek($C103) ),-1,"") ->  | M103: =IF( AND($C103>($D$73-1),$C103<($F$73+1),WEEKDAY($C103,2)=5, NOT(evenWeek($C103)) ),-1,"") ->  | N103: =IF( AND($C103>($D$73-1),$C103<($F$73+1),WEEKDAY($C103,2)=6, evenWeek($C103) ),-1,"") ->  | O103: =IF( AND($C103>($D$73-1),$C103<($F$73+1),WEEKDAY($C103,2)=6, NOT(evenWeek($C103)) ),-1,"") ->  | P103: =IF( AND($C103>($D$73-1),$C103<($F$73+1),WEEKDAY($C103,2)=7, evenWeek($C103) ),-1,"") ->  | Q103: =IF( AND($C103>($D$73-1),$C103<($F$73+1),WEEKDAY($C103,2)=7, NOT(evenWeek($C103)) ),-1,"") -> 
B104: Verplicht1 | C104: 2024-05-10
B105: Verplicht2 | C105: 2024-12-27
B106: Verplicht3 | C106: 2024-12-30
B107: Verplicht4 | C107: 2024-12-31
B108: Verplicht5 | C108: 1904-01-01 | L108: -1
B109: werkbare dagen | D109: =IF(OR(YEAR($D$73)<>$N$3,YEAR($F$73)<>$N$3),0,SUM(D91,D95:D108)) -> 0 | E109: 0 | F109: 0 | G109: 0 | H109: 0 | I109: 0 | J109: 0 | K109: 0 | L109: 0 | M109: 0 | N109: 0 | O109: 0 | P109: 0 | Q109: 0 | R109: =SUM(D109:O109) -> 0
B111: standaard werkweek | D111: 40 | E111: 38 | F111: 36
B112: bijbehorend verlofsaldo | D112: =D42 -> 428 | E112: =E42 -> 323 | F112: =F42 -> 219
B113: # werkdagen in jaar | C113: =C43 -> 302
B115: (Z) Periodefactor werkbare dagen per volledig kalenderjaar | K115: =IF(AND(D73>0,F73>0),R109/C113,0) -> 0
B117: (A) Omvang aanstelling in fulltime equivalenten (fte's) | K117: =DIENSTVERBANDGEGEVENS!J28 -> 1
I118: keuzerondje
B119: (B) Standaard werkweek bij volledige aanstelling, vul in 36, 38 of 40 | I119: 3 | K119: =IF(I119=1,36,IF(I119=2,38,IF(I119=3,40,0))) -> 40
B121: (C) Totaal aantal netto werkbare uren in periode 2 ( A * 1659 * Z ) | K121: =IF($N$4,K117*$K$42*K115,0) -> 0
B123: (D) Bruto aantal werkbare uren bij aanstellingsomvang ( A * B ) | K123: =K117*K119 -> 40
B125: (E) Keuze tijdsbesteding | D125: maandag | E125: dinsdag | F125: woensdag | G125: donderdag | H125: vrijdag | I125: zaterdag | K125: gemiddeld
C126: even week | D126: =DIENSTVERBANDGEGEVENS!D37 -> 0 | E126: =DIENSTVERBANDGEGEVENS!E37 -> 0 | F126: =DIENSTVERBANDGEGEVENS!F37 -> 0 | G126: =DIENSTVERBANDGEGEVENS!G37 -> 0 | H126: =DIENSTVERBANDGEGEVENS!H37 -> 0 | I126: =DIENSTVERBANDGEGEVENS!I37 -> 0 | K126: totaal
B127: totaal even | D127: =D126*D109 -> 0 | E127: =E126*F109 -> 0 | F127: =F126*H109 -> 0 | G127: =G126*J109 -> 0 | H127: =H126*L109 -> 0 | I127: =I126*N109 -> 0
C128: oneven week | D128: =DIENSTVERBANDGEGEVENS!D39 -> 0 | E128: =DIENSTVERBANDGEGEVENS!E39 -> 0 | F128: =DIENSTVERBANDGEGEVENS!F39 -> 0 | G128: =DIENSTVERBANDGEGEVENS!G39 -> 0 | H128: =DIENSTVERBANDGEGEVENS!H39 -> 0 | I128: =DIENSTVERBANDGEGEVENS!I39 -> 0 | K128: =SUM(D126:I126,D128:I128)/2 -> 0
B129: totaal oneven | D129: =D128*E109 -> 0 | E129: =E128*G109 -> 0 | F129: =F128*I109 -> 0 | G129: =G128*K109 -> 0 | H129: =H128*M109 -> 0 | I129: =I128*O109 -> 0
B130: (F) werkbare uren (gecorrigeerd voor feestdagen en overige niet-werkbare dagen) | K130: =IF(AND(D73>0,F73>0,$N$4),SUM(D127:I127,D129:I129),0) -> 0
B132: (G) Bruto CAO verlofuren in periode 2 ( A * verlofsaldo * Z ) | K132: =(SUM(K117*IF(K119=0,0,IF(K119=D111,D112,IF(K119=E111,E112,IF(K119=F111,F112,"")))))*K115) -> 0
B134: (H) Werkbare uren gecorrigeerd voor bruto verlofuren ( F - G ) | K134: =IF(K123=0,0,K130-K132) -> 0
B136: (I) teveel (+) / te weinig (-) gewerkte uren ( H - C ) | K136: =K134-K121 -> 0
B138: (J) Opgebouwde netto CAO verlofuren ( G + I ) | K138: =K132+K136 -> 0
D142: =IF(D144,"datum !",IF(OR(D143=0,YEAR(D143)=$N$3),"","datum !")) ->  | F142: =IF(AND(D143>0,F143>0,F143<D143),"datum !",IF(OR(F144, AND(F143>0,YEAR(F143)<>$N$3)),"datum !","")) ->  | H142: p1 | I142: p2 | J142: p4 | K142: p5 | Q142: PERIODE 3
B143: PERIODE 3 | C143: van | D143: =IF(ISNUMBER(DIENSTVERBANDGEGEVENS!D45),DIENSTVERBANDGEGEVENS!D45,0) -> 1904-01-01 | E143: t/m | F143: =IF(ISNUMBER(DIENSTVERBANDGEGEVENS!F45),DIENSTVERBANDGEGEVENS!F45,0) -> 1904-01-01 | G143: =IF(AND(H143:K143),""," periode-overlapping") ->  | H143: =OR( D143=0,F143=0,D3=0,F3=0, AND($D$143>D3,$D$143>F3),AND($D$143<D3,$F$143<D3)) -> TRUE | I143: =OR( D143=0,F143=0,D73=0,F73=0, AND($D$143>D73,$D$143>F73),AND($D$143<D73,$F$143<D73)) -> TRUE | J143: =OR( D143=0,F143=0,D213=0,F213=0, AND($D$143>D213,$D$143>F213),AND($D$143<D213,$F$143<D213)) -> TRUE | K143: =OR( D143=0,F143=0,D283=0,F283=0, AND($D$143>D283,$D$143>F283),AND($D$143<D283,$F$143<D283)) -> TRUE
C144: tekst in datumcel | D144: =TYPE(DIENSTVERBANDGEGEVENS!D45)=2 -> FALSE | F144: =TYPE(DIENSTVERBANDGEGEVENS!F45)=2 -> FALSE
D146: ma even | E146: ma oneven | F146: di even | G146: di oneven | H146: wo even | I146: wo oneven | J146: do even | K146: do oneven | L146: vr even | M146: vr oneven | N146: za even | O146: za oneven | P146: zo even | Q146: zo oneven
C147: =D143 -> 1904-01-01 | D147: =IF( AND( WEEKDAY($C147,2)=1,YEAR($C147)=$N$3, evenWeek($C147), $C147<=$F$143), (($F$143 + 1) - $C147 ) / 14, 0) -> 0 | E147: =IF( AND( WEEKDAY($C147,2)=1,YEAR($C147)=$N$3, NOT(evenWeek($C147)), $C147<= $F$143), (($F$143 + 1) - $C147 ) /14, 0) -> 0 | F147: =IF( AND( WEEKDAY($C147,2)=2,YEAR($C147)=$N$3, evenWeek($C147), $C147<=$F$143), (($F$143 + 1) - $C147 ) / 14, 0) -> 0 | G147: =IF( AND( WEEKDAY($C147,2)=2,YEAR($C147)=$N$3, NOT(evenWeek($C147)), $C147<= $F$143), (($F$143 + 1) - $C147 ) /14, 0) -> 0 | H147: =IF( AND( WEEKDAY($C147,2)=3,YEAR($C147)=$N$3, evenWeek($C147), $C147<=$F$143), (($F$143 + 1) - $C147 ) / 14, 0) -> 0 | I147: =IF( AND( WEEKDAY($C147,2)=3,YEAR($C147)=$N$3, NOT(evenWeek($C147)), $C147<= $F$143), (($F$143 + 1) - $C147 ) /14, 0) -> 0 | J147: =IF( AND( WEEKDAY($C147,2)=4,YEAR($C147)=$N$3, evenWeek($C147), $C147<=$F$143), (($F$143 + 1) - $C147 ) / 14, 0) -> 0 | K147: =IF( AND( WEEKDAY($C147,2)=4,YEAR($C147)=$N$3, NOT(evenWeek($C147)), $C147<= $F$143), (($F$143 + 1) - $C147 ) /14, 0) -> 0 | L147: =IF( AND( WEEKDAY($C147,2)=5,YEAR($C147)=$N$3, evenWeek($C147), $C147<=$F$143), (($F$143 + 1) - $C147 ) / 14, 0) -> 0 | M147: =IF( AND( WEEKDAY($C147,2)=5,YEAR($C147)=$N$3, NOT(evenWeek($C147)), $C147<= $F$143), (($F$143 + 1) - $C147 ) /14, 0) -> 0 | N147: =IF( AND( WEEKDAY($C147,2)=6,YEAR($C147)=$N$3, evenWeek($C147), $C147<=$F$143), (($F$143 + 1) - $C147 ) / 14, 0) -> 0 | O147: =IF( AND( WEEKDAY($C147,2)=6,YEAR($C147)=$N$3, NOT(evenWeek($C147)), $C147<= $F$143), (($F$143 + 1) - $C147 ) /14, 0) -> 0 | P147: =IF( AND( WEEKDAY($C147,2)=7,YEAR($C147)=$N$3, evenWeek($C147), $C147<=$F$143), (($F$143 + 1) - $C147 ) / 14, 0) -> 0 | Q147: =IF( AND( WEEKDAY($C147,2)=7,YEAR($C147)=$N$3, NOT(evenWeek($C147)), $C147<= $F$143), (($F$143 + 1) - $C147 ) /14, 0) -> 0
C148: =C147+1 -> 1904-01-02 | D148: =IF( AND( WEEKDAY($C148,2)=1,YEAR($C148)=$N$3, evenWeek($C148), $C148<=$F$143), (($F$143 + 1) - $C148 ) / 14, 0) -> 0 | E148: =IF( AND( WEEKDAY($C148,2)=1,YEAR($C148)=$N$3, NOT(evenWeek($C148)), $C148<= $F$143), (($F$143 + 1) - $C148 ) /14, 0) -> 0 | F148: =IF( AND( WEEKDAY($C148,2)=2,YEAR($C148)=$N$3, evenWeek($C148), $C148<=$F$143), (($F$143 + 1) - $C148 ) / 14, 0) -> 0 | G148: =IF( AND( WEEKDAY($C148,2)=2,YEAR($C148)=$N$3, NOT(evenWeek($C148)), $C148<= $F$143), (($F$143 + 1) - $C148 ) /14, 0) -> 0 | H148: =IF( AND( WEEKDAY($C148,2)=3,YEAR($C148)=$N$3, evenWeek($C148), $C148<=$F$143), (($F$143 + 1) - $C148 ) / 14, 0) -> 0 | I148: =IF( AND( WEEKDAY($C148,2)=3,YEAR($C148)=$N$3, NOT(evenWeek($C148)), $C148<= $F$143), (($F$143 + 1) - $C148 ) /14, 0) -> 0 | J148: =IF( AND( WEEKDAY($C148,2)=4,YEAR($C148)=$N$3, evenWeek($C148), $C148<=$F$143), (($F$143 + 1) - $C148 ) / 14, 0) -> 0 | K148: =IF( AND( WEEKDAY($C148,2)=4,YEAR($C148)=$N$3, NOT(evenWeek($C148)), $C148<= $F$143), (($F$143 + 1) - $C148 ) /14, 0) -> 0 | L148: =IF( AND( WEEKDAY($C148,2)=5,YEAR($C148)=$N$3, evenWeek($C148), $C148<=$F$143), (($F$143 + 1) - $C148 ) / 14, 0) -> 0 | M148: =IF( AND( WEEKDAY($C148,2)=5,YEAR($C148)=$N$3, NOT(evenWeek($C148)), $C148<= $F$143), (($F$143 + 1) - $C148 ) /14, 0) -> 0 | N148: =IF( AND( WEEKDAY($C148,2)=6,YEAR($C148)=$N$3, evenWeek($C148), $C148<=$F$143), (($F$143 + 1) - $C148 ) / 14, 0) -> 0 | O148: =IF( AND( WEEKDAY($C148,2)=6,YEAR($C148)=$N$3, NOT(evenWeek($C148)), $C148<= $F$143), (($F$143 + 1) - $C148 ) /14, 0) -> 0 | P148: =IF( AND( WEEKDAY($C148,2)=7,YEAR($C148)=$N$3, evenWeek($C148), $C148<=$F$143), (($F$143 + 1) - $C148 ) / 14, 0) -> 0 | Q148: =IF( AND( WEEKDAY($C148,2)=7,YEAR($C148)=$N$3, NOT(evenWeek($C148)), $C148<= $F$143), (($F$143 + 1) - $C148 ) /14, 0) -> 0
C149: =C148+1 -> 1904-01-03 | D149: =IF( AND( WEEKDAY($C149,2)=1,YEAR($C149)=$N$3, evenWeek($C149), $C149<=$F$143), (($F$143 + 1) - $C149 ) / 14, 0) -> 0 | E149: =IF( AND( WEEKDAY($C149,2)=1,YEAR($C149)=$N$3, NOT(evenWeek($C149)), $C149<= $F$143), (($F$143 + 1) - $C149 ) /14, 0) -> 0 | F149: =IF( AND( WEEKDAY($C149,2)=2,YEAR($C149)=$N$3, evenWeek($C149), $C149<=$F$143), (($F$143 + 1) - $C149 ) / 14, 0) -> 0 | G149: =IF( AND( WEEKDAY($C149,2)=2,YEAR($C149)=$N$3, NOT(evenWeek($C149)), $C149<= $F$143), (($F$143 + 1) - $C149 ) /14, 0) -> 0 | H149: =IF( AND( WEEKDAY($C149,2)=3,YEAR($C149)=$N$3, evenWeek($C149), $C149<=$F$143), (($F$143 + 1) - $C149 ) / 14, 0) -> 0 | I149: =IF( AND( WEEKDAY($C149,2)=3,YEAR($C149)=$N$3, NOT(evenWeek($C149)), $C149<= $F$143), (($F$143 + 1) - $C149 ) /14, 0) -> 0 | J149: =IF( AND( WEEKDAY($C149,2)=4,YEAR($C149)=$N$3, evenWeek($C149), $C149<=$F$143), (($F$143 + 1) - $C149 ) / 14, 0) -> 0 | K149: =IF( AND( WEEKDAY($C149,2)=4,YEAR($C149)=$N$3, NOT(evenWeek($C149)), $C149<= $F$143), (($F$143 + 1) - $C149 ) /14, 0) -> 0 | L149: =IF( AND( WEEKDAY($C149,2)=5,YEAR($C149)=$N$3, evenWeek($C149), $C149<=$F$143), (($F$143 + 1) - $C149 ) / 14, 0) -> 0 | M149: =IF( AND( WEEKDAY($C149,2)=5,YEAR($C149)=$N$3, NOT(evenWeek($C149)), $C149<= $F$143), (($F$143 + 1) - $C149 ) /14, 0) -> 0 | N149: =IF( AND( WEEKDAY($C149,2)=6,YEAR($C149)=$N$3, evenWeek($C149), $C149<=$F$143), (($F$143 + 1) - $C149 ) / 14, 0) -> 0 | O149: =IF( AND( WEEKDAY($C149,2)=6,YEAR($C149)=$N$3, NOT(evenWeek($C149)), $C149<= $F$143), (($F$143 + 1) - $C149 ) /14, 0) -> 0 | P149: =IF( AND( WEEKDAY($C149,2)=7,YEAR($C149)=$N$3, evenWeek($C149), $C149<=$F$143), (($F$143 + 1) - $C149 ) / 14, 0) -> 0 | Q149: =IF( AND( WEEKDAY($C149,2)=7,YEAR($C149)=$N$3, NOT(evenWeek($C149)), $C149<= $F$143), (($F$143 + 1) - $C149 ) /14, 0) -> 0
C150: 1904-01-04 | D150: =IF( AND( WEEKDAY($C150,2)=1,YEAR($C150)=$N$3, evenWeek($C150), $C150<=$F$143), (($F$143 + 1) - $C150 ) / 14, 0) -> 0 | E150: =IF( AND( WEEKDAY($C150,2)=1,YEAR($C150)=$N$3, NOT(evenWeek($C150)), $C150<= $F$143), (($F$143 + 1) - $C150 ) /14, 0) -> 0 | F150: =IF( AND( WEEKDAY($C150,2)=2,YEAR($C150)=$N$3, evenWeek($C150), $C150<=$F$143), (($F$143 + 1) - $C150 ) / 14, 0) -> 0 | G150: =IF( AND( WEEKDAY($C150,2)=2,YEAR($C150)=$N$3, NOT(evenWeek($C150)), $C150<= $F$143), (($F$143 + 1) - $C150 ) /14, 0) -> 0 | H150: =IF( AND( WEEKDAY($C150,2)=3,YEAR($C150)=$N$3, evenWeek($C150), $C150<=$F$143), (($F$143 + 1) - $C150 ) / 14, 0) -> 0 | I150: =IF( AND( WEEKDAY($C150,2)=3,YEAR($C150)=$N$3, NOT(evenWeek($C150)), $C150<= $F$143), (($F$143 + 1) - $C150 ) /14, 0) -> 0 | J150: =IF( AND( WEEKDAY($C150,2)=4,YEAR($C150)=$N$3, evenWeek($C150), $C150<=$F$143), (($F$143 + 1) - $C150 ) / 14, 0) -> 0 | K150: =IF( AND( WEEKDAY($C150,2)=4,YEAR($C150)=$N$3, NOT(evenWeek($C150)), $C150<= $F$143), (($F$143 + 1) - $C150 ) /14, 0) -> 0 | L150: =IF( AND( WEEKDAY($C150,2)=5,YEAR($C150)=$N$3, evenWeek($C150), $C150<=$F$143), (($F$143 + 1) - $C150 ) / 14, 0) -> 0 | M150: =IF( AND( WEEKDAY($C150,2)=5,YEAR($C150)=$N$3, NOT(evenWeek($C150)), $C150<= $F$143), (($F$143 + 1) - $C150 ) /14, 0) -> 0 | N150: =IF( AND( WEEKDAY($C150,2)=6,YEAR($C150)=$N$3, evenWeek($C150), $C150<=$F$143), (($F$143 + 1) - $C150 ) / 14, 0) -> 0 | O150: =IF( AND( WEEKDAY($C150,2)=6,YEAR($C150)=$N$3, NOT(evenWeek($C150)), $C150<= $F$143), (($F$143 + 1) - $C150 ) /14, 0) -> 0 | P150: =IF( AND( WEEKDAY($C150,2)=7,YEAR($C150)=$N$3, evenWeek($C150), $C150<=$F$143), (($F$143 + 1) - $C150 ) / 14, 0) -> 0 | Q150: =IF( AND( WEEKDAY($C150,2)=7,YEAR($C150)=$N$3, NOT(evenWeek($C150)), $C150<= $F$143), (($F$143 + 1) - $C150 ) /14, 0) -> 0
C151: 1904-01-05 | D151: =IF( AND( WEEKDAY($C151,2)=1,YEAR($C151)=$N$3, evenWeek($C151), $C151<=$F$143), (($F$143 + 1) - $C151 ) / 14, 0) -> 0 | E151: =IF( AND( WEEKDAY($C151,2)=1,YEAR($C151)=$N$3, NOT(evenWeek($C151)), $C151<= $F$143), (($F$143 + 1) - $C151 ) /14, 0) -> 0 | F151: =IF( AND( WEEKDAY($C151,2)=2,YEAR($C151)=$N$3, evenWeek($C151), $C151<=$F$143), (($F$143 + 1) - $C151 ) / 14, 0) -> 0 | G151: =IF( AND( WEEKDAY($C151,2)=2,YEAR($C151)=$N$3, NOT(evenWeek($C151)), $C151<= $F$143), (($F$143 + 1) - $C151 ) /14, 0) -> 0 | H151: =IF( AND( WEEKDAY($C151,2)=3,YEAR($C151)=$N$3, evenWeek($C151), $C151<=$F$143), (($F$143 + 1) - $C151 ) / 14, 0) -> 0 | I151: =IF( AND( WEEKDAY($C151,2)=3,YEAR($C151)=$N$3, NOT(evenWeek($C151)), $C151<= $F$143), (($F$143 + 1) - $C151 ) /14, 0) -> 0 | J151: =IF( AND( WEEKDAY($C151,2)=4,YEAR($C151)=$N$3, evenWeek($C151), $C151<=$F$143), (($F$143 + 1) - $C151 ) / 14, 0) -> 0 | K151: =IF( AND( WEEKDAY($C151,2)=4,YEAR($C151)=$N$3, NOT(evenWeek($C151)), $C151<= $F$143), (($F$143 + 1) - $C151 ) /14, 0) -> 0 | L151: =IF( AND( WEEKDAY($C151,2)=5,YEAR($C151)=$N$3, evenWeek($C151), $C151<=$F$143), (($F$143 + 1) - $C151 ) / 14, 0) -> 0 | M151: =IF( AND( WEEKDAY($C151,2)=5,YEAR($C151)=$N$3, NOT(evenWeek($C151)), $C151<= $F$143), (($F$143 + 1) - $C151 ) /14, 0) -> 0 | N151: =IF( AND( WEEKDAY($C151,2)=6,YEAR($C151)=$N$3, evenWeek($C151), $C151<=$F$143), (($F$143 + 1) - $C151 ) / 14, 0) -> 0 | O151: =IF( AND( WEEKDAY($C151,2)=6,YEAR($C151)=$N$3, NOT(evenWeek($C151)), $C151<= $F$143), (($F$143 + 1) - $C151 ) /14, 0) -> 0 | P151: =IF( AND( WEEKDAY($C151,2)=7,YEAR($C151)=$N$3, evenWeek($C151), $C151<=$F$143), (($F$143 + 1) - $C151 ) / 14, 0) -> 0 | Q151: =IF( AND( WEEKDAY($C151,2)=7,YEAR($C151)=$N$3, NOT(evenWeek($C151)), $C151<= $F$143), (($F$143 + 1) - $C151 ) /14, 0) -> 0
C152: 1904-01-06 | D152: =IF( AND( WEEKDAY($C152,2)=1,YEAR($C152)=$N$3, evenWeek($C152), $C152<=$F$143), (($F$143 + 1) - $C152 ) / 14, 0) -> 0 | E152: =IF( AND( WEEKDAY($C152,2)=1,YEAR($C152)=$N$3, NOT(evenWeek($C152)), $C152<= $F$143), (($F$143 + 1) - $C152 ) /14, 0) -> 0 | F152: =IF( AND( WEEKDAY($C152,2)=2,YEAR($C152)=$N$3, evenWeek($C152), $C152<=$F$143), (($F$143 + 1) - $C152 ) / 14, 0) -> 0 | G152: =IF( AND( WEEKDAY($C152,2)=2,YEAR($C152)=$N$3, NOT(evenWeek($C152)), $C152<= $F$143), (($F$143 + 1) - $C152 ) /14, 0) -> 0 | H152: =IF( AND( WEEKDAY($C152,2)=3,YEAR($C152)=$N$3, evenWeek($C152), $C152<=$F$143), (($F$143 + 1) - $C152 ) / 14, 0) -> 0 | I152: =IF( AND( WEEKDAY($C152,2)=3,YEAR($C152)=$N$3, NOT(evenWeek($C152)), $C152<= $F$143), (($F$143 + 1) - $C152 ) /14, 0) -> 0 | J152: =IF( AND( WEEKDAY($C152,2)=4,YEAR($C152)=$N$3, evenWeek($C152), $C152<=$F$143), (($F$143 + 1) - $C152 ) / 14, 0) -> 0 | K152: =IF( AND( WEEKDAY($C152,2)=4,YEAR($C152)=$N$3, NOT(evenWeek($C152)), $C152<= $F$143), (($F$143 + 1) - $C152 ) /14, 0) -> 0 | L152: =IF( AND( WEEKDAY($C152,2)=5,YEAR($C152)=$N$3, evenWeek($C152), $C152<=$F$143), (($F$143 + 1) - $C152 ) / 14, 0) -> 0 | M152: =IF( AND( WEEKDAY($C152,2)=5,YEAR($C152)=$N$3, NOT(evenWeek($C152)), $C152<= $F$143), (($F$143 + 1) - $C152 ) /14, 0) -> 0 | N152: =IF( AND( WEEKDAY($C152,2)=6,YEAR($C152)=$N$3, evenWeek($C152), $C152<=$F$143), (($F$143 + 1) - $C152 ) / 14, 0) -> 0 | O152: =IF( AND( WEEKDAY($C152,2)=6,YEAR($C152)=$N$3, NOT(evenWeek($C152)), $C152<= $F$143), (($F$143 + 1) - $C152 ) /14, 0) -> 0 | P152: =IF( AND( WEEKDAY($C152,2)=7,YEAR($C152)=$N$3, evenWeek($C152), $C152<=$F$143), (($F$143 + 1) - $C152 ) / 14, 0) -> 0 | Q152: =IF( AND( WEEKDAY($C152,2)=7,YEAR($C152)=$N$3, NOT(evenWeek($C152)), $C152<= $F$143), (($F$143 + 1) - $C152 ) /14, 0) -> 0
C153: 1904-01-07 | D153: =IF( AND( WEEKDAY($C153,2)=1,YEAR($C153)=$N$3, evenWeek($C153), $C153<=$F$143), (($F$143 + 1) - $C153 ) / 14, 0) -> 0 | E153: =IF( AND( WEEKDAY($C153,2)=1,YEAR($C153)=$N$3, NOT(evenWeek($C153)), $C153<= $F$143), (($F$143 + 1) - $C153 ) /14, 0) -> 0 | F153: =IF( AND( WEEKDAY($C153,2)=2,YEAR($C153)=$N$3, evenWeek($C153), $C153<=$F$143), (($F$143 + 1) - $C153 ) / 14, 0) -> 0 | G153: =IF( AND( WEEKDAY($C153,2)=2,YEAR($C153)=$N$3, NOT(evenWeek($C153)), $C153<= $F$143), (($F$143 + 1) - $C153 ) /14, 0) -> 0 | H153: =IF( AND( WEEKDAY($C153,2)=3,YEAR($C153)=$N$3, evenWeek($C153), $C153<=$F$143), (($F$143 + 1) - $C153 ) / 14, 0) -> 0 | I153: =IF( AND( WEEKDAY($C153,2)=3,YEAR($C153)=$N$3, NOT(evenWeek($C153)), $C153<= $F$143), (($F$143 + 1) - $C153 ) /14, 0) -> 0 | J153: =IF( AND( WEEKDAY($C153,2)=4,YEAR($C153)=$N$3, evenWeek($C153), $C153<=$F$143), (($F$143 + 1) - $C153 ) / 14, 0) -> 0 | K153: =IF( AND( WEEKDAY($C153,2)=4,YEAR($C153)=$N$3, NOT(evenWeek($C153)), $C153<= $F$143), (($F$143 + 1) - $C153 ) /14, 0) -> 0 | L153: =IF( AND( WEEKDAY($C153,2)=5,YEAR($C153)=$N$3, evenWeek($C153), $C153<=$F$143), (($F$143 + 1) - $C153 ) / 14, 0) -> 0 | M153: =IF( AND( WEEKDAY($C153,2)=5,YEAR($C153)=$N$3, NOT(evenWeek($C153)), $C153<= $F$143), (($F$143 + 1) - $C153 ) /14, 0) -> 0 | N153: =IF( AND( WEEKDAY($C153,2)=6,YEAR($C153)=$N$3, evenWeek($C153), $C153<=$F$143), (($F$143 + 1) - $C153 ) / 14, 0) -> 0 | O153: =IF( AND( WEEKDAY($C153,2)=6,YEAR($C153)=$N$3, NOT(evenWeek($C153)), $C153<= $F$143), (($F$143 + 1) - $C153 ) /14, 0) -> 0 | P153: =IF( AND( WEEKDAY($C153,2)=7,YEAR($C153)=$N$3, evenWeek($C153), $C153<=$F$143), (($F$143 + 1) - $C153 ) / 14, 0) -> 0 | Q153: =IF( AND( WEEKDAY($C153,2)=7,YEAR($C153)=$N$3, NOT(evenWeek($C153)), $C153<= $F$143), (($F$143 + 1) - $C153 ) /14, 0) -> 0
C154: 1904-01-08 | D154: =IF( AND( WEEKDAY($C154,2)=1,YEAR($C154)=$N$3, evenWeek($C154), $C154<=$F$143), (($F$143 + 1) - $C154 ) / 14, 0) -> 0 | E154: =IF( AND( WEEKDAY($C154,2)=1,YEAR($C154)=$N$3, NOT(evenWeek($C154)), $C154<= $F$143), (($F$143 + 1) - $C154 ) /14, 0) -> 0 | F154: =IF( AND( WEEKDAY($C154,2)=2,YEAR($C154)=$N$3, evenWeek($C154), $C154<=$F$143), (($F$143 + 1) - $C154 ) / 14, 0) -> 0 | G154: =IF( AND( WEEKDAY($C154,2)=2,YEAR($C154)=$N$3, NOT(evenWeek($C154)), $C154<= $F$143), (($F$143 + 1) - $C154 ) /14, 0) -> 0 | H154: =IF( AND( WEEKDAY($C154,2)=3,YEAR($C154)=$N$3, evenWeek($C154), $C154<=$F$143), (($F$143 + 1) - $C154 ) / 14, 0) -> 0 | I154: =IF( AND( WEEKDAY($C154,2)=3,YEAR($C154)=$N$3, NOT(evenWeek($C154)), $C154<= $F$143), (($F$143 + 1) - $C154 ) /14, 0) -> 0 | J154: =IF( AND( WEEKDAY($C154,2)=4,YEAR($C154)=$N$3, evenWeek($C154), $C154<=$F$143), (($F$143 + 1) - $C154 ) / 14, 0) -> 0 | K154: =IF( AND( WEEKDAY($C154,2)=4,YEAR($C154)=$N$3, NOT(evenWeek($C154)), $C154<= $F$143), (($F$143 + 1) - $C154 ) /14, 0) -> 0 | L154: =IF( AND( WEEKDAY($C154,2)=5,YEAR($C154)=$N$3, evenWeek($C154), $C154<=$F$143), (($F$143 + 1) - $C154 ) / 14, 0) -> 0 | M154: =IF( AND( WEEKDAY($C154,2)=5,YEAR($C154)=$N$3, NOT(evenWeek($C154)), $C154<= $F$143), (($F$143 + 1) - $C154 ) /14, 0) -> 0 | N154: =IF( AND( WEEKDAY($C154,2)=6,YEAR($C154)=$N$3, evenWeek($C154), $C154<=$F$143), (($F$143 + 1) - $C154 ) / 14, 0) -> 0 | O154: =IF( AND( WEEKDAY($C154,2)=6,YEAR($C154)=$N$3, NOT(evenWeek($C154)), $C154<= $F$143), (($F$143 + 1) - $C154 ) /14, 0) -> 0 | P154: =IF( AND( WEEKDAY($C154,2)=7,YEAR($C154)=$N$3, evenWeek($C154), $C154<=$F$143), (($F$143 + 1) - $C154 ) / 14, 0) -> 0 | Q154: =IF( AND( WEEKDAY($C154,2)=7,YEAR($C154)=$N$3, NOT(evenWeek($C154)), $C154<= $F$143), (($F$143 + 1) - $C154 ) /14, 0) -> 0
C155: 1904-01-09 | D155: =IF( AND( WEEKDAY($C155,2)=1,YEAR($C155)=$N$3, evenWeek($C155), $C155<=$F$143), (($F$143 + 1) - $C155 ) / 14, 0) -> 0 | E155: =IF( AND( WEEKDAY($C155,2)=1,YEAR($C155)=$N$3, NOT(evenWeek($C155)), $C155<= $F$143), (($F$143 + 1) - $C155 ) /14, 0) -> 0 | F155: =IF( AND( WEEKDAY($C155,2)=2,YEAR($C155)=$N$3, evenWeek($C155), $C155<=$F$143), (($F$143 + 1) - $C155 ) / 14, 0) -> 0 | G155: =IF( AND( WEEKDAY($C155,2)=2,YEAR($C155)=$N$3, NOT(evenWeek($C155)), $C155<= $F$143), (($F$143 + 1) - $C155 ) /14, 0) -> 0 | H155: =IF( AND( WEEKDAY($C155,2)=3,YEAR($C155)=$N$3, evenWeek($C155), $C155<=$F$143), (($F$143 + 1) - $C155 ) / 14, 0) -> 0 | I155: =IF( AND( WEEKDAY($C155,2)=3,YEAR($C155)=$N$3, NOT(evenWeek($C155)), $C155<= $F$143), (($F$143 + 1) - $C155 ) /14, 0) -> 0 | J155: =IF( AND( WEEKDAY($C155,2)=4,YEAR($C155)=$N$3, evenWeek($C155), $C155<=$F$143), (($F$143 + 1) - $C155 ) / 14, 0) -> 0 | K155: =IF( AND( WEEKDAY($C155,2)=4,YEAR($C155)=$N$3, NOT(evenWeek($C155)), $C155<= $F$143), (($F$143 + 1) - $C155 ) /14, 0) -> 0 | L155: =IF( AND( WEEKDAY($C155,2)=5,YEAR($C155)=$N$3, evenWeek($C155), $C155<=$F$143), (($F$143 + 1) - $C155 ) / 14, 0) -> 0 | M155: =IF( AND( WEEKDAY($C155,2)=5,YEAR($C155)=$N$3, NOT(evenWeek($C155)), $C155<= $F$143), (($F$143 + 1) - $C155 ) /14, 0) -> 0 | N155: =IF( AND( WEEKDAY($C155,2)=6,YEAR($C155)=$N$3, evenWeek($C155), $C155<=$F$143), (($F$143 + 1) - $C155 ) / 14, 0) -> 0 | O155: =IF( AND( WEEKDAY($C155,2)=6,YEAR($C155)=$N$3, NOT(evenWeek($C155)), $C155<= $F$143), (($F$143 + 1) - $C155 ) /14, 0) -> 0 | P155: =IF( AND( WEEKDAY($C155,2)=7,YEAR($C155)=$N$3, evenWeek($C155), $C155<=$F$143), (($F$143 + 1) - $C155 ) / 14, 0) -> 0 | Q155: =IF( AND( WEEKDAY($C155,2)=7,YEAR($C155)=$N$3, NOT(evenWeek($C155)), $C155<= $F$143), (($F$143 + 1) - $C155 ) /14, 0) -> 0
C156: 1904-01-10 | D156: =IF( AND( WEEKDAY($C156,2)=1,YEAR($C156)=$N$3, evenWeek($C156), $C156<=$F$143), (($F$143 + 1) - $C156 ) / 14, 0) -> 0 | E156: =IF( AND( WEEKDAY($C156,2)=1,YEAR($C156)=$N$3, NOT(evenWeek($C156)), $C156<= $F$143), (($F$143 + 1) - $C156 ) /14, 0) -> 0 | F156: =IF( AND( WEEKDAY($C156,2)=2,YEAR($C156)=$N$3, evenWeek($C156), $C156<=$F$143), (($F$143 + 1) - $C156 ) / 14, 0) -> 0 | G156: =IF( AND( WEEKDAY($C156,2)=2,YEAR($C156)=$N$3, NOT(evenWeek($C156)), $C156<= $F$143), (($F$143 + 1) - $C156 ) /14, 0) -> 0 | H156: =IF( AND( WEEKDAY($C156,2)=3,YEAR($C156)=$N$3, evenWeek($C156), $C156<=$F$143), (($F$143 + 1) - $C156 ) / 14, 0) -> 0 | I156: =IF( AND( WEEKDAY($C156,2)=3,YEAR($C156)=$N$3, NOT(evenWeek($C156)), $C156<= $F$143), (($F$143 + 1) - $C156 ) /14, 0) -> 0 | J156: =IF( AND( WEEKDAY($C156,2)=4,YEAR($C156)=$N$3, evenWeek($C156), $C156<=$F$143), (($F$143 + 1) - $C156 ) / 14, 0) -> 0 | K156: =IF( AND( WEEKDAY($C156,2)=4,YEAR($C156)=$N$3, NOT(evenWeek($C156)), $C156<= $F$143), (($F$143 + 1) - $C156 ) /14, 0) -> 0 | L156: =IF( AND( WEEKDAY($C156,2)=5,YEAR($C156)=$N$3, evenWeek($C156), $C156<=$F$143), (($F$143 + 1) - $C156 ) / 14, 0) -> 0 | M156: =IF( AND( WEEKDAY($C156,2)=5,YEAR($C156)=$N$3, NOT(evenWeek($C156)), $C156<= $F$143), (($F$143 + 1) - $C156 ) /14, 0) -> 0 | N156: =IF( AND( WEEKDAY($C156,2)=6,YEAR($C156)=$N$3, evenWeek($C156), $C156<=$F$143), (($F$143 + 1) - $C156 ) / 14, 0) -> 0 | O156: =IF( AND( WEEKDAY($C156,2)=6,YEAR($C156)=$N$3, NOT(evenWeek($C156)), $C156<= $F$143), (($F$143 + 1) - $C156 ) /14, 0) -> 0 | P156: =IF( AND( WEEKDAY($C156,2)=7,YEAR($C156)=$N$3, evenWeek($C156), $C156<=$F$143), (($F$143 + 1) - $C156 ) / 14, 0) -> 0 | Q156: =IF( AND( WEEKDAY($C156,2)=7,YEAR($C156)=$N$3, NOT(evenWeek($C156)), $C156<= $F$143), (($F$143 + 1) - $C156 ) /14, 0) -> 0
C157: =C156+1 -> 1904-01-11 | D157: =IF( AND( WEEKDAY($C157,2)=1,YEAR($C157)=$N$3, evenWeek($C157), $C157<=$F$143), (($F$143 + 1) - $C157 ) / 14, 0) -> 0 | E157: =IF( AND( WEEKDAY($C157,2)=1,YEAR($C157)=$N$3, NOT(evenWeek($C157)), $C157<= $F$143), (($F$143 + 1) - $C157 ) /14, 0) -> 0 | F157: =IF( AND( WEEKDAY($C157,2)=2,YEAR($C157)=$N$3, evenWeek($C157), $C157<=$F$143), (($F$143 + 1) - $C157 ) / 14, 0) -> 0 | G157: =IF( AND( WEEKDAY($C157,2)=2,YEAR($C157)=$N$3, NOT(evenWeek($C157)), $C157<= $F$143), (($F$143 + 1) - $C157 ) /14, 0) -> 0 | H157: =IF( AND( WEEKDAY($C157,2)=3,YEAR($C157)=$N$3, evenWeek($C157), $C157<=$F$143), (($F$143 + 1) - $C157 ) / 14, 0) -> 0 | I157: =IF( AND( WEEKDAY($C157,2)=3,YEAR($C157)=$N$3, NOT(evenWeek($C157)), $C157<= $F$143), (($F$143 + 1) - $C157 ) /14, 0) -> 0 | J157: =IF( AND( WEEKDAY($C157,2)=4,YEAR($C157)=$N$3, evenWeek($C157), $C157<=$F$143), (($F$143 + 1) - $C157 ) / 14, 0) -> 0 | K157: =IF( AND( WEEKDAY($C157,2)=4,YEAR($C157)=$N$3, NOT(evenWeek($C157)), $C157<= $F$143), (($F$143 + 1) - $C157 ) /14, 0) -> 0 | L157: =IF( AND( WEEKDAY($C157,2)=5,YEAR($C157)=$N$3, evenWeek($C157), $C157<=$F$143), (($F$143 + 1) - $C157 ) / 14, 0) -> 0 | M157: =IF( AND( WEEKDAY($C157,2)=5,YEAR($C157)=$N$3, NOT(evenWeek($C157)), $C157<= $F$143), (($F$143 + 1) - $C157 ) /14, 0) -> 0 | N157: =IF( AND( WEEKDAY($C157,2)=6,YEAR($C157)=$N$3, evenWeek($C157), $C157<=$F$143), (($F$143 + 1) - $C157 ) / 14, 0) -> 0 | O157: =IF( AND( WEEKDAY($C157,2)=6,YEAR($C157)=$N$3, NOT(evenWeek($C157)), $C157<= $F$143), (($F$143 + 1) - $C157 ) /14, 0) -> 0 | P157: =IF( AND( WEEKDAY($C157,2)=7,YEAR($C157)=$N$3, evenWeek($C157), $C157<=$F$143), (($F$143 + 1) - $C157 ) / 14, 0) -> 0 | Q157: =IF( AND( WEEKDAY($C157,2)=7,YEAR($C157)=$N$3, NOT(evenWeek($C157)), $C157<= $F$143), (($F$143 + 1) - $C157 ) /14, 0) -> 0
C158: 1904-01-12 | D158: =IF( AND( WEEKDAY($C158,2)=1,YEAR($C158)=$N$3, evenWeek($C158), $C158<=$F$143), (($F$143 + 1) - $C158 ) / 14, 0) -> 0 | E158: =IF( AND( WEEKDAY($C158,2)=1,YEAR($C158)=$N$3, NOT(evenWeek($C158)), $C158<= $F$143), (($F$143 + 1) - $C158 ) /14, 0) -> 0 | F158: =IF( AND( WEEKDAY($C158,2)=2,YEAR($C158)=$N$3, evenWeek($C158), $C158<=$F$143), (($F$143 + 1) - $C158 ) / 14, 0) -> 0 | G158: =IF( AND( WEEKDAY($C158,2)=2,YEAR($C158)=$N$3, NOT(evenWeek($C158)), $C158<= $F$143), (($F$143 + 1) - $C158 ) /14, 0) -> 0 | H158: =IF( AND( WEEKDAY($C158,2)=3,YEAR($C158)=$N$3, evenWeek($C158), $C158<=$F$143), (($F$143 + 1) - $C158 ) / 14, 0) -> 0 | I158: =IF( AND( WEEKDAY($C158,2)=3,YEAR($C158)=$N$3, NOT(evenWeek($C158)), $C158<= $F$143), (($F$143 + 1) - $C158 ) /14, 0) -> 0 | J158: =IF( AND( WEEKDAY($C158,2)=4,YEAR($C158)=$N$3, evenWeek($C158), $C158<=$F$143), (($F$143 + 1) - $C158 ) / 14, 0) -> 0 | K158: =IF( AND( WEEKDAY($C158,2)=4,YEAR($C158)=$N$3, NOT(evenWeek($C158)), $C158<= $F$143), (($F$143 + 1) - $C158 ) /14, 0) -> 0 | L158: =IF( AND( WEEKDAY($C158,2)=5,YEAR($C158)=$N$3, evenWeek($C158), $C158<=$F$143), (($F$143 + 1) - $C158 ) / 14, 0) -> 0 | M158: =IF( AND( WEEKDAY($C158,2)=5,YEAR($C158)=$N$3, NOT(evenWeek($C158)), $C158<= $F$143), (($F$143 + 1) - $C158 ) /14, 0) -> 0 | N158: =IF( AND( WEEKDAY($C158,2)=6,YEAR($C158)=$N$3, evenWeek($C158), $C158<=$F$143), (($F$143 + 1) - $C158 ) / 14, 0) -> 0 | O158: =IF( AND( WEEKDAY($C158,2)=6,YEAR($C158)=$N$3, NOT(evenWeek($C158)), $C158<= $F$143), (($F$143 + 1) - $C158 ) /14, 0) -> 0 | P158: =IF( AND( WEEKDAY($C158,2)=7,YEAR($C158)=$N$3, evenWeek($C158), $C158<=$F$143), (($F$143 + 1) - $C158 ) / 14, 0) -> 0 | Q158: =IF( AND( WEEKDAY($C158,2)=7,YEAR($C158)=$N$3, NOT(evenWeek($C158)), $C158<= $F$143), (($F$143 + 1) - $C158 ) /14, 0) -> 0
C159: 1904-01-13 | D159: =IF( AND( WEEKDAY($C159,2)=1,YEAR($C159)=$N$3, evenWeek($C159), $C159<=$F$143), (($F$143 + 1) - $C159 ) / 14, 0) -> 0 | E159: =IF( AND( WEEKDAY($C159,2)=1,YEAR($C159)=$N$3, NOT(evenWeek($C159)), $C159<= $F$143), (($F$143 + 1) - $C159 ) /14, 0) -> 0 | F159: =IF( AND( WEEKDAY($C159,2)=2,YEAR($C159)=$N$3, evenWeek($C159), $C159<=$F$143), (($F$143 + 1) - $C159 ) / 14, 0) -> 0 | G159: =IF( AND( WEEKDAY($C159,2)=2,YEAR($C159)=$N$3, NOT(evenWeek($C159)), $C159<= $F$143), (($F$143 + 1) - $C159 ) /14, 0) -> 0 | H159: =IF( AND( WEEKDAY($C159,2)=3,YEAR($C159)=$N$3, evenWeek($C159), $C159<=$F$143), (($F$143 + 1) - $C159 ) / 14, 0) -> 0 | I159: =IF( AND( WEEKDAY($C159,2)=3,YEAR($C159)=$N$3, NOT(evenWeek($C159)), $C159<= $F$143), (($F$143 + 1) - $C159 ) /14, 0) -> 0 | J159: =IF( AND( WEEKDAY($C159,2)=4,YEAR($C159)=$N$3, evenWeek($C159), $C159<=$F$143), (($F$143 + 1) - $C159 ) / 14, 0) -> 0 | K159: =IF( AND( WEEKDAY($C159,2)=4,YEAR($C159)=$N$3, NOT(evenWeek($C159)), $C159<= $F$143), (($F$143 + 1) - $C159 ) /14, 0) -> 0 | L159: =IF( AND( WEEKDAY($C159,2)=5,YEAR($C159)=$N$3, evenWeek($C159), $C159<=$F$143), (($F$143 + 1) - $C159 ) / 14, 0) -> 0 | M159: =IF( AND( WEEKDAY($C159,2)=5,YEAR($C159)=$N$3, NOT(evenWeek($C159)), $C159<= $F$143), (($F$143 + 1) - $C159 ) /14, 0) -> 0 | N159: =IF( AND( WEEKDAY($C159,2)=6,YEAR($C159)=$N$3, evenWeek($C159), $C159<=$F$143), (($F$143 + 1) - $C159 ) / 14, 0) -> 0 | O159: =IF( AND( WEEKDAY($C159,2)=6,YEAR($C159)=$N$3, NOT(evenWeek($C159)), $C159<= $F$143), (($F$143 + 1) - $C159 ) /14, 0) -> 0 | P159: =IF( AND( WEEKDAY($C159,2)=7,YEAR($C159)=$N$3, evenWeek($C159), $C159<=$F$143), (($F$143 + 1) - $C159 ) / 14, 0) -> 0 | Q159: =IF( AND( WEEKDAY($C159,2)=7,YEAR($C159)=$N$3, NOT(evenWeek($C159)), $C159<= $F$143), (($F$143 + 1) - $C159 ) /14, 0) -> 0
C160: =C159+1 -> 1904-01-14 | D160: =IF( AND( WEEKDAY($C160,2)=1,YEAR($C160)=$N$3, evenWeek($C160), $C160<=$F$143), (($F$143 + 1) - $C160 ) / 14, 0) -> 0 | E160: =IF( AND( WEEKDAY($C160,2)=1,YEAR($C160)=$N$3, NOT(evenWeek($C160)), $C160<= $F$143), (($F$143 + 1) - $C160 ) /14, 0) -> 0 | F160: =IF( AND( WEEKDAY($C160,2)=2,YEAR($C160)=$N$3, evenWeek($C160), $C160<=$F$143), (($F$143 + 1) - $C160 ) / 14, 0) -> 0 | G160: =IF( AND( WEEKDAY($C160,2)=2,YEAR($C160)=$N$3, NOT(evenWeek($C160)), $C160<= $F$143), (($F$143 + 1) - $C160 ) /14, 0) -> 0 | H160: =IF( AND( WEEKDAY($C160,2)=3,YEAR($C160)=$N$3, evenWeek($C160), $C160<=$F$143), (($F$143 + 1) - $C160 ) / 14, 0) -> 0 | I160: =IF( AND( WEEKDAY($C160,2)=3,YEAR($C160)=$N$3, NOT(evenWeek($C160)), $C160<= $F$143), (($F$143 + 1) - $C160 ) /14, 0) -> 0 | J160: =IF( AND( WEEKDAY($C160,2)=4,YEAR($C160)=$N$3, evenWeek($C160), $C160<=$F$143), (($F$143 + 1) - $C160 ) / 14, 0) -> 0 | K160: =IF( AND( WEEKDAY($C160,2)=4,YEAR($C160)=$N$3, NOT(evenWeek($C160)), $C160<= $F$143), (($F$143 + 1) - $C160 ) /14, 0) -> 0 | L160: =IF( AND( WEEKDAY($C160,2)=5,YEAR($C160)=$N$3, evenWeek($C160), $C160<=$F$143), (($F$143 + 1) - $C160 ) / 14, 0) -> 0 | M160: =IF( AND( WEEKDAY($C160,2)=5,YEAR($C160)=$N$3, NOT(evenWeek($C160)), $C160<= $F$143), (($F$143 + 1) - $C160 ) /14, 0) -> 0 | N160: =IF( AND( WEEKDAY($C160,2)=6,YEAR($C160)=$N$3, evenWeek($C160), $C160<=$F$143), (($F$143 + 1) - $C160 ) / 14, 0) -> 0 | O160: =IF( AND( WEEKDAY($C160,2)=6,YEAR($C160)=$N$3, NOT(evenWeek($C160)), $C160<= $F$143), (($F$143 + 1) - $C160 ) /14, 0) -> 0 | P160: =IF( AND( WEEKDAY($C160,2)=7,YEAR($C160)=$N$3, evenWeek($C160), $C160<=$F$143), (($F$143 + 1) - $C160 ) / 14, 0) -> 0 | Q160: =IF( AND( WEEKDAY($C160,2)=7,YEAR($C160)=$N$3, NOT(evenWeek($C160)), $C160<= $F$143), (($F$143 + 1) - $C160 ) /14, 0) -> 0
C161: # dagen: | D161: =ROUNDUP(SUM(D147:D160),0) -> 0 | E161: 0 | F161: 0 | G161: 0 | H161: 0 | I161: 0 | J161: 0 | K161: 0 | L161: 0 | M161: 0 | N161: =ROUNDUP(SUM(N147:N160),0) -> 0 | O161: =ROUNDUP(SUM(O147:O160),0) -> 0 | P161: =ROUNDUP(SUM(P147:P160),0) -> 0 | Q161: =ROUNDUP(SUM(Q147:Q160),0) -> 0
C164: NCF dagen | D164: ma even | E164: ma oneven | F164: di even | G164: di oneven | H164: wo even | I164: wo oneven | J164: do even | K164: do oneven | L164: vr even | M164: vr oneven | N164: za even | O164: za oneven | P164: zo even | Q164: zo oneven | R164: totaal
B165: =B25 -> Nieuwjaarsdag | C165: 2024-01-01 | D165: =IF( AND($C165>($D$143-1),$C165<($F$143+1),WEEKDAY($C165,2)=1, evenWeek($C165) ),-1,"") ->  | E165: =IF( AND($C165>($D$143-1),$C165<($F$143+1),WEEKDAY($C165,2)=1, NOT(evenWeek($C165)) ),-1,"") ->  | F165: =IF( AND($C165>($D$143-1),$C165<($F$143+1),WEEKDAY($C165,2)=2, evenWeek($C165) ),-1,"") ->  | G165: =IF( AND($C165>($D$143-1),$C165<($F$143+1),WEEKDAY($C165,2)=2, NOT(evenWeek($C165)) ),-1,"") ->  | H165: =IF( AND($C165>($D$143-1),$C165<($F$143+1),WEEKDAY($C165,2)=3, evenWeek($C165) ),-1,"") ->  | I165: =IF( AND($C165>($D$143-1),$C165<($F$143+1),WEEKDAY($C165,2)=3, NOT(evenWeek($C165)) ),-1,"") ->  | J165: =IF( AND($C165>($D$143-1),$C165<($F$143+1),WEEKDAY($C165,2)=4, evenWeek($C165) ),-1,"") ->  | K165: =IF( AND($C165>($D$143-1),$C165<($F$143+1),WEEKDAY($C165,2)=4, NOT(evenWeek($C165)) ),-1,"") ->  | L165: =IF( AND($C165>($D$143-1),$C165<($F$143+1),WEEKDAY($C165,2)=5, evenWeek($C165) ),-1,"") ->  | M165: =IF( AND($C165>($D$143-1),$C165<($F$143+1),WEEKDAY($C165,2)=5, NOT(evenWeek($C165)) ),-1,"") ->  | N165: =IF( AND($C165>($D$143-1),$C165<($F$143+1),WEEKDAY($C165,2)=6, evenWeek($C165) ),-1,"") ->  | O165: =IF( AND($C165>($D$143-1),$C165<($F$143+1),WEEKDAY($C165,2)=6, NOT(evenWeek($C165)) ),-1,"") ->  | P165: =IF( AND($C165>($D$143-1),$C165<($F$143+1),WEEKDAY($C165,2)=7, evenWeek($C165) ),-1,"") ->  | Q165: =IF( AND($C165>($D$143-1),$C165<($F$143+1),WEEKDAY($C165,2)=7, NOT(evenWeek($C165)) ),-1,"") -> 
B166: Goede vrijdag | C166: 2024-03-29 | L166: =IF( AND($C166>($D$143-1),$C166<($F$143+1), evenWeek($C166) ),-1,"") ->  | M166: =IF( AND($C166>($D$143-1),$C166<($F$143+1), NOT(evenWeek($C166))),-1,"") -> 
B167: 2e paasdag | C167: 2024-04-01 | D167: =IF( AND($C167>($D$143-1),$C167<($F$143+1), evenWeek($C167) ),-1,"") ->  | E167: =IF( AND($C167>($D$143-1),$C167<($F$143+1), NOT(evenWeek($C167))),-1,"") -> 
B168: Koningsdag | C168: 2024-04-27 | D168: =IF( AND($C168>($D$143-1),$C168<($F$143+1),WEEKDAY($C168,2)=1, evenWeek($C168) ),-1,"") ->  | E168: =IF( AND($C168>($D$143-1),$C168<($F$143+1),WEEKDAY($C168,2)=1, NOT(evenWeek($C168)) ),-1,"") ->  | F168: =IF( AND($C168>($D$143-1),$C168<($F$143+1),WEEKDAY($C168,2)=2, evenWeek($C168) ),-1,"") ->  | G168: =IF( AND($C168>($D$143-1),$C168<($F$143+1),WEEKDAY($C168,2)=2, NOT(evenWeek($C168)) ),-1,"") ->  | H168: =IF( AND($C168>($D$143-1),$C168<($F$143+1),WEEKDAY($C168,2)=3, evenWeek($C168) ),-1,"") ->  | I168: =IF( AND($C168>($D$143-1),$C168<($F$143+1),WEEKDAY($C168,2)=3, NOT(evenWeek($C168)) ),-1,"") ->  | J168: =IF( AND($C168>($D$143-1),$C168<($F$143+1),WEEKDAY($C168,2)=4, evenWeek($C168) ),-1,"") ->  | K168: =IF( AND($C168>($D$143-1),$C168<($F$143+1),WEEKDAY($C168,2)=4, NOT(evenWeek($C168)) ),-1,"") ->  | L168: =IF( AND($C168>($D$143-1),$C168<($F$143+1),WEEKDAY($C168,2)=5, evenWeek($C168) ),-1,"") ->  | M168: =IF( AND($C168>($D$143-1),$C168<($F$143+1),WEEKDAY($C168,2)=5, NOT(evenWeek($C168)) ),-1,"") ->  | N168: =IF( AND($C168>($D$143-1),$C168<($F$143+1),WEEKDAY($C168,2)=6, evenWeek($C168) ),-1,"") ->  | O168: =IF( AND($C168>($D$143-1),$C168<($F$143+1),WEEKDAY($C168,2)=6, NOT(evenWeek($C168)) ),-1,"") ->  | P168: =IF( AND($C168>($D$143-1),$C168<($F$143+1),WEEKDAY($C168,2)=7, evenWeek($C168) ),-1,"") ->  | Q168: =IF( AND($C168>($D$143-1),$C168<($F$143+1),WEEKDAY($C168,2)=7, NOT(evenWeek($C168)) ),-1,"") -> 
B169: Bevrijdingsdag | C169: 2024-05-05 | D169: =IF( AND($C169>($D$143-1),$C169<($F$143+1),WEEKDAY($C169,2)=1, evenWeek($C169) ),-1,"") ->  | E169: =IF( AND($C169>($D$143-1),$C169<($F$143+1),WEEKDAY($C169,2)=1, NOT(evenWeek($C169)) ),-1,"") ->  | F169: =IF( AND($C169>($D$143-1),$C169<($F$143+1),WEEKDAY($C169,2)=2, evenWeek($C169) ),-1,"") ->  | G169: =IF( AND($C169>($D$143-1),$C169<($F$143+1),WEEKDAY($C169,2)=2, NOT(evenWeek($C169)) ),-1,"") ->  | H169: =IF( AND($C169>($D$143-1),$C169<($F$143+1),WEEKDAY($C169,2)=3, evenWeek($C169) ),-1,"") ->  | I169: =IF( AND($C169>($D$143-1),$C169<($F$143+1),WEEKDAY($C169,2)=3, NOT(evenWeek($C169)) ),-1,"") ->  | J169: =IF( AND($C169>($D$143-1),$C169<($F$143+1),WEEKDAY($C169,2)=4, evenWeek($C169) ),-1,"") ->  | K169: =IF( AND($C169>($D$143-1),$C169<($F$143+1),WEEKDAY($C169,2)=4, NOT(evenWeek($C169)) ),-1,"") ->  | L169: =IF( AND($C169>($D$143-1),$C169<($F$143+1),WEEKDAY($C169,2)=5, evenWeek($C169) ),-1,"") ->  | M169: =IF( AND($C169>($D$143-1),$C169<($F$143+1),WEEKDAY($C169,2)=5, NOT(evenWeek($C169)) ),-1,"") ->  | N169: =IF( AND($C169>($D$143-1),$C169<($F$143+1),WEEKDAY($C169,2)=6, evenWeek($C169) ),-1,"") ->  | O169: =IF( AND($C169>($D$143-1),$C169<($F$143+1),WEEKDAY($C169,2)=6, NOT(evenWeek($C169)) ),-1,"") ->  | P169: =IF( AND($C169>($D$143-1),$C169<($F$143+1),WEEKDAY($C169,2)=7, evenWeek($C169) ),-1,"") ->  | Q169: =IF( AND($C169>($D$143-1),$C169<($F$143+1),WEEKDAY($C169,2)=7, NOT(evenWeek($C169)) ),-1,"") -> 
B170: Hemelvaart | C170: 2024-05-09 | J170: =IF( AND($C170>($D$143-1),$C170<($F$143+1), evenWeek($C170) ),-1,"") ->  | K170: =IF( AND($C170>($D$143-1),$C170<($F$143+1), NOT(evenWeek($C170))),-1,"") -> 
B171: 2e Pinksterdag | C171: 2024-05-20 | D171: =IF( AND($C171>($D$143-1),$C171<($F$143+1), evenWeek($C171) ),-1,"") ->  | E171: =IF( AND($C171>($D$143-1),$C171<($F$143+1), NOT(evenWeek($C171))),-1,"") -> 
B172: 1e Kerstdag | C172: 2024-12-25 | D172: =IF( AND($C172>($D$143-1),$C172<($F$143+1),WEEKDAY($C172,2)=1, evenWeek($C172) ),-1,"") ->  | E172: =IF( AND($C172>($D$143-1),$C172<($F$143+1),WEEKDAY($C172,2)=1, NOT(evenWeek($C172)) ),-1,"") ->  | F172: =IF( AND($C172>($D$143-1),$C172<($F$143+1),WEEKDAY($C172,2)=2, evenWeek($C172) ),-1,"") ->  | G172: =IF( AND($C172>($D$143-1),$C172<($F$143+1),WEEKDAY($C172,2)=2, NOT(evenWeek($C172)) ),-1,"") ->  | H172: =IF( AND($C172>($D$143-1),$C172<($F$143+1),WEEKDAY($C172,2)=3, evenWeek($C172) ),-1,"") ->  | I172: =IF( AND($C172>($D$143-1),$C172<($F$143+1),WEEKDAY($C172,2)=3, NOT(evenWeek($C172)) ),-1,"") ->  | J172: =IF( AND($C172>($D$143-1),$C172<($F$143+1),WEEKDAY($C172,2)=4, evenWeek($C172) ),-1,"") ->  | K172: =IF( AND($C172>($D$143-1),$C172<($F$143+1),WEEKDAY($C172,2)=4, NOT(evenWeek($C172)) ),-1,"") ->  | L172: =IF( AND($C172>($D$143-1),$C172<($F$143+1),WEEKDAY($C172,2)=5, evenWeek($C172) ),-1,"") ->  | M172: =IF( AND($C172>($D$143-1),$C172<($F$143+1),WEEKDAY($C172,2)=5, NOT(evenWeek($C172)) ),-1,"") ->  | N172: =IF( AND($C172>($D$143-1),$C172<($F$143+1),WEEKDAY($C172,2)=6, evenWeek($C172) ),-1,"") ->  | O172: =IF( AND($C172>($D$143-1),$C172<($F$143+1),WEEKDAY($C172,2)=6, NOT(evenWeek($C172)) ),-1,"") ->  | P172: =IF( AND($C172>($D$143-1),$C172<($F$143+1),WEEKDAY($C172,2)=7, evenWeek($C172) ),-1,"") ->  | Q172: =IF( AND($C172>($D$143-1),$C172<($F$143+1),WEEKDAY($C172,2)=7, NOT(evenWeek($C172)) ),-1,"") -> 
B173: 2e Kerstdag | C173: 2024-12-26 | D173: =IF( AND($C173>($D$143-1),$C173<($F$143+1),WEEKDAY($C173,2)=1, evenWeek($C173) ),-1,"") ->  | E173: =IF( AND($C173>($D$143-1),$C173<($F$143+1),WEEKDAY($C173,2)=1, NOT(evenWeek($C173)) ),-1,"") ->  | F173: =IF( AND($C173>($D$143-1),$C173<($F$143+1),WEEKDAY($C173,2)=2, evenWeek($C173) ),-1,"") ->  | G173: =IF( AND($C173>($D$143-1),$C173<($F$143+1),WEEKDAY($C173,2)=2, NOT(evenWeek($C173)) ),-1,"") ->  | H173: =IF( AND($C173>($D$143-1),$C173<($F$143+1),WEEKDAY($C173,2)=3, evenWeek($C173) ),-1,"") ->  | I173: =IF( AND($C173>($D$143-1),$C173<($F$143+1),WEEKDAY($C173,2)=3, NOT(evenWeek($C173)) ),-1,"") ->  | J173: =IF( AND($C173>($D$143-1),$C173<($F$143+1),WEEKDAY($C173,2)=4, evenWeek($C173) ),-1,"") ->  | K173: =IF( AND($C173>($D$143-1),$C173<($F$143+1),WEEKDAY($C173,2)=4, NOT(evenWeek($C173)) ),-1,"") ->  | L173: =IF( AND($C173>($D$143-1),$C173<($F$143+1),WEEKDAY($C173,2)=5, evenWeek($C173) ),-1,"") ->  | M173: =IF( AND($C173>($D$143-1),$C173<($F$143+1),WEEKDAY($C173,2)=5, NOT(evenWeek($C173)) ),-1,"") ->  | N173: =IF( AND($C173>($D$143-1),$C173<($F$143+1),WEEKDAY($C173,2)=6, evenWeek($C173) ),-1,"") ->  | O173: =IF( AND($C173>($D$143-1),$C173<($F$143+1),WEEKDAY($C173,2)=6, NOT(evenWeek($C173)) ),-1,"") ->  | P173: =IF( AND($C173>($D$143-1),$C173<($F$143+1),WEEKDAY($C173,2)=7, evenWeek($C173) ),-1,"") ->  | Q173: =IF( AND($C173>($D$143-1),$C173<($F$143+1),WEEKDAY($C173,2)=7, NOT(evenWeek($C173)) ),-1,"") -> 
B174: Verplicht1 | C174: 2024-05-10
B175: Verplicht2 | C175: 2024-12-27
B176: Verplicht3 | C176: 2024-12-30
B177: Verplicht4 | C177: 2024-12-31
B178: Verplicht5 | C178: 1904-01-01 | L178: -1
B179: werkbare dagen | D179: =IF(OR(YEAR($D$143)<>$N$3,YEAR($F$143)<>$N$3),0,SUM(D161,D165:D178)) -> 0 | E179: 0 | F179: 0 | G179: 0 | H179: 0 | I179: 0 | J179: 0 | K179: 0 | L179: 0 | M179: 0 | N179: 0 | O179: 0 | P179: 0 | Q179: 0 | R179: =SUM(D179:O179) -> 0
B181: standaard werkweek | D181: 40 | E181: 38 | F181: 36
B182: bijbehorend verlofsaldo | D182: =D42 -> 428 | E182: =E42 -> 323 | F182: =F42 -> 219
B183: # werkdagen in jaar | C183: =C43 -> 302
B185: (Z) Periodefactor werkbare dagen per volledig kalenderjaar | K185: =IF(AND(D143>0,F143>0),R179/C183,0) -> 0
B187: (A) Omvang aanstelling in fulltime equivalenten (fte's) | K187: =DIENSTVERBANDGEGEVENS!J47 -> 0
I188: keuzerondje
B189: (B) Standaard werkweek bij volledige aanstelling, vul in 36, 38 of 40 | I189: 3 | K189: =IF(I189=1,36,IF(I189=2,38,IF(I189=3,40,0))) -> 40
B191: (C) Totaal aantal netto werkbare uren in periode 3 ( A * 1659 * Z ) | K191: =IF($N$4,K187*$K$42*K185,0) -> 0
B193: (D) Bruto aantal werkbare uren bij aanstellingsomvang ( A * B ) | K193: =K187*K189 -> 0
B195: (E) Keuze tijdsbesteding | D195: maandag | E195: dinsdag | F195: woensdag | G195: donderdag | H195: vrijdag | I195: zaterdag | K195: gemiddeld
C196: even week | D196: =DIENSTVERBANDGEGEVENS!D56 -> 0 | E196: =DIENSTVERBANDGEGEVENS!E56 -> 0 | F196: =DIENSTVERBANDGEGEVENS!F56 -> 0 | G196: =DIENSTVERBANDGEGEVENS!G56 -> 0 | H196: =DIENSTVERBANDGEGEVENS!H56 -> 0 | I196: =DIENSTVERBANDGEGEVENS!I56 -> 0 | K196: totaal
B197: totaal even | D197: =D196*D179 -> 0 | E197: =E196*F179 -> 0 | F197: =F196*H179 -> 0 | G197: =G196*J179 -> 0 | H197: =H196*L179 -> 0 | I197: =I196*N179 -> 0
C198: oneven week | D198: =DIENSTVERBANDGEGEVENS!D58 -> 0 | E198: =DIENSTVERBANDGEGEVENS!E58 -> 0 | F198: =DIENSTVERBANDGEGEVENS!F58 -> 0 | G198: =DIENSTVERBANDGEGEVENS!G58 -> 0 | H198: =DIENSTVERBANDGEGEVENS!H58 -> 0 | I198: =DIENSTVERBANDGEGEVENS!I58 -> 0 | K198: =SUM(D196:I196,D198:I198)/2 -> 0
B199: totaal oneven | D199: =D198*E179 -> 0 | E199: =E198*G179 -> 0 | F199: =F198*I179 -> 0 | G199: =G198*K179 -> 0 | H199: =H198*M179 -> 0 | I199: =I198*O179 -> 0
B200: (F) werkbare uren (gecorrigeerd voor feestdagen en overige niet-werkbare dagen) | K200: =IF(AND(D143>0,F143>0,$N$4),SUM(D197:I197,D199:I199),0) -> 0
B202: (G) Bruto CAO verlofuren in periode 3 ( A * verlofsaldo * Z ) | K202: =(SUM(K187*IF(K189=0,0,IF(K189=D181,D182,IF(K189=E181,E182,IF(K189=F181,F182,"")))))*K185) -> 0
B204: (H) Werkbare uren gecorrigeerd voor bruto verlofuren ( F - G ) | K204: =IF(K193=0,0,K200-K202) -> 0
B206: (I) teveel (+) / te weinig (-) gewerkte uren ( H - C ) | K206: =K204-K191 -> 0
B208: (J) Opgebouwde netto CAO verlofuren ( G + I ) | K208: =K202+K206 -> 0
D212: =IF(D214,"datum !",IF(OR(D213=0,YEAR(D213)=$N$3),"","datum !")) ->  | F212: =IF(AND(D213>0,F213>0,F213<D213),"datum !",IF(OR(F214, AND(F213>0,YEAR(F213)<>$N$3)),"datum !","")) ->  | H212: p1 | I212: p2 | J212: p3 | K212: p5 | Q212: PERIODE 4
B213: PERIODE 4 | C213: van | D213: =IF(ISNUMBER(DIENSTVERBANDGEGEVENS!D64),DIENSTVERBANDGEGEVENS!D64,0) -> 1904-01-01 | E213: t/m | F213: =IF(ISNUMBER(DIENSTVERBANDGEGEVENS!F64),DIENSTVERBANDGEGEVENS!F64,0) -> 1904-01-01 | G213: =IF(AND(H213:K213),""," periode-overlapping") ->  | H213: =OR( D213=0,F213=0,D3=0,F3=0, AND($D$213>D3,$D$213>F3),AND($D$213<D3,$F$213<D3)) -> TRUE | I213: =OR( D213=0,F213=0,D73=0,F73=0, AND($D$213>D73,$D$213>F73),AND($D$213<D73,$F$213<D73)) -> TRUE | J213: =OR( D213=0,F213=0,D143=0,F143=0, AND($D$213>D143,$D$213>F143),AND($D$213<D143,$F$213<D143)) -> TRUE | K213: =OR( D213=0,F213=0,D283=0,F283=0, AND($D$213>D283,$D$213>F283),AND($D$213<D283,$F$213<D283)) -> TRUE
C214: tekst in datumcel | D214: =TYPE(DIENSTVERBANDGEGEVENS!D64)=2 -> FALSE | F214: =TYPE(DIENSTVERBANDGEGEVENS!F64)=2 -> FALSE
D216: ma even | E216: ma oneven | F216: di even | G216: di oneven | H216: wo even | I216: wo oneven | J216: do even | K216: do oneven | L216: vr even | M216: vr oneven | N216: za even | O216: za oneven | P216: zo even | Q216: zo oneven
C217: =D213 -> 1904-01-01 | D217: =IF( AND( WEEKDAY($C217,2)=1,YEAR($C217)=$N$3, evenWeek($C217), $C217<=$F$213), (($F$213 + 1) - $C217 ) / 14, 0) -> 0 | E217: =IF( AND( WEEKDAY($C217,2)=1,YEAR($C217)=$N$3, NOT(evenWeek($C217)), $C217<= $F$213), (($F$213 + 1) - $C217 ) /14, 0) -> 0 | F217: =IF( AND( WEEKDAY($C217,2)=2,YEAR($C217)=$N$3, evenWeek($C217), $C217<=$F$213), (($F$213 + 1) - $C217 ) / 14, 0) -> 0 | G217: =IF( AND( WEEKDAY($C217,2)=2,YEAR($C217)=$N$3, NOT(evenWeek($C217)), $C217<= $F$213), (($F$213 + 1) - $C217 ) /14, 0) -> 0 | H217: =IF( AND( WEEKDAY($C217,2)=3,YEAR($C217)=$N$3, evenWeek($C217), $C217<=$F$213), (($F$213 + 1) - $C217 ) / 14, 0) -> 0 | I217: =IF( AND( WEEKDAY($C217,2)=3,YEAR($C217)=$N$3, NOT(evenWeek($C217)), $C217<= $F$213), (($F$213 + 1) - $C217 ) /14, 0) -> 0 | J217: =IF( AND( WEEKDAY($C217,2)=4,YEAR($C217)=$N$3, evenWeek($C217), $C217<=$F$213), (($F$213 + 1) - $C217 ) / 14, 0) -> 0 | K217: =IF( AND( WEEKDAY($C217,2)=4,YEAR($C217)=$N$3, NOT(evenWeek($C217)), $C217<= $F$213), (($F$213 + 1) - $C217 ) /14, 0) -> 0 | L217: =IF( AND( WEEKDAY($C217,2)=5,YEAR($C217)=$N$3, evenWeek($C217), $C217<=$F$213), (($F$213 + 1) - $C217 ) / 14, 0) -> 0 | M217: =IF( AND( WEEKDAY($C217,2)=5,YEAR($C217)=$N$3, NOT(evenWeek($C217)), $C217<= $F$213), (($F$213 + 1) - $C217 ) /14, 0) -> 0 | N217: =IF( AND( WEEKDAY($C217,2)=6,YEAR($C217)=$N$3, evenWeek($C217), $C217<=$F$213), (($F$213 + 1) - $C217 ) / 14, 0) -> 0 | O217: =IF( AND( WEEKDAY($C217,2)=6,YEAR($C217)=$N$3, NOT(evenWeek($C217)), $C217<= $F$213), (($F$213 + 1) - $C217 ) /14, 0) -> 0 | P217: =IF( AND( WEEKDAY($C217,2)=7,YEAR($C217)=$N$3, evenWeek($C217), $C217<=$F$213), (($F$213 + 1) - $C217 ) / 14, 0) -> 0 | Q217: =IF( AND( WEEKDAY($C217,2)=7,YEAR($C217)=$N$3, NOT(evenWeek($C217)), $C217<= $F$213), (($F$213 + 1) - $C217 ) /14, 0) -> 0
C218: =C217+1 -> 1904-01-02 | D218: =IF( AND( WEEKDAY($C218,2)=1,YEAR($C218)=$N$3, evenWeek($C218), $C218<=$F$213), (($F$213 + 1) - $C218 ) / 14, 0) -> 0 | E218: =IF( AND( WEEKDAY($C218,2)=1,YEAR($C218)=$N$3, NOT(evenWeek($C218)), $C218<= $F$213), (($F$213 + 1) - $C218 ) /14, 0) -> 0 | F218: =IF( AND( WEEKDAY($C218,2)=2,YEAR($C218)=$N$3, evenWeek($C218), $C218<=$F$213), (($F$213 + 1) - $C218 ) / 14, 0) -> 0 | G218: =IF( AND( WEEKDAY($C218,2)=2,YEAR($C218)=$N$3, NOT(evenWeek($C218)), $C218<= $F$213), (($F$213 + 1) - $C218 ) /14, 0) -> 0 | H218: =IF( AND( WEEKDAY($C218,2)=3,YEAR($C218)=$N$3, evenWeek($C218), $C218<=$F$213), (($F$213 + 1) - $C218 ) / 14, 0) -> 0 | I218: =IF( AND( WEEKDAY($C218,2)=3,YEAR($C218)=$N$3, NOT(evenWeek($C218)), $C218<= $F$213), (($F$213 + 1) - $C218 ) /14, 0) -> 0 | J218: =IF( AND( WEEKDAY($C218,2)=4,YEAR($C218)=$N$3, evenWeek($C218), $C218<=$F$213), (($F$213 + 1) - $C218 ) / 14, 0) -> 0 | K218: =IF( AND( WEEKDAY($C218,2)=4,YEAR($C218)=$N$3, NOT(evenWeek($C218)), $C218<= $F$213), (($F$213 + 1) - $C218 ) /14, 0) -> 0 | L218: =IF( AND( WEEKDAY($C218,2)=5,YEAR($C218)=$N$3, evenWeek($C218), $C218<=$F$213), (($F$213 + 1) - $C218 ) / 14, 0) -> 0 | M218: =IF( AND( WEEKDAY($C218,2)=5,YEAR($C218)=$N$3, NOT(evenWeek($C218)), $C218<= $F$213), (($F$213 + 1) - $C218 ) /14, 0) -> 0 | N218: =IF( AND( WEEKDAY($C218,2)=6,YEAR($C218)=$N$3, evenWeek($C218), $C218<=$F$213), (($F$213 + 1) - $C218 ) / 14, 0) -> 0 | O218: =IF( AND( WEEKDAY($C218,2)=6,YEAR($C218)=$N$3, NOT(evenWeek($C218)), $C218<= $F$213), (($F$213 + 1) - $C218 ) /14, 0) -> 0 | P218: =IF( AND( WEEKDAY($C218,2)=7,YEAR($C218)=$N$3, evenWeek($C218), $C218<=$F$213), (($F$213 + 1) - $C218 ) / 14, 0) -> 0 | Q218: =IF( AND( WEEKDAY($C218,2)=7,YEAR($C218)=$N$3, NOT(evenWeek($C218)), $C218<= $F$213), (($F$213 + 1) - $C218 ) /14, 0) -> 0
C219: =C218+1 -> 1904-01-03 | D219: =IF( AND( WEEKDAY($C219,2)=1,YEAR($C219)=$N$3, evenWeek($C219), $C219<=$F$213), (($F$213 + 1) - $C219 ) / 14, 0) -> 0 | E219: =IF( AND( WEEKDAY($C219,2)=1,YEAR($C219)=$N$3, NOT(evenWeek($C219)), $C219<= $F$213), (($F$213 + 1) - $C219 ) /14, 0) -> 0 | F219: =IF( AND( WEEKDAY($C219,2)=2,YEAR($C219)=$N$3, evenWeek($C219), $C219<=$F$213), (($F$213 + 1) - $C219 ) / 14, 0) -> 0 | G219: =IF( AND( WEEKDAY($C219,2)=2,YEAR($C219)=$N$3, NOT(evenWeek($C219)), $C219<= $F$213), (($F$213 + 1) - $C219 ) /14, 0) -> 0 | H219: =IF( AND( WEEKDAY($C219,2)=3,YEAR($C219)=$N$3, evenWeek($C219), $C219<=$F$213), (($F$213 + 1) - $C219 ) / 14, 0) -> 0 | I219: =IF( AND( WEEKDAY($C219,2)=3,YEAR($C219)=$N$3, NOT(evenWeek($C219)), $C219<= $F$213), (($F$213 + 1) - $C219 ) /14, 0) -> 0 | J219: =IF( AND( WEEKDAY($C219,2)=4,YEAR($C219)=$N$3, evenWeek($C219), $C219<=$F$213), (($F$213 + 1) - $C219 ) / 14, 0) -> 0 | K219: =IF( AND( WEEKDAY($C219,2)=4,YEAR($C219)=$N$3, NOT(evenWeek($C219)), $C219<= $F$213), (($F$213 + 1) - $C219 ) /14, 0) -> 0 | L219: =IF( AND( WEEKDAY($C219,2)=5,YEAR($C219)=$N$3, evenWeek($C219), $C219<=$F$213), (($F$213 + 1) - $C219 ) / 14, 0) -> 0 | M219: =IF( AND( WEEKDAY($C219,2)=5,YEAR($C219)=$N$3, NOT(evenWeek($C219)), $C219<= $F$213), (($F$213 + 1) - $C219 ) /14, 0) -> 0 | N219: =IF( AND( WEEKDAY($C219,2)=6,YEAR($C219)=$N$3, evenWeek($C219), $C219<=$F$213), (($F$213 + 1) - $C219 ) / 14, 0) -> 0 | O219: =IF( AND( WEEKDAY($C219,2)=6,YEAR($C219)=$N$3, NOT(evenWeek($C219)), $C219<= $F$213), (($F$213 + 1) - $C219 ) /14, 0) -> 0 | P219: =IF( AND( WEEKDAY($C219,2)=7,YEAR($C219)=$N$3, evenWeek($C219), $C219<=$F$213), (($F$213 + 1) - $C219 ) / 14, 0) -> 0 | Q219: =IF( AND( WEEKDAY($C219,2)=7,YEAR($C219)=$N$3, NOT(evenWeek($C219)), $C219<= $F$213), (($F$213 + 1) - $C219 ) /14, 0) -> 0
C220: 1904-01-04 | D220: =IF( AND( WEEKDAY($C220,2)=1,YEAR($C220)=$N$3, evenWeek($C220), $C220<=$F$213), (($F$213 + 1) - $C220 ) / 14, 0) -> 0 | E220: =IF( AND( WEEKDAY($C220,2)=1,YEAR($C220)=$N$3, NOT(evenWeek($C220)), $C220<= $F$213), (($F$213 + 1) - $C220 ) /14, 0) -> 0 | F220: =IF( AND( WEEKDAY($C220,2)=2,YEAR($C220)=$N$3, evenWeek($C220), $C220<=$F$213), (($F$213 + 1) - $C220 ) / 14, 0) -> 0 | G220: =IF( AND( WEEKDAY($C220,2)=2,YEAR($C220)=$N$3, NOT(evenWeek($C220)), $C220<= $F$213), (($F$213 + 1) - $C220 ) /14, 0) -> 0 | H220: =IF( AND( WEEKDAY($C220,2)=3,YEAR($C220)=$N$3, evenWeek($C220), $C220<=$F$213), (($F$213 + 1) - $C220 ) / 14, 0) -> 0 | I220: =IF( AND( WEEKDAY($C220,2)=3,YEAR($C220)=$N$3, NOT(evenWeek($C220)), $C220<= $F$213), (($F$213 + 1) - $C220 ) /14, 0) -> 0 | J220: =IF( AND( WEEKDAY($C220,2)=4,YEAR($C220)=$N$3, evenWeek($C220), $C220<=$F$213), (($F$213 + 1) - $C220 ) / 14, 0) -> 0 | K220: =IF( AND( WEEKDAY($C220,2)=4,YEAR($C220)=$N$3, NOT(evenWeek($C220)), $C220<= $F$213), (($F$213 + 1) - $C220 ) /14, 0) -> 0 | L220: =IF( AND( WEEKDAY($C220,2)=5,YEAR($C220)=$N$3, evenWeek($C220), $C220<=$F$213), (($F$213 + 1) - $C220 ) / 14, 0) -> 0 | M220: =IF( AND( WEEKDAY($C220,2)=5,YEAR($C220)=$N$3, NOT(evenWeek($C220)), $C220<= $F$213), (($F$213 + 1) - $C220 ) /14, 0) -> 0 | N220: =IF( AND( WEEKDAY($C220,2)=6,YEAR($C220)=$N$3, evenWeek($C220), $C220<=$F$213), (($F$213 + 1) - $C220 ) / 14, 0) -> 0 | O220: =IF( AND( WEEKDAY($C220,2)=6,YEAR($C220)=$N$3, NOT(evenWeek($C220)), $C220<= $F$213), (($F$213 + 1) - $C220 ) /14, 0) -> 0 | P220: =IF( AND( WEEKDAY($C220,2)=7,YEAR($C220)=$N$3, evenWeek($C220), $C220<=$F$213), (($F$213 + 1) - $C220 ) / 14, 0) -> 0 | Q220: =IF( AND( WEEKDAY($C220,2)=7,YEAR($C220)=$N$3, NOT(evenWeek($C220)), $C220<= $F$213), (($F$213 + 1) - $C220 ) /14, 0) -> 0
C221: 1904-01-05 | D221: =IF( AND( WEEKDAY($C221,2)=1,YEAR($C221)=$N$3, evenWeek($C221), $C221<=$F$213), (($F$213 + 1) - $C221 ) / 14, 0) -> 0 | E221: =IF( AND( WEEKDAY($C221,2)=1,YEAR($C221)=$N$3, NOT(evenWeek($C221)), $C221<= $F$213), (($F$213 + 1) - $C221 ) /14, 0) -> 0 | F221: =IF( AND( WEEKDAY($C221,2)=2,YEAR($C221)=$N$3, evenWeek($C221), $C221<=$F$213), (($F$213 + 1) - $C221 ) / 14, 0) -> 0 | G221: =IF( AND( WEEKDAY($C221,2)=2,YEAR($C221)=$N$3, NOT(evenWeek($C221)), $C221<= $F$213), (($F$213 + 1) - $C221 ) /14, 0) -> 0 | H221: =IF( AND( WEEKDAY($C221,2)=3,YEAR($C221)=$N$3, evenWeek($C221), $C221<=$F$213), (($F$213 + 1) - $C221 ) / 14, 0) -> 0 | I221: =IF( AND( WEEKDAY($C221,2)=3,YEAR($C221)=$N$3, NOT(evenWeek($C221)), $C221<= $F$213), (($F$213 + 1) - $C221 ) /14, 0) -> 0 | J221: =IF( AND( WEEKDAY($C221,2)=4,YEAR($C221)=$N$3, evenWeek($C221), $C221<=$F$213), (($F$213 + 1) - $C221 ) / 14, 0) -> 0 | K221: =IF( AND( WEEKDAY($C221,2)=4,YEAR($C221)=$N$3, NOT(evenWeek($C221)), $C221<= $F$213), (($F$213 + 1) - $C221 ) /14, 0) -> 0 | L221: =IF( AND( WEEKDAY($C221,2)=5,YEAR($C221)=$N$3, evenWeek($C221), $C221<=$F$213), (($F$213 + 1) - $C221 ) / 14, 0) -> 0 | M221: =IF( AND( WEEKDAY($C221,2)=5,YEAR($C221)=$N$3, NOT(evenWeek($C221)), $C221<= $F$213), (($F$213 + 1) - $C221 ) /14, 0) -> 0 | N221: =IF( AND( WEEKDAY($C221,2)=6,YEAR($C221)=$N$3, evenWeek($C221), $C221<=$F$213), (($F$213 + 1) - $C221 ) / 14, 0) -> 0 | O221: =IF( AND( WEEKDAY($C221,2)=6,YEAR($C221)=$N$3, NOT(evenWeek($C221)), $C221<= $F$213), (($F$213 + 1) - $C221 ) /14, 0) -> 0 | P221: =IF( AND( WEEKDAY($C221,2)=7,YEAR($C221)=$N$3, evenWeek($C221), $C221<=$F$213), (($F$213 + 1) - $C221 ) / 14, 0) -> 0 | Q221: =IF( AND( WEEKDAY($C221,2)=7,YEAR($C221)=$N$3, NOT(evenWeek($C221)), $C221<= $F$213), (($F$213 + 1) - $C221 ) /14, 0) -> 0
C222: 1904-01-06 | D222: =IF( AND( WEEKDAY($C222,2)=1,YEAR($C222)=$N$3, evenWeek($C222), $C222<=$F$213), (($F$213 + 1) - $C222 ) / 14, 0) -> 0 | E222: =IF( AND( WEEKDAY($C222,2)=1,YEAR($C222)=$N$3, NOT(evenWeek($C222)), $C222<= $F$213), (($F$213 + 1) - $C222 ) /14, 0) -> 0 | F222: =IF( AND( WEEKDAY($C222,2)=2,YEAR($C222)=$N$3, evenWeek($C222), $C222<=$F$213), (($F$213 + 1) - $C222 ) / 14, 0) -> 0 | G222: =IF( AND( WEEKDAY($C222,2)=2,YEAR($C222)=$N$3, NOT(evenWeek($C222)), $C222<= $F$213), (($F$213 + 1) - $C222 ) /14, 0) -> 0 | H222: =IF( AND( WEEKDAY($C222,2)=3,YEAR($C222)=$N$3, evenWeek($C222), $C222<=$F$213), (($F$213 + 1) - $C222 ) / 14, 0) -> 0 | I222: =IF( AND( WEEKDAY($C222,2)=3,YEAR($C222)=$N$3, NOT(evenWeek($C222)), $C222<= $F$213), (($F$213 + 1) - $C222 ) /14, 0) -> 0 | J222: =IF( AND( WEEKDAY($C222,2)=4,YEAR($C222)=$N$3, evenWeek($C222), $C222<=$F$213), (($F$213 + 1) - $C222 ) / 14, 0) -> 0 | K222: =IF( AND( WEEKDAY($C222,2)=4,YEAR($C222)=$N$3, NOT(evenWeek($C222)), $C222<= $F$213), (($F$213 + 1) - $C222 ) /14, 0) -> 0 | L222: =IF( AND( WEEKDAY($C222,2)=5,YEAR($C222)=$N$3, evenWeek($C222), $C222<=$F$213), (($F$213 + 1) - $C222 ) / 14, 0) -> 0 | M222: =IF( AND( WEEKDAY($C222,2)=5,YEAR($C222)=$N$3, NOT(evenWeek($C222)), $C222<= $F$213), (($F$213 + 1) - $C222 ) /14, 0) -> 0 | N222: =IF( AND( WEEKDAY($C222,2)=6,YEAR($C222)=$N$3, evenWeek($C222), $C222<=$F$213), (($F$213 + 1) - $C222 ) / 14, 0) -> 0 | O222: =IF( AND( WEEKDAY($C222,2)=6,YEAR($C222)=$N$3, NOT(evenWeek($C222)), $C222<= $F$213), (($F$213 + 1) - $C222 ) /14, 0) -> 0 | P222: =IF( AND( WEEKDAY($C222,2)=7,YEAR($C222)=$N$3, evenWeek($C222), $C222<=$F$213), (($F$213 + 1) - $C222 ) / 14, 0) -> 0 | Q222: =IF( AND( WEEKDAY($C222,2)=7,YEAR($C222)=$N$3, NOT(evenWeek($C222)), $C222<= $F$213), (($F$213 + 1) - $C222 ) /14, 0) -> 0
C223: 1904-01-07 | D223: =IF( AND( WEEKDAY($C223,2)=1,YEAR($C223)=$N$3, evenWeek($C223), $C223<=$F$213), (($F$213 + 1) - $C223 ) / 14, 0) -> 0 | E223: =IF( AND( WEEKDAY($C223,2)=1,YEAR($C223)=$N$3, NOT(evenWeek($C223)), $C223<= $F$213), (($F$213 + 1) - $C223 ) /14, 0) -> 0 | F223: =IF( AND( WEEKDAY($C223,2)=2,YEAR($C223)=$N$3, evenWeek($C223), $C223<=$F$213), (($F$213 + 1) - $C223 ) / 14, 0) -> 0 | G223: =IF( AND( WEEKDAY($C223,2)=2,YEAR($C223)=$N$3, NOT(evenWeek($C223)), $C223<= $F$213), (($F$213 + 1) - $C223 ) /14, 0) -> 0 | H223: =IF( AND( WEEKDAY($C223,2)=3,YEAR($C223)=$N$3, evenWeek($C223), $C223<=$F$213), (($F$213 + 1) - $C223 ) / 14, 0) -> 0 | I223: =IF( AND( WEEKDAY($C223,2)=3,YEAR($C223)=$N$3, NOT(evenWeek($C223)), $C223<= $F$213), (($F$213 + 1) - $C223 ) /14, 0) -> 0 | J223: =IF( AND( WEEKDAY($C223,2)=4,YEAR($C223)=$N$3, evenWeek($C223), $C223<=$F$213), (($F$213 + 1) - $C223 ) / 14, 0) -> 0 | K223: =IF( AND( WEEKDAY($C223,2)=4,YEAR($C223)=$N$3, NOT(evenWeek($C223)), $C223<= $F$213), (($F$213 + 1) - $C223 ) /14, 0) -> 0 | L223: =IF( AND( WEEKDAY($C223,2)=5,YEAR($C223)=$N$3, evenWeek($C223), $C223<=$F$213), (($F$213 + 1) - $C223 ) / 14, 0) -> 0 | M223: =IF( AND( WEEKDAY($C223,2)=5,YEAR($C223)=$N$3, NOT(evenWeek($C223)), $C223<= $F$213), (($F$213 + 1) - $C223 ) /14, 0) -> 0 | N223: =IF( AND( WEEKDAY($C223,2)=6,YEAR($C223)=$N$3, evenWeek($C223), $C223<=$F$213), (($F$213 + 1) - $C223 ) / 14, 0) -> 0 | O223: =IF( AND( WEEKDAY($C223,2)=6,YEAR($C223)=$N$3, NOT(evenWeek($C223)), $C223<= $F$213), (($F$213 + 1) - $C223 ) /14, 0) -> 0 | P223: =IF( AND( WEEKDAY($C223,2)=7,YEAR($C223)=$N$3, evenWeek($C223), $C223<=$F$213), (($F$213 + 1) - $C223 ) / 14, 0) -> 0 | Q223: =IF( AND( WEEKDAY($C223,2)=7,YEAR($C223)=$N$3, NOT(evenWeek($C223)), $C223<= $F$213), (($F$213 + 1) - $C223 ) /14, 0) -> 0
C224: 1904-01-08 | D224: =IF( AND( WEEKDAY($C224,2)=1,YEAR($C224)=$N$3, evenWeek($C224), $C224<=$F$213), (($F$213 + 1) - $C224 ) / 14, 0) -> 0 | E224: =IF( AND( WEEKDAY($C224,2)=1,YEAR($C224)=$N$3, NOT(evenWeek($C224)), $C224<= $F$213), (($F$213 + 1) - $C224 ) /14, 0) -> 0 | F224: =IF( AND( WEEKDAY($C224,2)=2,YEAR($C224)=$N$3, evenWeek($C224), $C224<=$F$213), (($F$213 + 1) - $C224 ) / 14, 0) -> 0 | G224: =IF( AND( WEEKDAY($C224,2)=2,YEAR($C224)=$N$3, NOT(evenWeek($C224)), $C224<= $F$213), (($F$213 + 1) - $C224 ) /14, 0) -> 0 | H224: =IF( AND( WEEKDAY($C224,2)=3,YEAR($C224)=$N$3, evenWeek($C224), $C224<=$F$213), (($F$213 + 1) - $C224 ) / 14, 0) -> 0 | I224: =IF( AND( WEEKDAY($C224,2)=3,YEAR($C224)=$N$3, NOT(evenWeek($C224)), $C224<= $F$213), (($F$213 + 1) - $C224 ) /14, 0) -> 0 | J224: =IF( AND( WEEKDAY($C224,2)=4,YEAR($C224)=$N$3, evenWeek($C224), $C224<=$F$213), (($F$213 + 1) - $C224 ) / 14, 0) -> 0 | K224: =IF( AND( WEEKDAY($C224,2)=4,YEAR($C224)=$N$3, NOT(evenWeek($C224)), $C224<= $F$213), (($F$213 + 1) - $C224 ) /14, 0) -> 0 | L224: =IF( AND( WEEKDAY($C224,2)=5,YEAR($C224)=$N$3, evenWeek($C224), $C224<=$F$213), (($F$213 + 1) - $C224 ) / 14, 0) -> 0 | M224: =IF( AND( WEEKDAY($C224,2)=5,YEAR($C224)=$N$3, NOT(evenWeek($C224)), $C224<= $F$213), (($F$213 + 1) - $C224 ) /14, 0) -> 0 | N224: =IF( AND( WEEKDAY($C224,2)=6,YEAR($C224)=$N$3, evenWeek($C224), $C224<=$F$213), (($F$213 + 1) - $C224 ) / 14, 0) -> 0 | O224: =IF( AND( WEEKDAY($C224,2)=6,YEAR($C224)=$N$3, NOT(evenWeek($C224)), $C224<= $F$213), (($F$213 + 1) - $C224 ) /14, 0) -> 0 | P224: =IF( AND( WEEKDAY($C224,2)=7,YEAR($C224)=$N$3, evenWeek($C224), $C224<=$F$213), (($F$213 + 1) - $C224 ) / 14, 0) -> 0 | Q224: =IF( AND( WEEKDAY($C224,2)=7,YEAR($C224)=$N$3, NOT(evenWeek($C224)), $C224<= $F$213), (($F$213 + 1) - $C224 ) /14, 0) -> 0
C225: 1904-01-09 | D225: =IF( AND( WEEKDAY($C225,2)=1,YEAR($C225)=$N$3, evenWeek($C225), $C225<=$F$213), (($F$213 + 1) - $C225 ) / 14, 0) -> 0 | E225: =IF( AND( WEEKDAY($C225,2)=1,YEAR($C225)=$N$3, NOT(evenWeek($C225)), $C225<= $F$213), (($F$213 + 1) - $C225 ) /14, 0) -> 0 | F225: =IF( AND( WEEKDAY($C225,2)=2,YEAR($C225)=$N$3, evenWeek($C225), $C225<=$F$213), (($F$213 + 1) - $C225 ) / 14, 0) -> 0 | G225: =IF( AND( WEEKDAY($C225,2)=2,YEAR($C225)=$N$3, NOT(evenWeek($C225)), $C225<= $F$213), (($F$213 + 1) - $C225 ) /14, 0) -> 0 | H225: =IF( AND( WEEKDAY($C225,2)=3,YEAR($C225)=$N$3, evenWeek($C225), $C225<=$F$213), (($F$213 + 1) - $C225 ) / 14, 0) -> 0 | I225: =IF( AND( WEEKDAY($C225,2)=3,YEAR($C225)=$N$3, NOT(evenWeek($C225)), $C225<= $F$213), (($F$213 + 1) - $C225 ) /14, 0) -> 0 | J225: =IF( AND( WEEKDAY($C225,2)=4,YEAR($C225)=$N$3, evenWeek($C225), $C225<=$F$213), (($F$213 + 1) - $C225 ) / 14, 0) -> 0 | K225: =IF( AND( WEEKDAY($C225,2)=4,YEAR($C225)=$N$3, NOT(evenWeek($C225)), $C225<= $F$213), (($F$213 + 1) - $C225 ) /14, 0) -> 0 | L225: =IF( AND( WEEKDAY($C225,2)=5,YEAR($C225)=$N$3, evenWeek($C225), $C225<=$F$213), (($F$213 + 1) - $C225 ) / 14, 0) -> 0 | M225: =IF( AND( WEEKDAY($C225,2)=5,YEAR($C225)=$N$3, NOT(evenWeek($C225)), $C225<= $F$213), (($F$213 + 1) - $C225 ) /14, 0) -> 0 | N225: =IF( AND( WEEKDAY($C225,2)=6,YEAR($C225)=$N$3, evenWeek($C225), $C225<=$F$213), (($F$213 + 1) - $C225 ) / 14, 0) -> 0 | O225: =IF( AND( WEEKDAY($C225,2)=6,YEAR($C225)=$N$3, NOT(evenWeek($C225)), $C225<= $F$213), (($F$213 + 1) - $C225 ) /14, 0) -> 0 | P225: =IF( AND( WEEKDAY($C225,2)=7,YEAR($C225)=$N$3, evenWeek($C225), $C225<=$F$213), (($F$213 + 1) - $C225 ) / 14, 0) -> 0 | Q225: =IF( AND( WEEKDAY($C225,2)=7,YEAR($C225)=$N$3, NOT(evenWeek($C225)), $C225<= $F$213), (($F$213 + 1) - $C225 ) /14, 0) -> 0
C226: 1904-01-10 | D226: =IF( AND( WEEKDAY($C226,2)=1,YEAR($C226)=$N$3, evenWeek($C226), $C226<=$F$213), (($F$213 + 1) - $C226 ) / 14, 0) -> 0 | E226: =IF( AND( WEEKDAY($C226,2)=1,YEAR($C226)=$N$3, NOT(evenWeek($C226)), $C226<= $F$213), (($F$213 + 1) - $C226 ) /14, 0) -> 0 | F226: =IF( AND( WEEKDAY($C226,2)=2,YEAR($C226)=$N$3, evenWeek($C226), $C226<=$F$213), (($F$213 + 1) - $C226 ) / 14, 0) -> 0 | G226: =IF( AND( WEEKDAY($C226,2)=2,YEAR($C226)=$N$3, NOT(evenWeek($C226)), $C226<= $F$213), (($F$213 + 1) - $C226 ) /14, 0) -> 0 | H226: =IF( AND( WEEKDAY($C226,2)=3,YEAR($C226)=$N$3, evenWeek($C226), $C226<=$F$213), (($F$213 + 1) - $C226 ) / 14, 0) -> 0 | I226: =IF( AND( WEEKDAY($C226,2)=3,YEAR($C226)=$N$3, NOT(evenWeek($C226)), $C226<= $F$213), (($F$213 + 1) - $C226 ) /14, 0) -> 0 | J226: =IF( AND( WEEKDAY($C226,2)=4,YEAR($C226)=$N$3, evenWeek($C226), $C226<=$F$213), (($F$213 + 1) - $C226 ) / 14, 0) -> 0 | K226: =IF( AND( WEEKDAY($C226,2)=4,YEAR($C226)=$N$3, NOT(evenWeek($C226)), $C226<= $F$213), (($F$213 + 1) - $C226 ) /14, 0) -> 0 | L226: =IF( AND( WEEKDAY($C226,2)=5,YEAR($C226)=$N$3, evenWeek($C226), $C226<=$F$213), (($F$213 + 1) - $C226 ) / 14, 0) -> 0 | M226: =IF( AND( WEEKDAY($C226,2)=5,YEAR($C226)=$N$3, NOT(evenWeek($C226)), $C226<= $F$213), (($F$213 + 1) - $C226 ) /14, 0) -> 0 | N226: =IF( AND( WEEKDAY($C226,2)=6,YEAR($C226)=$N$3, evenWeek($C226), $C226<=$F$213), (($F$213 + 1) - $C226 ) / 14, 0) -> 0 | O226: =IF( AND( WEEKDAY($C226,2)=6,YEAR($C226)=$N$3, NOT(evenWeek($C226)), $C226<= $F$213), (($F$213 + 1) - $C226 ) /14, 0) -> 0 | P226: =IF( AND( WEEKDAY($C226,2)=7,YEAR($C226)=$N$3, evenWeek($C226), $C226<=$F$213), (($F$213 + 1) - $C226 ) / 14, 0) -> 0 | Q226: =IF( AND( WEEKDAY($C226,2)=7,YEAR($C226)=$N$3, NOT(evenWeek($C226)), $C226<= $F$213), (($F$213 + 1) - $C226 ) /14, 0) -> 0
C227: 1904-01-11 | D227: =IF( AND( WEEKDAY($C227,2)=1,YEAR($C227)=$N$3, evenWeek($C227), $C227<=$F$213), (($F$213 + 1) - $C227 ) / 14, 0) -> 0 | E227: =IF( AND( WEEKDAY($C227,2)=1,YEAR($C227)=$N$3, NOT(evenWeek($C227)), $C227<= $F$213), (($F$213 + 1) - $C227 ) /14, 0) -> 0 | F227: =IF( AND( WEEKDAY($C227,2)=2,YEAR($C227)=$N$3, evenWeek($C227), $C227<=$F$213), (($F$213 + 1) - $C227 ) / 14, 0) -> 0 | G227: =IF( AND( WEEKDAY($C227,2)=2,YEAR($C227)=$N$3, NOT(evenWeek($C227)), $C227<= $F$213), (($F$213 + 1) - $C227 ) /14, 0) -> 0 | H227: =IF( AND( WEEKDAY($C227,2)=3,YEAR($C227)=$N$3, evenWeek($C227), $C227<=$F$213), (($F$213 + 1) - $C227 ) / 14, 0) -> 0 | I227: =IF( AND( WEEKDAY($C227,2)=3,YEAR($C227)=$N$3, NOT(evenWeek($C227)), $C227<= $F$213), (($F$213 + 1) - $C227 ) /14, 0) -> 0 | J227: =IF( AND( WEEKDAY($C227,2)=4,YEAR($C227)=$N$3, evenWeek($C227), $C227<=$F$213), (($F$213 + 1) - $C227 ) / 14, 0) -> 0 | K227: =IF( AND( WEEKDAY($C227,2)=4,YEAR($C227)=$N$3, NOT(evenWeek($C227)), $C227<= $F$213), (($F$213 + 1) - $C227 ) /14, 0) -> 0 | L227: =IF( AND( WEEKDAY($C227,2)=5,YEAR($C227)=$N$3, evenWeek($C227), $C227<=$F$213), (($F$213 + 1) - $C227 ) / 14, 0) -> 0 | M227: =IF( AND( WEEKDAY($C227,2)=5,YEAR($C227)=$N$3, NOT(evenWeek($C227)), $C227<= $F$213), (($F$213 + 1) - $C227 ) /14, 0) -> 0 | N227: =IF( AND( WEEKDAY($C227,2)=6,YEAR($C227)=$N$3, evenWeek($C227), $C227<=$F$213), (($F$213 + 1) - $C227 ) / 14, 0) -> 0 | O227: =IF( AND( WEEKDAY($C227,2)=6,YEAR($C227)=$N$3, NOT(evenWeek($C227)), $C227<= $F$213), (($F$213 + 1) - $C227 ) /14, 0) -> 0 | P227: =IF( AND( WEEKDAY($C227,2)=7,YEAR($C227)=$N$3, evenWeek($C227), $C227<=$F$213), (($F$213 + 1) - $C227 ) / 14, 0) -> 0 | Q227: =IF( AND( WEEKDAY($C227,2)=7,YEAR($C227)=$N$3, NOT(evenWeek($C227)), $C227<= $F$213), (($F$213 + 1) - $C227 ) /14, 0) -> 0
C228: 1904-01-12 | D228: =IF( AND( WEEKDAY($C228,2)=1,YEAR($C228)=$N$3, evenWeek($C228), $C228<=$F$213), (($F$213 + 1) - $C228 ) / 14, 0) -> 0 | E228: =IF( AND( WEEKDAY($C228,2)=1,YEAR($C228)=$N$3, NOT(evenWeek($C228)), $C228<= $F$213), (($F$213 + 1) - $C228 ) /14, 0) -> 0 | F228: =IF( AND( WEEKDAY($C228,2)=2,YEAR($C228)=$N$3, evenWeek($C228), $C228<=$F$213), (($F$213 + 1) - $C228 ) / 14, 0) -> 0 | G228: =IF( AND( WEEKDAY($C228,2)=2,YEAR($C228)=$N$3, NOT(evenWeek($C228)), $C228<= $F$213), (($F$213 + 1) - $C228 ) /14, 0) -> 0 | H228: =IF( AND( WEEKDAY($C228,2)=3,YEAR($C228)=$N$3, evenWeek($C228), $C228<=$F$213), (($F$213 + 1) - $C228 ) / 14, 0) -> 0 | I228: =IF( AND( WEEKDAY($C228,2)=3,YEAR($C228)=$N$3, NOT(evenWeek($C228)), $C228<= $F$213), (($F$213 + 1) - $C228 ) /14, 0) -> 0 | J228: =IF( AND( WEEKDAY($C228,2)=4,YEAR($C228)=$N$3, evenWeek($C228), $C228<=$F$213), (($F$213 + 1) - $C228 ) / 14, 0) -> 0 | K228: =IF( AND( WEEKDAY($C228,2)=4,YEAR($C228)=$N$3, NOT(evenWeek($C228)), $C228<= $F$213), (($F$213 + 1) - $C228 ) /14, 0) -> 0 | L228: =IF( AND( WEEKDAY($C228,2)=5,YEAR($C228)=$N$3, evenWeek($C228), $C228<=$F$213), (($F$213 + 1) - $C228 ) / 14, 0) -> 0 | M228: =IF( AND( WEEKDAY($C228,2)=5,YEAR($C228)=$N$3, NOT(evenWeek($C228)), $C228<= $F$213), (($F$213 + 1) - $C228 ) /14, 0) -> 0 | N228: =IF( AND( WEEKDAY($C228,2)=6,YEAR($C228)=$N$3, evenWeek($C228), $C228<=$F$213), (($F$213 + 1) - $C228 ) / 14, 0) -> 0 | O228: =IF( AND( WEEKDAY($C228,2)=6,YEAR($C228)=$N$3, NOT(evenWeek($C228)), $C228<= $F$213), (($F$213 + 1) - $C228 ) /14, 0) -> 0 | P228: =IF( AND( WEEKDAY($C228,2)=7,YEAR($C228)=$N$3, evenWeek($C228), $C228<=$F$213), (($F$213 + 1) - $C228 ) / 14, 0) -> 0 | Q228: =IF( AND( WEEKDAY($C228,2)=7,YEAR($C228)=$N$3, NOT(evenWeek($C228)), $C228<= $F$213), (($F$213 + 1) - $C228 ) /14, 0) -> 0
C229: 1904-01-13 | D229: =IF( AND( WEEKDAY($C229,2)=1,YEAR($C229)=$N$3, evenWeek($C229), $C229<=$F$213), (($F$213 + 1) - $C229 ) / 14, 0) -> 0 | E229: =IF( AND( WEEKDAY($C229,2)=1,YEAR($C229)=$N$3, NOT(evenWeek($C229)), $C229<= $F$213), (($F$213 + 1) - $C229 ) /14, 0) -> 0 | F229: =IF( AND( WEEKDAY($C229,2)=2,YEAR($C229)=$N$3, evenWeek($C229), $C229<=$F$213), (($F$213 + 1) - $C229 ) / 14, 0) -> 0 | G229: =IF( AND( WEEKDAY($C229,2)=2,YEAR($C229)=$N$3, NOT(evenWeek($C229)), $C229<= $F$213), (($F$213 + 1) - $C229 ) /14, 0) -> 0 | H229: =IF( AND( WEEKDAY($C229,2)=3,YEAR($C229)=$N$3, evenWeek($C229), $C229<=$F$213), (($F$213 + 1) - $C229 ) / 14, 0) -> 0 | I229: =IF( AND( WEEKDAY($C229,2)=3,YEAR($C229)=$N$3, NOT(evenWeek($C229)), $C229<= $F$213), (($F$213 + 1) - $C229 ) /14, 0) -> 0 | J229: =IF( AND( WEEKDAY($C229,2)=4,YEAR($C229)=$N$3, evenWeek($C229), $C229<=$F$213), (($F$213 + 1) - $C229 ) / 14, 0) -> 0 | K229: =IF( AND( WEEKDAY($C229,2)=4,YEAR($C229)=$N$3, NOT(evenWeek($C229)), $C229<= $F$213), (($F$213 + 1) - $C229 ) /14, 0) -> 0 | L229: =IF( AND( WEEKDAY($C229,2)=5,YEAR($C229)=$N$3, evenWeek($C229), $C229<=$F$213), (($F$213 + 1) - $C229 ) / 14, 0) -> 0 | M229: =IF( AND( WEEKDAY($C229,2)=5,YEAR($C229)=$N$3, NOT(evenWeek($C229)), $C229<= $F$213), (($F$213 + 1) - $C229 ) /14, 0) -> 0 | N229: =IF( AND( WEEKDAY($C229,2)=6,YEAR($C229)=$N$3, evenWeek($C229), $C229<=$F$213), (($F$213 + 1) - $C229 ) / 14, 0) -> 0 | O229: =IF( AND( WEEKDAY($C229,2)=6,YEAR($C229)=$N$3, NOT(evenWeek($C229)), $C229<= $F$213), (($F$213 + 1) - $C229 ) /14, 0) -> 0 | P229: =IF( AND( WEEKDAY($C229,2)=7,YEAR($C229)=$N$3, evenWeek($C229), $C229<=$F$213), (($F$213 + 1) - $C229 ) / 14, 0) -> 0 | Q229: =IF( AND( WEEKDAY($C229,2)=7,YEAR($C229)=$N$3, NOT(evenWeek($C229)), $C229<= $F$213), (($F$213 + 1) - $C229 ) /14, 0) -> 0
C230: 1904-01-14 | D230: =IF( AND( WEEKDAY($C230,2)=1,YEAR($C230)=$N$3, evenWeek($C230), $C230<=$F$213), (($F$213 + 1) - $C230 ) / 14, 0) -> 0 | E230: =IF( AND( WEEKDAY($C230,2)=1,YEAR($C230)=$N$3, NOT(evenWeek($C230)), $C230<= $F$213), (($F$213 + 1) - $C230 ) /14, 0) -> 0 | F230: =IF( AND( WEEKDAY($C230,2)=2,YEAR($C230)=$N$3, evenWeek($C230), $C230<=$F$213), (($F$213 + 1) - $C230 ) / 14, 0) -> 0 | G230: =IF( AND( WEEKDAY($C230,2)=2,YEAR($C230)=$N$3, NOT(evenWeek($C230)), $C230<= $F$213), (($F$213 + 1) - $C230 ) /14, 0) -> 0 | H230: =IF( AND( WEEKDAY($C230,2)=3,YEAR($C230)=$N$3, evenWeek($C230), $C230<=$F$213), (($F$213 + 1) - $C230 ) / 14, 0) -> 0 | I230: =IF( AND( WEEKDAY($C230,2)=3,YEAR($C230)=$N$3, NOT(evenWeek($C230)), $C230<= $F$213), (($F$213 + 1) - $C230 ) /14, 0) -> 0 | J230: =IF( AND( WEEKDAY($C230,2)=4,YEAR($C230)=$N$3, evenWeek($C230), $C230<=$F$213), (($F$213 + 1) - $C230 ) / 14, 0) -> 0 | K230: =IF( AND( WEEKDAY($C230,2)=4,YEAR($C230)=$N$3, NOT(evenWeek($C230)), $C230<= $F$213), (($F$213 + 1) - $C230 ) /14, 0) -> 0 | L230: =IF( AND( WEEKDAY($C230,2)=5,YEAR($C230)=$N$3, evenWeek($C230), $C230<=$F$213), (($F$213 + 1) - $C230 ) / 14, 0) -> 0 | M230: =IF( AND( WEEKDAY($C230,2)=5,YEAR($C230)=$N$3, NOT(evenWeek($C230)), $C230<= $F$213), (($F$213 + 1) - $C230 ) /14, 0) -> 0 | N230: =IF( AND( WEEKDAY($C230,2)=6,YEAR($C230)=$N$3, evenWeek($C230), $C230<=$F$213), (($F$213 + 1) - $C230 ) / 14, 0) -> 0 | O230: =IF( AND( WEEKDAY($C230,2)=6,YEAR($C230)=$N$3, NOT(evenWeek($C230)), $C230<= $F$213), (($F$213 + 1) - $C230 ) /14, 0) -> 0 | P230: =IF( AND( WEEKDAY($C230,2)=7,YEAR($C230)=$N$3, evenWeek($C230), $C230<=$F$213), (($F$213 + 1) - $C230 ) / 14, 0) -> 0 | Q230: =IF( AND( WEEKDAY($C230,2)=7,YEAR($C230)=$N$3, NOT(evenWeek($C230)), $C230<= $F$213), (($F$213 + 1) - $C230 ) /14, 0) -> 0
C231: # dagen: | D231: =ROUNDUP(SUM(D217:D230),0) -> 0 | E231: =ROUNDUP(SUM(E217:E230),0) -> 0 | F231: 0 | G231: 0 | H231: 0 | I231: 0 | J231: 0 | K231: 0 | L231: 0 | M231: 0 | N231: =ROUNDUP(SUM(N217:N230),0) -> 0 | O231: =ROUNDUP(SUM(O217:O230),0) -> 0 | P231: =ROUNDUP(SUM(P217:P230),0) -> 0 | Q231: =ROUNDUP(SUM(Q217:Q230),0) -> 0
C234: NCF dagen | D234: ma even | E234: ma oneven | F234: di even | G234: di oneven | H234: wo even | I234: wo oneven | J234: do even | K234: do oneven | L234: vr even | M234: vr oneven | N234: za even | O234: za oneven | P234: zo even | Q234: zo oneven | R234: totaal
B235: =B25 -> Nieuwjaarsdag | C235: 2024-01-01 | D235: =IF( AND($C235>($D$213-1),$C235<($F$213+1),WEEKDAY($C235,2)=1, evenWeek($C235) ),-1,"") ->  | E235: =IF( AND($C235>($D$213-1),$C235<($F$213+1),WEEKDAY($C235,2)=1, NOT(evenWeek($C235)) ),-1,"") ->  | F235: =IF( AND($C235>($D$213-1),$C235<($F$213+1),WEEKDAY($C235,2)=2, evenWeek($C235) ),-1,"") ->  | G235: =IF( AND($C235>($D$213-1),$C235<($F$213+1),WEEKDAY($C235,2)=2, NOT(evenWeek($C235)) ),-1,"") ->  | H235: =IF( AND($C235>($D$213-1),$C235<($F$213+1),WEEKDAY($C235,2)=3, evenWeek($C235) ),-1,"") ->  | I235: =IF( AND($C235>($D$213-1),$C235<($F$213+1),WEEKDAY($C235,2)=3, NOT(evenWeek($C235)) ),-1,"") ->  | J235: =IF( AND($C235>($D$213-1),$C235<($F$213+1),WEEKDAY($C235,2)=4, evenWeek($C235) ),-1,"") ->  | K235: =IF( AND($C235>($D$213-1),$C235<($F$213+1),WEEKDAY($C235,2)=4, NOT(evenWeek($C235)) ),-1,"") ->  | L235: =IF( AND($C235>($D$213-1),$C235<($F$213+1),WEEKDAY($C235,2)=5, evenWeek($C235) ),-1,"") ->  | M235: =IF( AND($C235>($D$213-1),$C235<($F$213+1),WEEKDAY($C235,2)=5, NOT(evenWeek($C235)) ),-1,"") ->  | N235: =IF( AND($C235>($D$213-1),$C235<($F$213+1),WEEKDAY($C235,2)=6, evenWeek($C235) ),-1,"") ->  | O235: =IF( AND($C235>($D$213-1),$C235<($F$213+1),WEEKDAY($C235,2)=6, NOT(evenWeek($C235)) ),-1,"") ->  | P235: =IF( AND($C235>($D$213-1),$C235<($F$213+1),WEEKDAY($C235,2)=7, evenWeek($C235) ),-1,"") ->  | Q235: =IF( AND($C235>($D$213-1),$C235<($F$213+1),WEEKDAY($C235,2)=7, NOT(evenWeek($C235)) ),-1,"") -> 
B236: Goede vrijdag | C236: 2024-03-29 | L236: =IF( AND($C236>($D$213-1),$C236<($F$213+1), evenWeek($C236) ),-1,"") ->  | M236: =IF( AND($C236>($D$213-1),$C236<($F$213+1), NOT(evenWeek($C236)) ),-1,"") -> 
B237: 2e paasdag | C237: 2024-04-01 | D237: =IF( AND($C237>($D$213-1),$C237<($F$213+1), evenWeek($C237) ),-1,"") ->  | E237: =IF( AND($C237>($D$213-1),$C237<($F$213+1), NOT(evenWeek($C237)) ),-1,"") -> 
B238: Koningsdag | C238: 2024-04-27 | D238: =IF( AND($C238>($D$213-1),$C238<($F$213+1),WEEKDAY($C238,2)=1, evenWeek($C238) ),-1,"") ->  | E238: =IF( AND($C238>($D$213-1),$C238<($F$213+1),WEEKDAY($C238,2)=1, NOT(evenWeek($C238)) ),-1,"") ->  | F238: =IF( AND($C238>($D$213-1),$C238<($F$213+1),WEEKDAY($C238,2)=2, evenWeek($C238) ),-1,"") ->  | G238: =IF( AND($C238>($D$213-1),$C238<($F$213+1),WEEKDAY($C238,2)=2, NOT(evenWeek($C238)) ),-1,"") ->  | H238: =IF( AND($C238>($D$213-1),$C238<($F$213+1),WEEKDAY($C238,2)=3, evenWeek($C238) ),-1,"") ->  | I238: =IF( AND($C238>($D$213-1),$C238<($F$213+1),WEEKDAY($C238,2)=3, NOT(evenWeek($C238)) ),-1,"") ->  | J238: =IF( AND($C238>($D$213-1),$C238<($F$213+1),WEEKDAY($C238,2)=4, evenWeek($C238) ),-1,"") ->  | K238: =IF( AND($C238>($D$213-1),$C238<($F$213+1),WEEKDAY($C238,2)=4, NOT(evenWeek($C238)) ),-1,"") ->  | L238: =IF( AND($C238>($D$213-1),$C238<($F$213+1),WEEKDAY($C238,2)=5, evenWeek($C238) ),-1,"") ->  | M238: =IF( AND($C238>($D$213-1),$C238<($F$213+1),WEEKDAY($C238,2)=5, NOT(evenWeek($C238)) ),-1,"") ->  | N238: =IF( AND($C238>($D$213-1),$C238<($F$213+1),WEEKDAY($C238,2)=6, evenWeek($C238) ),-1,"") ->  | O238: =IF( AND($C238>($D$213-1),$C238<($F$213+1),WEEKDAY($C238,2)=6, NOT(evenWeek($C238)) ),-1,"") ->  | P238: =IF( AND($C238>($D$213-1),$C238<($F$213+1),WEEKDAY($C238,2)=7, evenWeek($C238) ),-1,"") ->  | Q238: =IF( AND($C238>($D$213-1),$C238<($F$213+1),WEEKDAY($C238,2)=7, NOT(evenWeek($C238)) ),-1,"") -> 
B239: Bevrijdingsdag | C239: 2024-05-05 | D239: =IF( AND($C239>($D$213-1),$C239<($F$213+1),WEEKDAY($C239,2)=1, evenWeek($C239) ),-1,"") ->  | E239: =IF( AND($C239>($D$213-1),$C239<($F$213+1),WEEKDAY($C239,2)=1, NOT(evenWeek($C239)) ),-1,"") ->  | F239: =IF( AND($C239>($D$213-1),$C239<($F$213+1),WEEKDAY($C239,2)=2, evenWeek($C239) ),-1,"") ->  | G239: =IF( AND($C239>($D$213-1),$C239<($F$213+1),WEEKDAY($C239,2)=2, NOT(evenWeek($C239)) ),-1,"") ->  | H239: =IF( AND($C239>($D$213-1),$C239<($F$213+1),WEEKDAY($C239,2)=3, evenWeek($C239) ),-1,"") ->  | I239: =IF( AND($C239>($D$213-1),$C239<($F$213+1),WEEKDAY($C239,2)=3, NOT(evenWeek($C239)) ),-1,"") ->  | J239: =IF( AND($C239>($D$213-1),$C239<($F$213+1),WEEKDAY($C239,2)=4, evenWeek($C239) ),-1,"") ->  | K239: =IF( AND($C239>($D$213-1),$C239<($F$213+1),WEEKDAY($C239,2)=4, NOT(evenWeek($C239)) ),-1,"") ->  | L239: =IF( AND($C239>($D$213-1),$C239<($F$213+1),WEEKDAY($C239,2)=5, evenWeek($C239) ),-1,"") ->  | M239: =IF( AND($C239>($D$213-1),$C239<($F$213+1),WEEKDAY($C239,2)=5, NOT(evenWeek($C239)) ),-1,"") ->  | N239: =IF( AND($C239>($D$213-1),$C239<($F$213+1),WEEKDAY($C239,2)=6, evenWeek($C239) ),-1,"") ->  | O239: =IF( AND($C239>($D$213-1),$C239<($F$213+1),WEEKDAY($C239,2)=6, NOT(evenWeek($C239)) ),-1,"") ->  | P239: =IF( AND($C239>($D$213-1),$C239<($F$213+1),WEEKDAY($C239,2)=7, evenWeek($C239) ),-1,"") ->  | Q239: =IF( AND($C239>($D$213-1),$C239<($F$213+1),WEEKDAY($C239,2)=7, NOT(evenWeek($C239)) ),-1,"") -> 
B240: Hemelvaart | C240: 2024-05-09 | J240: =IF( AND($C240>($D$213-1),$C240<($F$213+1), evenWeek($C240) ),-1,"") ->  | K240: =IF( AND($C240>($D$213-1),$C240<($F$213+1), NOT(evenWeek($C240)) ),-1,"") -> 
B241: 2e Pinksterdag | C241: 2024-05-20 | D241: =IF( AND($C241>($D$213-1),$C241<($F$213+1), evenWeek($C241) ),-1,"") ->  | E241: =IF( AND($C241>($D$213-1),$C241<($F$213+1), NOT(evenWeek($C241)) ),-1,"") -> 
B242: 1e Kerstdag | C242: 2024-12-25 | D242: =IF( AND($C242>($D$213-1),$C242<($F$213+1),WEEKDAY($C242,2)=1, evenWeek($C242) ),-1,"") ->  | E242: =IF( AND($C242>($D$213-1),$C242<($F$213+1),WEEKDAY($C242,2)=1, NOT(evenWeek($C242)) ),-1,"") ->  | F242: =IF( AND($C242>($D$213-1),$C242<($F$213+1),WEEKDAY($C242,2)=2, evenWeek($C242) ),-1,"") ->  | G242: =IF( AND($C242>($D$213-1),$C242<($F$213+1),WEEKDAY($C242,2)=2, NOT(evenWeek($C242)) ),-1,"") ->  | H242: =IF( AND($C242>($D$213-1),$C242<($F$213+1),WEEKDAY($C242,2)=3, evenWeek($C242) ),-1,"") ->  | I242: =IF( AND($C242>($D$213-1),$C242<($F$213+1),WEEKDAY($C242,2)=3, NOT(evenWeek($C242)) ),-1,"") ->  | J242: =IF( AND($C242>($D$213-1),$C242<($F$213+1),WEEKDAY($C242,2)=4, evenWeek($C242) ),-1,"") ->  | K242: =IF( AND($C242>($D$213-1),$C242<($F$213+1),WEEKDAY($C242,2)=4, NOT(evenWeek($C242)) ),-1,"") ->  | L242: =IF( AND($C242>($D$213-1),$C242<($F$213+1),WEEKDAY($C242,2)=5, evenWeek($C242) ),-1,"") ->  | M242: =IF( AND($C242>($D$213-1),$C242<($F$213+1),WEEKDAY($C242,2)=5, NOT(evenWeek($C242)) ),-1,"") ->  | N242: =IF( AND($C242>($D$213-1),$C242<($F$213+1),WEEKDAY($C242,2)=6, evenWeek($C242) ),-1,"") ->  | O242: =IF( AND($C242>($D$213-1),$C242<($F$213+1),WEEKDAY($C242,2)=6, NOT(evenWeek($C242)) ),-1,"") ->  | P242: =IF( AND($C242>($D$213-1),$C242<($F$213+1),WEEKDAY($C242,2)=7, evenWeek($C242) ),-1,"") ->  | Q242: =IF( AND($C242>($D$213-1),$C242<($F$213+1),WEEKDAY($C242,2)=7, NOT(evenWeek($C242)) ),-1,"") -> 
B243: 2e Kerstdag | C243: 2024-12-26 | D243: =IF( AND($C243>($D$213-1),$C243<($F$213+1),WEEKDAY($C243,2)=1, evenWeek($C243) ),-1,"") ->  | E243: =IF( AND($C243>($D$213-1),$C243<($F$213+1),WEEKDAY($C243,2)=1, NOT(evenWeek($C243)) ),-1,"") ->  | F243: =IF( AND($C243>($D$213-1),$C243<($F$213+1),WEEKDAY($C243,2)=2, evenWeek($C243) ),-1,"") ->  | G243: =IF( AND($C243>($D$213-1),$C243<($F$213+1),WEEKDAY($C243,2)=2, NOT(evenWeek($C243)) ),-1,"") ->  | H243: =IF( AND($C243>($D$213-1),$C243<($F$213+1),WEEKDAY($C243,2)=3, evenWeek($C243) ),-1,"") ->  | I243: =IF( AND($C243>($D$213-1),$C243<($F$213+1),WEEKDAY($C243,2)=3, NOT(evenWeek($C243)) ),-1,"") ->  | J243: =IF( AND($C243>($D$213-1),$C243<($F$213+1),WEEKDAY($C243,2)=4, evenWeek($C243) ),-1,"") ->  | K243: =IF( AND($C243>($D$213-1),$C243<($F$213+1),WEEKDAY($C243,2)=4, NOT(evenWeek($C243)) ),-1,"") ->  | L243: =IF( AND($C243>($D$213-1),$C243<($F$213+1),WEEKDAY($C243,2)=5, evenWeek($C243) ),-1,"") ->  | M243: =IF( AND($C243>($D$213-1),$C243<($F$213+1),WEEKDAY($C243,2)=5, NOT(evenWeek($C243)) ),-1,"") ->  | N243: =IF( AND($C243>($D$213-1),$C243<($F$213+1),WEEKDAY($C243,2)=6, evenWeek($C243) ),-1,"") ->  | O243: =IF( AND($C243>($D$213-1),$C243<($F$213+1),WEEKDAY($C243,2)=6, NOT(evenWeek($C243)) ),-1,"") ->  | P243: =IF( AND($C243>($D$213-1),$C243<($F$213+1),WEEKDAY($C243,2)=7, evenWeek($C243) ),-1,"") ->  | Q243: =IF( AND($C243>($D$213-1),$C243<($F$213+1),WEEKDAY($C243,2)=7, NOT(evenWeek($C243)) ),-1,"") -> 
B244: Verplicht1 | C244: 2024-05-10
B245: Verplicht2 | C245: 2024-12-27
B246: Verplicht3 | C246: 2024-12-30
B247: Verplicht4 | C247: 2024-12-31
B248: Verplicht5 | C248: 1904-01-01 | L248: -1
B249: werkbare dagen | D249: =IF(OR(YEAR($D$213)<>$N$3,YEAR($F$213)<>$N$3),0,SUM(D231,D235:D248)) -> 0 | E249: 0 | F249: 0 | G249: 0 | H249: 0 | I249: 0 | J249: 0 | K249: 0 | L249: 0 | M249: 0 | N249: 0 | O249: 0 | P249: 0 | Q249: 0 | R249: =SUM(D249:O249) -> 0
B251: standaard werkweek | D251: 40 | E251: 38 | F251: 36
B252: bijbehorend verlofsaldo | D252: =D42 -> 428 | E252: =E42 -> 323 | F252: =F42 -> 219
... 71 more rows

Sheet DI uren
A1: fte periode 1 | B1: =SUM(DIENSTVERBANDGEGEVENS!J9) -> 1 | D1: =SUM(B1) -> 1 | F1: =SUM(B1) -> 1
A2: keuze werkweek | B2: 36 | D2: 38 | F2: 40
A3: aantal dagen in een jaar (gemiddeld) | B3: 365.25 | D3: 365.25 | F3: 365.25
A4: aantal dagen in een week | B4: 7 | D4: 7 | F4: 7
A5: aantal weken per jaar (gemiddeld) | B5: =SUM(B3/B4) -> 52.17857143 | D5: 52.18 | F5: =SUM(F3/F4) -> 52.17857143
A6: aantal werkuren per week | B6: =SUM(B1*B2) -> 36 | D6: =SUM(D1*D2) -> 38 | F6: =SUM(F1*F2) -> 40
A7: extra te werken uren | B7: 0 | D7: =D6-B6 -> 2 | F7: =F6-B6 -> 4
A8: totaal aantal bruto arbeidsuren per jaar | B8: =ROUND(SUM((B5*B6)*2),0)/2 -> 1878.5 | D8: =SUM(B8+ROUND(((D5*D7)*2),0)/2) -> 1983 | F8: =SUM(B8+ROUND(((F5*F7)*2),0)/2) -> 2087
A9: normjaartaak | B9: =ROUND(SUM(1659*B1),0) -> 1659 | D9: =ROUND(SUM(1659*D1),0) -> 1659 | F9: =ROUND(SUM(1659*F1),0) -> 1659
A10: verlof in uren | B10: =SUM(B8-B9) -> 219.5 | D10: =SUM(D8-D9) -> 324 | F10: =SUM(F8-F9) -> 428
A11: wettelijk verlof | B11: =SUM(4*B6) -> 144 | D11: =SUM(4*D6) -> 152 | F11: =SUM(4*F6) -> 160
A12: bovenwettelijk verlof | B12: =SUM(B10-B11) -> 75.5 | D12: =SUM(D10-D11) -> 172 | F12: =SUM(F10-F11) -> 268
A15: Maakt gebruik van SOP of Seniorenverlof | B15: nee
A16: bereikt AOW gerechtigde leeftijd binnen 10 jaar en gedurende 5 jaar onafgebroken werkzaam binnen het HBO | B16: nee
A17: Student assistent | B17: nee
A18: aanspraak uren duurzame inzetbaarheid* | B18: =IF(B17="ja",0,IF(B15="ja",45*B1,IF(B1<0.4,0,IF(B16="ja",90*B1,IF(B1<0.4,0,45*B1))))) -> 45
A20: fte periode 2 | B20: =SUM(DIENSTVERBANDGEGEVENS!J28) -> 1 | D20: =SUM(B20) -> 1 | F20: =SUM(B20) -> 1
A21: keuze werkweek | B21: 36 | D21: 38 | F21: 40
A22: aantal dagen in een jaar (gemiddeld) | B22: 365.25 | D22: 365.25 | F22: 365.25
A23: aantal dagen in een week | B23: 7 | D23: 7 | F23: 7
A24: aantal weken per jaar (gemiddeld) | B24: =SUM(B22/B23) -> 52.17857143 | D24: 52.18 | F24: =SUM(F22/F23) -> 52.17857143
A25: aantal werkuren per week | B25: =SUM(B20*B21) -> 36 | D25: =SUM(D20*D21) -> 38 | F25: =SUM(F20*F21) -> 40
A26: extra te werken uren | B26: 0 | D26: =D25-B25 -> 2 | F26: =F25-B25 -> 4
A27: totaal aantal bruto arbeidsuren per jaar | B27: =ROUND(SUM((B24*B25)*2),0)/2 -> 1878.5 | D27: =SUM(B27+ROUND(((D24*D26)*2),0)/2) -> 1983 | F27: =SUM(B27+ROUND(((F24*F26)*2),0)/2) -> 2087
A28: normjaartaak | B28: =ROUND(SUM(1659*B20),0) -> 1659 | D28: =ROUND(SUM(1659*D20),0) -> 1659 | F28: =ROUND(SUM(1659*F20),0) -> 1659
A29: verlof in uren | B29: =SUM(B27-B28) -> 219.5 | D29: =SUM(D27-D28) -> 324 | F29: =SUM(F27-F28) -> 428
A30: wettelijk verlof | B30: =SUM(4*B25) -> 144 | D30: =SUM(4*D25) -> 152 | F30: =SUM(4*F25) -> 160
A31: bovenwettelijk verlof | B31: =SUM(B29-B30) -> 75.5 | D31: =SUM(D29-D30) -> 172 | F31: =SUM(F29-F30) -> 268
A34: Maakt gebruik van SOP of Seniorenverlof | B34: nee
A35: bereikt AOW gerechtigde leeftijd binnen 10 jaar en gedurende 5 jaar onafgebroken werkzaam binnen het HBO | B35: nee
A36: Student assistent | B36: nee
A37: aanspraak uren duurzame inzetbaarheid* | B37: =IF(B36="ja",0,IF(B34="ja",45*B20,IF(B20<0.4,0,IF(B35="ja",90*B20,IF(B20<0.4,0,45*B20))))) -> 45
A39: fte periode 3 | B39: =SUM(DIENSTVERBANDGEGEVENS!J47) -> 0 | D39: =SUM(B39) -> 0 | F39: =SUM(B39) -> 0
A40: keuze werkweek | B40: 36 | D40: 38 | F40: 40
A41: aantal dagen in een jaar (gemiddeld) | B41: 365.25 | D41: 365.25 | F41: 365.25
A42: aantal dagen in een week | B42: 7 | D42: 7 | F42: 7
A43: aantal weken per jaar (gemiddeld) | B43: =SUM(B41/B42) -> 52.17857143 | D43: 52.18 | F43: =SUM(F41/F42) -> 52.17857143
A44: aantal werkuren per week | B44: =SUM(B39*B40) -> 0 | D44: =SUM(D39*D40) -> 0 | F44: =SUM(F39*F40) -> 0
A45: extra te werken uren | B45: 0 | D45: =D44-B44 -> 0 | F45: =F44-B44 -> 0
A46: totaal aantal bruto arbeidsuren per jaar | B46: =ROUND(SUM((B43*B44)*2),0)/2 -> 0 | D46: =SUM(B46+ROUND(((D43*D45)*2),0)/2) -> 0 | F46: =SUM(B46+ROUND(((F43*F45)*2),0)/2) -> 0
A47: normjaartaak | B47: =ROUND(SUM(1659*B39),0) -> 0 | D47: =ROUND(SUM(1659*D39),0) -> 0 | F47: =ROUND(SUM(1659*F39),0) -> 0
A48: verlof in uren | B48: =SUM(B46-B47) -> 0 | D48: =SUM(D46-D47) -> 0 | F48: =SUM(F46-F47) -> 0
A49: wettelijk verlof | B49: =SUM(4*B44) -> 0 | D49: =SUM(4*D44) -> 0 | F49: =SUM(4*F44) -> 0
A50: bovenwettelijk verlof | B50: =SUM(B48-B49) -> 0 | D50: =SUM(D48-D49) -> 0 | F50: =SUM(F48-F49) -> 0
A53: Maakt gebruik van SOP of Seniorenverlof | B53: nee
A54: bereikt AOW gerechtigde leeftijd binnen 10 jaar en gedurende 5 jaar onafgebroken werkzaam binnen het HBO | B54: nee
A55: Student assistent | B55: nee
A56: aanspraak uren duurzame inzetbaarheid* | B56: =IF(B55="ja",0,IF(B53="ja",45*B39,IF(B39<0.4,0,IF(B54="ja",90*B39,IF(B39<0.4,0,45*B39))))) -> 0
A58: fte periode 4 | B58: =SUM(DIENSTVERBANDGEGEVENS!J66) -> 0 | D58: =SUM(B58) -> 0 | F58: =SUM(B58) -> 0
A59: keuze werkweek | B59: 36 | D59: 38 | F59: 40
A60: aantal dagen in een jaar (gemiddeld) | B60: 365.25 | D60: 365.25 | F60: 365.25
A61: aantal dagen in een week | B61: 7 | D61: 7 | F61: 7
A62: aantal weken per jaar (gemiddeld) | B62: =SUM(B60/B61) -> 52.17857143 | D62: 52.18 | F62: =SUM(F60/F61) -> 52.17857143
A63: aantal werkuren per week | B63: =SUM(B58*B59) -> 0 | D63: =SUM(D58*D59) -> 0 | F63: =SUM(F58*F59) -> 0
A64: extra te werken uren | B64: 0 | D64: =D63-B63 -> 0 | F64: =F63-B63 -> 0
A65: totaal aantal bruto arbeidsuren per jaar | B65: =ROUND(SUM((B62*B63)*2),0)/2 -> 0 | D65: =SUM(B65+ROUND(((D62*D64)*2),0)/2) -> 0 | F65: =SUM(B65+ROUND(((F62*F64)*2),0)/2) -> 0
A66: normjaartaak | B66: =ROUND(SUM(1659*B58),0) -> 0 | D66: =ROUND(SUM(1659*D58),0) -> 0 | F66: =ROUND(SUM(1659*F58),0) -> 0
A67: verlof in uren | B67: =SUM(B65-B66) -> 0 | D67: =SUM(D65-D66) -> 0 | F67: =SUM(F65-F66) -> 0
A68: wettelijk verlof | B68: =SUM(4*B63) -> 0 | D68: =SUM(4*D63) -> 0 | F68: =SUM(4*F63) -> 0
A69: bovenwettelijk verlof | B69: =SUM(B67-B68) -> 0 | D69: =SUM(D67-D68) -> 0 | F69: =SUM(F67-F68) -> 0
A72: Maakt gebruik van SOP of Seniorenverlof | B72: nee
A73: bereikt AOW gerechtigde leeftijd binnen 10 jaar en gedurende 5 jaar onafgebroken werkzaam binnen het HBO | B73: nee
A74: Student assistent | B74: nee
A75: aanspraak uren duurzame inzetbaarheid* | B75: =IF(B74="ja",0,IF(B72="ja",45*B58,IF(B58<0.4,0,IF(B73="ja",90*B58,IF(B58<0.4,0,45*B58))))) -> 0
A77: fte periode 5 | B77: =SUM(DIENSTVERBANDGEGEVENS!J85) -> 0 | D77: =SUM(B77) -> 0 | F77: =SUM(B77) -> 0
A78: keuze werkweek | B78: 36 | D78: 38 | F78: 40
A79: aantal dagen in een jaar (gemiddeld) | B79: 365.25 | D79: 365.25 | F79: 365.25
A80: aantal dagen in een week | B80: 7 | D80: 7 | F80: 7
A81: aantal weken per jaar (gemiddeld) | B81: =SUM(B79/B80) -> 52.17857143 | D81: 52.18 | F81: =SUM(F79/F80) -> 52.17857143
A82: aantal werkuren per week | B82: =SUM(B77*B78) -> 0 | D82: =SUM(D77*D78) -> 0 | F82: =SUM(F77*F78) -> 0
A83: extra te werken uren | B83: 0 | D83: =D82-B82 -> 0 | F83: =F82-B82 -> 0
A84: totaal aantal bruto arbeidsuren per jaar | B84: =ROUND(SUM((B81*B82)*2),0)/2 -> 0 | D84: =SUM(B84+ROUND(((D81*D83)*2),0)/2) -> 0 | F84: =SUM(B84+ROUND(((F81*F83)*2),0)/2) -> 0
A85: normjaartaak | B85: =ROUND(SUM(1659*B77),0) -> 0 | D85: =ROUND(SUM(1659*D77),0) -> 0 | F85: =ROUND(SUM(1659*F77),0) -> 0
A86: verlof in uren | B86: =SUM(B84-B85) -> 0 | D86: =SUM(D84-D85) -> 0 | F86: =SUM(F84-F85) -> 0
A87: wettelijk verlof | B87: =SUM(4*B82) -> 0 | D87: =SUM(4*D82) -> 0 | F87: =SUM(4*F82) -> 0
A88: bovenwettelijk verlof | B88: =SUM(B86-B87) -> 0 | D88: =SUM(D86-D87) -> 0 | F88: =SUM(F86-F87) -> 0
A91: Maakt gebruik van SOP of Seniorenverlof | B91: nee
A92: bereikt AOW gerechtigde leeftijd binnen 10 jaar en gedurende 5 jaar onafgebroken werkzaam binnen het HBO | B92: nee
A93: Student assistent | B93: nee
A94: aanspraak uren duurzame inzetbaarheid* | B94: =IF(B93="ja",0,IF(B91="ja",45*B77,IF(B77<0.4,0,IF(B92="ja",90*B77,IF(B77<0.4,0,45*B77))))) -> 0

Sheet (ON)BETAALD VERLOF
B2: BETAALD OUDERSCHAPSVERLOF
B3: Tijdens het betaald ouderschapsverlof neemt het aantal uren waarover vakantieverlof wordt opgebouwd af. Er is immers sprake van 25% onbetaald verlof en over deze uren worden geen vakantieverlof-uren opgebouwd. Om te berekenen wat het op te bouwen vakantieverlof is tijdens de betaald ouderschapsverlofperiode, kan onderstaande rekentool worden gebruikt.
E5: =DVOV!D2 ->  | G5: =DVOV!F2 -> 
D6: Omvang aanstelling in fulltime equivalenten (fte)
D8: Omvang ouderschapsverlof in fte | K8: 0
D10: Omvang fte waarover verlofopbouw plaats vindt | K10: =DVOV!K11 -> 0
C12: Gebruiken als alleen bekend is wat de omvang ouderschapsverlof is in UREN
E13: =DV!D72 ->  | G13: =DV!F72 -> 
D14: Omvang aanstelling in fulltime equivalenten (fte's) | K14: 0.9
D16: Standaard werkweek bij volledige aanstelling, kies 36, 38 of 40
D18: Omvang ouderschapsverlof in uren p/w | K18: 2.2
D20: Omvang fte waarover verlofopbouw plaats vindt | K20: =DVOV!K25 -> 0.8855263158
B23: Tabblad Dienstverbandgegevens
B24: ● Vul bij (A) gedurende de ouderschapsverlofperiode de Omvang fte waarover verlofopbouw plaats vindt
B25: ● Vul bij (E) Keuze tijdsbesteding het werkrooster inclusief de uren betaald ouderschapsverlof in.
C26: Voorbeeld (woensdag volledig ouderschapsverlof):
E27: ma | F27: di | G27: wo | H27: do | I27: vr | J27: vr
C28: Voor ouderschapsverlof | E28: 8 | F28: 8 | G28: 8 | H28: 8 | I28: 8 | J28: 8
C30: Tijdens ouderschapsverlof | E30: 8 | F30: 8 | G30: 6 | H30: 8 | I30: 8 | J30: 8
B32: Tabblad Verlofkalender
B33: ● De dag/uren waarop ouderschapsverlof wordt genoten, kan in de verlofkalander genoteerd worden als OV:
B37: ● Over de dag/uren waarop ouderschapsverlof wordt genoten, dient geen vakantieverlof opgenomen te worden.
C38: Voorbeeld (woensdag volledig ouderschapsverlof, hele week vakantieverlof):
E39: ma | F39: di | G39: wo | H39: do | I39: vr | J39: vr
C40: In verlofkalender | E40: 8 | F40: 8 | H40: 8 | I40: 8 | J40: 8
B43: ONBETAALD OUDERSCHAPSVERLOF
B44: Over de uren Onbetaald Ouderschapsverlof wordt geen verlof opgebouwd. Bij (A) op het tabblad Dienstverbandgegevens, dient dan ook de aanstellingsomvang minus de omvang onbetaald ouderschapsverlof (in fte) ingevuld te worden.
B46: WERKTIJDVERMINDERING SENIOREN (WS) / SOP VERLOF
B47: Over de uren Werktijdvermindering Senioren (WS) / SOP wordt geen verlof opgebouwd. Bij (A) op het tabblad Dienstverbandgegevens, dient dan ook de aanstellingsomvang minus de omvang onbetaald ouderschapsverlof (in fte) ingevuld te worden.
B49: VERLOF BIJ LANGDURIG VERZUIM
B50: Het vakantieverlof bestaat uit een deel wettelijk verlof en een deel bovenwettelijk verlof. Het wettelijk verlof wordt volledig opgebouwd en opgenomen tijdens verzuim. Het wettelijk deel bestaat uit 4 x de werktijd per week. (voorbeeld: De werktijd is 40 uur per week. Het wettelijk verlof is dan 4 x 40 uur = 160 uur per jaar. Feestdagen en verplichte vrije dagen worden van het wettelijk verlof afgetrokken. Al het verlof daarboven is bovenwettelijk verlof.Het bovenwettelijk verlof wordt echter alleen volledig opgebouwd en opgenomen gedurende de eerste zes maanden van het verzuim. Is er sprake van langdurig verzuim dan moet het aantal uren bovenwettelijk verlof dat minder wordt opgebouwd na 6 maanden, handmatig worden berekend en ingevuld op het tabblad Verlofkalender bij ‘Totaal te verminderen verlofuren in 2024' Zie ook mijnhva.nl. Neem voor vragen of hulp bij berekening vermindering verlof bij langdurig verzuim contact op met de HR-adviseur van de eigen eenheid of de Servicedesk van het Administratief Centrum

Sheet DVOV
D2: =IF(D4,"datum !",IF(OR(D3=0,YEAR(D3)=$N$3),"","datum !")) ->  | F2: =IF(AND(D3>0,F3>0,F3<D3),"datum !",IF( OR(F4, AND(F3>0,YEAR(F3)<>$N$3)),"datum !","")) ->  | H2: p2
B3: PERIODE 1 | C3: van | D3: =IF(ISNUMBER(DIENSTVERBANDGEGEVENS!D7),DIENSTVERBANDGEGEVENS!D7,0) -> 2024-01-01 | E3: t/m | F3: =IF(ISNUMBER(DIENSTVERBANDGEGEVENS!F7),DIENSTVERBANDGEGEVENS!F7,0) -> 2024-12-31 | G3: =IF(AND(H3:K3),""," periode-overlapping") ->  | H3: =OR( $D$3=0,$F$3=0,D15=0,F15=0, AND($D$3>D15,$D$3>F15),AND($D$3<D15,$F$3<D15)) -> TRUE | M3: kalenderjaar | N3: 2024 | P3: temcp
C4: tekst in datumcel | D4: =TYPE(DIENSTVERBANDGEGEVENS!D7)=2 -> FALSE | F4: =TYPE(DIENSTVERBANDGEGEVENS!F7)=2 -> FALSE | M4: geen overlap | N4: =AND(H3:K3,H15:K15,H352:K352) -> TRUE
B7: (A) Omvang aanstelling in fulltime equivalenten (fte's) | K7: ='(ON)BETAALD VERLOF'!K6 -> 0
I8: keuzerondje
B9: (B) Omvang ouderschapsverlof in fte | K9: ='(ON)BETAALD VERLOF'!K8 -> 0
B11: (C) Omvang aanstelling waarover verlof opbouw plaats vindt (( A - (C * 0,25 )) | K11: =K7-(K9*0.25) -> 0
D14: =IF(D16,"datum !",IF(OR(D15=0,YEAR(D15)=$N$3),"","datum !")) ->  | F14: =IF(AND(D15>0,F15>0,F15<D15),"datum !",IF(OR(F16, AND(F15>0,YEAR(F15)<>$N$3)),"datum !","")) ->  | H14: p1
B15: PERIODE 2 | C15: van | D15: =IF(ISNUMBER(DIENSTVERBANDGEGEVENS!D26),DIENSTVERBANDGEGEVENS!D26,0) -> 1904-01-01 | E15: t/m | F15: =IF(ISNUMBER(DIENSTVERBANDGEGEVENS!F26),DIENSTVERBANDGEGEVENS!F26,0) -> 1904-01-01 | G15: =IF(AND(H15:K15),""," periode-overlapping") ->  | H15: =OR( D15=0,F15=0,D3=0,F3=0, AND($D$15>D3,$D$15>F3),AND($D$15<D3,$F$15<D3)) -> TRUE
C16: tekst in datumcel | D16: =TYPE(DIENSTVERBANDGEGEVENS!D26)=2 -> FALSE | F16: =TYPE(DIENSTVERBANDGEGEVENS!F26)=2 -> FALSE
B19: (A) Omvang aanstelling in fulltime equivalenten (fte's) | K19: ='(ON)BETAALD VERLOF'!K14 -> 0.9
I20: keuzerondje
B21: (B) Standaard werkweek bij volledige aanstelling, vul in 36, 38 of 40 | I21: 2 | K21: =IF(I21=1,36,IF(I21=2,38,IF(I21=3,40,0))) -> 38
B23: (C) Omvang ouderschapsverlof in uren | K23: ='(ON)BETAALD VERLOF'!K18 -> 2.2
B25: (D) Omvang aanstelling waarover verlof opbouw plaats vindt (( A - ((C/B) * 0,25 ))) | K25: =K19-((K23/K21)*0.25) -> 0.8855263158
D351: =IF(D353,"datum !",IF(OR(D352=0,YEAR(D352)=$N$3),"","datum !")) ->  | F351: =IF(AND(D352>0,F352>0,F352<D352),"datum !",IF(OR(F353, AND(F352>0,YEAR(F352)<>$N$3)),"datum !","")) ->  | H351: p1 | I351: p2 | J351: p4 | K351: p5 | Q351: PERIODE 3
B352: PERIODE 3 | C352: van | D352: =IF(ISNUMBER(DIENSTVERBANDGEGEVENS!D45),DIENSTVERBANDGEGEVENS!D45,0) -> 1904-01-01 | E352: t/m | F352: =IF(ISNUMBER(DIENSTVERBANDGEGEVENS!F45),DIENSTVERBANDGEGEVENS!F45,0) -> 1904-01-01 | G352: =IF(AND(H352:K352),""," periode-overlapping") ->  | H352: =OR( D352=0,F352=0,D3=0,F3=0, AND($D$352>D3,$D$352>F3),AND($D$352<D3,$F$352<D3)) -> TRUE | I352: =OR( D352=0,F352=0,D15=0,F15=0, AND($D$352>D15,$D$352>F15),AND($D$352<D15,$F$352<D15)) -> TRUE | J352: =OR( D352=0,F352=0,D422=0,F422=0, AND($D$352>D422,$D$352>F422),AND($D$352<D422,$F$352<D422)) -> TRUE | K352: =OR( D352=0,F352=0,D492=0,F492=0, AND($D$352>D492,$D$352>F492),AND($D$352<D492,$F$352<D492)) -> TRUE
C353: tekst in datumcel | D353: =TYPE(DIENSTVERBANDGEGEVENS!D45)=2 -> FALSE | F353: =TYPE(DIENSTVERBANDGEGEVENS!F45)=2 -> FALSE
D355: ma even | E355: ma oneven | F355: di even | G355: di oneven | H355: wo even | I355: wo oneven | J355: do even | K355: do oneven | L355: vr even | M355: vr oneven | N355: za even | O355: za oneven | P355: zo even | Q355: zo oneven
C356: =D352 -> 1904-01-01 | D356: =IF( AND( WEEKDAY($C356,2)=1,YEAR($C356)=$N$3, evenWeek($C356), $C356<=$F$352), (($F$352 + 1) - $C356 ) / 14, 0) -> 0 | E356: =IF( AND( WEEKDAY($C356,2)=1,YEAR($C356)=$N$3, NOT(evenWeek($C356)), $C356<= $F$352), (($F$352 + 1) - $C356 ) /14, 0) -> 0 | F356: =IF( AND( WEEKDAY($C356,2)=2,YEAR($C356)=$N$3, evenWeek($C356), $C356<=$F$352), (($F$352 + 1) - $C356 ) / 14, 0) -> 0 | G356: =IF( AND( WEEKDAY($C356,2)=2,YEAR($C356)=$N$3, NOT(evenWeek($C356)), $C356<= $F$352), (($F$352 + 1) - $C356 ) /14, 0) -> 0 | H356: =IF( AND( WEEKDAY($C356,2)=3,YEAR($C356)=$N$3, evenWeek($C356), $C356<=$F$352), (($F$352 + 1) - $C356 ) / 14, 0) -> 0 | I356: =IF( AND( WEEKDAY($C356,2)=3,YEAR($C356)=$N$3, NOT(evenWeek($C356)), $C356<= $F$352), (($F$352 + 1) - $C356 ) /14, 0) -> 0 | J356: =IF( AND( WEEKDAY($C356,2)=4,YEAR($C356)=$N$3, evenWeek($C356), $C356<=$F$352), (($F$352 + 1) - $C356 ) / 14, 0) -> 0 | K356: =IF( AND( WEEKDAY($C356,2)=4,YEAR($C356)=$N$3, NOT(evenWeek($C356)), $C356<= $F$352), (($F$352 + 1) - $C356 ) /14, 0) -> 0 | L356: =IF( AND( WEEKDAY($C356,2)=5,YEAR($C356)=$N$3, evenWeek($C356), $C356<=$F$352), (($F$352 + 1) - $C356 ) / 14, 0) -> 0 | M356: =IF( AND( WEEKDAY($C356,2)=5,YEAR($C356)=$N$3, NOT(evenWeek($C356)), $C356<= $F$352), (($F$352 + 1) - $C356 ) /14, 0) -> 0 | N356: =IF( AND( WEEKDAY($C356,2)=6,YEAR($C356)=$N$3, evenWeek($C356), $C356<=$F$352), (($F$352 + 1) - $C356 ) / 14, 0) -> 0 | O356: =IF( AND( WEEKDAY($C356,2)=6,YEAR($C356)=$N$3, NOT(evenWeek($C356)), $C356<= $F$352), (($F$352 + 1) - $C356 ) /14, 0) -> 0 | P356: =IF( AND( WEEKDAY($C356,2)=7,YEAR($C356)=$N$3, evenWeek($C356), $C356<=$F$352), (($F$352 + 1) - $C356 ) / 14, 0) -> 0 | Q356: =IF( AND( WEEKDAY($C356,2)=7,YEAR($C356)=$N$3, NOT(evenWeek($C356)), $C356<= $F$352), (($F$352 + 1) - $C356 ) /14, 0) -> 0
C357: =C356+1 -> 1904-01-02 | D357: =IF( AND( WEEKDAY($C357,2)=1,YEAR($C357)=$N$3, evenWeek($C357), $C357<=$F$352), (($F$352 + 1) - $C357 ) / 14, 0) -> 0 | E357: =IF( AND( WEEKDAY($C357,2)=1,YEAR($C357)=$N$3, NOT(evenWeek($C357)), $C357<= $F$352), (($F$352 + 1) - $C357 ) /14, 0) -> 0 | F357: =IF( AND( WEEKDAY($C357,2)=2,YEAR($C357)=$N$3, evenWeek($C357), $C357<=$F$352), (($F$352 + 1) - $C357 ) / 14, 0) -> 0 | G357: =IF( AND( WEEKDAY($C357,2)=2,YEAR($C357)=$N$3, NOT(evenWeek($C357)), $C357<= $F$352), (($F$352 + 1) - $C357 ) /14, 0) -> 0 | H357: =IF( AND( WEEKDAY($C357,2)=3,YEAR($C357)=$N$3, evenWeek($C357), $C357<=$F$352), (($F$352 + 1) - $C357 ) / 14, 0) -> 0 | I357: =IF( AND( WEEKDAY($C357,2)=3,YEAR($C357)=$N$3, NOT(evenWeek($C357)), $C357<= $F$352), (($F$352 + 1) - $C357 ) /14, 0) -> 0 | J357: =IF( AND( WEEKDAY($C357,2)=4,YEAR($C357)=$N$3, evenWeek($C357), $C357<=$F$352), (($F$352 + 1) - $C357 ) / 14, 0) -> 0 | K357: =IF( AND( WEEKDAY($C357,2)=4,YEAR($C357)=$N$3, NOT(evenWeek($C357)), $C357<= $F$352), (($F$352 + 1) - $C357 ) /14, 0) -> 0 | L357: =IF( AND( WEEKDAY($C357,2)=5,YEAR($C357)=$N$3, evenWeek($C357), $C357<=$F$352), (($F$352 + 1) - $C357 ) / 14, 0) -> 0 | M357: =IF( AND( WEEKDAY($C357,2)=5,YEAR($C357)=$N$3, NOT(evenWeek($C357)), $C357<= $F$352), (($F$352 + 1) - $C357 ) /14, 0) -> 0 | N357: =IF( AND( WEEKDAY($C357,2)=6,YEAR($C357)=$N$3, evenWeek($C357), $C357<=$F$352), (($F$352 + 1) - $C357 ) / 14, 0) -> 0 | O357: =IF( AND( WEEKDAY($C357,2)=6,YEAR($C357)=$N$3, NOT(evenWeek($C357)), $C357<= $F$352), (($F$352 + 1) - $C357 ) /14, 0) -> 0 | P357: =IF( AND( WEEKDAY($C357,2)=7,YEAR($C357)=$N$3, evenWeek($C357), $C357<=$F$352), (($F$352 + 1) - $C357 ) / 14, 0) -> 0 | Q357: =IF( AND( WEEKDAY($C357,2)=7,YEAR($C357)=$N$3, NOT(evenWeek($C357)), $C357<= $F$352), (($F$352 + 1) - $C357 ) /14, 0) -> 0
C358: =C357+1 -> 1904-01-03 | D358: =IF( AND( WEEKDAY($C358,2)=1,YEAR($C358)=$N$3, evenWeek($C358), $C358<=$F$352), (($F$352 + 1) - $C358 ) / 14, 0) -> 0 | E358: =IF( AND( WEEKDAY($C358,2)=1,YEAR($C358)=$N$3, NOT(evenWeek($C358)), $C358<= $F$352), (($F$352 + 1) - $C358 ) /14, 0) -> 0 | F358: =IF( AND( WEEKDAY($C358,2)=2,YEAR($C358)=$N$3, evenWeek($C358), $C358<=$F$352), (($F$352 + 1) - $C358 ) / 14, 0) -> 0 | G358: =IF( AND( WEEKDAY($C358,2)=2,YEAR($C358)=$N$3, NOT(evenWeek($C358)), $C358<= $F$352), (($F$352 + 1) - $C358 ) /14, 0) -> 0 | H358: =IF( AND( WEEKDAY($C358,2)=3,YEAR($C358)=$N$3, evenWeek($C358), $C358<=$F$352), (($F$352 + 1) - $C358 ) / 14, 0) -> 0 | I358: =IF( AND( WEEKDAY($C358,2)=3,YEAR($C358)=$N$3, NOT(evenWeek($C358)), $C358<= $F$352), (($F$352 + 1) - $C358 ) /14, 0) -> 0 | J358: =IF( AND( WEEKDAY($C358,2)=4,YEAR($C358)=$N$3, evenWeek($C358), $C358<=$F$352), (($F$352 + 1) - $C358 ) / 14, 0) -> 0 | K358: =IF( AND( WEEKDAY($C358,2)=4,YEAR($C358)=$N$3, NOT(evenWeek($C358)), $C358<= $F$352), (($F$352 + 1) - $C358 ) /14, 0) -> 0 | L358: =IF( AND( WEEKDAY($C358,2)=5,YEAR($C358)=$N$3, evenWeek($C358), $C358<=$F$352), (($F$352 + 1) - $C358 ) / 14, 0) -> 0 | M358: =IF( AND( WEEKDAY($C358,2)=5,YEAR($C358)=$N$3, NOT(evenWeek($C358)), $C358<= $F$352), (($F$352 + 1) - $C358 ) /14, 0) -> 0 | N358: =IF( AND( WEEKDAY($C358,2)=6,YEAR($C358)=$N$3, evenWeek($C358), $C358<=$F$352), (($F$352 + 1) - $C358 ) / 14, 0) -> 0 | O358: =IF( AND( WEEKDAY($C358,2)=6,YEAR($C358)=$N$3, NOT(evenWeek($C358)), $C358<= $F$352), (($F$352 + 1) - $C358 ) /14, 0) -> 0 | P358: =IF( AND( WEEKDAY($C358,2)=7,YEAR($C358)=$N$3, evenWeek($C358), $C358<=$F$352), (($F$352 + 1) - $C358 ) / 14, 0) -> 0 | Q358: =IF( AND( WEEKDAY($C358,2)=7,YEAR($C358)=$N$3, NOT(evenWeek($C358)), $C358<= $F$352), (($F$352 + 1) - $C358 ) /14, 0) -> 0
C359: 1904-01-04 | D359: =IF( AND( WEEKDAY($C359,2)=1,YEAR($C359)=$N$3, evenWeek($C359), $C359<=$F$352), (($F$352 + 1) - $C359 ) / 14, 0) -> 0 | E359: =IF( AND( WEEKDAY($C359,2)=1,YEAR($C359)=$N$3, NOT(evenWeek($C359)), $C359<= $F$352), (($F$352 + 1) - $C359 ) /14, 0) -> 0 | F359: =IF( AND( WEEKDAY($C359,2)=2,YEAR($C359)=$N$3, evenWeek($C359), $C359<=$F$352), (($F$352 + 1) - $C359 ) / 14, 0) -> 0 | G359: =IF( AND( WEEKDAY($C359,2)=2,YEAR($C359)=$N$3, NOT(evenWeek($C359)), $C359<= $F$352), (($F$352 + 1) - $C359 ) /14, 0) -> 0 | H359: =IF( AND( WEEKDAY($C359,2)=3,YEAR($C359)=$N$3, evenWeek($C359), $C359<=$F$352), (($F$352 + 1) - $C359 ) / 14, 0) -> 0 | I359: =IF( AND( WEEKDAY($C359,2)=3,YEAR($C359)=$N$3, NOT(evenWeek($C359)), $C359<= $F$352), (($F$352 + 1) - $C359 ) /14, 0) -> 0 | J359: =IF( AND( WEEKDAY($C359,2)=4,YEAR($C359)=$N$3, evenWeek($C359), $C359<=$F$352), (($F$352 + 1) - $C359 ) / 14, 0) -> 0 | K359: =IF( AND( WEEKDAY($C359,2)=4,YEAR($C359)=$N$3, NOT(evenWeek($C359)), $C359<= $F$352), (($F$352 + 1) - $C359 ) /14, 0) -> 0 | L359: =IF( AND( WEEKDAY($C359,2)=5,YEAR($C359)=$N$3, evenWeek($C359), $C359<=$F$352), (($F$352 + 1) - $C359 ) / 14, 0) -> 0 | M359: =IF( AND( WEEKDAY($C359,2)=5,YEAR($C359)=$N$3, NOT(evenWeek($C359)), $C359<= $F$352), (($F$352 + 1) - $C359 ) /14, 0) -> 0 | N359: =IF( AND( WEEKDAY($C359,2)=6,YEAR($C359)=$N$3, evenWeek($C359), $C359<=$F$352), (($F$352 + 1) - $C359 ) / 14, 0) -> 0 | O359: =IF( AND( WEEKDAY($C359,2)=6,YEAR($C359)=$N$3, NOT(evenWeek($C359)), $C359<= $F$352), (($F$352 + 1) - $C359 ) /14, 0) -> 0 | P359: =IF( AND( WEEKDAY($C359,2)=7,YEAR($C359)=$N$3, evenWeek($C359), $C359<=$F$352), (($F$352 + 1) - $C359 ) / 14, 0) -> 0 | Q359: =IF( AND( WEEKDAY($C359,2)=7,YEAR($C359)=$N$3, NOT(evenWeek($C359)), $C359<= $F$352), (($F$352 + 1) - $C359 ) /14, 0) -> 0
C360: 1904-01-05 | D360: =IF( AND( WEEKDAY($C360,2)=1,YEAR($C360)=$N$3, evenWeek($C360), $C360<=$F$352), (($F$352 + 1) - $C360 ) / 14, 0) -> 0 | E360: =IF( AND( WEEKDAY($C360,2)=1,YEAR($C360)=$N$3, NOT(evenWeek($C360)), $C360<= $F$352), (($F$352 + 1) - $C360 ) /14, 0) -> 0 | F360: =IF( AND( WEEKDAY($C360,2)=2,YEAR($C360)=$N$3, evenWeek($C360), $C360<=$F$352), (($F$352 + 1) - $C360 ) / 14, 0) -> 0 | G360: =IF( AND( WEEKDAY($C360,2)=2,YEAR($C360)=$N$3, NOT(evenWeek($C360)), $C360<= $F$352), (($F$352 + 1) - $C360 ) /14, 0) -> 0 | H360: =IF( AND( WEEKDAY($C360,2)=3,YEAR($C360)=$N$3, evenWeek($C360), $C360<=$F$352), (($F$352 + 1) - $C360 ) / 14, 0) -> 0 | I360: =IF( AND( WEEKDAY($C360,2)=3,YEAR($C360)=$N$3, NOT(evenWeek($C360)), $C360<= $F$352), (($F$352 + 1) - $C360 ) /14, 0) -> 0 | J360: =IF( AND( WEEKDAY($C360,2)=4,YEAR($C360)=$N$3, evenWeek($C360), $C360<=$F$352), (($F$352 + 1) - $C360 ) / 14, 0) -> 0 | K360: =IF( AND( WEEKDAY($C360,2)=4,YEAR($C360)=$N$3, NOT(evenWeek($C360)), $C360<= $F$352), (($F$352 + 1) - $C360 ) /14, 0) -> 0 | L360: =IF( AND( WEEKDAY($C360,2)=5,YEAR($C360)=$N$3, evenWeek($C360), $C360<=$F$352), (($F$352 + 1) - $C360 ) / 14, 0) -> 0 | M360: =IF( AND( WEEKDAY($C360,2)=5,YEAR($C360)=$N$3, NOT(evenWeek($C360)), $C360<= $F$352), (($F$352 + 1) - $C360 ) /14, 0) -> 0 | N360: =IF( AND( WEEKDAY($C360,2)=6,YEAR($C360)=$N$3, evenWeek($C360), $C360<=$F$352), (($F$352 + 1) - $C360 ) / 14, 0) -> 0 | O360: =IF( AND( WEEKDAY($C360,2)=6,YEAR($C360)=$N$3, NOT(evenWeek($C360)), $C360<= $F$352), (($F$352 + 1) - $C360 ) /14, 0) -> 0 | P360: =IF( AND( WEEKDAY($C360,2)=7,YEAR($C360)=$N$3, evenWeek($C360), $C360<=$F$352), (($F$352 + 1) - $C360 ) / 14, 0) -> 0 | Q360: =IF( AND( WEEKDAY($C360,2)=7,YEAR($C360)=$N$3, NOT(evenWeek($C360)), $C360<= $F$352), (($F$352 + 1) - $C360 ) /14, 0) -> 0
C361: 1904-01-06 | D361: =IF( AND( WEEKDAY($C361,2)=1,YEAR($C361)=$N$3, evenWeek($C361), $C361<=$F$352), (($F$352 + 1) - $C361 ) / 14, 0) -> 0 | E361: =IF( AND( WEEKDAY($C361,2)=1,YEAR($C361)=$N$3, NOT(evenWeek($C361)), $C361<= $F$352), (($F$352 + 1) - $C361 ) /14, 0) -> 0 | F361: =IF( AND( WEEKDAY($C361,2)=2,YEAR($C361)=$N$3, evenWeek($C361), $C361<=$F$352), (($F$352 + 1) - $C361 ) / 14, 0) -> 0 | G361: =IF( AND( WEEKDAY($C361,2)=2,YEAR($C361)=$N$3, NOT(evenWeek($C361)), $C361<= $F$352), (($F$352 + 1) - $C361 ) /14, 0) -> 0 | H361: =IF( AND( WEEKDAY($C361,2)=3,YEAR($C361)=$N$3, evenWeek($C361), $C361<=$F$352), (($F$352 + 1) - $C361 ) / 14, 0) -> 0 | I361: =IF( AND( WEEKDAY($C361,2)=3,YEAR($C361)=$N$3, NOT(evenWeek($C361)), $C361<= $F$352), (($F$352 + 1) - $C361 ) /14, 0) -> 0 | J361: =IF( AND( WEEKDAY($C361,2)=4,YEAR($C361)=$N$3, evenWeek($C361), $C361<=$F$352), (($F$352 + 1) - $C361 ) / 14, 0) -> 0 | K361: =IF( AND( WEEKDAY($C361,2)=4,YEAR($C361)=$N$3, NOT(evenWeek($C361)), $C361<= $F$352), (($F$352 + 1) - $C361 ) /14, 0) -> 0 | L361: =IF( AND( WEEKDAY($C361,2)=5,YEAR($C361)=$N$3, evenWeek($C361), $C361<=$F$352), (($F$352 + 1) - $C361 ) / 14, 0) -> 0 | M361: =IF( AND( WEEKDAY($C361,2)=5,YEAR($C361)=$N$3, NOT(evenWeek($C361)), $C361<= $F$352), (($F$352 + 1) - $C361 ) /14, 0) -> 0 | N361: =IF( AND( WEEKDAY($C361,2)=6,YEAR($C361)=$N$3, evenWeek($C361), $C361<=$F$352), (($F$352 + 1) - $C361 ) / 14, 0) -> 0 | O361: =IF( AND( WEEKDAY($C361,2)=6,YEAR($C361)=$N$3, NOT(evenWeek($C361)), $C361<= $F$352), (($F$352 + 1) - $C361 ) /14, 0) -> 0 | P361: =IF( AND( WEEKDAY($C361,2)=7,YEAR($C361)=$N$3, evenWeek($C361), $C361<=$F$352), (($F$352 + 1) - $C361 ) / 14, 0) -> 0 | Q361: =IF( AND( WEEKDAY($C361,2)=7,YEAR($C361)=$N$3, NOT(evenWeek($C361)), $C361<= $F$352), (($F$352 + 1) - $C361 ) /14, 0) -> 0
C362: 1904-01-07 | D362: =IF( AND( WEEKDAY($C362,2)=1,YEAR($C362)=$N$3, evenWeek($C362), $C362<=$F$352), (($F$352 + 1) - $C362 ) / 14, 0) -> 0 | E362: =IF( AND( WEEKDAY($C362,2)=1,YEAR($C362)=$N$3, NOT(evenWeek($C362)), $C362<= $F$352), (($F$352 + 1) - $C362 ) /14, 0) -> 0 | F362: =IF( AND( WEEKDAY($C362,2)=2,YEAR($C362)=$N$3, evenWeek($C362), $C362<=$F$352), (($F$352 + 1) - $C362 ) / 14, 0) -> 0 | G362: =IF( AND( WEEKDAY($C362,2)=2,YEAR($C362)=$N$3, NOT(evenWeek($C362)), $C362<= $F$352), (($F$352 + 1) - $C362 ) /14, 0) -> 0 | H362: =IF( AND( WEEKDAY($C362,2)=3,YEAR($C362)=$N$3, evenWeek($C362), $C362<=$F$352), (($F$352 + 1) - $C362 ) / 14, 0) -> 0 | I362: =IF( AND( WEEKDAY($C362,2)=3,YEAR($C362)=$N$3, NOT(evenWeek($C362)), $C362<= $F$352), (($F$352 + 1) - $C362 ) /14, 0) -> 0 | J362: =IF( AND( WEEKDAY($C362,2)=4,YEAR($C362)=$N$3, evenWeek($C362), $C362<=$F$352), (($F$352 + 1) - $C362 ) / 14, 0) -> 0 | K362: =IF( AND( WEEKDAY($C362,2)=4,YEAR($C362)=$N$3, NOT(evenWeek($C362)), $C362<= $F$352), (($F$352 + 1) - $C362 ) /14, 0) -> 0 | L362: =IF( AND( WEEKDAY($C362,2)=5,YEAR($C362)=$N$3, evenWeek($C362), $C362<=$F$352), (($F$352 + 1) - $C362 ) / 14, 0) -> 0 | M362: =IF( AND( WEEKDAY($C362,2)=5,YEAR($C362)=$N$3, NOT(evenWeek($C362)), $C362<= $F$352), (($F$352 + 1) - $C362 ) /14, 0) -> 0 | N362: =IF( AND( WEEKDAY($C362,2)=6,YEAR($C362)=$N$3, evenWeek($C362), $C362<=$F$352), (($F$352 + 1) - $C362 ) / 14, 0) -> 0 | O362: =IF( AND( WEEKDAY($C362,2)=6,YEAR($C362)=$N$3, NOT(evenWeek($C362)), $C362<= $F$352), (($F$352 + 1) - $C362 ) /14, 0) -> 0 | P362: =IF( AND( WEEKDAY($C362,2)=7,YEAR($C362)=$N$3, evenWeek($C362), $C362<=$F$352), (($F$352 + 1) - $C362 ) / 14, 0) -> 0 | Q362: =IF( AND( WEEKDAY($C362,2)=7,YEAR($C362)=$N$3, NOT(evenWeek($C362)), $C362<= $F$352), (($F$352 + 1) - $C362 ) /14, 0) -> 0
C363: 1904-01-08 | D363: =IF( AND( WEEKDAY($C363,2)=1,YEAR($C363)=$N$3, evenWeek($C363), $C363<=$F$352), (($F$352 + 1) - $C363 ) / 14, 0) -> 0 | E363: =IF( AND( WEEKDAY($C363,2)=1,YEAR($C363)=$N$3, NOT(evenWeek($C363)), $C363<= $F$352), (($F$352 + 1) - $C363 ) /14, 0) -> 0 | F363: =IF( AND( WEEKDAY($C363,2)=2,YEAR($C363)=$N$3, evenWeek($C363), $C363<=$F$352), (($F$352 + 1) - $C363 ) / 14, 0) -> 0 | G363: =IF( AND( WEEKDAY($C363,2)=2,YEAR($C363)=$N$3, NOT(evenWeek($C363)), $C363<= $F$352), (($F$352 + 1) - $C363 ) /14, 0) -> 0 | H363: =IF( AND( WEEKDAY($C363,2)=3,YEAR($C363)=$N$3, evenWeek($C363), $C363<=$F$352), (($F$352 + 1) - $C363 ) / 14, 0) -> 0 | I363: =IF( AND( WEEKDAY($C363,2)=3,YEAR($C363)=$N$3, NOT(evenWeek($C363)), $C363<= $F$352), (($F$352 + 1) - $C363 ) /14, 0) -> 0 | J363: =IF( AND( WEEKDAY($C363,2)=4,YEAR($C363)=$N$3, evenWeek($C363), $C363<=$F$352), (($F$352 + 1) - $C363 ) / 14, 0) -> 0 | K363: =IF( AND( WEEKDAY($C363,2)=4,YEAR($C363)=$N$3, NOT(evenWeek($C363)), $C363<= $F$352), (($F$352 + 1) - $C363 ) /14, 0) -> 0 | L363: =IF( AND( WEEKDAY($C363,2)=5,YEAR($C363)=$N$3, evenWeek($C363), $C363<=$F$352), (($F$352 + 1) - $C363 ) / 14, 0) -> 0 | M363: =IF( AND( WEEKDAY($C363,2)=5,YEAR($C363)=$N$3, NOT(evenWeek($C363)), $C363<= $F$352), (($F$352 + 1) - $C363 ) /14, 0) -> 0 | N363: =IF( AND( WEEKDAY($C363,2)=6,YEAR($C363)=$N$3, evenWeek($C363), $C363<=$F$352), (($F$352 + 1) - $C363 ) / 14, 0) -> 0 | O363: =IF( AND( WEEKDAY($C363,2)=6,YEAR($C363)=$N$3, NOT(evenWeek($C363)), $C363<= $F$352), (($F$352 + 1) - $C363 ) /14, 0) -> 0 | P363: =IF( AND( WEEKDAY($C363,2)=7,YEAR($C363)=$N$3, evenWeek($C363), $C363<=$F$352), (($F$352 + 1) - $C363 ) / 14, 0) -> 0 | Q363: =IF( AND( WEEKDAY($C363,2)=7,YEAR($C363)=$N$3, NOT(evenWeek($C363)), $C363<= $F$352), (($F$352 + 1) - $C363 ) /14, 0) -> 0
C364: 1904-01-09 | D364: =IF( AND( WEEKDAY($C364,2)=1,YEAR($C364)=$N$3, evenWeek($C364), $C364<=$F$352), (($F$352 + 1) - $C364 ) / 14, 0) -> 0 | E364: =IF( AND( WEEKDAY($C364,2)=1,YEAR($C364)=$N$3, NOT(evenWeek($C364)), $C364<= $F$352), (($F$352 + 1) - $C364 ) /14, 0) -> 0 | F364: =IF( AND( WEEKDAY($C364,2)=2,YEAR($C364)=$N$3, evenWeek($C364), $C364<=$F$352), (($F$352 + 1) - $C364 ) / 14, 0) -> 0 | G364: =IF( AND( WEEKDAY($C364,2)=2,YEAR($C364)=$N$3, NOT(evenWeek($C364)), $C364<= $F$352), (($F$352 + 1) - $C364 ) /14, 0) -> 0 | H364: =IF( AND( WEEKDAY($C364,2)=3,YEAR($C364)=$N$3, evenWeek($C364), $C364<=$F$352), (($F$352 + 1) - $C364 ) / 14, 0) -> 0 | I364: =IF( AND( WEEKDAY($C364,2)=3,YEAR($C364)=$N$3, NOT(evenWeek($C364)), $C364<= $F$352), (($F$352 + 1) - $C364 ) /14, 0) -> 0 | J364: =IF( AND( WEEKDAY($C364,2)=4,YEAR($C364)=$N$3, evenWeek($C364), $C364<=$F$352), (($F$352 + 1) - $C364 ) / 14, 0) -> 0 | K364: =IF( AND( WEEKDAY($C364,2)=4,YEAR($C364)=$N$3, NOT(evenWeek($C364)), $C364<= $F$352), (($F$352 + 1) - $C364 ) /14, 0) -> 0 | L364: =IF( AND( WEEKDAY($C364,2)=5,YEAR($C364)=$N$3, evenWeek($C364), $C364<=$F$352), (($F$352 + 1) - $C364 ) / 14, 0) -> 0 | M364: =IF( AND( WEEKDAY($C364,2)=5,YEAR($C364)=$N$3, NOT(evenWeek($C364)), $C364<= $F$352), (($F$352 + 1) - $C364 ) /14, 0) -> 0 | N364: =IF( AND( WEEKDAY($C364,2)=6,YEAR($C364)=$N$3, evenWeek($C364), $C364<=$F$352), (($F$352 + 1) - $C364 ) / 14, 0) -> 0 | O364: =IF( AND( WEEKDAY($C364,2)=6,YEAR($C364)=$N$3, NOT(evenWeek($C364)), $C364<= $F$352), (($F$352 + 1) - $C364 ) /14, 0) -> 0 | P364: =IF( AND( WEEKDAY($C364,2)=7,YEAR($C364)=$N$3, evenWeek($C364), $C364<=$F$352), (($F$352 + 1) - $C364 ) / 14, 0) -> 0 | Q364: =IF( AND( WEEKDAY($C364,2)=7,YEAR($C364)=$N$3, NOT(evenWeek($C364)), $C364<= $F$352), (($F$352 + 1) - $C364 ) /14, 0) -> 0
C365: 1904-01-10 | D365: =IF( AND( WEEKDAY($C365,2)=1,YEAR($C365)=$N$3, evenWeek($C365), $C365<=$F$352), (($F$352 + 1) - $C365 ) / 14, 0) -> 0 | E365: =IF( AND( WEEKDAY($C365,2)=1,YEAR($C365)=$N$3, NOT(evenWeek($C365)), $C365<= $F$352), (($F$352 + 1) - $C365 ) /14, 0) -> 0 | F365: =IF( AND( WEEKDAY($C365,2)=2,YEAR($C365)=$N$3, evenWeek($C365), $C365<=$F$352), (($F$352 + 1) - $C365 ) / 14, 0) -> 0 | G365: =IF( AND( WEEKDAY($C365,2)=2,YEAR($C365)=$N$3, NOT(evenWeek($C365)), $C365<= $F$352), (($F$352 + 1) - $C365 ) /14, 0) -> 0 | H365: =IF( AND( WEEKDAY($C365,2)=3,YEAR($C365)=$N$3, evenWeek($C365), $C365<=$F$352), (($F$352 + 1) - $C365 ) / 14, 0) -> 0 | I365: =IF( AND( WEEKDAY($C365,2)=3,YEAR($C365)=$N$3, NOT(evenWeek($C365)), $C365<= $F$352), (($F$352 + 1) - $C365 ) /14, 0) -> 0 | J365: =IF( AND( WEEKDAY($C365,2)=4,YEAR($C365)=$N$3, evenWeek($C365), $C365<=$F$352), (($F$352 + 1) - $C365 ) / 14, 0) -> 0 | K365: =IF( AND( WEEKDAY($C365,2)=4,YEAR($C365)=$N$3, NOT(evenWeek($C365)), $C365<= $F$352), (($F$352 + 1) - $C365 ) /14, 0) -> 0 | L365: =IF( AND( WEEKDAY($C365,2)=5,YEAR($C365)=$N$3, evenWeek($C365), $C365<=$F$352), (($F$352 + 1) - $C365 ) / 14, 0) -> 0 | M365: =IF( AND( WEEKDAY($C365,2)=5,YEAR($C365)=$N$3, NOT(evenWeek($C365)), $C365<= $F$352), (($F$352 + 1) - $C365 ) /14, 0) -> 0 | N365: =IF( AND( WEEKDAY($C365,2)=6,YEAR($C365)=$N$3, evenWeek($C365), $C365<=$F$352), (($F$352 + 1) - $C365 ) / 14, 0) -> 0 | O365: =IF( AND( WEEKDAY($C365,2)=6,YEAR($C365)=$N$3, NOT(evenWeek($C365)), $C365<= $F$352), (($F$352 + 1) - $C365 ) /14, 0) -> 0 | P365: =IF( AND( WEEKDAY($C365,2)=7,YEAR($C365)=$N$3, evenWeek($C365), $C365<=$F$352), (($F$352 + 1) - $C365 ) / 14, 0) -> 0 | Q365: =IF( AND( WEEKDAY($C365,2)=7,YEAR($C365)=$N$3, NOT(evenWeek($C365)), $C365<= $F$352), (($F$352 + 1) - $C365 ) /14, 0) -> 0
C366: =C365+1 -> 1904-01-11 | D366: =IF( AND( WEEKDAY($C366,2)=1,YEAR($C366)=$N$3, evenWeek($C366), $C366<=$F$352), (($F$352 + 1) - $C366 ) / 14, 0) -> 0 | E366: =IF( AND( WEEKDAY($C366,2)=1,YEAR($C366)=$N$3, NOT(evenWeek($C366)), $C366<= $F$352), (($F$352 + 1) - $C366 ) /14, 0) -> 0 | F366: =IF( AND( WEEKDAY($C366,2)=2,YEAR($C366)=$N$3, evenWeek($C366), $C366<=$F$352), (($F$352 + 1) - $C366 ) / 14, 0) -> 0 | G366: =IF( AND( WEEKDAY($C366,2)=2,YEAR($C366)=$N$3, NOT(evenWeek($C366)), $C366<= $F$352), (($F$352 + 1) - $C366 ) /14, 0) -> 0 | H366: =IF( AND( WEEKDAY($C366,2)=3,YEAR($C366)=$N$3, evenWeek($C366), $C366<=$F$352), (($F$352 + 1) - $C366 ) / 14, 0) -> 0 | I366: =IF( AND( WEEKDAY($C366,2)=3,YEAR($C366)=$N$3, NOT(evenWeek($C366)), $C366<= $F$352), (($F$352 + 1) - $C366 ) /14, 0) -> 0 | J366: =IF( AND( WEEKDAY($C366,2)=4,YEAR($C366)=$N$3, evenWeek($C366), $C366<=$F$352), (($F$352 + 1) - $C366 ) / 14, 0) -> 0 | K366: =IF( AND( WEEKDAY($C366,2)=4,YEAR($C366)=$N$3, NOT(evenWeek($C366)), $C366<= $F$352), (($F$352 + 1) - $C366 ) /14, 0) -> 0 | L366: =IF( AND( WEEKDAY($C366,2)=5,YEAR($C366)=$N$3, evenWeek($C366), $C366<=$F$352), (($F$352 + 1) - $C366 ) / 14, 0) -> 0 | M366: =IF( AND( WEEKDAY($C366,2)=5,YEAR($C366)=$N$3, NOT(evenWeek($C366)), $C366<= $F$352), (($F$352 + 1) - $C366 ) /14, 0) -> 0 | N366: =IF( AND( WEEKDAY($C366,2)=6,YEAR($C366)=$N$3, evenWeek($C366), $C366<=$F$352), (($F$352 + 1) - $C366 ) / 14, 0) -> 0 | O366: =IF( AND( WEEKDAY($C366,2)=6,YEAR($C366)=$N$3, NOT(evenWeek($C366)), $C366<= $F$352), (($F$352 + 1) - $C366 ) /14, 0) -> 0 | P366: =IF( AND( WEEKDAY($C366,2)=7,YEAR($C366)=$N$3, evenWeek($C366), $C366<=$F$352), (($F$352 + 1) - $C366 ) / 14, 0) -> 0 | Q366: =IF( AND( WEEKDAY($C366,2)=7,YEAR($C366)=$N$3, NOT(evenWeek($C366)), $C366<= $F$352), (($F$352 + 1) - $C366 ) /14, 0) -> 0
C367: 1904-01-12 | D367: =IF( AND( WEEKDAY($C367,2)=1,YEAR($C367)=$N$3, evenWeek($C367), $C367<=$F$352), (($F$352 + 1) - $C367 ) / 14, 0) -> 0 | E367: =IF( AND( WEEKDAY($C367,2)=1,YEAR($C367)=$N$3, NOT(evenWeek($C367)), $C367<= $F$352), (($F$352 + 1) - $C367 ) /14, 0) -> 0 | F367: =IF( AND( WEEKDAY($C367,2)=2,YEAR($C367)=$N$3, evenWeek($C367), $C367<=$F$352), (($F$352 + 1) - $C367 ) / 14, 0) -> 0 | G367: =IF( AND( WEEKDAY($C367,2)=2,YEAR($C367)=$N$3, NOT(evenWeek($C367)), $C367<= $F$352), (($F$352 + 1) - $C367 ) /14, 0) -> 0 | H367: =IF( AND( WEEKDAY($C367,2)=3,YEAR($C367)=$N$3, evenWeek($C367), $C367<=$F$352), (($F$352 + 1) - $C367 ) / 14, 0) -> 0 | I367: =IF( AND( WEEKDAY($C367,2)=3,YEAR($C367)=$N$3, NOT(evenWeek($C367)), $C367<= $F$352), (($F$352 + 1) - $C367 ) /14, 0) -> 0 | J367: =IF( AND( WEEKDAY($C367,2)=4,YEAR($C367)=$N$3, evenWeek($C367), $C367<=$F$352), (($F$352 + 1) - $C367 ) / 14, 0) -> 0 | K367: =IF( AND( WEEKDAY($C367,2)=4,YEAR($C367)=$N$3, NOT(evenWeek($C367)), $C367<= $F$352), (($F$352 + 1) - $C367 ) /14, 0) -> 0 | L367: =IF( AND( WEEKDAY($C367,2)=5,YEAR($C367)=$N$3, evenWeek($C367), $C367<=$F$352), (($F$352 + 1) - $C367 ) / 14, 0) -> 0 | M367: =IF( AND( WEEKDAY($C367,2)=5,YEAR($C367)=$N$3, NOT(evenWeek($C367)), $C367<= $F$352), (($F$352 + 1) - $C367 ) /14, 0) -> 0 | N367: =IF( AND( WEEKDAY($C367,2)=6,YEAR($C367)=$N$3, evenWeek($C367), $C367<=$F$352), (($F$352 + 1) - $C367 ) / 14, 0) -> 0 | O367: =IF( AND( WEEKDAY($C367,2)=6,YEAR($C367)=$N$3, NOT(evenWeek($C367)), $C367<= $F$352), (($F$352 + 1) - $C367 ) /14, 0) -> 0 | P367: =IF( AND( WEEKDAY($C367,2)=7,YEAR($C367)=$N$3, evenWeek($C367), $C367<=$F$352), (($F$352 + 1) - $C367 ) / 14, 0) -> 0 | Q367: =IF( AND( WEEKDAY($C367,2)=7,YEAR($C367)=$N$3, NOT(evenWeek($C367)), $C367<= $F$352), (($F$352 + 1) - $C367 ) /14, 0) -> 0
C368: 1904-01-13 | D368: =IF( AND( WEEKDAY($C368,2)=1,YEAR($C368)=$N$3, evenWeek($C368), $C368<=$F$352), (($F$352 + 1) - $C368 ) / 14, 0) -> 0 | E368: =IF( AND( WEEKDAY($C368,2)=1,YEAR($C368)=$N$3, NOT(evenWeek($C368)), $C368<= $F$352), (($F$352 + 1) - $C368 ) /14, 0) -> 0 | F368: =IF( AND( WEEKDAY($C368,2)=2,YEAR($C368)=$N$3, evenWeek($C368), $C368<=$F$352), (($F$352 + 1) - $C368 ) / 14, 0) -> 0 | G368: =IF( AND( WEEKDAY($C368,2)=2,YEAR($C368)=$N$3, NOT(evenWeek($C368)), $C368<= $F$352), (($F$352 + 1) - $C368 ) /14, 0) -> 0 | H368: =IF( AND( WEEKDAY($C368,2)=3,YEAR($C368)=$N$3, evenWeek($C368), $C368<=$F$352), (($F$352 + 1) - $C368 ) / 14, 0) -> 0 | I368: =IF( AND( WEEKDAY($C368,2)=3,YEAR($C368)=$N$3, NOT(evenWeek($C368)), $C368<= $F$352), (($F$352 + 1) - $C368 ) /14, 0) -> 0 | J368: =IF( AND( WEEKDAY($C368,2)=4,YEAR($C368)=$N$3, evenWeek($C368), $C368<=$F$352), (($F$352 + 1) - $C368 ) / 14, 0) -> 0 | K368: =IF( AND( WEEKDAY($C368,2)=4,YEAR($C368)=$N$3, NOT(evenWeek($C368)), $C368<= $F$352), (($F$352 + 1) - $C368 ) /14, 0) -> 0 | L368: =IF( AND( WEEKDAY($C368,2)=5,YEAR($C368)=$N$3, evenWeek($C368), $C368<=$F$352), (($F$352 + 1) - $C368 ) / 14, 0) -> 0 | M368: =IF( AND( WEEKDAY($C368,2)=5,YEAR($C368)=$N$3, NOT(evenWeek($C368)), $C368<= $F$352), (($F$352 + 1) - $C368 ) /14, 0) -> 0 | N368: =IF( AND( WEEKDAY($C368,2)=6,YEAR($C368)=$N$3, evenWeek($C368), $C368<=$F$352), (($F$352 + 1) - $C368 ) / 14, 0) -> 0 | O368: =IF( AND( WEEKDAY($C368,2)=6,YEAR($C368)=$N$3, NOT(evenWeek($C368)), $C368<= $F$352), (($F$352 + 1) - $C368 ) /14, 0) -> 0 | P368: =IF( AND( WEEKDAY($C368,2)=7,YEAR($C368)=$N$3, evenWeek($C368), $C368<=$F$352), (($F$352 + 1) - $C368 ) / 14, 0) -> 0 | Q368: =IF( AND( WEEKDAY($C368,2)=7,YEAR($C368)=$N$3, NOT(evenWeek($C368)), $C368<= $F$352), (($F$352 + 1) - $C368 ) /14, 0) -> 0
C369: =C368+1 -> 1904-01-14 | D369: =IF( AND( WEEKDAY($C369,2)=1,YEAR($C369)=$N$3, evenWeek($C369), $C369<=$F$352), (($F$352 + 1) - $C369 ) / 14, 0) -> 0 | E369: =IF( AND( WEEKDAY($C369,2)=1,YEAR($C369)=$N$3, NOT(evenWeek($C369)), $C369<= $F$352), (($F$352 + 1) - $C369 ) /14, 0) -> 0 | F369: =IF( AND( WEEKDAY($C369,2)=2,YEAR($C369)=$N$3, evenWeek($C369), $C369<=$F$352), (($F$352 + 1) - $C369 ) / 14, 0) -> 0 | G369: =IF( AND( WEEKDAY($C369,2)=2,YEAR($C369)=$N$3, NOT(evenWeek($C369)), $C369<= $F$352), (($F$352 + 1) - $C369 ) /14, 0) -> 0 | H369: =IF( AND( WEEKDAY($C369,2)=3,YEAR($C369)=$N$3, evenWeek($C369), $C369<=$F$352), (($F$352 + 1) - $C369 ) / 14, 0) -> 0 | I369: =IF( AND( WEEKDAY($C369,2)=3,YEAR($C369)=$N$3, NOT(evenWeek($C369)), $C369<= $F$352), (($F$352 + 1) - $C369 ) /14, 0) -> 0 | J369: =IF( AND( WEEKDAY($C369,2)=4,YEAR($C369)=$N$3, evenWeek($C369), $C369<=$F$352), (($F$352 + 1) - $C369 ) / 14, 0) -> 0 | K369: =IF( AND( WEEKDAY($C369,2)=4,YEAR($C369)=$N$3, NOT(evenWeek($C369)), $C369<= $F$352), (($F$352 + 1) - $C369 ) /14, 0) -> 0 | L369: =IF( AND( WEEKDAY($C369,2)=5,YEAR($C369)=$N$3, evenWeek($C369), $C369<=$F$352), (($F$352 + 1) - $C369 ) / 14, 0) -> 0 | M369: =IF( AND( WEEKDAY($C369,2)=5,YEAR($C369)=$N$3, NOT(evenWeek($C369)), $C369<= $F$352), (($F$352 + 1) - $C369 ) /14, 0) -> 0 | N369: =IF( AND( WEEKDAY($C369,2)=6,YEAR($C369)=$N$3, evenWeek($C369), $C369<=$F$352), (($F$352 + 1) - $C369 ) / 14, 0) -> 0 | O369: =IF( AND( WEEKDAY($C369,2)=6,YEAR($C369)=$N$3, NOT(evenWeek($C369)), $C369<= $F$352), (($F$352 + 1) - $C369 ) /14, 0) -> 0 | P369: =IF( AND( WEEKDAY($C369,2)=7,YEAR($C369)=$N$3, evenWeek($C369), $C369<=$F$352), (($F$352 + 1) - $C369 ) / 14, 0) -> 0 | Q369: =IF( AND( WEEKDAY($C369,2)=7,YEAR($C369)=$N$3, NOT(evenWeek($C369)), $C369<= $F$352), (($F$352 + 1) - $C369 ) /14, 0) -> 0
C370: # dagen: | D370: =ROUNDUP(SUM(D356:D369),0) -> 0 | E370: 0 | F370: 0 | G370: 0 | H370: 0 | I370: 0 | J370: 0 | K370: 0 | L370: 0 | M370: 0 | N370: =ROUNDUP(SUM(N356:N369),0) -> 0 | O370: =ROUNDUP(SUM(O356:O369),0) -> 0 | P370: =ROUNDUP(SUM(P356:P369),0) -> 0 | Q370: =ROUNDUP(SUM(Q356:Q369),0) -> 0
C373: NCF dagen | D373: ma even | E373: ma oneven | F373: di even | G373: di oneven | H373: wo even | I373: wo oneven | J373: do even | K373: do oneven | L373: vr even | M373: vr oneven | N373: za even | O373: za oneven | P373: zo even | Q373: zo oneven | R373: totaal
B374: =#REF! ->  | C374: =#REF! ->  | D374: =IF( AND($C374>($D$352-1),$C374<($F$352+1),WEEKDAY($C374,2)=1, evenWeek($C374) ),-1,"") ->  | E374: =IF( AND($C374>($D$352-1),$C374<($F$352+1),WEEKDAY($C374,2)=1, NOT(evenWeek($C374)) ),-1,"") ->  | F374: =IF( AND($C374>($D$352-1),$C374<($F$352+1),WEEKDAY($C374,2)=2, evenWeek($C374) ),-1,"") ->  | G374: =IF( AND($C374>($D$352-1),$C374<($F$352+1),WEEKDAY($C374,2)=2, NOT(evenWeek($C374)) ),-1,"") ->  | H374: =IF( AND($C374>($D$352-1),$C374<($F$352+1),WEEKDAY($C374,2)=3, evenWeek($C374) ),-1,"") ->  | I374: =IF( AND($C374>($D$352-1),$C374<($F$352+1),WEEKDAY($C374,2)=3, NOT(evenWeek($C374)) ),-1,"") ->  | J374: =IF( AND($C374>($D$352-1),$C374<($F$352+1),WEEKDAY($C374,2)=4, evenWeek($C374) ),-1,"") ->  | K374: =IF( AND($C374>($D$352-1),$C374<($F$352+1),WEEKDAY($C374,2)=4, NOT(evenWeek($C374)) ),-1,"") ->  | L374: =IF( AND($C374>($D$352-1),$C374<($F$352+1),WEEKDAY($C374,2)=5, evenWeek($C374) ),-1,"") ->  | M374: =IF( AND($C374>($D$352-1),$C374<($F$352+1),WEEKDAY($C374,2)=5, NOT(evenWeek($C374)) ),-1,"") ->  | N374: =IF( AND($C374>($D$352-1),$C374<($F$352+1),WEEKDAY($C374,2)=6, evenWeek($C374) ),-1,"") ->  | O374: =IF( AND($C374>($D$352-1),$C374<($F$352+1),WEEKDAY($C374,2)=6, NOT(evenWeek($C374)) ),-1,"") ->  | P374: =IF( AND($C374>($D$352-1),$C374<($F$352+1),WEEKDAY($C374,2)=7, evenWeek($C374) ),-1,"") ->  | Q374: =IF( AND($C374>($D$352-1),$C374<($F$352+1),WEEKDAY($C374,2)=7, NOT(evenWeek($C374)) ),-1,"") -> 
B375: =#REF! ->  | C375: =#REF! ->  | L375: =IF( AND($C375>($D$352-1),$C375<($F$352+1), evenWeek($C375) ),-1,"") ->  | M375: =IF( AND($C375>($D$352-1),$C375<($F$352+1), NOT(evenWeek($C375))),-1,"") -> 
B376: =#REF! ->  | C376: =#REF! ->  | D376: =IF( AND($C376>($D$352-1),$C376<($F$352+1), evenWeek($C376) ),-1,"") ->  | E376: =IF( AND($C376>($D$352-1),$C376<($F$352+1), NOT(evenWeek($C376))),-1,"") -> 
B377: =#REF! ->  | C377: =#REF! ->  | D377: =IF( AND($C377>($D$352-1),$C377<($F$352+1),WEEKDAY($C377,2)=1, evenWeek($C377) ),-1,"") ->  | E377: =IF( AND($C377>($D$352-1),$C377<($F$352+1),WEEKDAY($C377,2)=1, NOT(evenWeek($C377)) ),-1,"") ->  | F377: =IF( AND($C377>($D$352-1),$C377<($F$352+1),WEEKDAY($C377,2)=2, evenWeek($C377) ),-1,"") ->  | G377: =IF( AND($C377>($D$352-1),$C377<($F$352+1),WEEKDAY($C377,2)=2, NOT(evenWeek($C377)) ),-1,"") ->  | H377: =IF( AND($C377>($D$352-1),$C377<($F$352+1),WEEKDAY($C377,2)=3, evenWeek($C377) ),-1,"") ->  | I377: =IF( AND($C377>($D$352-1),$C377<($F$352+1),WEEKDAY($C377,2)=3, NOT(evenWeek($C377)) ),-1,"") ->  | J377: =IF( AND($C377>($D$352-1),$C377<($F$352+1),WEEKDAY($C377,2)=4, evenWeek($C377) ),-1,"") ->  | K377: =IF( AND($C377>($D$352-1),$C377<($F$352+1),WEEKDAY($C377,2)=4, NOT(evenWeek($C377)) ),-1,"") ->  | L377: =IF( AND($C377>($D$352-1),$C377<($F$352+1),WEEKDAY($C377,2)=5, evenWeek($C377) ),-1,"") ->  | M377: =IF( AND($C377>($D$352-1),$C377<($F$352+1),WEEKDAY($C377,2)=5, NOT(evenWeek($C377)) ),-1,"") ->  | N377: =IF( AND($C377>($D$352-1),$C377<($F$352+1),WEEKDAY($C377,2)=6, evenWeek($C377) ),-1,"") ->  | O377: =IF( AND($C377>($D$352-1),$C377<($F$352+1),WEEKDAY($C377,2)=6, NOT(evenWeek($C377)) ),-1,"") ->  | P377: =IF( AND($C377>($D$352-1),$C377<($F$352+1),WEEKDAY($C377,2)=7, evenWeek($C377) ),-1,"") ->  | Q377: =IF( AND($C377>($D$352-1),$C377<($F$352+1),WEEKDAY($C377,2)=7, NOT(evenWeek($C377)) ),-1,"") -> 
B378: =#REF! ->  | C378: =#REF! ->  | D378: =IF( AND($C378>($D$352-1),$C378<($F$352+1),WEEKDAY($C378,2)=1, evenWeek($C378) ),-1,"") ->  | E378: =IF( AND($C378>($D$352-1),$C378<($F$352+1),WEEKDAY($C378,2)=1, NOT(evenWeek($C378)) ),-1,"") ->  | F378: =IF( AND($C378>($D$352-1),$C378<($F$352+1),WEEKDAY($C378,2)=2, evenWeek($C378) ),-1,"") ->  | G378: =IF( AND($C378>($D$352-1),$C378<($F$352+1),WEEKDAY($C378,2)=2, NOT(evenWeek($C378)) ),-1,"") ->  | H378: =IF( AND($C378>($D$352-1),$C378<($F$352+1),WEEKDAY($C378,2)=3, evenWeek($C378) ),-1,"") ->  | I378: =IF( AND($C378>($D$352-1),$C378<($F$352+1),WEEKDAY($C378,2)=3, NOT(evenWeek($C378)) ),-1,"") ->  | J378: =IF( AND($C378>($D$352-1),$C378<($F$352+1),WEEKDAY($C378,2)=4, evenWeek($C378) ),-1,"") ->  | K378: =IF( AND($C378>($D$352-1),$C378<($F$352+1),WEEKDAY($C378,2)=4, NOT(evenWeek($C378)) ),-1,"") ->  | L378: =IF( AND($C378>($D$352-1),$C378<($F$352+1),WEEKDAY($C378,2)=5, evenWeek($C378) ),-1,"") ->  | M378: =IF( AND($C378>($D$352-1),$C378<($F$352+1),WEEKDAY($C378,2)=5, NOT(evenWeek($C378)) ),-1,"") ->  | N378: =IF( AND($C378>($D$352-1),$C378<($F$352+1),WEEKDAY($C378,2)=6, evenWeek($C378) ),-1,"") ->  | O378: =IF( AND($C378>($D$352-1),$C378<($F$352+1),WEEKDAY($C378,2)=6, NOT(evenWeek($C378)) ),-1,"") ->  | P378: =IF( AND($C378>($D$352-1),$C378<($F$352+1),WEEKDAY($C378,2)=7, evenWeek($C378) ),-1,"") ->  | Q378: =IF( AND($C378>($D$352-1),$C378<($F$352+1),WEEKDAY($C378,2)=7, NOT(evenWeek($C378)) ),-1,"") -> 
B379: =#REF! ->  | C379: =#REF! ->  | J379: =IF( AND($C379>($D$352-1),$C379<($F$352+1), evenWeek($C379) ),-1,"") ->  | K379: =IF( AND($C379>($D$352-1),$C379<($F$352+1), NOT(evenWeek($C379))),-1,"") -> 
B380: =#REF! ->  | C380: =#REF! ->  | D380: =IF( AND($C380>($D$352-1),$C380<($F$352+1), evenWeek($C380) ),-1,"") ->  | E380: =IF( AND($C380>($D$352-1),$C380<($F$352+1), NOT(evenWeek($C380))),-1,"") -> 
B381: =#REF! ->  | C381: =#REF! ->  | D381: =IF( AND($C381>($D$352-1),$C381<($F$352+1),WEEKDAY($C381,2)=1, evenWeek($C381) ),-1,"") ->  | E381: =IF( AND($C381>($D$352-1),$C381<($F$352+1),WEEKDAY($C381,2)=1, NOT(evenWeek($C381)) ),-1,"") ->  | F381: =IF( AND($C381>($D$352-1),$C381<($F$352+1),WEEKDAY($C381,2)=2, evenWeek($C381) ),-1,"") ->  | G381: =IF( AND($C381>($D$352-1),$C381<($F$352+1),WEEKDAY($C381,2)=2, NOT(evenWeek($C381)) ),-1,"") ->  | H381: =IF( AND($C381>($D$352-1),$C381<($F$352+1),WEEKDAY($C381,2)=3, evenWeek($C381) ),-1,"") ->  | I381: =IF( AND($C381>($D$352-1),$C381<($F$352+1),WEEKDAY($C381,2)=3, NOT(evenWeek($C381)) ),-1,"") ->  | J381: =IF( AND($C381>($D$352-1),$C381<($F$352+1),WEEKDAY($C381,2)=4, evenWeek($C381) ),-1,"") ->  | K381: =IF( AND($C381>($D$352-1),$C381<($F$352+1),WEEKDAY($C381,2)=4, NOT(evenWeek($C381)) ),-1,"") ->  | L381: =IF( AND($C381>($D$352-1),$C381<($F$352+1),WEEKDAY($C381,2)=5, evenWeek($C381) ),-1,"") ->  | M381: =IF( AND($C381>($D$352-1),$C381<($F$352+1),WEEKDAY($C381,2)=5, NOT(evenWeek($C381)) ),-1,"") ->  | N381: =IF( AND($C381>($D$352-1),$C381<($F$352+1),WEEKDAY($C381,2)=6, evenWeek($C381) ),-1,"") ->  | O381: =IF( AND($C381>($D$352-1),$C381<($F$352+1),WEEKDAY($C381,2)=6, NOT(evenWeek($C381)) ),-1,"") ->  | P381: =IF( AND($C381>($D$352-1),$C381<($F$352+1),WEEKDAY($C381,2)=7, evenWeek($C381) ),-1,"") ->  | Q381: =IF( AND($C381>($D$352-1),$C381<($F$352+1),WEEKDAY($C381,2)=7, NOT(evenWeek($C381)) ),-1,"") -> 
B382: =#REF! ->  | C382: =#REF! ->  | D382: =IF( AND($C382>($D$352-1),$C382<($F$352+1),WEEKDAY($C382,2)=1, evenWeek($C382) ),-1,"") ->  | E382: =IF( AND($C382>($D$352-1),$C382<($F$352+1),WEEKDAY($C382,2)=1, NOT(evenWeek($C382)) ),-1,"") ->  | F382: =IF( AND($C382>($D$352-1),$C382<($F$352+1),WEEKDAY($C382,2)=2, evenWeek($C382) ),-1,"") ->  | G382: =IF( AND($C382>($D$352-1),$C382<($F$352+1),WEEKDAY($C382,2)=2, NOT(evenWeek($C382)) ),-1,"") ->  | H382: =IF( AND($C382>($D$352-1),$C382<($F$352+1),WEEKDAY($C382,2)=3, evenWeek($C382) ),-1,"") ->  | I382: =IF( AND($C382>($D$352-1),$C382<($F$352+1),WEEKDAY($C382,2)=3, NOT(evenWeek($C382)) ),-1,"") ->  | J382: =IF( AND($C382>($D$352-1),$C382<($F$352+1),WEEKDAY($C382,2)=4, evenWeek($C382) ),-1,"") ->  | K382: =IF( AND($C382>($D$352-1),$C382<($F$352+1),WEEKDAY($C382,2)=4, NOT(evenWeek($C382)) ),-1,"") ->  | L382: =IF( AND($C382>($D$352-1),$C382<($F$352+1),WEEKDAY($C382,2)=5, evenWeek($C382) ),-1,"") ->  | M382: =IF( AND($C382>($D$352-1),$C382<($F$352+1),WEEKDAY($C382,2)=5, NOT(evenWeek($C382)) ),-1,"") ->  | N382: =IF( AND($C382>($D$352-1),$C382<($F$352+1),WEEKDAY($C382,2)=6, evenWeek($C382) ),-1,"") ->  | O382: =IF( AND($C382>($D$352-1),$C382<($F$352+1),WEEKDAY($C382,2)=6, NOT(evenWeek($C382)) ),-1,"") ->  | P382: =IF( AND($C382>($D$352-1),$C382<($F$352+1),WEEKDAY($C382,2)=7, evenWeek($C382) ),-1,"") ->  | Q382: =IF( AND($C382>($D$352-1),$C382<($F$352+1),WEEKDAY($C382,2)=7, NOT(evenWeek($C382)) ),-1,"") -> 
B383: =#REF! ->  | C383: =#REF! -> 
B384: =#REF! ->  | C384: =#REF! -> 
B385: =#REF! ->  | C385: =#REF! -> 
B386: =#REF! ->  | C386: =#REF! -> 
B387: =#REF! ->  | C387: =#REF! -> 
B388: werkbare dagen | D388: =IF(OR(YEAR($D$352)<>$N$3,YEAR($F$352)<>$N$3),0,SUM(D370,D374:D387)) -> 0 | E388: 0 | F388: 0 | G388: 0 | H388: 0 | I388: 0 | J388: 0 | K388: 0 | L388: 0 | M388: 0 | N388: 0 | O388: 0 | P388: 0 | Q388: 0 | R388: =SUM(D388:O388) -> 0
B390: standaard werkweek | D390: 40 | E390: 38 | F390: 36
B391: bijbehorend verlofsaldo | D391: =#REF! ->  | E391: =#REF! ->  | F391: =#REF! -> 
B392: # werkdagen in jaar | C392: =#REF! -> 
B394: (Z) Periodefactor werkbare dagen per volledig kalenderjaar | K394: =IF(AND(D352>0,F352>0),R388/C392,0) -> 0
B396: (A) Omvang aanstelling in fulltime equivalenten (fte's) | K396: =DIENSTVERBANDGEGEVENS!J47 -> 0
I397: keuzerondje
B398: (B) Standaard werkweek bij volledige aanstelling, vul in 36, 38 of 40 | I398: 3 | K398: =IF(I398=1,36,IF(I398=2,38,IF(I398=3,40,0))) -> 40
B400: (C) Totaal aantal netto werkbare uren in periode 3 ( A * 1659 * Z ) | K400: =IF($N$4,K396*#REF!*K394,0) -> 
B402: (D) Bruto aantal werkbare uren bij aanstellingsomvang ( A * B ) | K402: =K396*K398 -> 0
B404: (E) Keuze tijdsbesteding | D404: maandag | E404: dinsdag | F404: woensdag | G404: donderdag | H404: vrijdag | I404: zaterdag | K404: gemiddeld
C405: even week | D405: =DIENSTVERBANDGEGEVENS!D56 -> 0 | E405: =DIENSTVERBANDGEGEVENS!E56 -> 0 | F405: =DIENSTVERBANDGEGEVENS!F56 -> 0 | G405: =DIENSTVERBANDGEGEVENS!G56 -> 0 | H405: =DIENSTVERBANDGEGEVENS!H56 -> 0 | I405: =DIENSTVERBANDGEGEVENS!I56 -> 0 | K405: totaal
B406: totaal even | D406: =D405*D388 -> 0 | E406: =E405*F388 -> 0 | F406: =F405*H388 -> 0 | G406: =G405*J388 -> 0 | H406: =H405*L388 -> 0 | I406: =I405*N388 -> 0
C407: oneven week | D407: =DIENSTVERBANDGEGEVENS!D58 -> 0 | E407: =DIENSTVERBANDGEGEVENS!E58 -> 0 | F407: =DIENSTVERBANDGEGEVENS!F58 -> 0 | G407: =DIENSTVERBANDGEGEVENS!G58 -> 0 | H407: =DIENSTVERBANDGEGEVENS!H58 -> 0 | I407: =DIENSTVERBANDGEGEVENS!I58 -> 0 | K407: =SUM(D405:I405,D407:I407)/2 -> 0
B408: totaal oneven | D408: =D407*E388 -> 0 | E408: =E407*G388 -> 0 | F408: =F407*I388 -> 0 | G408: =G407*K388 -> 0 | H408: =H407*M388 -> 0 | I408: =I407*O388 -> 0
B409: (F) werkbare uren (gecorrigeerd voor feestdagen en overige niet-werkbare dagen) | K409: =IF(AND(D352>0,F352>0,$N$4),SUM(D406:I406,D408:I408),0) -> 0
B411: (G) Bruto CAO verlofuren in periode 3 ( A * verlofsaldo * Z ) | K411: =SUM(K396*IF(K398=0,0,IF(K398=D390,D391,IF(K398=E390,E391,IF(K398=F390,F391,"")))))*K394 -> 
B413: (H) Werkbare uren gecorrigeerd voor bruto verlofuren ( F - G ) | K413: =IF(K402=0,0,K409-K411) -> 0
B415: (I) teveel (+) / te weinig (-) gewerkte uren ( H - C ) | K415: =K413-K400 -> 
B417: (J) Opgebouwde netto CAO verlofuren ( G + I ) | K417: =K411+K415 -> 
D421: =IF(D423,"datum !",IF(OR(D422=0,YEAR(D422)=$N$3),"","datum !")) ->  | F421: =IF(AND(D422>0,F422>0,F422<D422),"datum !",IF(OR(F423, AND(F422>0,YEAR(F422)<>$N$3)),"datum !","")) ->  | H421: p1 | I421: p2 | J421: p3 | K421: p5 | Q421: PERIODE 4
B422: PERIODE 4 | C422: van | D422: =IF(ISNUMBER(DIENSTVERBANDGEGEVENS!D64),DIENSTVERBANDGEGEVENS!D64,0) -> 1904-01-01 | E422: t/m | F422: =IF(ISNUMBER(DIENSTVERBANDGEGEVENS!F64),DIENSTVERBANDGEGEVENS!F64,0) -> 1904-01-01 | G422: =IF(AND(H422:K422),""," periode-overlapping") ->  | H422: =OR( D422=0,F422=0,D3=0,F3=0, AND($D$422>D3,$D$422>F3),AND($D$422<D3,$F$422<D3)) -> TRUE | I422: =OR( D422=0,F422=0,D15=0,F15=0, AND($D$422>D15,$D$422>F15),AND($D$422<D15,$F$422<D15)) -> TRUE | J422: =OR( D422=0,F422=0,D352=0,F352=0, AND($D$422>D352,$D$422>F352),AND($D$422<D352,$F$422<D352)) -> TRUE | K422: =OR( D422=0,F422=0,D492=0,F492=0, AND($D$422>D492,$D$422>F492),AND($D$422<D492,$F$422<D492)) -> TRUE
C423: tekst in datumcel | D423: =TYPE(DIENSTVERBANDGEGEVENS!D64)=2 -> FALSE | F423: =TYPE(DIENSTVERBANDGEGEVENS!F64)=2 -> FALSE
D425: ma even | E425: ma oneven | F425: di even | G425: di oneven | H425: wo even | I425: wo oneven | J425: do even | K425: do oneven | L425: vr even | M425: vr oneven | N425: za even | O425: za oneven | P425: zo even | Q425: zo oneven
C426: =D422 -> 1904-01-01 | D426: =IF( AND( WEEKDAY($C426,2)=1,YEAR($C426)=$N$3, evenWeek($C426), $C426<=$F$422), (($F$422 + 1) - $C426 ) / 14, 0) -> 0 | E426: =IF( AND( WEEKDAY($C426,2)=1,YEAR($C426)=$N$3, NOT(evenWeek($C426)), $C426<= $F$422), (($F$422 + 1) - $C426 ) /14, 0) -> 0 | F426: =IF( AND( WEEKDAY($C426,2)=2,YEAR($C426)=$N$3, evenWeek($C426), $C426<=$F$422), (($F$422 + 1) - $C426 ) / 14, 0) -> 0 | G426: =IF( AND( WEEKDAY($C426,2)=2,YEAR($C426)=$N$3, NOT(evenWeek($C426)), $C426<= $F$422), (($F$422 + 1) - $C426 ) /14, 0) -> 0 | H426: =IF( AND( WEEKDAY($C426,2)=3,YEAR($C426)=$N$3, evenWeek($C426), $C426<=$F$422), (($F$422 + 1) - $C426 ) / 14, 0) -> 0 | I426: =IF( AND( WEEKDAY($C426,2)=3,YEAR($C426)=$N$3, NOT(evenWeek($C426)), $C426<= $F$422), (($F$422 + 1) - $C426 ) /14, 0) -> 0 | J426: =IF( AND( WEEKDAY($C426,2)=4,YEAR($C426)=$N$3, evenWeek($C426), $C426<=$F$422), (($F$422 + 1) - $C426 ) / 14, 0) -> 0 | K426: =IF( AND( WEEKDAY($C426,2)=4,YEAR($C426)=$N$3, NOT(evenWeek($C426)), $C426<= $F$422), (($F$422 + 1) - $C426 ) /14, 0) -> 0 | L426: =IF( AND( WEEKDAY($C426,2)=5,YEAR($C426)=$N$3, evenWeek($C426), $C426<=$F$422), (($F$422 + 1) - $C426 ) / 14, 0) -> 0 | M426: =IF( AND( WEEKDAY($C426,2)=5,YEAR($C426)=$N$3, NOT(evenWeek($C426)), $C426<= $F$422), (($F$422 + 1) - $C426 ) /14, 0) -> 0 | N426: =IF( AND( WEEKDAY($C426,2)=6,YEAR($C426)=$N$3, evenWeek($C426), $C426<=$F$422), (($F$422 + 1) - $C426 ) / 14, 0) -> 0 | O426: =IF( AND( WEEKDAY($C426,2)=6,YEAR($C426)=$N$3, NOT(evenWeek($C426)), $C426<= $F$422), (($F$422 + 1) - $C426 ) /14, 0) -> 0 | P426: =IF( AND( WEEKDAY($C426,2)=7,YEAR($C426)=$N$3, evenWeek($C426), $C426<=$F$422), (($F$422 + 1) - $C426 ) / 14, 0) -> 0 | Q426: =IF( AND( WEEKDAY($C426,2)=7,YEAR($C426)=$N$3, NOT(evenWeek($C426)), $C426<= $F$422), (($F$422 + 1) - $C426 ) /14, 0) -> 0
C427: =C426+1 -> 1904-01-02 | D427: =IF( AND( WEEKDAY($C427,2)=1,YEAR($C427)=$N$3, evenWeek($C427), $C427<=$F$422), (($F$422 + 1) - $C427 ) / 14, 0) -> 0 | E427: =IF( AND( WEEKDAY($C427,2)=1,YEAR($C427)=$N$3, NOT(evenWeek($C427)), $C427<= $F$422), (($F$422 + 1) - $C427 ) /14, 0) -> 0 | F427: =IF( AND( WEEKDAY($C427,2)=2,YEAR($C427)=$N$3, evenWeek($C427), $C427<=$F$422), (($F$422 + 1) - $C427 ) / 14, 0) -> 0 | G427: =IF( AND( WEEKDAY($C427,2)=2,YEAR($C427)=$N$3, NOT(evenWeek($C427)), $C427<= $F$422), (($F$422 + 1) - $C427 ) /14, 0) -> 0 | H427: =IF( AND( WEEKDAY($C427,2)=3,YEAR($C427)=$N$3, evenWeek($C427), $C427<=$F$422), (($F$422 + 1) - $C427 ) / 14, 0) -> 0 | I427: =IF( AND( WEEKDAY($C427,2)=3,YEAR($C427)=$N$3, NOT(evenWeek($C427)), $C427<= $F$422), (($F$422 + 1) - $C427 ) /14, 0) -> 0 | J427: =IF( AND( WEEKDAY($C427,2)=4,YEAR($C427)=$N$3, evenWeek($C427), $C427<=$F$422), (($F$422 + 1) - $C427 ) / 14, 0) -> 0 | K427: =IF( AND( WEEKDAY($C427,2)=4,YEAR($C427)=$N$3, NOT(evenWeek($C427)), $C427<= $F$422), (($F$422 + 1) - $C427 ) /14, 0) -> 0 | L427: =IF( AND( WEEKDAY($C427,2)=5,YEAR($C427)=$N$3, evenWeek($C427), $C427<=$F$422), (($F$422 + 1) - $C427 ) / 14, 0) -> 0 | M427: =IF( AND( WEEKDAY($C427,2)=5,YEAR($C427)=$N$3, NOT(evenWeek($C427)), $C427<= $F$422), (($F$422 + 1) - $C427 ) /14, 0) -> 0 | N427: =IF( AND( WEEKDAY($C427,2)=6,YEAR($C427)=$N$3, evenWeek($C427), $C427<=$F$422), (($F$422 + 1) - $C427 ) / 14, 0) -> 0 | O427: =IF( AND( WEEKDAY($C427,2)=6,YEAR($C427)=$N$3, NOT(evenWeek($C427)), $C427<= $F$422), (($F$422 + 1) - $C427 ) /14, 0) -> 0 | P427: =IF( AND( WEEKDAY($C427,2)=7,YEAR($C427)=$N$3, evenWeek($C427), $C427<=$F$422), (($F$422 + 1) - $C427 ) / 14, 0) -> 0 | Q427: =IF( AND( WEEKDAY($C427,2)=7,YEAR($C427)=$N$3, NOT(evenWeek($C427)), $C427<= $F$422), (($F$422 + 1) - $C427 ) /14, 0) -> 0
C428: =C427+1 -> 1904-01-03 | D428: =IF( AND( WEEKDAY($C428,2)=1,YEAR($C428)=$N$3, evenWeek($C428), $C428<=$F$422), (($F$422 + 1) - $C428 ) / 14, 0) -> 0 | E428: =IF( AND( WEEKDAY($C428,2)=1,YEAR($C428)=$N$3, NOT(evenWeek($C428)), $C428<= $F$422), (($F$422 + 1) - $C428 ) /14, 0) -> 0 | F428: =IF( AND( WEEKDAY($C428,2)=2,YEAR($C428)=$N$3, evenWeek($C428), $C428<=$F$422), (($F$422 + 1) - $C428 ) / 14, 0) -> 0 | G428: =IF( AND( WEEKDAY($C428,2)=2,YEAR($C428)=$N$3, NOT(evenWeek($C428)), $C428<= $F$422), (($F$422 + 1) - $C428 ) /14, 0) -> 0 | H428: =IF( AND( WEEKDAY($C428,2)=3,YEAR($C428)=$N$3, evenWeek($C428), $C428<=$F$422), (($F$422 + 1) - $C428 ) / 14, 0) -> 0 | I428: =IF( AND( WEEKDAY($C428,2)=3,YEAR($C428)=$N$3, NOT(evenWeek($C428)), $C428<= $F$422), (($F$422 + 1) - $C428 ) /14, 0) -> 0 | J428: =IF( AND( WEEKDAY($C428,2)=4,YEAR($C428)=$N$3, evenWeek($C428), $C428<=$F$422), (($F$422 + 1) - $C428 ) / 14, 0) -> 0 | K428: =IF( AND( WEEKDAY($C428,2)=4,YEAR($C428)=$N$3, NOT(evenWeek($C428)), $C428<= $F$422), (($F$422 + 1) - $C428 ) /14, 0) -> 0 | L428: =IF( AND( WEEKDAY($C428,2)=5,YEAR($C428)=$N$3, evenWeek($C428), $C428<=$F$422), (($F$422 + 1) - $C428 ) / 14, 0) -> 0 | M428: =IF( AND( WEEKDAY($C428,2)=5,YEAR($C428)=$N$3, NOT(evenWeek($C428)), $C428<= $F$422), (($F$422 + 1) - $C428 ) /14, 0) -> 0 | N428: =IF( AND( WEEKDAY($C428,2)=6,YEAR($C428)=$N$3, evenWeek($C428), $C428<=$F$422), (($F$422 + 1) - $C428 ) / 14, 0) -> 0 | O428: =IF( AND( WEEKDAY($C428,2)=6,YEAR($C428)=$N$3, NOT(evenWeek($C428)), $C428<= $F$422), (($F$422 + 1) - $C428 ) /14, 0) -> 0 | P428: =IF( AND( WEEKDAY($C428,2)=7,YEAR($C428)=$N$3, evenWeek($C428), $C428<=$F$422), (($F$422 + 1) - $C428 ) / 14, 0) -> 0 | Q428: =IF( AND( WEEKDAY($C428,2)=7,YEAR($C428)=$N$3, NOT(evenWeek($C428)), $C428<= $F$422), (($F$422 + 1) - $C428 ) /14, 0) -> 0
C429: 1904-01-04 | D429: =IF( AND( WEEKDAY($C429,2)=1,YEAR($C429)=$N$3, evenWeek($C429), $C429<=$F$422), (($F$422 + 1) - $C429 ) / 14, 0) -> 0 | E429: =IF( AND( WEEKDAY($C429,2)=1,YEAR($C429)=$N$3, NOT(evenWeek($C429)), $C429<= $F$422), (($F$422 + 1) - $C429 ) /14, 0) -> 0 | F429: =IF( AND( WEEKDAY($C429,2)=2,YEAR($C429)=$N$3, evenWeek($C429), $C429<=$F$422), (($F$422 + 1) - $C429 ) / 14, 0) -> 0 | G429: =IF( AND( WEEKDAY($C429,2)=2,YEAR($C429)=$N$3, NOT(evenWeek($C429)), $C429<= $F$422), (($F$422 + 1) - $C429 ) /14, 0) -> 0 | H429: =IF( AND( WEEKDAY($C429,2)=3,YEAR($C429)=$N$3, evenWeek($C429), $C429<=$F$422), (($F$422 + 1) - $C429 ) / 14, 0) -> 0 | I429: =IF( AND( WEEKDAY($C429,2)=3,YEAR($C429)=$N$3, NOT(evenWeek($C429)), $C429<= $F$422), (($F$422 + 1) - $C429 ) /14, 0) -> 0 | J429: =IF( AND( WEEKDAY($C429,2)=4,YEAR($C429)=$N$3, evenWeek($C429), $C429<=$F$422), (($F$422 + 1) - $C429 ) / 14, 0) -> 0 | K429: =IF( AND( WEEKDAY($C429,2)=4,YEAR($C429)=$N$3, NOT(evenWeek($C429)), $C429<= $F$422), (($F$422 + 1) - $C429 ) /14, 0) -> 0 | L429: =IF( AND( WEEKDAY($C429,2)=5,YEAR($C429)=$N$3, evenWeek($C429), $C429<=$F$422), (($F$422 + 1) - $C429 ) / 14, 0) -> 0 | M429: =IF( AND( WEEKDAY($C429,2)=5,YEAR($C429)=$N$3, NOT(evenWeek($C429)), $C429<= $F$422), (($F$422 + 1) - $C429 ) /14, 0) -> 0 | N429: =IF( AND( WEEKDAY($C429,2)=6,YEAR($C429)=$N$3, evenWeek($C429), $C429<=$F$422), (($F$422 + 1) - $C429 ) / 14, 0) -> 0 | O429: =IF( AND( WEEKDAY($C429,2)=6,YEAR($C429)=$N$3, NOT(evenWeek($C429)), $C429<= $F$422), (($F$422 + 1) - $C429 ) /14, 0) -> 0 | P429: =IF( AND( WEEKDAY($C429,2)=7,YEAR($C429)=$N$3, evenWeek($C429), $C429<=$F$422), (($F$422 + 1) - $C429 ) / 14, 0) -> 0 | Q429: =IF( AND( WEEKDAY($C429,2)=7,YEAR($C429)=$N$3, NOT(evenWeek($C429)), $C429<= $F$422), (($F$422 + 1) - $C429 ) /14, 0) -> 0
C430: 1904-01-05 | D430: =IF( AND( WEEKDAY($C430,2)=1,YEAR($C430)=$N$3, evenWeek($C430), $C430<=$F$422), (($F$422 + 1) - $C430 ) / 14, 0) -> 0 | E430: =IF( AND( WEEKDAY($C430,2)=1,YEAR($C430)=$N$3, NOT(evenWeek($C430)), $C430<= $F$422), (($F$422 + 1) - $C430 ) /14, 0) -> 0 | F430: =IF( AND( WEEKDAY($C430,2)=2,YEAR($C430)=$N$3, evenWeek($C430), $C430<=$F$422), (($F$422 + 1) - $C430 ) / 14, 0) -> 0 | G430: =IF( AND( WEEKDAY($C430,2)=2,YEAR($C430)=$N$3, NOT(evenWeek($C430)), $C430<= $F$422), (($F$422 + 1) - $C430 ) /14, 0) -> 0 | H430: =IF( AND( WEEKDAY($C430,2)=3,YEAR($C430)=$N$3, evenWeek($C430), $C430<=$F$422), (($F$422 + 1) - $C430 ) / 14, 0) -> 0 | I430: =IF( AND( WEEKDAY($C430,2)=3,YEAR($C430)=$N$3, NOT(evenWeek($C430)), $C430<= $F$422), (($F$422 + 1) - $C430 ) /14, 0) -> 0 | J430: =IF( AND( WEEKDAY($C430,2)=4,YEAR($C430)=$N$3, evenWeek($C430), $C430<=$F$422), (($F$422 + 1) - $C430 ) / 14, 0) -> 0 | K430: =IF( AND( WEEKDAY($C430,2)=4,YEAR($C430)=$N$3, NOT(evenWeek($C430)), $C430<= $F$422), (($F$422 + 1) - $C430 ) /14, 0) -> 0 | L430: =IF( AND( WEEKDAY($C430,2)=5,YEAR($C430)=$N$3, evenWeek($C430), $C430<=$F$422), (($F$422 + 1) - $C430 ) / 14, 0) -> 0 | M430: =IF( AND( WEEKDAY($C430,2)=5,YEAR($C430)=$N$3, NOT(evenWeek($C430)), $C430<= $F$422), (($F$422 + 1) - $C430 ) /14, 0) -> 0 | N430: =IF( AND( WEEKDAY($C430,2)=6,YEAR($C430)=$N$3, evenWeek($C430), $C430<=$F$422), (($F$422 + 1) - $C430 ) / 14, 0) -> 0 | O430: =IF( AND( WEEKDAY($C430,2)=6,YEAR($C430)=$N$3, NOT(evenWeek($C430)), $C430<= $F$422), (($F$422 + 1) - $C430 ) /14, 0) -> 0 | P430: =IF( AND( WEEKDAY($C430,2)=7,YEAR($C430)=$N$3, evenWeek($C430), $C430<=$F$422), (($F$422 + 1) - $C430 ) / 14, 0) -> 0 | Q430: =IF( AND( WEEKDAY($C430,2)=7,YEAR($C430)=$N$3, NOT(evenWeek($C430)), $C430<= $F$422), (($F$422 + 1) - $C430 ) /14, 0) -> 0
C431: 1904-01-06 | D431: =IF( AND( WEEKDAY($C431,2)=1,YEAR($C431)=$N$3, evenWeek($C431), $C431<=$F$422), (($F$422 + 1) - $C431 ) / 14, 0) -> 0 | E431: =IF( AND( WEEKDAY($C431,2)=1,YEAR($C431)=$N$3, NOT(evenWeek($C431)), $C431<= $F$422), (($F$422 + 1) - $C431 ) /14, 0) -> 0 | F431: =IF( AND( WEEKDAY($C431,2)=2,YEAR($C431)=$N$3, evenWeek($C431), $C431<=$F$422), (($F$422 + 1) - $C431 ) / 14, 0) -> 0 | G431: =IF( AND( WEEKDAY($C431,2)=2,YEAR($C431)=$N$3, NOT(evenWeek($C431)), $C431<= $F$422), (($F$422 + 1) - $C431 ) /14, 0) -> 0 | H431: =IF( AND( WEEKDAY($C431,2)=3,YEAR($C431)=$N$3, evenWeek($C431), $C431<=$F$422), (($F$422 + 1) - $C431 ) / 14, 0) -> 0 | I431: =IF( AND( WEEKDAY($C431,2)=3,YEAR($C431)=$N$3, NOT(evenWeek($C431)), $C431<= $F$422), (($F$422 + 1) - $C431 ) /14, 0) -> 0 | J431: =IF( AND( WEEKDAY($C431,2)=4,YEAR($C431)=$N$3, evenWeek($C431), $C431<=$F$422), (($F$422 + 1) - $C431 ) / 14, 0) -> 0 | K431: =IF( AND( WEEKDAY($C431,2)=4,YEAR($C431)=$N$3, NOT(evenWeek($C431)), $C431<= $F$422), (($F$422 + 1) - $C431 ) /14, 0) -> 0 | L431: =IF( AND( WEEKDAY($C431,2)=5,YEAR($C431)=$N$3, evenWeek($C431), $C431<=$F$422), (($F$422 + 1) - $C431 ) / 14, 0) -> 0 | M431: =IF( AND( WEEKDAY($C431,2)=5,YEAR($C431)=$N$3, NOT(evenWeek($C431)), $C431<= $F$422), (($F$422 + 1) - $C431 ) /14, 0) -> 0 | N431: =IF( AND( WEEKDAY($C431,2)=6,YEAR($C431)=$N$3, evenWeek($C431), $C431<=$F$422), (($F$422 + 1) - $C431 ) / 14, 0) -> 0 | O431: =IF( AND( WEEKDAY($C431,2)=6,YEAR($C431)=$N$3, NOT(evenWeek($C431)), $C431<= $F$422), (($F$422 + 1) - $C431 ) /14, 0) -> 0 | P431: =IF( AND( WEEKDAY($C431,2)=7,YEAR($C431)=$N$3, evenWeek($C431), $C431<=$F$422), (($F$422 + 1) - $C431 ) / 14, 0) -> 0 | Q431: =IF( AND( WEEKDAY($C431,2)=7,YEAR($C431)=$N$3, NOT(evenWeek($C431)), $C431<= $F$422), (($F$422 + 1) - $C431 ) /14, 0) -> 0
C432: 1904-01-07 | D432: =IF( AND( WEEKDAY($C432,2)=1,YEAR($C432)=$N$3, evenWeek($C432), $C432<=$F$422), (($F$422 + 1) - $C432 ) / 14, 0) -> 0 | E432: =IF( AND( WEEKDAY($C432,2)=1,YEAR($C432)=$N$3, NOT(evenWeek($C432)), $C432<= $F$422), (($F$422 + 1) - $C432 ) /14, 0) -> 0 | F432: =IF( AND( WEEKDAY($C432,2)=2,YEAR($C432)=$N$3, evenWeek($C432), $C432<=$F$422), (($F$422 + 1) - $C432 ) / 14, 0) -> 0 | G432: =IF( AND( WEEKDAY($C432,2)=2,YEAR($C432)=$N$3, NOT(evenWeek($C432)), $C432<= $F$422), (($F$422 + 1) - $C432 ) /14, 0) -> 0 | H432: =IF( AND( WEEKDAY($C432,2)=3,YEAR($C432)=$N$3, evenWeek($C432), $C432<=$F$422), (($F$422 + 1) - $C432 ) / 14, 0) -> 0 | I432: =IF( AND( WEEKDAY($C432,2)=3,YEAR($C432)=$N$3, NOT(evenWeek($C432)), $C432<= $F$422), (($F$422 + 1) - $C432 ) /14, 0) -> 0 | J432: =IF( AND( WEEKDAY($C432,2)=4,YEAR($C432)=$N$3, evenWeek($C432), $C432<=$F$422), (($F$422 + 1) - $C432 ) / 14, 0) -> 0 | K432: =IF( AND( WEEKDAY($C432,2)=4,YEAR($C432)=$N$3, NOT(evenWeek($C432)), $C432<= $F$422), (($F$422 + 1) - $C432 ) /14, 0) -> 0 | L432: =IF( AND( WEEKDAY($C432,2)=5,YEAR($C432)=$N$3, evenWeek($C432), $C432<=$F$422), (($F$422 + 1) - $C432 ) / 14, 0) -> 0 | M432: =IF( AND( WEEKDAY($C432,2)=5,YEAR($C432)=$N$3, NOT(evenWeek($C432)), $C432<= $F$422), (($F$422 + 1) - $C432 ) /14, 0) -> 0 | N432: =IF( AND( WEEKDAY($C432,2)=6,YEAR($C432)=$N$3, evenWeek($C432), $C432<=$F$422), (($F$422 + 1) - $C432 ) / 14, 0) -> 0 | O432: =IF( AND( WEEKDAY($C432,2)=6,YEAR($C432)=$N$3, NOT(evenWeek($C432)), $C432<= $F$422), (($F$422 + 1) - $C432 ) /14, 0) -> 0 | P432: =IF( AND( WEEKDAY($C432,2)=7,YEAR($C432)=$N$3, evenWeek($C432), $C432<=$F$422), (($F$422 + 1) - $C432 ) / 14, 0) -> 0 | Q432: =IF( AND( WEEKDAY($C432,2)=7,YEAR($C432)=$N$3, NOT(evenWeek($C432)), $C432<= $F$422), (($F$422 + 1) - $C432 ) /14, 0) -> 0
C433: 1904-01-08 | D433: =IF( AND( WEEKDAY($C433,2)=1,YEAR($C433)=$N$3, evenWeek($C433), $C433<=$F$422), (($F$422 + 1) - $C433 ) / 14, 0) -> 0 | E433: =IF( AND( WEEKDAY($C433,2)=1,YEAR($C433)=$N$3, NOT(evenWeek($C433)), $C433<= $F$422), (($F$422 + 1) - $C433 ) /14, 0) -> 0 | F433: =IF( AND( WEEKDAY($C433,2)=2,YEAR($C433)=$N$3, evenWeek($C433), $C433<=$F$422), (($F$422 + 1) - $C433 ) / 14, 0) -> 0 | G433: =IF( AND( WEEKDAY($C433,2)=2,YEAR($C433)=$N$3, NOT(evenWeek($C433)), $C433<= $F$422), (($F$422 + 1) - $C433 ) /14, 0) -> 0 | H433: =IF( AND( WEEKDAY($C433,2)=3,YEAR($C433)=$N$3, evenWeek($C433), $C433<=$F$422), (($F$422 + 1) - $C433 ) / 14, 0) -> 0 | I433: =IF( AND( WEEKDAY($C433,2)=3,YEAR($C433)=$N$3, NOT(evenWeek($C433)), $C433<= $F$422), (($F$422 + 1) - $C433 ) /14, 0) -> 0 | J433: =IF( AND( WEEKDAY($C433,2)=4,YEAR($C433)=$N$3, evenWeek($C433), $C433<=$F$422), (($F$422 + 1) - $C433 ) / 14, 0) -> 0 | K433: =IF( AND( WEEKDAY($C433,2)=4,YEAR($C433)=$N$3, NOT(evenWeek($C433)), $C433<= $F$422), (($F$422 + 1) - $C433 ) /14, 0) -> 0 | L433: =IF( AND( WEEKDAY($C433,2)=5,YEAR($C433)=$N$3, evenWeek($C433), $C433<=$F$422), (($F$422 + 1) - $C433 ) / 14, 0) -> 0 | M433: =IF( AND( WEEKDAY($C433,2)=5,YEAR($C433)=$N$3, NOT(evenWeek($C433)), $C433<= $F$422), (($F$422 + 1) - $C433 ) /14, 0) -> 0 | N433: =IF( AND( WEEKDAY($C433,2)=6,YEAR($C433)=$N$3, evenWeek($C433), $C433<=$F$422), (($F$422 + 1) - $C433 ) / 14, 0) -> 0 | O433: =IF( AND( WEEKDAY($C433,2)=6,YEAR($C433)=$N$3, NOT(evenWeek($C433)), $C433<= $F$422), (($F$422 + 1) - $C433 ) /14, 0) -> 0 | P433: =IF( AND( WEEKDAY($C433,2)=7,YEAR($C433)=$N$3, evenWeek($C433), $C433<=$F$422), (($F$422 + 1) - $C433 ) / 14, 0) -> 0 | Q433: =IF( AND( WEEKDAY($C433,2)=7,YEAR($C433)=$N$3, NOT(evenWeek($C433)), $C433<= $F$422), (($F$422 + 1) - $C433 ) /14, 0) -> 0
C434: 1904-01-09 | D434: =IF( AND( WEEKDAY($C434,2)=1,YEAR($C434)=$N$3, evenWeek($C434), $C434<=$F$422), (($F$422 + 1) - $C434 ) / 14, 0) -> 0 | E434: =IF( AND( WEEKDAY($C434,2)=1,YEAR($C434)=$N$3, NOT(evenWeek($C434)), $C434<= $F$422), (($F$422 + 1) - $C434 ) /14, 0) -> 0 | F434: =IF( AND( WEEKDAY($C434,2)=2,YEAR($C434)=$N$3, evenWeek($C434), $C434<=$F$422), (($F$422 + 1) - $C434 ) / 14, 0) -> 0 | G434: =IF( AND( WEEKDAY($C434,2)=2,YEAR($C434)=$N$3, NOT(evenWeek($C434)), $C434<= $F$422), (($F$422 + 1) - $C434 ) /14, 0) -> 0 | H434: =IF( AND( WEEKDAY($C434,2)=3,YEAR($C434)=$N$3, evenWeek($C434), $C434<=$F$422), (($F$422 + 1) - $C434 ) / 14, 0) -> 0 | I434: =IF( AND( WEEKDAY($C434,2)=3,YEAR($C434)=$N$3, NOT(evenWeek($C434)), $C434<= $F$422), (($F$422 + 1) - $C434 ) /14, 0) -> 0 | J434: =IF( AND( WEEKDAY($C434,2)=4,YEAR($C434)=$N$3, evenWeek($C434), $C434<=$F$422), (($F$422 + 1) - $C434 ) / 14, 0) -> 0 | K434: =IF( AND( WEEKDAY($C434,2)=4,YEAR($C434)=$N$3, NOT(evenWeek($C434)), $C434<= $F$422), (($F$422 + 1) - $C434 ) /14, 0) -> 0 | L434: =IF( AND( WEEKDAY($C434,2)=5,YEAR($C434)=$N$3, evenWeek($C434), $C434<=$F$422), (($F$422 + 1) - $C434 ) / 14, 0) -> 0 | M434: =IF( AND( WEEKDAY($C434,2)=5,YEAR($C434)=$N$3, NOT(evenWeek($C434)), $C434<= $F$422), (($F$422 + 1) - $C434 ) /14, 0) -> 0 | N434: =IF( AND( WEEKDAY($C434,2)=6,YEAR($C434)=$N$3, evenWeek($C434), $C434<=$F$422), (($F$422 + 1) - $C434 ) / 14, 0) -> 0 | O434: =IF( AND( WEEKDAY($C434,2)=6,YEAR($C434)=$N$3, NOT(evenWeek($C434)), $C434<= $F$422), (($F$422 + 1) - $C434 ) /14, 0) -> 0 | P434: =IF( AND( WEEKDAY($C434,2)=7,YEAR($C434)=$N$3, evenWeek($C434), $C434<=$F$422), (($F$422 + 1) - $C434 ) / 14, 0) -> 0 | Q434: =IF( AND( WEEKDAY($C434,2)=7,YEAR($C434)=$N$3, NOT(evenWeek($C434)), $C434<= $F$422), (($F$422 + 1) - $C434 ) /14, 0) -> 0
C435: 1904-01-10 | D435: =IF( AND( WEEKDAY($C435,2)=1,YEAR($C435)=$N$3, evenWeek($C435), $C435<=$F$422), (($F$422 + 1) - $C435 ) / 14, 0) -> 0 | E435: =IF( AND( WEEKDAY($C435,2)=1,YEAR($C435)=$N$3, NOT(evenWeek($C435)), $C435<= $F$422), (($F$422 + 1) - $C435 ) /14, 0) -> 0 | F435: =IF( AND( WEEKDAY($C435,2)=2,YEAR($C435)=$N$3, evenWeek($C435), $C435<=$F$422), (($F$422 + 1) - $C435 ) / 14, 0) -> 0 | G435: =IF( AND( WEEKDAY($C435,2)=2,YEAR($C435)=$N$3, NOT(evenWeek($C435)), $C435<= $F$422), (($F$422 + 1) - $C435 ) /14, 0) -> 0 | H435: =IF( AND( WEEKDAY($C435,2)=3,YEAR($C435)=$N$3, evenWeek($C435), $C435<=$F$422), (($F$422 + 1) - $C435 ) / 14, 0) -> 0 | I435: =IF( AND( WEEKDAY($C435,2)=3,YEAR($C435)=$N$3, NOT(evenWeek($C435)), $C435<= $F$422), (($F$422 + 1) - $C435 ) /14, 0) -> 0 | J435: =IF( AND( WEEKDAY($C435,2)=4,YEAR($C435)=$N$3, evenWeek($C435), $C435<=$F$422), (($F$422 + 1) - $C435 ) / 14, 0) -> 0 | K435: =IF( AND( WEEKDAY($C435,2)=4,YEAR($C435)=$N$3, NOT(evenWeek($C435)), $C435<= $F$422), (($F$422 + 1) - $C435 ) /14, 0) -> 0 | L435: =IF( AND( WEEKDAY($C435,2)=5,YEAR($C435)=$N$3, evenWeek($C435), $C435<=$F$422), (($F$422 + 1) - $C435 ) / 14, 0) -> 0 | M435: =IF( AND( WEEKDAY($C435,2)=5,YEAR($C435)=$N$3, NOT(evenWeek($C435)), $C435<= $F$422), (($F$422 + 1) - $C435 ) /14, 0) -> 0 | N435: =IF( AND( WEEKDAY($C435,2)=6,YEAR($C435)=$N$3, evenWeek($C435), $C435<=$F$422), (($F$422 + 1) - $C435 ) / 14, 0) -> 0 | O435: =IF( AND( WEEKDAY($C435,2)=6,YEAR($C435)=$N$3, NOT(evenWeek($C435)), $C435<= $F$422), (($F$422 + 1) - $C435 ) /14, 0) -> 0 | P435: =IF( AND( WEEKDAY($C435,2)=7,YEAR($C435)=$N$3, evenWeek($C435), $C435<=$F$422), (($F$422 + 1) - $C435 ) / 14, 0) -> 0 | Q435: =IF( AND( WEEKDAY($C435,2)=7,YEAR($C435)=$N$3, NOT(evenWeek($C435)), $C435<= $F$422), (($F$422 + 1) - $C435 ) /14, 0) -> 0
C436: 1904-01-11 | D436: =IF( AND( WEEKDAY($C436,2)=1,YEAR($C436)=$N$3, evenWeek($C436), $C436<=$F$422), (($F$422 + 1) - $C436 ) / 14, 0) -> 0 | E436: =IF( AND( WEEKDAY($C436,2)=1,YEAR($C436)=$N$3, NOT(evenWeek($C436)), $C436<= $F$422), (($F$422 + 1) - $C436 ) /14, 0) -> 0 | F436: =IF( AND( WEEKDAY($C436,2)=2,YEAR($C436)=$N$3, evenWeek($C436), $C436<=$F$422), (($F$422 + 1) - $C436 ) / 14, 0) -> 0 | G436: =IF( AND( WEEKDAY($C436,2)=2,YEAR($C436)=$N$3, NOT(evenWeek($C436)), $C436<= $F$422), (($F$422 + 1) - $C436 ) /14, 0) -> 0 | H436: =IF( AND( WEEKDAY($C436,2)=3,YEAR($C436)=$N$3, evenWeek($C436), $C436<=$F$422), (($F$422 + 1) - $C436 ) / 14, 0) -> 0 | I436: =IF( AND( WEEKDAY($C436,2)=3,YEAR($C436)=$N$3, NOT(evenWeek($C436)), $C436<= $F$422), (($F$422 + 1) - $C436 ) /14, 0) -> 0 | J436: =IF( AND( WEEKDAY($C436,2)=4,YEAR($C436)=$N$3, evenWeek($C436), $C436<=$F$422), (($F$422 + 1) - $C436 ) / 14, 0) -> 0 | K436: =IF( AND( WEEKDAY($C436,2)=4,YEAR($C436)=$N$3, NOT(evenWeek($C436)), $C436<= $F$422), (($F$422 + 1) - $C436 ) /14, 0) -> 0 | L436: =IF( AND( WEEKDAY($C436,2)=5,YEAR($C436)=$N$3, evenWeek($C436), $C436<=$F$422), (($F$422 + 1) - $C436 ) / 14, 0) -> 0 | M436: =IF( AND( WEEKDAY($C436,2)=5,YEAR($C436)=$N$3, NOT(evenWeek($C436)), $C436<= $F$422), (($F$422 + 1) - $C436 ) /14, 0) -> 0 | N436: =IF( AND( WEEKDAY($C436,2)=6,YEAR($C436)=$N$3, evenWeek($C436), $C436<=$F$422), (($F$422 + 1) - $C436 ) / 14, 0) -> 0 | O436: =IF( AND( WEEKDAY($C436,2)=6,YEAR($C436)=$N$3, NOT(evenWeek($C436)), $C436<= $F$422), (($F$422 + 1) - $C436 ) /14, 0) -> 0 | P436: =IF( AND( WEEKDAY($C436,2)=7,YEAR($C436)=$N$3, evenWeek($C436), $C436<=$F$422), (($F$422 + 1) - $C436 ) / 14, 0) -> 0 | Q436: =IF( AND( WEEKDAY($C436,2)=7,YEAR($C436)=$N$3, NOT(evenWeek($C436)), $C436<= $F$422), (($F$422 + 1) - $C436 ) /14, 0) -> 0
C437: 1904-01-12 | D437: =IF( AND( WEEKDAY($C437,2)=1,YEAR($C437)=$N$3, evenWeek($C437), $C437<=$F$422), (($F$422 + 1) - $C437 ) / 14, 0) -> 0 | E437: =IF( AND( WEEKDAY($C437,2)=1,YEAR($C437)=$N$3, NOT(evenWeek($C437)), $C437<= $F$422), (($F$422 + 1) - $C437 ) /14, 0) -> 0 | F437: =IF( AND( WEEKDAY($C437,2)=2,YEAR($C437)=$N$3, evenWeek($C437), $C437<=$F$422), (($F$422 + 1) - $C437 ) / 14, 0) -> 0 | G437: =IF( AND( WEEKDAY($C437,2)=2,YEAR($C437)=$N$3, NOT(evenWeek($C437)), $C437<= $F$422), (($F$422 + 1) - $C437 ) /14, 0) -> 0 | H437: =IF( AND( WEEKDAY($C437,2)=3,YEAR($C437)=$N$3, evenWeek($C437), $C437<=$F$422), (($F$422 + 1) - $C437 ) / 14, 0) -> 0 | I437: =IF( AND( WEEKDAY($C437,2)=3,YEAR($C437)=$N$3, NOT(evenWeek($C437)), $C437<= $F$422), (($F$422 + 1) - $C437 ) /14, 0) -> 0 | J437: =IF( AND( WEEKDAY($C437,2)=4,YEAR($C437)=$N$3, evenWeek($C437), $C437<=$F$422), (($F$422 + 1) - $C437 ) / 14, 0) -> 0 | K437: =IF( AND( WEEKDAY($C437,2)=4,YEAR($C437)=$N$3, NOT(evenWeek($C437)), $C437<= $F$422), (($F$422 + 1) - $C437 ) /14, 0) -> 0 | L437: =IF( AND( WEEKDAY($C437,2)=5,YEAR($C437)=$N$3, evenWeek($C437), $C437<=$F$422), (($F$422 + 1) - $C437 ) / 14, 0) -> 0 | M437: =IF( AND( WEEKDAY($C437,2)=5,YEAR($C437)=$N$3, NOT(evenWeek($C437)), $C437<= $F$422), (($F$422 + 1) - $C437 ) /14, 0) -> 0 | N437: =IF( AND( WEEKDAY($C437,2)=6,YEAR($C437)=$N$3, evenWeek($C437), $C437<=$F$422), (($F$422 + 1) - $C437 ) / 14, 0) -> 0 | O437: =IF( AND( WEEKDAY($C437,2)=6,YEAR($C437)=$N$3, NOT(evenWeek($C437)), $C437<= $F$422), (($F$422 + 1) - $C437 ) /14, 0) -> 0 | P437: =IF( AND( WEEKDAY($C437,2)=7,YEAR($C437)=$N$3, evenWeek($C437), $C437<=$F$422), (($F$422 + 1) - $C437 ) / 14, 0) -> 0 | Q437: =IF( AND( WEEKDAY($C437,2)=7,YEAR($C437)=$N$3, NOT(evenWeek($C437)), $C437<= $F$422), (($F$422 + 1) - $C437 ) /14, 0) -> 0
C438: 1904-01-13 | D438: =IF( AND( WEEKDAY($C438,2)=1,YEAR($C438)=$N$3, evenWeek($C438), $C438<=$F$422), (($F$422 + 1) - $C438 ) / 14, 0) -> 0 | E438: =IF( AND( WEEKDAY($C438,2)=1,YEAR($C438)=$N$3, NOT(evenWeek($C438)), $C438<= $F$422), (($F$422 + 1) - $C438 ) /14, 0) -> 0 | F438: =IF( AND( WEEKDAY($C438,2)=2,YEAR($C438)=$N$3, evenWeek($C438), $C438<=$F$422), (($F$422 + 1) - $C438 ) / 14, 0) -> 0 | G438: =IF( AND( WEEKDAY($C438,2)=2,YEAR($C438)=$N$3, NOT(evenWeek($C438)), $C438<= $F$422), (($F$422 + 1) - $C438 ) /14, 0) -> 0 | H438: =IF( AND( WEEKDAY($C438,2)=3,YEAR($C438)=$N$3, evenWeek($C438), $C438<=$F$422), (($F$422 + 1) - $C438 ) / 14, 0) -> 0 | I438: =IF( AND( WEEKDAY($C438,2)=3,YEAR($C438)=$N$3, NOT(evenWeek($C438)), $C438<= $F$422), (($F$422 + 1) - $C438 ) /14, 0) -> 0 | J438: =IF( AND( WEEKDAY($C438,2)=4,YEAR($C438)=$N$3, evenWeek($C438), $C438<=$F$422), (($F$422 + 1) - $C438 ) / 14, 0) -> 0 | K438: =IF( AND( WEEKDAY($C438,2)=4,YEAR($C438)=$N$3, NOT(evenWeek($C438)), $C438<= $F$422), (($F$422 + 1) - $C438 ) /14, 0) -> 0 | L438: =IF( AND( WEEKDAY($C438,2)=5,YEAR($C438)=$N$3, evenWeek($C438), $C438<=$F$422), (($F$422 + 1) - $C438 ) / 14, 0) -> 0 | M438: =IF( AND( WEEKDAY($C438,2)=5,YEAR($C438)=$N$3, NOT(evenWeek($C438)), $C438<= $F$422), (($F$422 + 1) - $C438 ) /14, 0) -> 0 | N438: =IF( AND( WEEKDAY($C438,2)=6,YEAR($C438)=$N$3, evenWeek($C438), $C438<=$F$422), (($F$422 + 1) - $C438 ) / 14, 0) -> 0 | O438: =IF( AND( WEEKDAY($C438,2)=6,YEAR($C438)=$N$3, NOT(evenWeek($C438)), $C438<= $F$422), (($F$422 + 1) - $C438 ) /14, 0) -> 0 | P438: =IF( AND( WEEKDAY($C438,2)=7,YEAR($C438)=$N$3, evenWeek($C438), $C438<=$F$422), (($F$422 + 1) - $C438 ) / 14, 0) -> 0 | Q438: =IF( AND( WEEKDAY($C438,2)=7,YEAR($C438)=$N$3, NOT(evenWeek($C438)), $C438<= $F$422), (($F$422 + 1) - $C438 ) /14, 0) -> 0
C439: 1904-01-14 | D439: =IF( AND( WEEKDAY($C439,2)=1,YEAR($C439)=$N$3, evenWeek($C439), $C439<=$F$422), (($F$422 + 1) - $C439 ) / 14, 0) -> 0 | E439: =IF( AND( WEEKDAY($C439,2)=1,YEAR($C439)=$N$3, NOT(evenWeek($C439)), $C439<= $F$422), (($F$422 + 1) - $C439 ) /14, 0) -> 0 | F439: =IF( AND( WEEKDAY($C439,2)=2,YEAR($C439)=$N$3, evenWeek($C439), $C439<=$F$422), (($F$422 + 1) - $C439 ) / 14, 0) -> 0 | G439: =IF( AND( WEEKDAY($C439,2)=2,YEAR($C439)=$N$3, NOT(evenWeek($C439)), $C439<= $F$422), (($F$422 + 1) - $C439 ) /14, 0) -> 0 | H439: =IF( AND( WEEKDAY($C439,2)=3,YEAR($C439)=$N$3, evenWeek($C439), $C439<=$F$422), (($F$422 + 1) - $C439 ) / 14, 0) -> 0 | I439: =IF( AND( WEEKDAY($C439,2)=3,YEAR($C439)=$N$3, NOT(evenWeek($C439)), $C439<= $F$422), (($F$422 + 1) - $C439 ) /14, 0) -> 0 | J439: =IF( AND( WEEKDAY($C439,2)=4,YEAR($C439)=$N$3, evenWeek($C439), $C439<=$F$422), (($F$422 + 1) - $C439 ) / 14, 0) -> 0 | K439: =IF( AND( WEEKDAY($C439,2)=4,YEAR($C439)=$N$3, NOT(evenWeek($C439)), $C439<= $F$422), (($F$422 + 1) - $C439 ) /14, 0) -> 0 | L439: =IF( AND( WEEKDAY($C439,2)=5,YEAR($C439)=$N$3, evenWeek($C439), $C439<=$F$422), (($F$422 + 1) - $C439 ) / 14, 0) -> 0 | M439: =IF( AND( WEEKDAY($C439,2)=5,YEAR($C439)=$N$3, NOT(evenWeek($C439)), $C439<= $F$422), (($F$422 + 1) - $C439 ) /14, 0) -> 0 | N439: =IF( AND( WEEKDAY($C439,2)=6,YEAR($C439)=$N$3, evenWeek($C439), $C439<=$F$422), (($F$422 + 1) - $C439 ) / 14, 0) -> 0 | O439: =IF( AND( WEEKDAY($C439,2)=6,YEAR($C439)=$N$3, NOT(evenWeek($C439)), $C439<= $F$422), (($F$422 + 1) - $C439 ) /14, 0) -> 0 | P439: =IF( AND( WEEKDAY($C439,2)=7,YEAR($C439)=$N$3, evenWeek($C439), $C439<=$F$422), (($F$422 + 1) - $C439 ) / 14, 0) -> 0 | Q439: =IF( AND( WEEKDAY($C439,2)=7,YEAR($C439)=$N$3, NOT(evenWeek($C439)), $C439<= $F$422), (($F$422 + 1) - $C439 ) /14, 0) -> 0
C440: # dagen: | D440: =ROUNDUP(SUM(D426:D439),0) -> 0 | E440: =ROUNDUP(SUM(E426:E439),0) -> 0 | F440: 0 | G440: 0 | H440: 0 | I440: 0 | J440: 0 | K440: 0 | L440: 0 | M440: 0 | N440: =ROUNDUP(SUM(N426:N439),0) -> 0 | O440: =ROUNDUP(SUM(O426:O439),0) -> 0 | P440: =ROUNDUP(SUM(P426:P439),0) -> 0 | Q440: =ROUNDUP(SUM(Q426:Q439),0) -> 0
C443: NCF dagen | D443: ma even | E443: ma oneven | F443: di even | G443: di oneven | H443: wo even | I443: wo oneven | J443: do even | K443: do oneven | L443: vr even | M443: vr oneven | N443: za even | O443: za oneven | P443: zo even | Q443: zo oneven | R443: totaal
B444: =#REF! ->  | C444: =#REF! ->  | D444: =IF( AND($C444>($D$422-1),$C444<($F$422+1),WEEKDAY($C444,2)=1, evenWeek($C444) ),-1,"") ->  | E444: =IF( AND($C444>($D$422-1),$C444<($F$422+1),WEEKDAY($C444,2)=1, NOT(evenWeek($C444)) ),-1,"") ->  | F444: =IF( AND($C444>($D$422-1),$C444<($F$422+1),WEEKDAY($C444,2)=2, evenWeek($C444) ),-1,"") ->  | G444: =IF( AND($C444>($D$422-1),$C444<($F$422+1),WEEKDAY($C444,2)=2, NOT(evenWeek($C444)) ),-1,"") ->  | H444: =IF( AND($C444>($D$422-1),$C444<($F$422+1),WEEKDAY($C444,2)=3, evenWeek($C444) ),-1,"") ->  | I444: =IF( AND($C444>($D$422-1),$C444<($F$422+1),WEEKDAY($C444,2)=3, NOT(evenWeek($C444)) ),-1,"") ->  | J444: =IF( AND($C444>($D$422-1),$C444<($F$422+1),WEEKDAY($C444,2)=4, evenWeek($C444) ),-1,"") ->  | K444: =IF( AND($C444>($D$422-1),$C444<($F$422+1),WEEKDAY($C444,2)=4, NOT(evenWeek($C444)) ),-1,"") ->  | L444: =IF( AND($C444>($D$422-1),$C444<($F$422+1),WEEKDAY($C444,2)=5, evenWeek($C444) ),-1,"") ->  | M444: =IF( AND($C444>($D$422-1),$C444<($F$422+1),WEEKDAY($C444,2)=5, NOT(evenWeek($C444)) ),-1,"") ->  | N444: =IF( AND($C444>($D$422-1),$C444<($F$422+1),WEEKDAY($C444,2)=6, evenWeek($C444) ),-1,"") ->  | O444: =IF( AND($C444>($D$422-1),$C444<($F$422+1),WEEKDAY($C444,2)=6, NOT(evenWeek($C444)) ),-1,"") ->  | P444: =IF( AND($C444>($D$422-1),$C444<($F$422+1),WEEKDAY($C444,2)=7, evenWeek($C444) ),-1,"") ->  | Q444: =IF( AND($C444>($D$422-1),$C444<($F$422+1),WEEKDAY($C444,2)=7, NOT(evenWeek($C444)) ),-1,"") -> 
B445: =#REF! ->  | C445: =#REF! ->  | L445: =IF( AND($C445>($D$422-1),$C445<($F$422+1), evenWeek($C445) ),-1,"") ->  | M445: =IF( AND($C445>($D$422-1),$C445<($F$422+1), NOT(evenWeek($C445)) ),-1,"") -> 
B446: =#REF! ->  | C446: =#REF! ->  | D446: =IF( AND($C446>($D$422-1),$C446<($F$422+1), evenWeek($C446) ),-1,"") ->  | E446: =IF( AND($C446>($D$422-1),$C446<($F$422+1), NOT(evenWeek($C446)) ),-1,"") -> 
B447: =#REF! ->  | C447: =#REF! ->  | D447: =IF( AND($C447>($D$422-1),$C447<($F$422+1),WEEKDAY($C447,2)=1, evenWeek($C447) ),-1,"") ->  | E447: =IF( AND($C447>($D$422-1),$C447<($F$422+1),WEEKDAY($C447,2)=1, NOT(evenWeek($C447)) ),-1,"") ->  | F447: =IF( AND($C447>($D$422-1),$C447<($F$422+1),WEEKDAY($C447,2)=2, evenWeek($C447) ),-1,"") ->  | G447: =IF( AND($C447>($D$422-1),$C447<($F$422+1),WEEKDAY($C447,2)=2, NOT(evenWeek($C447)) ),-1,"") ->  | H447: =IF( AND($C447>($D$422-1),$C447<($F$422+1),WEEKDAY($C447,2)=3, evenWeek($C447) ),-1,"") ->  | I447: =IF( AND($C447>($D$422-1),$C447<($F$422+1),WEEKDAY($C447,2)=3, NOT(evenWeek($C447)) ),-1,"") ->  | J447: =IF( AND($C447>($D$422-1),$C447<($F$422+1),WEEKDAY($C447,2)=4, evenWeek($C447) ),-1,"") ->  | K447: =IF( AND($C447>($D$422-1),$C447<($F$422+1),WEEKDAY($C447,2)=4, NOT(evenWeek($C447)) ),-1,"") ->  | L447: =IF( AND($C447>($D$422-1),$C447<($F$422+1),WEEKDAY($C447,2)=5, evenWeek($C447) ),-1,"") ->  | M447: =IF( AND($C447>($D$422-1),$C447<($F$422+1),WEEKDAY($C447,2)=5, NOT(evenWeek($C447)) ),-1,"") ->  | N447: =IF( AND($C447>($D$422-1),$C447<($F$422+1),WEEKDAY($C447,2)=6, evenWeek($C447) ),-1,"") ->  | O447: =IF( AND($C447>($D$422-1),$C447<($F$422+1),WEEKDAY($C447,2)=6, NOT(evenWeek($C447)) ),-1,"") ->  | P447: =IF( AND($C447>($D$422-1),$C447<($F$422+1),WEEKDAY($C447,2)=7, evenWeek($C447) ),-1,"") ->  | Q447: =IF( AND($C447>($D$422-1),$C447<($F$422+1),WEEKDAY($C447,2)=7, NOT(evenWeek($C447)) ),-1,"") -> 
B448: =#REF! ->  | C448: =#REF! ->  | D448: =IF( AND($C448>($D$422-1),$C448<($F$422+1),WEEKDAY($C448,2)=1, evenWeek($C448) ),-1,"") ->  | E448: =IF( AND($C448>($D$422-1),$C448<($F$422+1),WEEKDAY($C448,2)=1, NOT(evenWeek($C448)) ),-1,"") ->  | F448: =IF( AND($C448>($D$422-1),$C448<($F$422+1),WEEKDAY($C448,2)=2, evenWeek($C448) ),-1,"") ->  | G448: =IF( AND($C448>($D$422-1),$C448<($F$422+1),WEEKDAY($C448,2)=2, NOT(evenWeek($C448)) ),-1,"") ->  | H448: =IF( AND($C448>($D$422-1),$C448<($F$422+1),WEEKDAY($C448,2)=3, evenWeek($C448) ),-1,"") ->  | I448: =IF( AND($C448>($D$422-1),$C448<($F$422+1),WEEKDAY($C448,2)=3, NOT(evenWeek($C448)) ),-1,"") ->  | J448: =IF( AND($C448>($D$422-1),$C448<($F$422+1),WEEKDAY($C448,2)=4, evenWeek($C448) ),-1,"") ->  | K448: =IF( AND($C448>($D$422-1),$C448<($F$422+1),WEEKDAY($C448,2)=4, NOT(evenWeek($C448)) ),-1,"") ->  | L448: =IF( AND($C448>($D$422-1),$C448<($F$422+1),WEEKDAY($C448,2)=5, evenWeek($C448) ),-1,"") ->  | M448: =IF( AND($C448>($D$422-1),$C448<($F$422+1),WEEKDAY($C448,2)=5, NOT(evenWeek($C448)) ),-1,"") ->  | N448: =IF( AND($C448>($D$422-1),$C448<($F$422+1),WEEKDAY($C448,2)=6, evenWeek($C448) ),-1,"") ->  | O448: =IF( AND($C448>($D$422-1),$C448<($F$422+1),WEEKDAY($C448,2)=6, NOT(evenWeek($C448)) ),-1,"") ->  | P448: =IF( AND($C448>($D$422-1),$C448<($F$422+1),WEEKDAY($C448,2)=7, evenWeek($C448) ),-1,"") ->  | Q448: =IF( AND($C448>($D$422-1),$C448<($F$422+1),WEEKDAY($C448,2)=7, NOT(evenWeek($C448)) ),-1,"") -> 
B449: =#REF! ->  | C449: =#REF! ->  | J449: =IF( AND($C449>($D$422-1),$C449<($F$422+1), evenWeek($C449) ),-1,"") ->  | K449: =IF( AND($C449>($D$422-1),$C449<($F$422+1), NOT(evenWeek($C449)) ),-1,"") -> 
B450: =#REF! ->  | C450: =#REF! ->  | D450: =IF( AND($C450>($D$422-1),$C450<($F$422+1), evenWeek($C450) ),-1,"") ->  | E450: =IF( AND($C450>($D$422-1),$C450<($F$422+1), NOT(evenWeek($C450)) ),-1,"") -> 
B451: =#REF! ->  | C451: =#REF! ->  | D451: =IF( AND($C451>($D$422-1),$C451<($F$422+1),WEEKDAY($C451,2)=1, evenWeek($C451) ),-1,"") ->  | E451: =IF( AND($C451>($D$422-1),$C451<($F$422+1),WEEKDAY($C451,2)=1, NOT(evenWeek($C451)) ),-1,"") ->  | F451: =IF( AND($C451>($D$422-1),$C451<($F$422+1),WEEKDAY($C451,2)=2, evenWeek($C451) ),-1,"") ->  | G451: =IF( AND($C451>($D$422-1),$C451<($F$422+1),WEEKDAY($C451,2)=2, NOT(evenWeek($C451)) ),-1,"") ->  | H451: =IF( AND($C451>($D$422-1),$C451<($F$422+1),WEEKDAY($C451,2)=3, evenWeek($C451) ),-1,"") ->  | I451: =IF( AND($C451>($D$422-1),$C451<($F$422+1),WEEKDAY($C451,2)=3, NOT(evenWeek($C451)) ),-1,"") ->  | J451: =IF( AND($C451>($D$422-1),$C451<($F$422+1),WEEKDAY($C451,2)=4, evenWeek($C451) ),-1,"") ->  | K451: =IF( AND($C451>($D$422-1),$C451<($F$422+1),WEEKDAY($C451,2)=4, NOT(evenWeek($C451)) ),-1,"") ->  | L451: =IF( AND($C451>($D$422-1),$C451<($F$422+1),WEEKDAY($C451,2)=5, evenWeek($C451) ),-1,"") ->  | M451: =IF( AND($C451>($D$422-1),$C451<($F$422+1),WEEKDAY($C451,2)=5, NOT(evenWeek($C451)) ),-1,"") ->  | N451: =IF( AND($C451>($D$422-1),$C451<($F$422+1),WEEKDAY($C451,2)=6, evenWeek($C451) ),-1,"") ->  | O451: =IF( AND($C451>($D$422-1),$C451<($F$422+1),WEEKDAY($C451,2)=6, NOT(evenWeek($C451)) ),-1,"") ->  | P451: =IF( AND($C451>($D$422-1),$C451<($F$422+1),WEEKDAY($C451,2)=7, evenWeek($C451) ),-1,"") ->  | Q451: =IF( AND($C451>($D$422-1),$C451<($F$422+1),WEEKDAY($C451,2)=7, NOT(evenWeek($C451)) ),-1,"") -> 
B452: =#REF! ->  | C452: =#REF! ->  | D452: =IF( AND($C452>($D$422-1),$C452<($F$422+1),WEEKDAY($C452,2)=1, evenWeek($C452) ),-1,"") ->  | E452: =IF( AND($C452>($D$422-1),$C452<($F$422+1),WEEKDAY($C452,2)=1, NOT(evenWeek($C452)) ),-1,"") ->  | F452: =IF( AND($C452>($D$422-1),$C452<($F$422+1),WEEKDAY($C452,2)=2, evenWeek($C452) ),-1,"") ->  | G452: =IF( AND($C452>($D$422-1),$C452<($F$422+1),WEEKDAY($C452,2)=2, NOT(evenWeek($C452)) ),-1,"") ->  | H452: =IF( AND($C452>($D$422-1),$C452<($F$422+1),WEEKDAY($C452,2)=3, evenWeek($C452) ),-1,"") ->  | I452: =IF( AND($C452>($D$422-1),$C452<($F$422+1),WEEKDAY($C452,2)=3, NOT(evenWeek($C452)) ),-1,"") ->  | J452: =IF( AND($C452>($D$422-1),$C452<($F$422+1),WEEKDAY($C452,2)=4, evenWeek($C452) ),-1,"") ->  | K452: =IF( AND($C452>($D$422-1),$C452<($F$422+1),WEEKDAY($C452,2)=4, NOT(evenWeek($C452)) ),-1,"") ->  | L452: =IF( AND($C452>($D$422-1),$C452<($F$422+1),WEEKDAY($C452,2)=5, evenWeek($C452) ),-1,"") ->  | M452: =IF( AND($C452>($D$422-1),$C452<($F$422+1),WEEKDAY($C452,2)=5, NOT(evenWeek($C452)) ),-1,"") ->  | N452: =IF( AND($C452>($D$422-1),$C452<($F$422+1),WEEKDAY($C452,2)=6, evenWeek($C452) ),-1,"") ->  | O452: =IF( AND($C452>($D$422-1),$C452<($F$422+1),WEEKDAY($C452,2)=6, NOT(evenWeek($C452)) ),-1,"") ->  | P452: =IF( AND($C452>($D$422-1),$C452<($F$422+1),WEEKDAY($C452,2)=7, evenWeek($C452) ),-1,"") ->  | Q452: =IF( AND($C452>($D$422-1),$C452<($F$422+1),WEEKDAY($C452,2)=7, NOT(evenWeek($C452)) ),-1,"") -> 
B453: =#REF! ->  | C453: =#REF! -> 
B454: =#REF! ->  | C454: =#REF! -> 
B455: =#REF! ->  | C455: =#REF! -> 
B456: =#REF! ->  | C456: =#REF! -> 
B457: =#REF! ->  | C457: =#REF! -> 
B458: werkbare dagen | D458: =IF(OR(YEAR($D$422)<>$N$3,YEAR($F$422)<>$N$3),0,SUM(D440,D444:D457)) -> 0 | E458: 0 | F458: 0 | G458: 0 | H458: 0 | I458: 0 | J458: 0 | K458: 0 | L458: 0 | M458: 0 | N458: 0 | O458: 0 | P458: 0 | Q458: 0 | R458: =SUM(D458:O458) -> 0
B460: standaard werkweek | D460: 40 | E460: 38 | F460: 36
B461: bijbehorend verlofsaldo | D461: =#REF! ->  | E461: =#REF! ->  | F461: =#REF! -> 
B462: # werkdagen in jaar | C462: =#REF! -> 
B464: (Z) Periodefactor werkbare dagen per volledig kalenderjaar | K464: =IF(AND(D422>0,F422>0),R458/C462,0) -> 0
B466: (A) Omvang aanstelling in fulltime equivalenten (fte's) | K466: =DIENSTVERBANDGEGEVENS!J66 -> 0
I467: keuzerondje
B468: (B) Standaard werkweek bij volledige aanstelling, vul in 36, 38 of 40 | I468: 3 | K468: =IF(I468=1,36,IF(I468=2,38,IF(I468=3,40,0))) -> 40
B470: (C) Totaal aantal netto werkbare uren in periode 4 ( A * 1659 * Z ) | K470: =IF($N$4,K466*#REF!*K464,0) -> 
B472: (D) Bruto aantal werkbare uren bij aanstellingsomvang ( A * B ) | K472: =K466*K468 -> 0
B474: (E) Keuze tijdsbesteding | D474: maandag | E474: dinsdag | F474: woensdag | G474: donderdag | H474: vrijdag | I474: zaterdag | K474: gemiddeld
C475: even week | D475: =DIENSTVERBANDGEGEVENS!D75 -> 0 | E475: =DIENSTVERBANDGEGEVENS!E75 -> 0 | F475: =DIENSTVERBANDGEGEVENS!F75 -> 0 | G475: =DIENSTVERBANDGEGEVENS!G75 -> 0 | H475: =DIENSTVERBANDGEGEVENS!H75 -> 0 | I475: =DIENSTVERBANDGEGEVENS!I75 -> 0 | K475: totaal
B476: totaal even | D476: =maandag4*D458 -> 0 | E476: =E475*F458 -> 0 | F476: =F475*H458 -> 0 | G476: =G475*J458 -> 0 | H476: =H475*L458 -> 0 | I476: =I475*N458 -> 0
C477: oneven week | D477: =DIENSTVERBANDGEGEVENS!D77 -> 0 | E477: =DIENSTVERBANDGEGEVENS!E77 -> 0 | F477: =DIENSTVERBANDGEGEVENS!F77 -> 0 | G477: =DIENSTVERBANDGEGEVENS!G77 -> 0 | H477: =DIENSTVERBANDGEGEVENS!H77 -> 0 | I477: =DIENSTVERBANDGEGEVENS!I77 -> 0 | K477: =SUM(D475:I475,D477:I477)/2 -> 0
B478: totaal oneven | D478: =D477*E458 -> 0 | E478: =E477*G458 -> 0 | F478: =F477*I458 -> 0 | G478: =G477*K458 -> 0 | H478: =H477*M458 -> 0 | I478: =I477*O458 -> 0
B479: (F) werkbare uren (gecorrigeerd voor feestdagen en overige niet-werkbare dagen) | K479: =IF(AND(D422>0,F422>0,$N$4),SUM(D476:I476,D478:I478),0) -> 0
B481: (G) Bruto CAO verlofuren in periode 4 ( A * verlofsaldo * Z ) | K481: =SUM(K466*IF(K468=0,0,IF(K468=D460,D461,IF(K468=E460,E461,IF(K468=F460,F461,"")))))*K464 -> 
B483: (H) Werkbare uren gecorrigeerd voor bruto verlofuren ( F - G ) | K483: =IF(K472=0,0,K479-K481) -> 0
B485: (I) teveel (+) / te weinig (-) gewerkte uren ( H - C ) | K485: =K483-K470 -> 
B487: (J) Opgebouwde netto CAO verlofuren ( G + I ) | K487: =K481+K485 -> 
D491: =IF(D493,"datum !",IF(OR(D492=0,YEAR(D492)=$N$3),"","datum !")) ->  | F491: =IF(AND(D492>0,F492>0,F492<D492),"datum !",IF(OR(F493, AND(F492>0,YEAR(F492)<>$N$3)),"datum !","")) ->  | H491: p1 | I491: p2 | J491: p3 | K491: p4 | Q491: PERIODE 5
B492: PERIODE 5 | C492: van | D492: =IF(ISNUMBER(DIENSTVERBANDGEGEVENS!D83),DIENSTVERBANDGEGEVENS!D83,0) -> 1904-01-01 | E492: t/m | F492: =IF(ISNUMBER(DIENSTVERBANDGEGEVENS!F83),DIENSTVERBANDGEGEVENS!F83,0) -> 1904-01-01 | G492: =IF(AND(H492:K492),""," periode-overlapping") ->  | H492: =OR( D492=0,F492=0,D3=0,F3=0, AND($D$492>D3,$D$492>F3),AND($D$492<D3,$F$492<D3)) -> TRUE | I492: =OR( D492=0,F492=0,D15=0,F15=0, AND($D$492>D15,$D$492>F15),AND($D$492<D15,$F$492<D15)) -> TRUE | J492: =OR( D492=0,F492=0,D352=0,F352=0, AND($D$492>D352,$D$492>F352),AND($D$492<D352,$F$492<D352)) -> TRUE | K492: =OR( D492=0,F492=0,D422=0,F422=0, AND($D$492>D422,$D$492>F422),AND($D$492<D422,$F$492<D422)) -> TRUE
C493: tekst in datumcel | D493: =TYPE(DIENSTVERBANDGEGEVENS!D83)=2 -> FALSE | F493: =TYPE(DIENSTVERBANDGEGEVENS!F83)=2 -> FALSE
D495: ma even | E495: ma oneven | F495: di even | G495: di oneven | H495: wo even | I495: wo oneven | J495: do even | K495: do oneven | L495: vr even | M495: vr oneven | N495: za even | O495: za oneven | P495: zo even | Q495: zo oneven
C496: =D492 -> 1904-01-01 | D496: =IF( AND( WEEKDAY($C496,2)=1,YEAR($C496)=$N$3, evenWeek($C496), $C496<=$F$492), (($F$492 + 1) - $C496 ) / 14, 0) -> 0 | E496: =IF( AND( WEEKDAY($C496,2)=1,YEAR($C496)=$N$3, NOT(evenWeek($C496)), $C496<= $F$492), (($F$492 + 1) - $C496 ) /14, 0) -> 0 | F496: =IF( AND( WEEKDAY($C496,2)=2,YEAR($C496)=$N$3, evenWeek($C496), $C496<=$F$492), (($F$492 + 1) - $C496 ) / 14, 0) -> 0 | G496: =IF( AND( WEEKDAY($C496,2)=2,YEAR($C496)=$N$3, NOT(evenWeek($C496)), $C496<= $F$492), (($F$492 + 1) - $C496 ) /14, 0) -> 0 | H496: =IF( AND( WEEKDAY($C496,2)=3,YEAR($C496)=$N$3, evenWeek($C496), $C496<=$F$492), (($F$492 + 1) - $C496 ) / 14, 0) -> 0 | I496: =IF( AND( WEEKDAY($C496,2)=3,YEAR($C496)=$N$3, NOT(evenWeek($C496)), $C496<= $F$492), (($F$492 + 1) - $C496 ) /14, 0) -> 0 | J496: =IF( AND( WEEKDAY($C496,2)=4,YEAR($C496)=$N$3, evenWeek($C496), $C496<=$F$492), (($F$492 + 1) - $C496 ) / 14, 0) -> 0 | K496: =IF( AND( WEEKDAY($C496,2)=4,YEAR($C496)=$N$3, NOT(evenWeek($C496)), $C496<= $F$492), (($F$492 + 1) - $C496 ) /14, 0) -> 0 | L496: =IF( AND( WEEKDAY($C496,2)=5,YEAR($C496)=$N$3, evenWeek($C496), $C496<=$F$492), (($F$492 + 1) - $C496 ) / 14, 0) -> 0 | M496: =IF( AND( WEEKDAY($C496,2)=5,YEAR($C496)=$N$3, NOT(evenWeek($C496)), $C496<= $F$492), (($F$492 + 1) - $C496 ) /14, 0) -> 0 | N496: =IF( AND( WEEKDAY($C496,2)=6,YEAR($C496)=$N$3, evenWeek($C496), $C496<=$F$492), (($F$492 + 1) - $C496 ) / 14, 0) -> 0 | O496: =IF( AND( WEEKDAY($C496,2)=6,YEAR($C496)=$N$3, NOT(evenWeek($C496)), $C496<= $F$492), (($F$492 + 1) - $C496 ) /14, 0) -> 0 | P496: =IF( AND( WEEKDAY($C496,2)=7,YEAR($C496)=$N$3, evenWeek($C496), $C496<=$F$492), (($F$492 + 1) - $C496 ) / 14, 0) -> 0 | Q496: =IF( AND( WEEKDAY($C496,2)=7,YEAR($C496)=$N$3, NOT(evenWeek($C496)), $C496<= $F$492), (($F$492 + 1) - $C496 ) /14, 0) -> 0
C497: =C496+1 -> 1904-01-02 | D497: =IF( AND( WEEKDAY($C497,2)=1,YEAR($C497)=$N$3, evenWeek($C497), $C497<=$F$492), (($F$492 + 1) - $C497 ) / 14, 0) -> 0 | E497: =IF( AND( WEEKDAY($C497,2)=1,YEAR($C497)=$N$3, NOT(evenWeek($C497)), $C497<= $F$492), (($F$492 + 1) - $C497 ) /14, 0) -> 0 | F497: =IF( AND( WEEKDAY($C497,2)=2,YEAR($C497)=$N$3, evenWeek($C497), $C497<=$F$492), (($F$492 + 1) - $C497 ) / 14, 0) -> 0 | G497: =IF( AND( WEEKDAY($C497,2)=2,YEAR($C497)=$N$3, NOT(evenWeek($C497)), $C497<= $F$492), (($F$492 + 1) - $C497 ) /14, 0) -> 0 | H497: =IF( AND( WEEKDAY($C497,2)=3,YEAR($C497)=$N$3, evenWeek($C497), $C497<=$F$492), (($F$492 + 1) - $C497 ) / 14, 0) -> 0 | I497: =IF( AND( WEEKDAY($C497,2)=3,YEAR($C497)=$N$3, NOT(evenWeek($C497)), $C497<= $F$492), (($F$492 + 1) - $C497 ) /14, 0) -> 0 | J497: =IF( AND( WEEKDAY($C497,2)=4,YEAR($C497)=$N$3, evenWeek($C497), $C497<=$F$492), (($F$492 + 1) - $C497 ) / 14, 0) -> 0 | K497: =IF( AND( WEEKDAY($C497,2)=4,YEAR($C497)=$N$3, NOT(evenWeek($C497)), $C497<= $F$492), (($F$492 + 1) - $C497 ) /14, 0) -> 0 | L497: =IF( AND( WEEKDAY($C497,2)=5,YEAR($C497)=$N$3, evenWeek($C497), $C497<=$F$492), (($F$492 + 1) - $C497 ) / 14, 0) -> 0 | M497: =IF( AND( WEEKDAY($C497,2)=5,YEAR($C497)=$N$3, NOT(evenWeek($C497)), $C497<= $F$492), (($F$492 + 1) - $C497 ) /14, 0) -> 0 | N497: =IF( AND( WEEKDAY($C497,2)=6,YEAR($C497)=$N$3, evenWeek($C497), $C497<=$F$492), (($F$492 + 1) - $C497 ) / 14, 0) -> 0 | O497: =IF( AND( WEEKDAY($C497,2)=6,YEAR($C497)=$N$3, NOT(evenWeek($C497)), $C497<= $F$492), (($F$492 + 1) - $C497 ) /14, 0) -> 0 | P497: =IF( AND( WEEKDAY($C497,2)=7,YEAR($C497)=$N$3, evenWeek($C497), $C497<=$F$492), (($F$492 + 1) - $C497 ) / 14, 0) -> 0 | Q497: =IF( AND( WEEKDAY($C497,2)=7,YEAR($C497)=$N$3, NOT(evenWeek($C497)), $C497<= $F$492), (($F$492 + 1) - $C497 ) /14, 0) -> 0
C498: =C497+1 -> 1904-01-03 | D498: =IF( AND( WEEKDAY($C498,2)=1,YEAR($C498)=$N$3, evenWeek($C498), $C498<=$F$492), (($F$492 + 1) - $C498 ) / 14, 0) -> 0 | E498: =IF( AND( WEEKDAY($C498,2)=1,YEAR($C498)=$N$3, NOT(evenWeek($C498)), $C498<= $F$492), (($F$492 + 1) - $C498 ) /14, 0) -> 0 | F498: =IF( AND( WEEKDAY($C498,2)=2,YEAR($C498)=$N$3, evenWeek($C498), $C498<=$F$492), (($F$492 + 1) - $C498 ) / 14, 0) -> 0 | G498: =IF( AND( WEEKDAY($C498,2)=2,YEAR($C498)=$N$3, NOT(evenWeek($C498)), $C498<= $F$492), (($F$492 + 1) - $C498 ) /14, 0) -> 0 | H498: =IF( AND( WEEKDAY($C498,2)=3,YEAR($C498)=$N$3, evenWeek($C498), $C498<=$F$492), (($F$492 + 1) - $C498 ) / 14, 0) -> 0 | I498: =IF( AND( WEEKDAY($C498,2)=3,YEAR($C498)=$N$3, NOT(evenWeek($C498)), $C498<= $F$492), (($F$492 + 1) - $C498 ) /14, 0) -> 0 | J498: =IF( AND( WEEKDAY($C498,2)=4,YEAR($C498)=$N$3, evenWeek($C498), $C498<=$F$492), (($F$492 + 1) - $C498 ) / 14, 0) -> 0 | K498: =IF( AND( WEEKDAY($C498,2)=4,YEAR($C498)=$N$3, NOT(evenWeek($C498)), $C498<= $F$492), (($F$492 + 1) - $C498 ) /14, 0) -> 0 | L498: =IF( AND( WEEKDAY($C498,2)=5,YEAR($C498)=$N$3, evenWeek($C498), $C498<=$F$492), (($F$492 + 1) - $C498 ) / 14, 0) -> 0 | M498: =IF( AND( WEEKDAY($C498,2)=5,YEAR($C498)=$N$3, NOT(evenWeek($C498)), $C498<= $F$492), (($F$492 + 1) - $C498 ) /14, 0) -> 0 | N498: =IF( AND( WEEKDAY($C498,2)=6,YEAR($C498)=$N$3, evenWeek($C498), $C498<=$F$492), (($F$492 + 1) - $C498 ) / 14, 0) -> 0 | O498: =IF( AND( WEEKDAY($C498,2)=6,YEAR($C498)=$N$3, NOT(evenWeek($C498)), $C498<= $F$492), (($F$492 + 1) - $C498 ) /14, 0) -> 0 | P498: =IF( AND( WEEKDAY($C498,2)=7,YEAR($C498)=$N$3, evenWeek($C498), $C498<=$F$492), (($F$492 + 1) - $C498 ) / 14, 0) -> 0 | Q498: =IF( AND( WEEKDAY($C498,2)=7,YEAR($C498)=$N$3, NOT(evenWeek($C498)), $C498<= $F$492), (($F$492 + 1) - $C498 ) /14, 0) -> 0
C499: 1904-01-04 | D499: =IF( AND( WEEKDAY($C499,2)=1,YEAR($C499)=$N$3, evenWeek($C499), $C499<=$F$492), (($F$492 + 1) - $C499 ) / 14, 0) -> 0 | E499: =IF( AND( WEEKDAY($C499,2)=1,YEAR($C499)=$N$3, NOT(evenWeek($C499)), $C499<= $F$492), (($F$492 + 1) - $C499 ) /14, 0) -> 0 | F499: =IF( AND( WEEKDAY($C499,2)=2,YEAR($C499)=$N$3, evenWeek($C499), $C499<=$F$492), (($F$492 + 1) - $C499 ) / 14, 0) -> 0 | G499: =IF( AND( WEEKDAY($C499,2)=2,YEAR($C499)=$N$3, NOT(evenWeek($C499)), $C499<= $F$492), (($F$492 + 1) - $C499 ) /14, 0) -> 0 | H499: =IF( AND( WEEKDAY($C499,2)=3,YEAR($C499)=$N$3, evenWeek($C499), $C499<=$F$492), (($F$492 + 1) - $C499 ) / 14, 0) -> 0 | I499: =IF( AND( WEEKDAY($C499,2)=3,YEAR($C499)=$N$3, NOT(evenWeek($C499)), $C499<= $F$492), (($F$492 + 1) - $C499 ) /14, 0) -> 0 | J499: =IF( AND( WEEKDAY($C499,2)=4,YEAR($C499)=$N$3, evenWeek($C499), $C499<=$F$492), (($F$492 + 1) - $C499 ) / 14, 0) -> 0 | K499: =IF( AND( WEEKDAY($C499,2)=4,YEAR($C499)=$N$3, NOT(evenWeek($C499)), $C499<= $F$492), (($F$492 + 1) - $C499 ) /14, 0) -> 0 | L499: =IF( AND( WEEKDAY($C499,2)=5,YEAR($C499)=$N$3, evenWeek($C499), $C499<=$F$492), (($F$492 + 1) - $C499 ) / 14, 0) -> 0 | M499: =IF( AND( WEEKDAY($C499,2)=5,YEAR($C499)=$N$3, NOT(evenWeek($C499)), $C499<= $F$492), (($F$492 + 1) - $C499 ) /14, 0) -> 0 | N499: =IF( AND( WEEKDAY($C499,2)=6,YEAR($C499)=$N$3, evenWeek($C499), $C499<=$F$492), (($F$492 + 1) - $C499 ) / 14, 0) -> 0 | O499: =IF( AND( WEEKDAY($C499,2)=6,YEAR($C499)=$N$3, NOT(evenWeek($C499)), $C499<= $F$492), (($F$492 + 1) - $C499 ) /14, 0) -> 0 | P499: =IF( AND( WEEKDAY($C499,2)=7,YEAR($C499)=$N$3, evenWeek($C499), $C499<=$F$492), (($F$492 + 1) - $C499 ) / 14, 0) -> 0 | Q499: =IF( AND( WEEKDAY($C499,2)=7,YEAR($C499)=$N$3, NOT(evenWeek($C499)), $C499<= $F$492), (($F$492 + 1) - $C499 ) /14, 0) -> 0
C500: 1904-01-05 | D500: =IF( AND( WEEKDAY($C500,2)=1,YEAR($C500)=$N$3, evenWeek($C500), $C500<=$F$492), (($F$492 + 1) - $C500 ) / 14, 0) -> 0 | E500: =IF( AND( WEEKDAY($C500,2)=1,YEAR($C500)=$N$3, NOT(evenWeek($C500)), $C500<= $F$492), (($F$492 + 1) - $C500 ) /14, 0) -> 0 | F500: =IF( AND( WEEKDAY($C500,2)=2,YEAR($C500)=$N$3, evenWeek($C500), $C500<=$F$492), (($F$492 + 1) - $C500 ) / 14, 0) -> 0 | G500: =IF( AND( WEEKDAY($C500,2)=2,YEAR($C500)=$N$3, NOT(evenWeek($C500)), $C500<= $F$492), (($F$492 + 1) - $C500 ) /14, 0) -> 0 | H500: =IF( AND( WEEKDAY($C500,2)=3,YEAR($C500)=$N$3, evenWeek($C500), $C500<=$F$492), (($F$492 + 1) - $C500 ) / 14, 0) -> 0 | I500: =IF( AND( WEEKDAY($C500,2)=3,YEAR($C500)=$N$3, NOT(evenWeek($C500)), $C500<= $F$492), (($F$492 + 1) - $C500 ) /14, 0) -> 0 | J500: =IF( AND( WEEKDAY($C500,2)=4,YEAR($C500)=$N$3, evenWeek($C500), $C500<=$F$492), (($F$492 + 1) - $C500 ) / 14, 0) -> 0 | K500: =IF( AND( WEEKDAY($C500,2)=4,YEAR($C500)=$N$3, NOT(evenWeek($C500)), $C500<= $F$492), (($F$492 + 1) - $C500 ) /14, 0) -> 0 | L500: =IF( AND( WEEKDAY($C500,2)=5,YEAR($C500)=$N$3, evenWeek($C500), $C500<=$F$492), (($F$492 + 1) - $C500 ) / 14, 0) -> 0 | M500: =IF( AND( WEEKDAY($C500,2)=5,YEAR($C500)=$N$3, NOT(evenWeek($C500)), $C500<= $F$492), (($F$492 + 1) - $C500 ) /14, 0) -> 0 | N500: =IF( AND( WEEKDAY($C500,2)=6,YEAR($C500)=$N$3, evenWeek($C500), $C500<=$F$492), (($F$492 + 1) - $C500 ) / 14, 0) -> 0 | O500: =IF( AND( WEEKDAY($C500,2)=6,YEAR($C500)=$N$3, NOT(evenWeek($C500)), $C500<= $F$492), (($F$492 + 1) - $C500 ) /14, 0) -> 0 | P500: =IF( AND( WEEKDAY($C500,2)=7,YEAR($C500)=$N$3, evenWeek($C500), $C500<=$F$492), (($F$492 + 1) - $C500 ) / 14, 0) -> 0 | Q500: =IF( AND( WEEKDAY($C500,2)=7,YEAR($C500)=$N$3, NOT(evenWeek($C500)), $C500<= $F$492), (($F$492 + 1) - $C500 ) /14, 0) -> 0
C501: 1904-01-06 | D501: =IF( AND( WEEKDAY($C501,2)=1,YEAR($C501)=$N$3, evenWeek($C501), $C501<=$F$492), (($F$492 + 1) - $C501 ) / 14, 0) -> 0 | E501: =IF( AND( WEEKDAY($C501,2)=1,YEAR($C501)=$N$3, NOT(evenWeek($C501)), $C501<= $F$492), (($F$492 + 1) - $C501 ) /14, 0) -> 0 | F501: =IF( AND( WEEKDAY($C501,2)=2,YEAR($C501)=$N$3, evenWeek($C501), $C501<=$F$492), (($F$492 + 1) - $C501 ) / 14, 0) -> 0 | G501: =IF( AND( WEEKDAY($C501,2)=2,YEAR($C501)=$N$3, NOT(evenWeek($C501)), $C501<= $F$492), (($F$492 + 1) - $C501 ) /14, 0) -> 0 | H501: =IF( AND( WEEKDAY($C501,2)=3,YEAR($C501)=$N$3, evenWeek($C501), $C501<=$F$492), (($F$492 + 1) - $C501 ) / 14, 0) -> 0 | I501: =IF( AND( WEEKDAY($C501,2)=3,YEAR($C501)=$N$3, NOT(evenWeek($C501)), $C501<= $F$492), (($F$492 + 1) - $C501 ) /14, 0) -> 0 | J501: =IF( AND( WEEKDAY($C501,2)=4,YEAR($C501)=$N$3, evenWeek($C501), $C501<=$F$492), (($F$492 + 1) - $C501 ) / 14, 0) -> 0 | K501: =IF( AND( WEEKDAY($C501,2)=4,YEAR($C501)=$N$3, NOT(evenWeek($C501)), $C501<= $F$492), (($F$492 + 1) - $C501 ) /14, 0) -> 0 | L501: =IF( AND( WEEKDAY($C501,2)=5,YEAR($C501)=$N$3, evenWeek($C501), $C501<=$F$492), (($F$492 + 1) - $C501 ) / 14, 0) -> 0 | M501: =IF( AND( WEEKDAY($C501,2)=5,YEAR($C501)=$N$3, NOT(evenWeek($C501)), $C501<= $F$492), (($F$492 + 1) - $C501 ) /14, 0) -> 0 | N501: =IF( AND( WEEKDAY($C501,2)=6,YEAR($C501)=$N$3, evenWeek($C501), $C501<=$F$492), (($F$492 + 1) - $C501 ) / 14, 0) -> 0 | O501: =IF( AND( WEEKDAY($C501,2)=6,YEAR($C501)=$N$3, NOT(evenWeek($C501)), $C501<= $F$492), (($F$492 + 1) - $C501 ) /14, 0) -> 0 | P501: =IF( AND( WEEKDAY($C501,2)=7,YEAR($C501)=$N$3, evenWeek($C501), $C501<=$F$492), (($F$492 + 1) - $C501 ) / 14, 0) -> 0 | Q501: =IF( AND( WEEKDAY($C501,2)=7,YEAR($C501)=$N$3, NOT(evenWeek($C501)), $C501<= $F$492), (($F$492 + 1) - $C501 ) /14, 0) -> 0
C502: 1904-01-07 | D502: =IF( AND( WEEKDAY($C502,2)=1,YEAR($C502)=$N$3, evenWeek($C502), $C502<=$F$492), (($F$492 + 1) - $C502 ) / 14, 0) -> 0 | E502: =IF( AND( WEEKDAY($C502,2)=1,YEAR($C502)=$N$3, NOT(evenWeek($C502)), $C502<= $F$492), (($F$492 + 1) - $C502 ) /14, 0) -> 0 | F502: =IF( AND( WEEKDAY($C502,2)=2,YEAR($C502)=$N$3, evenWeek($C502), $C502<=$F$492), (($F$492 + 1) - $C502 ) / 14, 0) -> 0 | G502: =IF( AND( WEEKDAY($C502,2)=2,YEAR($C502)=$N$3, NOT(evenWeek($C502)), $C502<= $F$492), (($F$492 + 1) - $C502 ) /14, 0) -> 0 | H502: =IF( AND( WEEKDAY($C502,2)=3,YEAR($C502)=$N$3, evenWeek($C502), $C502<=$F$492), (($F$492 + 1) - $C502 ) / 14, 0) -> 0 | I502: =IF( AND( WEEKDAY($C502,2)=3,YEAR($C502)=$N$3, NOT(evenWeek($C502)), $C502<= $F$492), (($F$492 + 1) - $C502 ) /14, 0) -> 0 | J502: =IF( AND( WEEKDAY($C502,2)=4,YEAR($C502)=$N$3, evenWeek($C502), $C502<=$F$492), (($F$492 + 1) - $C502 ) / 14, 0) -> 0 | K502: =IF( AND( WEEKDAY($C502,2)=4,YEAR($C502)=$N$3, NOT(evenWeek($C502)), $C502<= $F$492), (($F$492 + 1) - $C502 ) /14, 0) -> 0 | L502: =IF( AND( WEEKDAY($C502,2)=5,YEAR($C502)=$N$3, evenWeek($C502), $C502<=$F$492), (($F$492 + 1) - $C502 ) / 14, 0) -> 0 | M502: =IF( AND( WEEKDAY($C502,2)=5,YEAR($C502)=$N$3, NOT(evenWeek($C502)), $C502<= $F$492), (($F$492 + 1) - $C502 ) /14, 0) -> 0 | N502: =IF( AND( WEEKDAY($C502,2)=6,YEAR($C502)=$N$3, evenWeek($C502), $C502<=$F$492), (($F$492 + 1) - $C502 ) / 14, 0) -> 0 | O502: =IF( AND( WEEKDAY($C502,2)=6,YEAR($C502)=$N$3, NOT(evenWeek($C502)), $C502<= $F$492), (($F$492 + 1) - $C502 ) /14, 0) -> 0 | P502: =IF( AND( WEEKDAY($C502,2)=7,YEAR($C502)=$N$3, evenWeek($C502), $C502<=$F$492), (($F$492 + 1) - $C502 ) / 14, 0) -> 0 | Q502: =IF( AND( WEEKDAY($C502,2)=7,YEAR($C502)=$N$3, NOT(evenWeek($C502)), $C502<= $F$492), (($F$492 + 1) - $C502 ) /14, 0) -> 0
C503: 1904-01-08 | D503: =IF( AND( WEEKDAY($C503,2)=1,YEAR($C503)=$N$3, evenWeek($C503), $C503<=$F$492), (($F$492 + 1) - $C503 ) / 14, 0) -> 0 | E503: =IF( AND( WEEKDAY($C503,2)=1,YEAR($C503)=$N$3, NOT(evenWeek($C503)), $C503<= $F$492), (($F$492 + 1) - $C503 ) /14, 0) -> 0 | F503: =IF( AND( WEEKDAY($C503,2)=2,YEAR($C503)=$N$3, evenWeek($C503), $C503<=$F$492), (($F$492 + 1) - $C503 ) / 14, 0) -> 0 | G503: =IF( AND( WEEKDAY($C503,2)=2,YEAR($C503)=$N$3, NOT(evenWeek($C503)), $C503<= $F$492), (($F$492 + 1) - $C503 ) /14, 0) -> 0 | H503: =IF( AND( WEEKDAY($C503,2)=3,YEAR($C503)=$N$3, evenWeek($C503), $C503<=$F$492), (($F$492 + 1) - $C503 ) / 14, 0) -> 0 | I503: =IF( AND( WEEKDAY($C503,2)=3,YEAR($C503)=$N$3, NOT(evenWeek($C503)), $C503<= $F$492), (($F$492 + 1) - $C503 ) /14, 0) -> 0 | J503: =IF( AND( WEEKDAY($C503,2)=4,YEAR($C503)=$N$3, evenWeek($C503), $C503<=$F$492), (($F$492 + 1) - $C503 ) / 14, 0) -> 0 | K503: =IF( AND( WEEKDAY($C503,2)=4,YEAR($C503)=$N$3, NOT(evenWeek($C503)), $C503<= $F$492), (($F$492 + 1) - $C503 ) /14, 0) -> 0 | L503: =IF( AND( WEEKDAY($C503,2)=5,YEAR($C503)=$N$3, evenWeek($C503), $C503<=$F$492), (($F$492 + 1) - $C503 ) / 14, 0) -> 0 | M503: =IF( AND( WEEKDAY($C503,2)=5,YEAR($C503)=$N$3, NOT(evenWeek($C503)), $C503<= $F$492), (($F$492 + 1) - $C503 ) /14, 0) -> 0 | N503: =IF( AND( WEEKDAY($C503,2)=6,YEAR($C503)=$N$3, evenWeek($C503), $C503<=$F$492), (($F$492 + 1) - $C503 ) / 14, 0) -> 0 | O503: =IF( AND( WEEKDAY($C503,2)=6,YEAR($C503)=$N$3, NOT(evenWeek($C503)), $C503<= $F$492), (($F$492 + 1) - $C503 ) /14, 0) -> 0 | P503: =IF( AND( WEEKDAY($C503,2)=7,YEAR($C503)=$N$3, evenWeek($C503), $C503<=$F$492), (($F$492 + 1) - $C503 ) / 14, 0) -> 0 | Q503: =IF( AND( WEEKDAY($C503,2)=7,YEAR($C503)=$N$3, NOT(evenWeek($C503)), $C503<= $F$492), (($F$492 + 1) - $C503 ) /14, 0) -> 0
C504: 1904-01-09 | D504: =IF( AND( WEEKDAY($C504,2)=1,YEAR($C504)=$N$3, evenWeek($C504), $C504<=$F$492), (($F$492 + 1) - $C504 ) / 14, 0) -> 0 | E504: =IF( AND( WEEKDAY($C504,2)=1,YEAR($C504)=$N$3, NOT(evenWeek($C504)), $C504<= $F$492), (($F$492 + 1) - $C504 ) /14, 0) -> 0 | F504: =IF( AND( WEEKDAY($C504,2)=2,YEAR($C504)=$N$3, evenWeek($C504), $C504<=$F$492), (($F$492 + 1) - $C504 ) / 14, 0) -> 0 | G504: =IF( AND( WEEKDAY($C504,2)=2,YEAR($C504)=$N$3, NOT(evenWeek($C504)), $C504<= $F$492), (($F$492 + 1) - $C504 ) /14, 0) -> 0 | H504: =IF( AND( WEEKDAY($C504,2)=3,YEAR($C504)=$N$3, evenWeek($C504), $C504<=$F$492), (($F$492 + 1) - $C504 ) / 14, 0) -> 0 | I504: =IF( AND( WEEKDAY($C504,2)=3,YEAR($C504)=$N$3, NOT(evenWeek($C504)), $C504<= $F$492), (($F$492 + 1) - $C504 ) /14, 0) -> 0 | J504: =IF( AND( WEEKDAY($C504,2)=4,YEAR($C504)=$N$3, evenWeek($C504), $C504<=$F$492), (($F$492 + 1) - $C504 ) / 14, 0) -> 0 | K504: =IF( AND( WEEKDAY($C504,2)=4,YEAR($C504)=$N$3, NOT(evenWeek($C504)), $C504<= $F$492), (($F$492 + 1) - $C504 ) /14, 0) -> 0 | L504: =IF( AND( WEEKDAY($C504,2)=5,YEAR($C504)=$N$3, evenWeek($C504), $C504<=$F$492), (($F$492 + 1) - $C504 ) / 14, 0) -> 0 | M504: =IF( AND( WEEKDAY($C504,2)=5,YEAR($C504)=$N$3, NOT(evenWeek($C504)), $C504<= $F$492), (($F$492 + 1) - $C504 ) /14, 0) -> 0 | N504: =IF( AND( WEEKDAY($C504,2)=6,YEAR($C504)=$N$3, evenWeek($C504), $C504<=$F$492), (($F$492 + 1) - $C504 ) / 14, 0) -> 0 | O504: =IF( AND( WEEKDAY($C504,2)=6,YEAR($C504)=$N$3, NOT(evenWeek($C504)), $C504<= $F$492), (($F$492 + 1) - $C504 ) /14, 0) -> 0 | P504: =IF( AND( WEEKDAY($C504,2)=7,YEAR($C504)=$N$3, evenWeek($C504), $C504<=$F$492), (($F$492 + 1) - $C504 ) / 14, 0) -> 0 | Q504: =IF( AND( WEEKDAY($C504,2)=7,YEAR($C504)=$N$3, NOT(evenWeek($C504)), $C504<= $F$492), (($F$492 + 1) - $C504 ) /14, 0) -> 0
C505: 1904-01-10 | D505: =IF( AND( WEEKDAY($C505,2)=1,YEAR($C505)=$N$3, evenWeek($C505), $C505<=$F$492), (($F$492 + 1) - $C505 ) / 14, 0) -> 0 | E505: =IF( AND( WEEKDAY($C505,2)=1,YEAR($C505)=$N$3, NOT(evenWeek($C505)), $C505<= $F$492), (($F$492 + 1) - $C505 ) /14, 0) -> 0 | F505: =IF( AND( WEEKDAY($C505,2)=2,YEAR($C505)=$N$3, evenWeek($C505), $C505<=$F$492), (($F$492 + 1) - $C505 ) / 14, 0) -> 0 | G505: =IF( AND( WEEKDAY($C505,2)=2,YEAR($C505)=$N$3, NOT(evenWeek($C505)), $C505<= $F$492), (($F$492 + 1) - $C505 ) /14, 0) -> 0 | H505: =IF( AND( WEEKDAY($C505,2)=3,YEAR($C505)=$N$3, evenWeek($C505), $C505<=$F$492), (($F$492 + 1) - $C505 ) / 14, 0) -> 0 | I505: =IF( AND( WEEKDAY($C505,2)=3,YEAR($C505)=$N$3, NOT(evenWeek($C505)), $C505<= $F$492), (($F$492 + 1) - $C505 ) /14, 0) -> 0 | J505: =IF( AND( WEEKDAY($C505,2)=4,YEAR($C505)=$N$3, evenWeek($C505), $C505<=$F$492), (($F$492 + 1) - $C505 ) / 14, 0) -> 0 | K505: =IF( AND( WEEKDAY($C505,2)=4,YEAR($C505)=$N$3, NOT(evenWeek($C505)), $C505<= $F$492), (($F$492 + 1) - $C505 ) /14, 0) -> 0 | L505: =IF( AND( WEEKDAY($C505,2)=5,YEAR($C505)=$N$3, evenWeek($C505), $C505<=$F$492), (($F$492 + 1) - $C505 ) / 14, 0) -> 0 | M505: =IF( AND( WEEKDAY($C505,2)=5,YEAR($C505)=$N$3, NOT(evenWeek($C505)), $C505<= $F$492), (($F$492 + 1) - $C505 ) /14, 0) -> 0 | N505: =IF( AND( WEEKDAY($C505,2)=6,YEAR($C505)=$N$3, evenWeek($C505), $C505<=$F$492), (($F$492 + 1) - $C505 ) / 14, 0) -> 0 | O505: =IF( AND( WEEKDAY($C505,2)=6,YEAR($C505)=$N$3, NOT(evenWeek($C505)), $C505<= $F$492), (($F$492 + 1) - $C505 ) /14, 0) -> 0 | P505: =IF( AND( WEEKDAY($C505,2)=7,YEAR($C505)=$N$3, evenWeek($C505), $C505<=$F$492), (($F$492 + 1) - $C505 ) / 14, 0) -> 0 | Q505: =IF( AND( WEEKDAY($C505,2)=7,YEAR($C505)=$N$3, NOT(evenWeek($C505)), $C505<= $F$492), (($F$492 + 1) - $C505 ) /14, 0) -> 0
C506: 1904-01-11 | D506: =IF( AND( WEEKDAY($C506,2)=1,YEAR($C506)=$N$3, evenWeek($C506), $C506<=$F$492), (($F$492 + 1) - $C506 ) / 14, 0) -> 0 | E506: =IF( AND( WEEKDAY($C506,2)=1,YEAR($C506)=$N$3, NOT(evenWeek($C506)), $C506<= $F$492), (($F$492 + 1) - $C506 ) /14, 0) -> 0 | F506: =IF( AND( WEEKDAY($C506,2)=2,YEAR($C506)=$N$3, evenWeek($C506), $C506<=$F$492), (($F$492 + 1) - $C506 ) / 14, 0) -> 0 | G506: =IF( AND( WEEKDAY($C506,2)=2,YEAR($C506)=$N$3, NOT(evenWeek($C506)), $C506<= $F$492), (($F$492 + 1) - $C506 ) /14, 0) -> 0 | H506: =IF( AND( WEEKDAY($C506,2)=3,YEAR($C506)=$N$3, evenWeek($C506), $C506<=$F$492), (($F$492 + 1) - $C506 ) / 14, 0) -> 0 | I506: =IF( AND( WEEKDAY($C506,2)=3,YEAR($C506)=$N$3, NOT(evenWeek($C506)), $C506<= $F$492), (($F$492 + 1) - $C506 ) /14, 0) -> 0 | J506: =IF( AND( WEEKDAY($C506,2)=4,YEAR($C506)=$N$3, evenWeek($C506), $C506<=$F$492), (($F$492 + 1) - $C506 ) / 14, 0) -> 0 | K506: =IF( AND( WEEKDAY($C506,2)=4,YEAR($C506)=$N$3, NOT(evenWeek($C506)), $C506<= $F$492), (($F$492 + 1) - $C506 ) /14, 0) -> 0 | L506: =IF( AND( WEEKDAY($C506,2)=5,YEAR($C506)=$N$3, evenWeek($C506), $C506<=$F$492), (($F$492 + 1) - $C506 ) / 14, 0) -> 0 | M506: =IF( AND( WEEKDAY($C506,2)=5,YEAR($C506)=$N$3, NOT(evenWeek($C506)), $C506<= $F$492), (($F$492 + 1) - $C506 ) /14, 0) -> 0 | N506: =IF( AND( WEEKDAY($C506,2)=6,YEAR($C506)=$N$3, evenWeek($C506), $C506<=$F$492), (($F$492 + 1) - $C506 ) / 14, 0) -> 0 | O506: =IF( AND( WEEKDAY($C506,2)=6,YEAR($C506)=$N$3, NOT(evenWeek($C506)), $C506<= $F$492), (($F$492 + 1) - $C506 ) /14, 0) -> 0 | P506: =IF( AND( WEEKDAY($C506,2)=7,YEAR($C506)=$N$3, evenWeek($C506), $C506<=$F$492), (($F$492 + 1) - $C506 ) / 14, 0) -> 0 | Q506: =IF( AND( WEEKDAY($C506,2)=7,YEAR($C506)=$N$3, NOT(evenWeek($C506)), $C506<= $F$492), (($F$492 + 1) - $C506 ) /14, 0) -> 0
C507: 1904-01-12 | D507: =IF( AND( WEEKDAY($C507,2)=1,YEAR($C507)=$N$3, evenWeek($C507), $C507<=$F$492), (($F$492 + 1) - $C507 ) / 14, 0) -> 0 | E507: =IF( AND( WEEKDAY($C507,2)=1,YEAR($C507)=$N$3, NOT(evenWeek($C507)), $C507<= $F$492), (($F$492 + 1) - $C507 ) /14, 0) -> 0 | F507: =IF( AND( WEEKDAY($C507,2)=2,YEAR($C507)=$N$3, evenWeek($C507), $C507<=$F$492), (($F$492 + 1) - $C507 ) / 14, 0) -> 0 | G507: =IF( AND( WEEKDAY($C507,2)=2,YEAR($C507)=$N$3, NOT(evenWeek($C507)), $C507<= $F$492), (($F$492 + 1) - $C507 ) /14, 0) -> 0 | H507: =IF( AND( WEEKDAY($C507,2)=3,YEAR($C507)=$N$3, evenWeek($C507), $C507<=$F$492), (($F$492 + 1) - $C507 ) / 14, 0) -> 0 | I507: =IF( AND( WEEKDAY($C507,2)=3,YEAR($C507)=$N$3, NOT(evenWeek($C507)), $C507<= $F$492), (($F$492 + 1) - $C507 ) /14, 0) -> 0 | J507: =IF( AND( WEEKDAY($C507,2)=4,YEAR($C507)=$N$3, evenWeek($C507), $C507<=$F$492), (($F$492 + 1) - $C507 ) / 14, 0) -> 0 | K507: =IF( AND( WEEKDAY($C507,2)=4,YEAR($C507)=$N$3, NOT(evenWeek($C507)), $C507<= $F$492), (($F$492 + 1) - $C507 ) /14, 0) -> 0 | L507: =IF( AND( WEEKDAY($C507,2)=5,YEAR($C507)=$N$3, evenWeek($C507), $C507<=$F$492), (($F$492 + 1) - $C507 ) / 14, 0) -> 0 | M507: =IF( AND( WEEKDAY($C507,2)=5,YEAR($C507)=$N$3, NOT(evenWeek($C507)), $C507<= $F$492), (($F$492 + 1) - $C507 ) /14, 0) -> 0 | N507: =IF( AND( WEEKDAY($C507,2)=6,YEAR($C507)=$N$3, evenWeek($C507), $C507<=$F$492), (($F$492 + 1) - $C507 ) / 14, 0) -> 0 | O507: =IF( AND( WEEKDAY($C507,2)=6,YEAR($C507)=$N$3, NOT(evenWeek($C507)), $C507<= $F$492), (($F$492 + 1) - $C507 ) /14, 0) -> 0 | P507: =IF( AND( WEEKDAY($C507,2)=7,YEAR($C507)=$N$3, evenWeek($C507), $C507<=$F$492), (($F$492 + 1) - $C507 ) / 14, 0) -> 0 | Q507: =IF( AND( WEEKDAY($C507,2)=7,YEAR($C507)=$N$3, NOT(evenWeek($C507)), $C507<= $F$492), (($F$492 + 1) - $C507 ) /14, 0) -> 0
C508: 1904-01-13 | D508: =IF( AND( WEEKDAY($C508,2)=1,YEAR($C508)=$N$3, evenWeek($C508), $C508<=$F$492), (($F$492 + 1) - $C508 ) / 14, 0) -> 0 | E508: =IF( AND( WEEKDAY($C508,2)=1,YEAR($C508)=$N$3, NOT(evenWeek($C508)), $C508<= $F$492), (($F$492 + 1) - $C508 ) /14, 0) -> 0 | F508: =IF( AND( WEEKDAY($C508,2)=2,YEAR($C508)=$N$3, evenWeek($C508), $C508<=$F$492), (($F$492 + 1) - $C508 ) / 14, 0) -> 0 | G508: =IF( AND( WEEKDAY($C508,2)=2,YEAR($C508)=$N$3, NOT(evenWeek($C508)), $C508<= $F$492), (($F$492 + 1) - $C508 ) /14, 0) -> 0 | H508: =IF( AND( WEEKDAY($C508,2)=3,YEAR($C508)=$N$3, evenWeek($C508), $C508<=$F$492), (($F$492 + 1) - $C508 ) / 14, 0) -> 0 | I508: =IF( AND( WEEKDAY($C508,2)=3,YEAR($C508)=$N$3, NOT(evenWeek($C508)), $C508<= $F$492), (($F$492 + 1) - $C508 ) /14, 0) -> 0 | J508: =IF( AND( WEEKDAY($C508,2)=4,YEAR($C508)=$N$3, evenWeek($C508), $C508<=$F$492), (($F$492 + 1) - $C508 ) / 14, 0) -> 0 | K508: =IF( AND( WEEKDAY($C508,2)=4,YEAR($C508)=$N$3, NOT(evenWeek($C508)), $C508<= $F$492), (($F$492 + 1) - $C508 ) /14, 0) -> 0 | L508: =IF( AND( WEEKDAY($C508,2)=5,YEAR($C508)=$N$3, evenWeek($C508), $C508<=$F$492), (($F$492 + 1) - $C508 ) / 14, 0) -> 0 | M508: =IF( AND( WEEKDAY($C508,2)=5,YEAR($C508)=$N$3, NOT(evenWeek($C508)), $C508<= $F$492), (($F$492 + 1) - $C508 ) /14, 0) -> 0 | N508: =IF( AND( WEEKDAY($C508,2)=6,YEAR($C508)=$N$3, evenWeek($C508), $C508<=$F$492), (($F$492 + 1) - $C508 ) / 14, 0) -> 0 | O508: =IF( AND( WEEKDAY($C508,2)=6,YEAR($C508)=$N$3, NOT(evenWeek($C508)), $C508<= $F$492), (($F$492 + 1) - $C508 ) /14, 0) -> 0 | P508: =IF( AND( WEEKDAY($C508,2)=7,YEAR($C508)=$N$3, evenWeek($C508), $C508<=$F$492), (($F$492 + 1) - $C508 ) / 14, 0) -> 0 | Q508: =IF( AND( WEEKDAY($C508,2)=7,YEAR($C508)=$N$3, NOT(evenWeek($C508)), $C508<= $F$492), (($F$492 + 1) - $C508 ) /14, 0) -> 0
C509: 1904-01-14 | D509: =IF( AND( WEEKDAY($C509,2)=1,YEAR($C509)=$N$3, evenWeek($C509), $C509<=$F$492), (($F$492 + 1) - $C509 ) / 14, 0) -> 0 | E509: =IF( AND( WEEKDAY($C509,2)=1,YEAR($C509)=$N$3, NOT(evenWeek($C509)), $C509<= $F$492), (($F$492 + 1) - $C509 ) /14, 0) -> 0 | F509: =IF( AND( WEEKDAY($C509,2)=2, evenWeek($C509), $C509<=$F$492), (($F$492 + 1) - $C509 ) / 14, 0) -> 0 | G509: =IF( AND( WEEKDAY($C509,2)=2,YEAR($C509)=$N$3, NOT(evenWeek($C509)), $C509<= $F$492), (($F$492 + 1) - $C509 ) /14, 0) -> 0 | H509: =IF( AND( WEEKDAY($C509,2)=3,YEAR($C509)=$N$3, evenWeek($C509), $C509<=$F$492), (($F$492 + 1) - $C509 ) / 14, 0) -> 0 | I509: =IF( AND( WEEKDAY($C509,2)=3,YEAR($C509)=$N$3, NOT(evenWeek($C509)), $C509<= $F$492), (($F$492 + 1) - $C509 ) /14, 0) -> 0 | J509: =IF( AND( WEEKDAY($C509,2)=4,YEAR($C509)=$N$3, evenWeek($C509), $C509<=$F$492), (($F$492 + 1) - $C509 ) / 14, 0) -> 0 | K509: =IF( AND( WEEKDAY($C509,2)=4,YEAR($C509)=$N$3, NOT(evenWeek($C509)), $C509<= $F$492), (($F$492 + 1) - $C509 ) /14, 0) -> 0 | L509: =IF( AND( WEEKDAY($C509,2)=5,YEAR($C509)=$N$3, evenWeek($C509), $C509<=$F$492), (($F$492 + 1) - $C509 ) / 14, 0) -> 0 | M509: =IF( AND( WEEKDAY($C509,2)=5,YEAR($C509)=$N$3, NOT(evenWeek($C509)), $C509<= $F$492), (($F$492 + 1) - $C509 ) /14, 0) -> 0 | N509: =IF( AND( WEEKDAY($C509,2)=6,YEAR($C509)=$N$3, evenWeek($C509), $C509<=$F$492), (($F$492 + 1) - $C509 ) / 14, 0) -> 0 | O509: =IF( AND( WEEKDAY($C509,2)=6,YEAR($C509)=$N$3, NOT(evenWeek($C509)), $C509<= $F$492), (($F$492 + 1) - $C509 ) /14, 0) -> 0 | P509: =IF( AND( WEEKDAY($C509,2)=7,YEAR($C509)=$N$3, evenWeek($C509), $C509<=$F$492), (($F$492 + 1) - $C509 ) / 14, 0) -> 0 | Q509: =IF( AND( WEEKDAY($C509,2)=7,YEAR($C509)=$N$3, NOT(evenWeek($C509)), $C509<= $F$492), (($F$492 + 1) - $C509 ) /14, 0) -> 0
C510: # dagen: | D510: =ROUNDUP(SUM(D496:D509),0) -> 0 | E510: =ROUNDUP(SUM(E496:E509),0) -> 0 | F510: 0 | G510: 0 | H510: 0 | I510: 0 | J510: 0 | K510: 0 | L510: 0 | M510: 0 | N510: =ROUNDUP(SUM(N496:N509),0) -> 0 | O510: =ROUNDUP(SUM(O496:O509),0) -> 0 | P510: =ROUNDUP(SUM(P496:P509),0) -> 0 | Q510: =ROUNDUP(SUM(Q496:Q509),0) -> 0
C513: NCF dagen | D513: ma even | E513: ma oneven | F513: di even | G513: di oneven | H513: wo even | I513: wo oneven | J513: do even | K513: do oneven | L513: vr even | M513: vr oneven | N513: za even | O513: za oneven | P513: zo even | Q513: zo oneven | R513: totaal
B514: =#REF! ->  | C514: =#REF! ->  | D514: =IF( AND($C514>($D$492-1),$C514<($F$492+1),WEEKDAY($C514,2)=1, evenWeek($C514) ),-1,"") ->  | E514: =IF( AND($C514>($D$492-1),$C514<($F$492+1),WEEKDAY($C514,2)=1, NOT(evenWeek($C514)) ),-1,"") ->  | F514: =IF( AND($C514>($D$492-1),$C514<($F$492+1),WEEKDAY($C514,2)=2, evenWeek($C514) ),-1,"") ->  | G514: =IF( AND($C514>($D$492-1),$C514<($F$492+1),WEEKDAY($C514,2)=2, NOT(evenWeek($C514)) ),-1,"") ->  | H514: =IF( AND($C514>($D$492-1),$C514<($F$492+1),WEEKDAY($C514,2)=3, evenWeek($C514) ),-1,"") ->  | I514: =IF( AND($C514>($D$492-1),$C514<($F$492+1),WEEKDAY($C514,2)=3, NOT(evenWeek($C514)) ),-1,"") ->  | J514: =IF( AND($C514>($D$492-1),$C514<($F$492+1),WEEKDAY($C514,2)=4, evenWeek($C514) ),-1,"") ->  | K514: =IF( AND($C514>($D$492-1),$C514<($F$492+1),WEEKDAY($C514,2)=4, NOT(evenWeek($C514)) ),-1,"") ->  | L514: =IF( AND($C514>($D$492-1),$C514<($F$492+1),WEEKDAY($C514,2)=5, evenWeek($C514) ),-1,"") ->  | M514: =IF( AND($C514>($D$492-1),$C514<($F$492+1),WEEKDAY($C514,2)=5, NOT(evenWeek($C514)) ),-1,"") ->  | N514: =IF( AND($C514>($D$492-1),$C514<($F$492+1),WEEKDAY($C514,2)=6, evenWeek($C514) ),-1,"") ->  | O514: =IF( AND($C514>($D$492-1),$C514<($F$492+1),WEEKDAY($C514,2)=6, NOT(evenWeek($C514)) ),-1,"") ->  | P514: =IF( AND($C514>($D$492-1),$C514<($F$492+1),WEEKDAY($C514,2)=7, evenWeek($C514) ),-1,"") ->  | Q514: =IF( AND($C514>($D$492-1),$C514<($F$492+1),WEEKDAY($C514,2)=7, NOT(evenWeek($C514)) ),-1,"") -> 
B515: =#REF! ->  | C515: =#REF! ->  | L515: =IF( AND($C515>($D$492-1),$C515<($F$492+1), evenWeek($C515) ),-1,"") ->  | M515: =IF( AND($C515>($D$492-1),$C515<($F$492+1), NOT(evenWeek($C515)) ),-1,"") -> 
B516: =#REF! ->  | C516: =#REF! ->  | D516: =IF( AND($C516>($D$492-1),$C516<($F$492+1), evenWeek($C516) ),-1,"") ->  | E516: =IF( AND($C516>($D$492-1),$C516<($F$492+1), NOT(evenWeek($C516)) ),-1,"") -> 
B517: =#REF! ->  | C517: =#REF! ->  | D517: =IF( AND($C517>($D$492-1),$C517<($F$492+1),WEEKDAY($C517,2)=1, evenWeek($C517) ),-1,"") ->  | E517: =IF( AND($C517>($D$492-1),$C517<($F$492+1),WEEKDAY($C517,2)=1, NOT(evenWeek($C517)) ),-1,"") ->  | F517: =IF( AND($C517>($D$492-1),$C517<($F$492+1),WEEKDAY($C517,2)=2, evenWeek($C517) ),-1,"") ->  | G517: =IF( AND($C517>($D$492-1),$C517<($F$492+1),WEEKDAY($C517,2)=2, NOT(evenWeek($C517)) ),-1,"") ->  | H517: =IF( AND($C517>($D$492-1),$C517<($F$492+1),WEEKDAY($C517,2)=3, evenWeek($C517) ),-1,"") ->  | I517: =IF( AND($C517>($D$492-1),$C517<($F$492+1),WEEKDAY($C517,2)=3, NOT(evenWeek($C517)) ),-1,"") ->  | J517: =IF( AND($C517>($D$492-1),$C517<($F$492+1),WEEKDAY($C517,2)=4, evenWeek($C517) ),-1,"") ->  | K517: =IF( AND($C517>($D$492-1),$C517<($F$492+1),WEEKDAY($C517,2)=4, NOT(evenWeek($C517)) ),-1,"") ->  | L517: =IF( AND($C517>($D$492-1),$C517<($F$492+1),WEEKDAY($C517,2)=5, evenWeek($C517) ),-1,"") ->  | M517: =IF( AND($C517>($D$492-1),$C517<($F$492+1),WEEKDAY($C517,2)=5, NOT(evenWeek($C517)) ),-1,"") ->  | N517: =IF( AND($C517>($D$492-1),$C517<($F$492+1),WEEKDAY($C517,2)=6, evenWeek($C517) ),-1,"") ->  | O517: =IF( AND($C517>($D$492-1),$C517<($F$492+1),WEEKDAY($C517,2)=6, NOT(evenWeek($C517)) ),-1,"") ->  | P517: =IF( AND($C517>($D$492-1),$C517<($F$492+1),WEEKDAY($C517,2)=7, evenWeek($C517) ),-1,"") ->  | Q517: =IF( AND($C517>($D$492-1),$C517<($F$492+1),WEEKDAY($C517,2)=7, NOT(evenWeek($C517)) ),-1,"") -> 
B518: =#REF! ->  | C518: =#REF! ->  | D518: =IF( AND($C518>($D$492-1),$C518<($F$492+1),WEEKDAY($C518,2)=1, evenWeek($C518) ),-1,"") ->  | E518: =IF( AND($C518>($D$492-1),$C518<($F$492+1),WEEKDAY($C518,2)=1, NOT(evenWeek($C518)) ),-1,"") ->  | F518: =IF( AND($C518>($D$492-1),$C518<($F$492+1),WEEKDAY($C518,2)=2, evenWeek($C518) ),-1,"") ->  | G518: =IF( AND($C518>($D$492-1),$C518<($F$492+1),WEEKDAY($C518,2)=2, NOT(evenWeek($C518)) ),-1,"") ->  | H518: =IF( AND($C518>($D$492-1),$C518<($F$492+1),WEEKDAY($C518,2)=3, evenWeek($C518) ),-1,"") ->  | I518: =IF( AND($C518>($D$492-1),$C518<($F$492+1),WEEKDAY($C518,2)=3, NOT(evenWeek($C518)) ),-1,"") ->  | J518: =IF( AND($C518>($D$492-1),$C518<($F$492+1),WEEKDAY($C518,2)=4, evenWeek($C518) ),-1,"") ->  | K518: =IF( AND($C518>($D$492-1),$C518<($F$492+1),WEEKDAY($C518,2)=4, NOT(evenWeek($C518)) ),-1,"") ->  | L518: =IF( AND($C518>($D$492-1),$C518<($F$492+1),WEEKDAY($C518,2)=5, evenWeek($C518) ),-1,"") ->  | M518: =IF( AND($C518>($D$492-1),$C518<($F$492+1),WEEKDAY($C518,2)=5, NOT(evenWeek($C518)) ),-1,"") ->  | N518: =IF( AND($C518>($D$492-1),$C518<($F$492+1),WEEKDAY($C518,2)=6, evenWeek($C518) ),-1,"") ->  | O518: =IF( AND($C518>($D$492-1),$C518<($F$492+1),WEEKDAY($C518,2)=6, NOT(evenWeek($C518)) ),-1,"") ->  | P518: =IF( AND($C518>($D$492-1),$C518<($F$492+1),WEEKDAY($C518,2)=7, evenWeek($C518) ),-1,"") ->  | Q518: =IF( AND($C518>($D$492-1),$C518<($F$492+1),WEEKDAY($C518,2)=7, NOT(evenWeek($C518)) ),-1,"") -> 
B519: =#REF! ->  | C519: =#REF! ->  | J519: =IF( AND($C519>($D$492-1),$C519<($F$492+1), evenWeek($C519) ),-1,"") ->  | K519: =IF( AND($C519>($D$492-1),$C519<($F$492+1), NOT(evenWeek($C519)) ),-1,"") -> 
B520: =#REF! ->  | C520: =#REF! ->  | D520: =IF( AND($C520>($D$492-1),$C520<($F$492+1), evenWeek($C520) ),-1,"") ->  | E520: =IF( AND($C520>($D$492-1),$C520<($F$492+1), NOT(evenWeek($C520)) ),-1,"") -> 
B521: =#REF! ->  | C521: =#REF! ->  | D521: =IF( AND($C521>($D$492-1),$C521<($F$492+1),WEEKDAY($C521,2)=1, evenWeek($C521) ),-1,"") ->  | E521: =IF( AND($C521>($D$492-1),$C521<($F$492+1),WEEKDAY($C521,2)=1, NOT(evenWeek($C521)) ),-1,"") ->  | F521: =IF( AND($C521>($D$492-1),$C521<($F$492+1),WEEKDAY($C521,2)=2, evenWeek($C521) ),-1,"") ->  | G521: =IF( AND($C521>($D$492-1),$C521<($F$492+1),WEEKDAY($C521,2)=2, NOT(evenWeek($C521)) ),-1,"") ->  | H521: =IF( AND($C521>($D$492-1),$C521<($F$492+1),WEEKDAY($C521,2)=3, evenWeek($C521) ),-1,"") ->  | I521: =IF( AND($C521>($D$492-1),$C521<($F$492+1),WEEKDAY($C521,2)=3, NOT(evenWeek($C521)) ),-1,"") ->  | J521: =IF( AND($C521>($D$492-1),$C521<($F$492+1),WEEKDAY($C521,2)=4, evenWeek($C521) ),-1,"") ->  | K521: =IF( AND($C521>($D$492-1),$C521<($F$492+1),WEEKDAY($C521,2)=4, NOT(evenWeek($C521)) ),-1,"") ->  | L521: =IF( AND($C521>($D$492-1),$C521<($F$492+1),WEEKDAY($C521,2)=5, evenWeek($C521) ),-1,"") ->  | M521: =IF( AND($C521>($D$492-1),$C521<($F$492+1),WEEKDAY($C521,2)=5, NOT(evenWeek($C521)) ),-1,"") ->  | N521: =IF( AND($C521>($D$492-1),$C521<($F$492+1),WEEKDAY($C521,2)=6, evenWeek($C521) ),-1,"") ->  | O521: =IF( AND($C521>($D$492-1),$C521<($F$492+1),WEEKDAY($C521,2)=6, NOT(evenWeek($C521)) ),-1,"") ->  | P521: =IF( AND($C521>($D$492-1),$C521<($F$492+1),WEEKDAY($C521,2)=7, evenWeek($C521) ),-1,"") ->  | Q521: =IF( AND($C521>($D$492-1),$C521<($F$492+1),WEEKDAY($C521,2)=7, NOT(evenWeek($C521)) ),-1,"") -> 
B522: =#REF! ->  | C522: =#REF! ->  | D522: =IF( AND($C522>($D$492-1),$C522<($F$492+1),WEEKDAY($C522,2)=1, evenWeek($C522) ),-1,"") ->  | E522: =IF( AND($C522>($D$492-1),$C522<($F$492+1),WEEKDAY($C522,2)=1, NOT(evenWeek($C522)) ),-1,"") ->  | F522: =IF( AND($C522>($D$492-1),$C522<($F$492+1),WEEKDAY($C522,2)=2, evenWeek($C522) ),-1,"") ->  | G522: =IF( AND($C522>($D$492-1),$C522<($F$492+1),WEEKDAY($C522,2)=2, NOT(evenWeek($C522)) ),-1,"") ->  | H522: =IF( AND($C522>($D$492-1),$C522<($F$492+1),WEEKDAY($C522,2)=3, evenWeek($C522) ),-1,"") ->  | I522: =IF( AND($C522>($D$492-1),$C522<($F$492+1),WEEKDAY($C522,2)=3, NOT(evenWeek($C522)) ),-1,"") ->  | J522: =IF( AND($C522>($D$492-1),$C522<($F$492+1),WEEKDAY($C522,2)=4, evenWeek($C522) ),-1,"") ->  | K522: =IF( AND($C522>($D$492-1),$C522<($F$492+1),WEEKDAY($C522,2)=4, NOT(evenWeek($C522)) ),-1,"") ->  | L522: =IF( AND($C522>($D$492-1),$C522<($F$492+1),WEEKDAY($C522,2)=5, evenWeek($C522) ),-1,"") ->  | M522: =IF( AND($C522>($D$492-1),$C522<($F$492+1),WEEKDAY($C522,2)=5, NOT(evenWeek($C522)) ),-1,"") ->  | N522: =IF( AND($C522>($D$492-1),$C522<($F$492+1),WEEKDAY($C522,2)=6, evenWeek($C522) ),-1,"") ->  | O522: =IF( AND($C522>($D$492-1),$C522<($F$492+1),WEEKDAY($C522,2)=6, NOT(evenWeek($C522)) ),-1,"") ->  | P522: =IF( AND($C522>($D$492-1),$C522<($F$492+1),WEEKDAY($C522,2)=7, evenWeek($C522) ),-1,"") ->  | Q522: =IF( AND($C522>($D$492-1),$C522<($F$492+1),WEEKDAY($C522,2)=7, NOT(evenWeek($C522)) ),-1,"") -> 
B523: =#REF! ->  | C523: =#REF! -> 
B524: =#REF! ->  | C524: =#REF! -> 
B525: =#REF! ->  | C525: =#REF! -> 
B526: =#REF! ->  | C526: =#REF! -> 
B527: =#REF! ->  | C527: =#REF! -> 
B528: werkbare dagen | D528: =IF(OR(YEAR($D$492)<>$N$3,YEAR($F$492)<>$N$3),0,SUM(D510,D514:D527)) -> 0 | E528: 0 | F528: 0 | G528: 0 | H528: 0 | I528: 0 | J528: 0 | K528: 0 | L528: 0 | M528: 0 | N528: 0 | O528: 0 | P528: 0 | Q528: 0 | R528: =SUM(D528:O528) -> 0
B530: standaard werkweek | D530: 40 | E530: 38 | F530: 36
B531: bijbehorend verlofsaldo | D531: =#REF! ->  | E531: =#REF! ->  | F531: =#REF! -> 
B532: # werkdagen in jaar | C532: =#REF! -> 
B534: (Z) Periodefactor werkbare dagen per volledig kalenderjaar | K534: =IF(AND(D492>0,F492>0),R528/C532,0) -> 0
B536: (A) Omvang aanstelling in fulltime equivalenten (fte's) | K536: =DIENSTVERBANDGEGEVENS!J85 -> 0
I537: keuzerondje
B538: (B) Standaard werkweek bij volledige aanstelling, vul in 36, 38 of 40 | I538: 0 | K538: =IF(I538=1,36,IF(I538=2,38,IF(I538=3,40,0))) -> 0
B540: (C) Totaal aantal netto werkbare uren in periode 5 ( A * 1659 * Z ) | K540: =IF($N$4,K536*#REF!*K534,0) -> 
B542: (D) Bruto aantal werkbare uren bij aanstellingsomvang ( A * B ) | K542: =K536*K538 -> 0
B544: (E) Keuze tijdsbesteding | D544: maandag | E544: dinsdag | F544: woensdag | G544: donderdag | H544: vrijdag | I544: zaterdag | K544: gemiddeld
C545: even week | D545: =DIENSTVERBANDGEGEVENS!D94 -> 0 | E545: =DIENSTVERBANDGEGEVENS!E94 -> 0 | F545: =DIENSTVERBANDGEGEVENS!F94 -> 0 | G545: =DIENSTVERBANDGEGEVENS!G94 -> 0 | H545: =DIENSTVERBANDGEGEVENS!H94 -> 0 | I545: =DIENSTVERBANDGEGEVENS!I94 -> 0 | K545: totaal
B546: totaal even | D546: =maandag5*D528 -> 0 | E546: =E545*F528 -> 0 | F546: =F545*H528 -> 0 | G546: =G545*J528 -> 0 | H546: =H545*L528 -> 0 | I546: =I545*N528 -> 0
C547: oneven week | D547: =DIENSTVERBANDGEGEVENS!D96 -> 0 | E547: =DIENSTVERBANDGEGEVENS!E96 -> 0 | F547: =DIENSTVERBANDGEGEVENS!F96 -> 0 | G547: =DIENSTVERBANDGEGEVENS!G96 -> 0 | H547: =DIENSTVERBANDGEGEVENS!H96 -> 0 | I547: =DIENSTVERBANDGEGEVENS!I96 -> 0 | K547: =SUM(D545:I545,D547:I547)/2 -> 0
B548: totaal oneven | D548: =D547*E528 -> 0 | E548: =E547*G528 -> 0 | F548: =F547*I528 -> 0 | G548: =G547*K528 -> 0 | H548: =H547*M528 -> 0 | I548: =I547*O528 -> 0
B549: (F) werkbare uren (gecorrigeerd voor feestdagen en overige niet-werkbare dagen) | K549: =IF(AND(D492>0,F492>0,$N$4),SUM(D546:I546,D548:I548),0) -> 0
B551: (G) Bruto CAO verlofuren in periode 5 ( A * verlofsaldo * Z ) | K551: =SUM(K536*IF(K538=0,0,IF(K538=D530,D531,IF(K538=E530,E531,IF(K538=F530,F531,"")))))*K534 -> 0
B553: (H) Werkbare uren gecorrigeerd voor bruto verlofuren ( F - G ) | K553: =IF(K542=0,0,K549-K551) -> 0
B555: (I) teveel (+) / te weinig (-) gewerkte uren ( H - C ) | K555: =K553-K540 -> 
B557: (J) Opgebouwde netto CAO verlofuren ( G + I ) | K557: =K551+K555 -> 

Sheet VEEL GESTELDE VRAGEN
B2: OUDERSCHAPSVERLOF- EN FEESTDAG/HVA VERPLICHTE VRIJE DAG VALLEN SAMEN
B3: Als de ouderschapsverlofdag op een feestdag valt, dan kan deze niet worden gecompenseerd. Valt de ouderschapsverlofdag op een HvA-verplichte vrije dag, dan kan deze ouderschapsverlofdag later opgenomen worden.
B4: VERZUIM- EN FEESTDAG/HVA VERPLICHTE VRIJE DAG VALLEN SAMEN
B5: Ben je ziek en valt deze dag samen met een feestdag/HvA-verplichte vrije dag dan vervalt de vrije dag. Compenseren is dus niet mogelijk. Indien je op een HvA-verplichte vrije dag aan re-integratieverplichtingen werkt en geen verlof opneemt, dan kan deze HvA-verplichte vrije dag op een later moment worden opgenomen. Dit geldt niet voor feestdagen en niet-werkdagen.
B6: ZWANGERSCHAP-/BEVALLINGSVERLOF EN FEESTDAG VALLEN SAMEN
B7: Als een zwangerschaps-/bevallingsverlofdag en een feestdag-/niet werkbare dag samenvallen, dan vervalt de verlofdag. Compenseren is dus niet mogelijk.
B8: Feest-/niet werkbare dagen conform de cao hbo: Zondag, Nieuwjaarsdag, Goede Vrijdag, Tweede Paasdag, Hemelvaartsdag, Tweede Pinksterdag, Eerste en Tweede Kerstdag, de dag waarop Koningsdag wordt gevierd, 5 Mei en de zodanig door de overheid erkende nationale feestdagen en gedenkdagen
B9: ZWANGERSCHAP-/BEVALLINGSVERLOF EN VERPLICHTE VERLOFDAG VALLEN SAMEN
B10: Als een zwangerschaps-/bevallingsverlofdag en een HvA-verplichte vrije dag samenvallen, dan kan deze vrije dag later (aansluitend aan zwangerschaps-/bevallingsverlof) worden opgenomen.

Sheet vrij blad (hidden)
